Workbook

Sheet INTRO
B2: Formulaire de demande commune de médicaments pour CP v.4.0
B4: Dans le cadre des efforts mondiaux entrepris pour accélérer l'expansion de la chimioprévention (CP) pour l'élimination de la filariose lymphatique et la lutte contre la schistosomiase et les géohelminthiases, l'Organisation mondiale de la Santé (OMS) facilite l'approvisionnement en albendazole, comprimés de 400 mg (GSK), pour les programmes nationaux d'élimination de la filariose lymphatique et programmes nationaux de lutte contre les géohelminthiases; en diethylcarbamazine, comprimés de 100 mg (Eisai), pour les programmes nationaux d'élimination de la filariose lymphatique; en mebendazole, comprimés de 500 mg (J&J) pour les programmes nationaux de lutte contre les géohelminthiases et en praziquantel, comprimés de 600 mg (Merck KGaA), destinés aux enfants d'âge scolaire, pour les programmes nationaux de lutte contre la schistosomiase. L'OMS contribue également à l'approvisionnement en ivermectine, comprimés de 3 mg (Merck), pour les programmes de donation pour l'onchocercose et la filariose lymphatique. Cet outil Excel est concu pour aider les pays à quantifier le nombre de comprimés nécessaires, selon le traitement de chimioprévention requis, pour atteindre les objectifs de couverture de traitement de populations et districts pour l'année de la demande de médicaments. Le résultat de cet outil est une demande commune de médicaments pour la chimioprévention des maladies tropicales négligées, qui peut être imprimée, signée et soumise à l'OMS pour la demande de ces médicaments.
B6: Structure de l'application (feuilles de travail) :
B8: INTRO | C8: Cette feuille contient des instructions pour compléter le formulaire de demande de médicaments pour la chimioprévention et des informations sur le statut de la chimioprévention pour les maladies d'endémie du pays.
B9: COUNTRY_INFO | C9: Cette feuille contient des informations sur la structure administrative du pays, la population par groupe d'âge, le statut d'endémicité pour chaque maladie, la population devant être traitée par chimioprévention et les interventions prévues.
B10: DEC, ALB_MBD, PZQ et IVM | C10: Ces feuilles contiennent des informations sur l'endémicité des districts ciblés pour le traitement aux médicaments spécifiques à la chimioprévention, les plans de traitement, et le nombre de comprimés requis et demandés.
B11: SUMMARY | C11: Cette feuille inclut un résumé du nombre de comprimés demandés, des informations concernant le stock et les dates de soumission de la demande de médicaments. Avant de générer le rapport (run macros), veuillez sélectionner le médicament pour lequel le rapport est nécessaire. Veuillez suivre la même règle pour voir le nombre de personnes à traiter pour les maladies spécifiques. Cette feuille doit être imprimée et soumise en tant que "Formulaire de demande commune de médicaments pour chimioprévention" (voir les instructions pour la soumission du formulaire sous la feuille SUMMARY).
B13: Instructions pour la saisie des données
B15: La plupart des cellules des feuilles de travail mentionnées ci-dessus contiennent des formules calculées automatiquement en fonction du protocole de traitement recommandé par l'OMS pour chaque maladie. Voir : https://www.who.int/publications/i/item/9789241599993.
B17: Veuillez entrer vos données dans les cellules en fonction de leur code de couleur :
C19: Blanc - la cellule n'est pas protégée. Veuillez entrer la valeur de l'indicateur demandé.
C21: Jaune - la cellule est protégée et inclut le nom de l'indicateur. Aucune entrée de données requise.
C23: Orange - la cellule n'est pas protégée et contient un menu déroulant. Veuillez sélectionner la valeur dans le menu déroulant.
C26: Vert - la cellule n'est pas protégée et contient des formules. Veuillez changer la valeur indiquée uniquement si vos données sont différentes de celles calculées automatiquement.
C29: Bleu - la cellule est protégée et contient des formules. Aucune entrée de données requise.
B31: Données pays
B33: PAYS | E33: Guinée Bissau
E34: 5
B35: Année de la demande de médicaments | E35: 2023
B37: Le pays est-il endémique à la filariose lymphatique (FL) ? | E37: Endémique
B39: Le pays est-il endémique à l'onchocercose (ONCHO) ? | E39: Endémique
B41: Le pays est-il endémique aux géohelminthiases (STH) ? | E41: Endémique
B43: Le pays est-il endémique à la schistosomiase (SCH) ? | E43: Endémique
B45: Combien d'unités administratives compte le pays ? | E45: 117
B47: Si les données démographiques par groupe d'âge ne sont pas disponibles au second niveau administratif, veuillez entrer la proportion (%) de population, par groupe d'âge, du pays. Si les données sont disponibles, veuillez laisser les cellules vierges.
B48: 1-4 ans | C48: Enfants d'âge pré-scolaire (EAPréS) | E48: 0.133
B49: 5-14 ans | C49: Enfants d'âge scolaire (EAS) | E49: 0.2562
B50: 15 ans et plus | C50: Adultes | E50: 0.5665
B51: 15-49 ans | C51: Femmes en âge de procréer (FAP) | E51: 0.22

Sheet COUNTRY_INFO
A1: INFORMATIONS PAYS
A2: Struture administrative, population par groupe d'âge, statut d'endémicité et interventions planifiées
A4: TOTAL | D4: =SUBTOTAL(9,D$10:D$1010) -> 2176331 | E4: =SUBTOTAL(9,E$10:E$1010) -> 289452 | F4: 557575 | G4: 1232894 | L4: =SUBTOTAL(9,L$10:L$1010) -> 2045356 | M4: 606445 | N4: 139526 | O4: 268772 | P4: 230793 | Q4: 639091 | R4: 55986 | S4: 143786 | T4: 317934 | U4: 517706
A6: Structure administrative du pays | D6: Population | H6: Endémicité | L6: Population nécessitant la CP | V6: Nombre de tournées de traitement prévues pour l'année | Z6: Criteria to apply for IVM+DEC+ALB therapy | AA6: Enquêtes épidémiologiques planifiées pour l’année
A7: Pays | B7: Région/Département | C7: District | D7: Total | E7: EAPréS | F7: EAS | G7: Adultes | H7: FL | I7: Oncho | J7: STH | K7: SCH | L7: FL | M7: ONCHO | N7: STH | R7: SCH | V7: FL | W7: Oncho | X7: STH | Y7: SCH | Z7: FL | AA7: FL | AB7: Oncho | AC7: STH | AD7: SCH
N8: EAPréS | O8: EAS | P8: FAP | Q8: TOTAL | R8: EAPréS | S8: EAS | T8: Adultes | U8: TOTAL | AF8: IU_ID | AG8: IU_Name
A10: =IF(INTRO!$E$33<>0,INTRO!$E$33, " ") -> Guinée Bissau | B10: SAB | C10: AJUDA | D10: 16645 | E10: =IF(INTRO!$E$48="","",ROUND($D10*INTRO!$E$48,0)) -> 2214 | F10: =IF(INTRO!$E$49="","",ROUND($D10*INTRO!$E$49,0)) -> 4264 | G10: =IF(INTRO!$E$50="","",ROUND($D10*INTRO!$E$50,0)) -> 9429 | H10: 1 | I10: 4 | J10: 2 | K10: 1 | L10: =IF(INTRO!$E$37="Endémique",IF($H10>0,IF($H10=4,"Inconnu",IF($H10=99,"Interrompu",$D10)),0),"Non requis") -> 16645 | M10: =IF(INTRO!$E$39="Endémique", IF($I10>0, IF($I10=4,"Inconnu",IF($I10=99,"Interrompu",$D10)), 0),"Non requis") -> Inconnu | N10: =IF(INTRO!$E$41="Endémique", IF($J10>1, IF($J10=4, "Inconnu", IF($J10=99, "Surveillance", E10)), 0),"Non requis") -> 2214 | O10: =IF(INTRO!$E$41="Endémique", IF($J10>1, IF($J10=4, "Inconnu", IF($J10=99, "Surveillance", F10)), 0),"Non requis") -> 4264 | P10: =IF(INTRO!$E$41="Endémique", IF($J10>1, IF($J10=4, "Inconnu", IF($J10=99, "Surveillance", ROUND(D10*INTRO!$E$51,0))), 0),"Non requis") -> 3662 | Q10: =IF(INTRO!$E$41="Endémique", IF($J10>1, IF($J10=4, "Inconnu", IF($J10=99, "Surveillance", SUM($N10:$P10))), 0),"Non requis") -> 10140 | R10: =IF(INTRO!$E$43="Endémique", IF($K10>1, IF($K10=4, "Inconnu", IF($K10=99, "Surveillance", ROUND(E10*0.75,0))), 0),"Non requis") -> 0 | S10: =IF(INTRO!$E$43="Endémique", IF($K10>1, IF($K10=4, "Inconnu", IF($K10=99, "Surveillance", F10)), 0),"Non requis") -> 0 | T10: =IF(INTRO!$E$43="Endémique", IF($K10>1, IF($K10=4, "Inconnu", IF($K10=99, "Surveillance", G10)), 0),"Non requis") -> 0 | U10: =IF(INTRO!$E$43="Endémique", IF($K10>1, IF($K10=4, "Inconnu", IF($K10=99, "Surveillance", SUM($R10:$T10))), 0),"Non requis") -> 0 | V10: 1 | W10: 0 | X10: 1 | Y10: 0 | AF10: 23648 | AG10: AJUDA
A11: =IF(INTRO!$E$33<>0,INTRO!$E$33, " ") -> Guinée Bissau | B11: SAB | C11: ANTULA | D11: 49120 | E11: =IF(INTRO!$E$48="","",ROUND($D11*INTRO!$E$48,0)) -> 6533 | F11: =IF(INTRO!$E$49="","",ROUND($D11*INTRO!$E$49,0)) -> 12585 | G11: =IF(INTRO!$E$50="","",ROUND($D11*INTRO!$E$50,0)) -> 27826 | H11: 1 | I11: 4 | J11: 2 | K11: 1 | L11: =IF(INTRO!$E$37="Endémique",IF($H11>0,IF($H11=4,"Inconnu",IF($H11=99,"Interrompu",$D11)),0),"Non requis") -> 49120 | M11: =IF(INTRO!$E$39="Endémique", IF($I11>0, IF($I11=4,"Inconnu",IF($I11=99,"Interrompu",$D11)), 0),"Non requis") -> Inconnu | N11: =IF(INTRO!$E$41="Endémique", IF($J11>1, IF($J11=4, "Inconnu", IF($J11=99, "Surveillance", E11)), 0),"Non requis") -> 6533 | O11: =IF(INTRO!$E$41="Endémique", IF($J11>1, IF($J11=4, "Inconnu", IF($J11=99, "Surveillance", F11)), 0),"Non requis") -> 12585 | P11: =IF(INTRO!$E$41="Endémique", IF($J11>1, IF($J11=4, "Inconnu", IF($J11=99, "Surveillance", ROUND(D11*INTRO!$E$51,0))), 0),"Non requis") -> 10806 | Q11: =IF(INTRO!$E$41="Endémique", IF($J11>1, IF($J11=4, "Inconnu", IF($J11=99, "Surveillance", SUM($N11:$P11))), 0),"Non requis") -> 29924 | R11: =IF(INTRO!$E$43="Endémique", IF($K11>1, IF($K11=4, "Inconnu", IF($K11=99, "Surveillance", ROUND(E11*0.75,0))), 0),"Non requis") -> 0 | S11: =IF(INTRO!$E$43="Endémique", IF($K11>1, IF($K11=4, "Inconnu", IF($K11=99, "Surveillance", F11)), 0),"Non requis") -> 0 | T11: =IF(INTRO!$E$43="Endémique", IF($K11>1, IF($K11=4, "Inconnu", IF($K11=99, "Surveillance", G11)), 0),"Non requis") -> 0 | U11: =IF(INTRO!$E$43="Endémique", IF($K11>1, IF($K11=4, "Inconnu", IF($K11=99, "Surveillance", SUM($R11:$T11))), 0),"Non requis") -> 0 | V11: 1 | W11: 0 | X11: 1 | Y11: 0 | AF11: 23649 | AG11: ANTULA
A12: =IF(INTRO!$E$33<>0,INTRO!$E$33, " ") -> Guinée Bissau | B12: SAB | C12: B. MILITAR | D12: 104313 | E12: =IF(INTRO!$E$48="","",ROUND($D12*INTRO!$E$48,0)) -> 13874 | F12: =IF(INTRO!$E$49="","",ROUND($D12*INTRO!$E$49,0)) -> 26725 | G12: =IF(INTRO!$E$50="","",ROUND($D12*INTRO!$E$50,0)) -> 59093 | H12: 1 | I12: 4 | J12: 1 | K12: 0 | L12: =IF(INTRO!$E$37="Endémique",IF($H12>0,IF($H12=4,"Inconnu",IF($H12=99,"Interrompu",$D12)),0),"Non requis") -> 104313 | M12: =IF(INTRO!$E$39="Endémique", IF($I12>0, IF($I12=4,"Inconnu",IF($I12=99,"Interrompu",$D12)), 0),"Non requis") -> Inconnu | N12: =IF(INTRO!$E$41="Endémique", IF($J12>1, IF($J12=4, "Inconnu", IF($J12=99, "Surveillance", E12)), 0),"Non requis") -> 0 | O12: =IF(INTRO!$E$41="Endémique", IF($J12>1, IF($J12=4, "Inconnu", IF($J12=99, "Surveillance", F12)), 0),"Non requis") -> 0 | P12: =IF(INTRO!$E$41="Endémique", IF($J12>1, IF($J12=4, "Inconnu", IF($J12=99, "Surveillance", ROUND(D12*INTRO!$E$51,0))), 0),"Non requis") -> 0 | Q12: =IF(INTRO!$E$41="Endémique", IF($J12>1, IF($J12=4, "Inconnu", IF($J12=99, "Surveillance", SUM($N12:$P12))), 0),"Non requis") -> 0 | R12: =IF(INTRO!$E$43="Endémique", IF($K12>1, IF($K12=4, "Inconnu", IF($K12=99, "Surveillance", ROUND(E12*0.75,0))), 0),"Non requis") -> 0 | S12: =IF(INTRO!$E$43="Endémique", IF($K12>1, IF($K12=4, "Inconnu", IF($K12=99, "Surveillance", F12)), 0),"Non requis") -> 0 | T12: =IF(INTRO!$E$43="Endémique", IF($K12>1, IF($K12=4, "Inconnu", IF($K12=99, "Surveillance", G12)), 0),"Non requis") -> 0 | U12: =IF(INTRO!$E$43="Endémique", IF($K12>1, IF($K12=4, "Inconnu", IF($K12=99, "Surveillance", SUM($R12:$T12))), 0),"Non requis") -> 0 | V12: 1 | W12: 0 | X12: 0 | Y12: 0 | AF12: 23650 | AG12: B. MILITAR
A13: =IF(INTRO!$E$33<>0,INTRO!$E$33, " ") -> Guinée Bissau | B13: SAB | C13: BANDIM | D13: 71368 | E13: =IF(INTRO!$E$48="","",ROUND($D13*INTRO!$E$48,0)) -> 9492 | F13: =IF(INTRO!$E$49="","",ROUND($D13*INTRO!$E$49,0)) -> 18284 | G13: =IF(INTRO!$E$50="","",ROUND($D13*INTRO!$E$50,0)) -> 40430 | H13: 1 | I13: 4 | J13: 2 | K13: 1 | L13: =IF(INTRO!$E$37="Endémique",IF($H13>0,IF($H13=4,"Inconnu",IF($H13=99,"Interrompu",$D13)),0),"Non requis") -> 71368 | M13: =IF(INTRO!$E$39="Endémique", IF($I13>0, IF($I13=4,"Inconnu",IF($I13=99,"Interrompu",$D13)), 0),"Non requis") -> Inconnu | N13: =IF(INTRO!$E$41="Endémique", IF($J13>1, IF($J13=4, "Inconnu", IF($J13=99, "Surveillance", E13)), 0),"Non requis") -> 9492 | O13: =IF(INTRO!$E$41="Endémique", IF($J13>1, IF($J13=4, "Inconnu", IF($J13=99, "Surveillance", F13)), 0),"Non requis") -> 18284 | P13: =IF(INTRO!$E$41="Endémique", IF($J13>1, IF($J13=4, "Inconnu", IF($J13=99, "Surveillance", ROUND(D13*INTRO!$E$51,0))), 0),"Non requis") -> 15701 | Q13: =IF(INTRO!$E$41="Endémique", IF($J13>1, IF($J13=4, "Inconnu", IF($J13=99, "Surveillance", SUM($N13:$P13))), 0),"Non requis") -> 43477 | R13: =IF(INTRO!$E$43="Endémique", IF($K13>1, IF($K13=4, "Inconnu", IF($K13=99, "Surveillance", ROUND(E13*0.75,0))), 0),"Non requis") -> 0 | S13: =IF(INTRO!$E$43="Endémique", IF($K13>1, IF($K13=4, "Inconnu", IF($K13=99, "Surveillance", F13)), 0),"Non requis") -> 0 | T13: =IF(INTRO!$E$43="Endémique", IF($K13>1, IF($K13=4, "Inconnu", IF($K13=99, "Surveillance", G13)), 0),"Non requis") -> 0 | U13: =IF(INTRO!$E$43="Endémique", IF($K13>1, IF($K13=4, "Inconnu", IF($K13=99, "Surveillance", SUM($R13:$T13))), 0),"Non requis") -> 0 | V13: 1 | W13: 0 | X13: 1 | Y13: 0 | AF13: 23651 | AG13: BANDIM
A14: =IF(INTRO!$E$33<>0,INTRO!$E$33, " ") -> Guinée Bissau | B14: SAB | C14: BELEM | D14: 27551 | E14: =IF(INTRO!$E$48="","",ROUND($D14*INTRO!$E$48,0)) -> 3664 | F14: =IF(INTRO!$E$49="","",ROUND($D14*INTRO!$E$49,0)) -> 7059 | G14: =IF(INTRO!$E$50="","",ROUND($D14*INTRO!$E$50,0)) -> 15608 | H14: 1 | I14: 4 | J14: 2 | K14: 1 | L14: =IF(INTRO!$E$37="Endémique",IF($H14>0,IF($H14=4,"Inconnu",IF($H14=99,"Interrompu",$D14)),0),"Non requis") -> 27551 | M14: =IF(INTRO!$E$39="Endémique", IF($I14>0, IF($I14=4,"Inconnu",IF($I14=99,"Interrompu",$D14)), 0),"Non requis") -> Inconnu | N14: =IF(INTRO!$E$41="Endémique", IF($J14>1, IF($J14=4, "Inconnu", IF($J14=99, "Surveillance", E14)), 0),"Non requis") -> 3664 | O14: =IF(INTRO!$E$41="Endémique", IF($J14>1, IF($J14=4, "Inconnu", IF($J14=99, "Surveillance", F14)), 0),"Non requis") -> 7059 | P14: =IF(INTRO!$E$41="Endémique", IF($J14>1, IF($J14=4, "Inconnu", IF($J14=99, "Surveillance", ROUND(D14*INTRO!$E$51,0))), 0),"Non requis") -> 6061 | Q14: =IF(INTRO!$E$41="Endémique", IF($J14>1, IF($J14=4, "Inconnu", IF($J14=99, "Surveillance", SUM($N14:$P14))), 0),"Non requis") -> 16784 | R14: =IF(INTRO!$E$43="Endémique", IF($K14>1, IF($K14=4, "Inconnu", IF($K14=99, "Surveillance", ROUND(E14*0.75,0))), 0),"Non requis") -> 0 | S14: =IF(INTRO!$E$43="Endémique", IF($K14>1, IF($K14=4, "Inconnu", IF($K14=99, "Surveillance", F14)), 0),"Non requis") -> 0 | T14: =IF(INTRO!$E$43="Endémique", IF($K14>1, IF($K14=4, "Inconnu", IF($K14=99, "Surveillance", G14)), 0),"Non requis") -> 0 | U14: =IF(INTRO!$E$43="Endémique", IF($K14>1, IF($K14=4, "Inconnu", IF($K14=99, "Surveillance", SUM($R14:$T14))), 0),"Non requis") -> 0 | V14: 1 | W14: 0 | X14: 1 | Y14: 0 | AF14: 23652 | AG14: BELEM
A15: =IF(INTRO!$E$33<>0,INTRO!$E$33, " ") -> Guinée Bissau | B15: SAB | C15: CMI | D15: 23918 | E15: =IF(INTRO!$E$48="","",ROUND($D15*INTRO!$E$48,0)) -> 3181 | F15: =IF(INTRO!$E$49="","",ROUND($D15*INTRO!$E$49,0)) -> 6128 | G15: =IF(INTRO!$E$50="","",ROUND($D15*INTRO!$E$50,0)) -> 13550 | H15: 1 | I15: 4 | J15: 1 | K15: 0 | L15: =IF(INTRO!$E$37="Endémique",IF($H15>0,IF($H15=4,"Inconnu",IF($H15=99,"Interrompu",$D15)),0),"Non requis") -> 23918 | M15: =IF(INTRO!$E$39="Endémique", IF($I15>0, IF($I15=4,"Inconnu",IF($I15=99,"Interrompu",$D15)), 0),"Non requis") -> Inconnu | N15: =IF(INTRO!$E$41="Endémique", IF($J15>1, IF($J15=4, "Inconnu", IF($J15=99, "Surveillance", E15)), 0),"Non requis") -> 0 | O15: =IF(INTRO!$E$41="Endémique", IF($J15>1, IF($J15=4, "Inconnu", IF($J15=99, "Surveillance", F15)), 0),"Non requis") -> 0 | P15: =IF(INTRO!$E$41="Endémique", IF($J15>1, IF($J15=4, "Inconnu", IF($J15=99, "Surveillance", ROUND(D15*INTRO!$E$51,0))), 0),"Non requis") -> 0 | Q15: =IF(INTRO!$E$41="Endémique", IF($J15>1, IF($J15=4, "Inconnu", IF($J15=99, "Surveillance", SUM($N15:$P15))), 0),"Non requis") -> 0 | R15: =IF(INTRO!$E$43="Endémique", IF($K15>1, IF($K15=4, "Inconnu", IF($K15=99, "Surveillance", ROUND(E15*0.75,0))), 0),"Non requis") -> 0 | S15: =IF(INTRO!$E$43="Endémique", IF($K15>1, IF($K15=4, "Inconnu", IF($K15=99, "Surveillance", F15)), 0),"Non requis") -> 0 | T15: =IF(INTRO!$E$43="Endémique", IF($K15>1, IF($K15=4, "Inconnu", IF($K15=99, "Surveillance", G15)), 0),"Non requis") -> 0 | U15: =IF(INTRO!$E$43="Endémique", IF($K15>1, IF($K15=4, "Inconnu", IF($K15=99, "Surveillance", SUM($R15:$T15))), 0),"Non requis") -> 0 | V15: 1 | W15: 0 | X15: 0 | Y15: 0 | AF15: 23746 | AG15: CMI
A16: =IF(INTRO!$E$33<>0,INTRO!$E$33, " ") -> Guinée Bissau | B16: SAB | C16: CUNTUM | D16: 72587 | E16: =IF(INTRO!$E$48="","",ROUND($D16*INTRO!$E$48,0)) -> 9654 | F16: =IF(INTRO!$E$49="","",ROUND($D16*INTRO!$E$49,0)) -> 18597 | G16: =IF(INTRO!$E$50="","",ROUND($D16*INTRO!$E$50,0)) -> 41121 | H16: 1 | I16: 4 | J16: 1 | K16: 0 | L16: =IF(INTRO!$E$37="Endémique",IF($H16>0,IF($H16=4,"Inconnu",IF($H16=99,"Interrompu",$D16)),0),"Non requis") -> 72587 | M16: =IF(INTRO!$E$39="Endémique", IF($I16>0, IF($I16=4,"Inconnu",IF($I16=99,"Interrompu",$D16)), 0),"Non requis") -> Inconnu | N16: =IF(INTRO!$E$41="Endémique", IF($J16>1, IF($J16=4, "Inconnu", IF($J16=99, "Surveillance", E16)), 0),"Non requis") -> 0 | O16: =IF(INTRO!$E$41="Endémique", IF($J16>1, IF($J16=4, "Inconnu", IF($J16=99, "Surveillance", F16)), 0),"Non requis") -> 0 | P16: =IF(INTRO!$E$41="Endémique", IF($J16>1, IF($J16=4, "Inconnu", IF($J16=99, "Surveillance", ROUND(D16*INTRO!$E$51,0))), 0),"Non requis") -> 0 | Q16: =IF(INTRO!$E$41="Endémique", IF($J16>1, IF($J16=4, "Inconnu", IF($J16=99, "Surveillance", SUM($N16:$P16))), 0),"Non requis") -> 0 | R16: =IF(INTRO!$E$43="Endémique", IF($K16>1, IF($K16=4, "Inconnu", IF($K16=99, "Surveillance", ROUND(E16*0.75,0))), 0),"Non requis") -> 0 | S16: =IF(INTRO!$E$43="Endémique", IF($K16>1, IF($K16=4, "Inconnu", IF($K16=99, "Surveillance", F16)), 0),"Non requis") -> 0 | T16: =IF(INTRO!$E$43="Endémique", IF($K16>1, IF($K16=4, "Inconnu", IF($K16=99, "Surveillance", G16)), 0),"Non requis") -> 0 | U16: =IF(INTRO!$E$43="Endémique", IF($K16>1, IF($K16=4, "Inconnu", IF($K16=99, "Surveillance", SUM($R16:$T16))), 0),"Non requis") -> 0 | V16: 1 | W16: 0 | X16: 0 | Y16: 0 | AF16: 23653 | AG16: CUNTUM
A17: =IF(INTRO!$E$33<>0,INTRO!$E$33, " ") -> Guinée Bissau | B17: SAB | C17: LUANDA | D17: 40276 | E17: =IF(INTRO!$E$48="","",ROUND($D17*INTRO!$E$48,0)) -> 5357 | F17: =IF(INTRO!$E$49="","",ROUND($D17*INTRO!$E$49,0)) -> 10319 | G17: =IF(INTRO!$E$50="","",ROUND($D17*INTRO!$E$50,0)) -> 22816 | H17: 1 | I17: 4 | J17: 2 | K17: 1 | L17: =IF(INTRO!$E$37="Endémique",IF($H17>0,IF($H17=4,"Inconnu",IF($H17=99,"Interrompu",$D17)),0),"Non requis") -> 40276 | M17: =IF(INTRO!$E$39="Endémique", IF($I17>0, IF($I17=4,"Inconnu",IF($I17=99,"Interrompu",$D17)), 0),"Non requis") -> Inconnu | N17: =IF(INTRO!$E$41="Endémique", IF($J17>1, IF($J17=4, "Inconnu", IF($J17=99, "Surveillance", E17)), 0),"Non requis") -> 5357 | O17: =IF(INTRO!$E$41="Endémique", IF($J17>1, IF($J17=4, "Inconnu", IF($J17=99, "Surveillance", F17)), 0),"Non requis") -> 10319 | P17: =IF(INTRO!$E$41="Endémique", IF($J17>1, IF($J17=4, "Inconnu", IF($J17=99, "Surveillance", ROUND(D17*INTRO!$E$51,0))), 0),"Non requis") -> 8861 | Q17: =IF(INTRO!$E$41="Endémique", IF($J17>1, IF($J17=4, "Inconnu", IF($J17=99, "Surveillance", SUM($N17:$P17))), 0),"Non requis") -> 24537 | R17: =IF(INTRO!$E$43="Endémique", IF($K17>1, IF($K17=4, "Inconnu", IF($K17=99, "Surveillance", ROUND(E17*0.75,0))), 0),"Non requis") -> 0 | S17: =IF(INTRO!$E$43="Endémique", IF($K17>1, IF($K17=4, "Inconnu", IF($K17=99, "Surveillance", F17)), 0),"Non requis") -> 0 | T17: =IF(INTRO!$E$43="Endémique", IF($K17>1, IF($K17=4, "Inconnu", IF($K17=99, "Surveillance", G17)), 0),"Non requis") -> 0 | U17: =IF(INTRO!$E$43="Endémique", IF($K17>1, IF($K17=4, "Inconnu", IF($K17=99, "Surveillance", SUM($R17:$T17))), 0),"Non requis") -> 0 | V17: 1 | W17: 0 | X17: 1 | Y17: 0 | AF17: 23747 | AG17: LUANDA
A18: =IF(INTRO!$E$33<>0,INTRO!$E$33, " ") -> Guinée Bissau | B18: SAB | C18: MISSIRA | D18: 61936 | E18: =IF(INTRO!$E$48="","",ROUND($D18*INTRO!$E$48,0)) -> 8237 | F18: =IF(INTRO!$E$49="","",ROUND($D18*INTRO!$E$49,0)) -> 15868 | G18: =IF(INTRO!$E$50="","",ROUND($D18*INTRO!$E$50,0)) -> 35087 | H18: 1 | I18: 4 | J18: 0 | K18: 1 | L18: =IF(INTRO!$E$37="Endémique",IF($H18>0,IF($H18=4,"Inconnu",IF($H18=99,"Interrompu",$D18)),0),"Non requis") -> 61936 | M18: =IF(INTRO!$E$39="Endémique", IF($I18>0, IF($I18=4,"Inconnu",IF($I18=99,"Interrompu",$D18)), 0),"Non requis") -> Inconnu | N18: =IF(INTRO!$E$41="Endémique", IF($J18>1, IF($J18=4, "Inconnu", IF($J18=99, "Surveillance", E18)), 0),"Non requis") -> 0 | O18: =IF(INTRO!$E$41="Endémique", IF($J18>1, IF($J18=4, "Inconnu", IF($J18=99, "Surveillance", F18)), 0),"Non requis") -> 0 | P18: =IF(INTRO!$E$41="Endémique", IF($J18>1, IF($J18=4, "Inconnu", IF($J18=99, "Surveillance", ROUND(D18*INTRO!$E$51,0))), 0),"Non requis") -> 0 | Q18: =IF(INTRO!$E$41="Endémique", IF($J18>1, IF($J18=4, "Inconnu", IF($J18=99, "Surveillance", SUM($N18:$P18))), 0),"Non requis") -> 0 | R18: =IF(INTRO!$E$43="Endémique", IF($K18>1, IF($K18=4, "Inconnu", IF($K18=99, "Surveillance", ROUND(E18*0.75,0))), 0),"Non requis") -> 0 | S18: =IF(INTRO!$E$43="Endémique", IF($K18>1, IF($K18=4, "Inconnu", IF($K18=99, "Surveillance", F18)), 0),"Non requis") -> 0 | T18: =IF(INTRO!$E$43="Endémique", IF($K18>1, IF($K18=4, "Inconnu", IF($K18=99, "Surveillance", G18)), 0),"Non requis") -> 0 | U18: =IF(INTRO!$E$43="Endémique", IF($K18>1, IF($K18=4, "Inconnu", IF($K18=99, "Surveillance", SUM($R18:$T18))), 0),"Non requis") -> 0 | V18: 1 | W18: 0 | X18: 0 | Y18: 0 | AF18: 23748 | AG18: MISSIRA
A19: =IF(INTRO!$E$33<>0,INTRO!$E$33, " ") -> Guinée Bissau | B19: SAB | C19: PEFINE | D19: 23634 | E19: =IF(INTRO!$E$48="","",ROUND($D19*INTRO!$E$48,0)) -> 3143 | F19: =IF(INTRO!$E$49="","",ROUND($D19*INTRO!$E$49,0)) -> 6055 | G19: =IF(INTRO!$E$50="","",ROUND($D19*INTRO!$E$50,0)) -> 13389 | H19: 1 | I19: 4 | J19: 1 | K19: 1 | L19: =IF(INTRO!$E$37="Endémique",IF($H19>0,IF($H19=4,"Inconnu",IF($H19=99,"Interrompu",$D19)),0),"Non requis") -> 23634 | M19: =IF(INTRO!$E$39="Endémique", IF($I19>0, IF($I19=4,"Inconnu",IF($I19=99,"Interrompu",$D19)), 0),"Non requis") -> Inconnu | N19: =IF(INTRO!$E$41="Endémique", IF($J19>1, IF($J19=4, "Inconnu", IF($J19=99, "Surveillance", E19)), 0),"Non requis") -> 0 | O19: =IF(INTRO!$E$41="Endémique", IF($J19>1, IF($J19=4, "Inconnu", IF($J19=99, "Surveillance", F19)), 0),"Non requis") -> 0 | P19: =IF(INTRO!$E$41="Endémique", IF($J19>1, IF($J19=4, "Inconnu", IF($J19=99, "Surveillance", ROUND(D19*INTRO!$E$51,0))), 0),"Non requis") -> 0 | Q19: =IF(INTRO!$E$41="Endémique", IF($J19>1, IF($J19=4, "Inconnu", IF($J19=99, "Surveillance", SUM($N19:$P19))), 0),"Non requis") -> 0 | R19: =IF(INTRO!$E$43="Endémique", IF($K19>1, IF($K19=4, "Inconnu", IF($K19=99, "Surveillance", ROUND(E19*0.75,0))), 0),"Non requis") -> 0 | S19: =IF(INTRO!$E$43="Endémique", IF($K19>1, IF($K19=4, "Inconnu", IF($K19=99, "Surveillance", F19)), 0),"Non requis") -> 0 | T19: =IF(INTRO!$E$43="Endémique", IF($K19>1, IF($K19=4, "Inconnu", IF($K19=99, "Surveillance", G19)), 0),"Non requis") -> 0 | U19: =IF(INTRO!$E$43="Endémique", IF($K19>1, IF($K19=4, "Inconnu", IF($K19=99, "Surveillance", SUM($R19:$T19))), 0),"Non requis") -> 0 | V19: 1 | W19: 0 | X19: 0 | Y19: 0 | AF19: 23749 | AG19: PEFINE
A20: =IF(INTRO!$E$33<>0,INTRO!$E$33, " ") -> Guinée Bissau | B20: SAB | C20: PLACK II | D20: 44103 | E20: =IF(INTRO!$E$48="","",ROUND($D20*INTRO!$E$48,0)) -> 5866 | F20: =IF(INTRO!$E$49="","",ROUND($D20*INTRO!$E$49,0)) -> 11299 | G20: =IF(INTRO!$E$50="","",ROUND($D20*INTRO!$E$50,0)) -> 24984 | H20: 1 | I20: 4 | J20: 2 | K20: 1 | L20: =IF(INTRO!$E$37="Endémique",IF($H20>0,IF($H20=4,"Inconnu",IF($H20=99,"Interrompu",$D20)),0),"Non requis") -> 44103 | M20: =IF(INTRO!$E$39="Endémique", IF($I20>0, IF($I20=4,"Inconnu",IF($I20=99,"Interrompu",$D20)), 0),"Non requis") -> Inconnu | N20: =IF(INTRO!$E$41="Endémique", IF($J20>1, IF($J20=4, "Inconnu", IF($J20=99, "Surveillance", E20)), 0),"Non requis") -> 5866 | O20: =IF(INTRO!$E$41="Endémique", IF($J20>1, IF($J20=4, "Inconnu", IF($J20=99, "Surveillance", F20)), 0),"Non requis") -> 11299 | P20: =IF(INTRO!$E$41="Endémique", IF($J20>1, IF($J20=4, "Inconnu", IF($J20=99, "Surveillance", ROUND(D20*INTRO!$E$51,0))), 0),"Non requis") -> 9703 | Q20: =IF(INTRO!$E$41="Endémique", IF($J20>1, IF($J20=4, "Inconnu", IF($J20=99, "Surveillance", SUM($N20:$P20))), 0),"Non requis") -> 26868 | R20: =IF(INTRO!$E$43="Endémique", IF($K20>1, IF($K20=4, "Inconnu", IF($K20=99, "Surveillance", ROUND(E20*0.75,0))), 0),"Non requis") -> 0 | S20: =IF(INTRO!$E$43="Endémique", IF($K20>1, IF($K20=4, "Inconnu", IF($K20=99, "Surveillance", F20)), 0),"Non requis") -> 0 | T20: =IF(INTRO!$E$43="Endémique", IF($K20>1, IF($K20=4, "Inconnu", IF($K20=99, "Surveillance", G20)), 0),"Non requis") -> 0 | U20: =IF(INTRO!$E$43="Endémique", IF($K20>1, IF($K20=4, "Inconnu", IF($K20=99, "Surveillance", SUM($R20:$T20))), 0),"Non requis") -> 0 | V20: 1 | W20: 0 | X20: 1 | Y20: 0 | AF20: 23750 | AG20: PLACK II
A21: =IF(INTRO!$E$33<>0,INTRO!$E$33, " ") -> Guinée Bissau | B21: SAB | C21: QUELELE | D21: 46122 | E21: =IF(INTRO!$E$48="","",ROUND($D21*INTRO!$E$48,0)) -> 6134 | F21: =IF(INTRO!$E$49="","",ROUND($D21*INTRO!$E$49,0)) -> 11816 | G21: =IF(INTRO!$E$50="","",ROUND($D21*INTRO!$E$50,0)) -> 26128 | H21: 1 | I21: 4 | J21: 2 | K21: 1 | L21: =IF(INTRO!$E$37="Endémique",IF($H21>0,IF($H21=4,"Inconnu",IF($H21=99,"Interrompu",$D21)),0),"Non requis") -> 46122 | M21: =IF(INTRO!$E$39="Endémique", IF($I21>0, IF($I21=4,"Inconnu",IF($I21=99,"Interrompu",$D21)), 0),"Non requis") -> Inconnu | N21: =IF(INTRO!$E$41="Endémique", IF($J21>1, IF($J21=4, "Inconnu", IF($J21=99, "Surveillance", E21)), 0),"Non requis") -> 6134 | O21: =IF(INTRO!$E$41="Endémique", IF($J21>1, IF($J21=4, "Inconnu", IF($J21=99, "Surveillance", F21)), 0),"Non requis") -> 11816 | P21: =IF(INTRO!$E$41="Endémique", IF($J21>1, IF($J21=4, "Inconnu", IF($J21=99, "Surveillance", ROUND(D21*INTRO!$E$51,0))), 0),"Non requis") -> 10147 | Q21: =IF(INTRO!$E$41="Endémique", IF($J21>1, IF($J21=4, "Inconnu", IF($J21=99, "Surveillance", SUM($N21:$P21))), 0),"Non requis") -> 28097 | R21: =IF(INTRO!$E$43="Endémique", IF($K21>1, IF($K21=4, "Inconnu", IF($K21=99, "Surveillance", ROUND(E21*0.75,0))), 0),"Non requis") -> 0 | S21: =IF(INTRO!$E$43="Endémique", IF($K21>1, IF($K21=4, "Inconnu", IF($K21=99, "Surveillance", F21)), 0),"Non requis") -> 0 | T21: =IF(INTRO!$E$43="Endémique", IF($K21>1, IF($K21=4, "Inconnu", IF($K21=99, "Surveillance", G21)), 0),"Non requis") -> 0 | U21: =IF(INTRO!$E$43="Endémique", IF($K21>1, IF($K21=4, "Inconnu", IF($K21=99, "Surveillance", SUM($R21:$T21))), 0),"Non requis") -> 0 | V21: 1 | W21: 0 | X21: 1 | Y21: 0 | AF21: 23654 | AG21: QUELELE
A22: =IF(INTRO!$E$33<>0,INTRO!$E$33, " ") -> Guinée Bissau | B22: SAB | C22: SANTA LUZIA | D22: 27458 | E22: =IF(INTRO!$E$48="","",ROUND($D22*INTRO!$E$48,0)) -> 3652 | F22: =IF(INTRO!$E$49="","",ROUND($D22*INTRO!$E$49,0)) -> 7035 | G22: =IF(INTRO!$E$50="","",ROUND($D22*INTRO!$E$50,0)) -> 15555 | H22: 1 | I22: 4 | J22: 2 | K22: 1 | L22: =IF(INTRO!$E$37="Endémique",IF($H22>0,IF($H22=4,"Inconnu",IF($H22=99,"Interrompu",$D22)),0),"Non requis") -> 27458 | M22: =IF(INTRO!$E$39="Endémique", IF($I22>0, IF($I22=4,"Inconnu",IF($I22=99,"Interrompu",$D22)), 0),"Non requis") -> Inconnu | N22: =IF(INTRO!$E$41="Endémique", IF($J22>1, IF($J22=4, "Inconnu", IF($J22=99, "Surveillance", E22)), 0),"Non requis") -> 3652 | O22: =IF(INTRO!$E$41="Endémique", IF($J22>1, IF($J22=4, "Inconnu", IF($J22=99, "Surveillance", F22)), 0),"Non requis") -> 7035 | P22: =IF(INTRO!$E$41="Endémique", IF($J22>1, IF($J22=4, "Inconnu", IF($J22=99, "Surveillance", ROUND(D22*INTRO!$E$51,0))), 0),"Non requis") -> 6041 | Q22: =IF(INTRO!$E$41="Endémique", IF($J22>1, IF($J22=4, "Inconnu", IF($J22=99, "Surveillance", SUM($N22:$P22))), 0),"Non requis") -> 16728 | R22: =IF(INTRO!$E$43="Endémique", IF($K22>1, IF($K22=4, "Inconnu", IF($K22=99, "Surveillance", ROUND(E22*0.75,0))), 0),"Non requis") -> 0 | S22: =IF(INTRO!$E$43="Endémique", IF($K22>1, IF($K22=4, "Inconnu", IF($K22=99, "Surveillance", F22)), 0),"Non requis") -> 0 | T22: =IF(INTRO!$E$43="Endémique", IF($K22>1, IF($K22=4, "Inconnu", IF($K22=99, "Surveillance", G22)), 0),"Non requis") -> 0 | U22: =IF(INTRO!$E$43="Endémique", IF($K22>1, IF($K22=4, "Inconnu", IF($K22=99, "Surveillance", SUM($R22:$T22))), 0),"Non requis") -> 0 | V22: 1 | W22: 0 | X22: 1 | Y22: 0 | AF22: 23751 | AG22: SANTA LUZIA
A23: =IF(INTRO!$E$33<>0,INTRO!$E$33, " ") -> Guinée Bissau | B23: SAB | C23: SINTRA NEMA | D23: 34234 | E23: =IF(INTRO!$E$48="","",ROUND($D23*INTRO!$E$48,0)) -> 4553 | F23: =IF(INTRO!$E$49="","",ROUND($D23*INTRO!$E$49,0)) -> 8771 | G23: =IF(INTRO!$E$50="","",ROUND($D23*INTRO!$E$50,0)) -> 19394 | H23: 1 | I23: 4 | J23: 2 | K23: 1 | L23: =IF(INTRO!$E$37="Endémique",IF($H23>0,IF($H23=4,"Inconnu",IF($H23=99,"Interrompu",$D23)),0),"Non requis") -> 34234 | M23: =IF(INTRO!$E$39="Endémique", IF($I23>0, IF($I23=4,"Inconnu",IF($I23=99,"Interrompu",$D23)), 0),"Non requis") -> Inconnu | N23: =IF(INTRO!$E$41="Endémique", IF($J23>1, IF($J23=4, "Inconnu", IF($J23=99, "Surveillance", E23)), 0),"Non requis") -> 4553 | O23: =IF(INTRO!$E$41="Endémique", IF($J23>1, IF($J23=4, "Inconnu", IF($J23=99, "Surveillance", F23)), 0),"Non requis") -> 8771 | P23: =IF(INTRO!$E$41="Endémique", IF($J23>1, IF($J23=4, "Inconnu", IF($J23=99, "Surveillance", ROUND(D23*INTRO!$E$51,0))), 0),"Non requis") -> 7531 | Q23: =IF(INTRO!$E$41="Endémique", IF($J23>1, IF($J23=4, "Inconnu", IF($J23=99, "Surveillance", SUM($N23:$P23))), 0),"Non requis") -> 20855 | R23: =IF(INTRO!$E$43="Endémique", IF($K23>1, IF($K23=4, "Inconnu", IF($K23=99, "Surveillance", ROUND(E23*0.75,0))), 0),"Non requis") -> 0 | S23: =IF(INTRO!$E$43="Endémique", IF($K23>1, IF($K23=4, "Inconnu", IF($K23=99, "Surveillance", F23)), 0),"Non requis") -> 0 | T23: =IF(INTRO!$E$43="Endémique", IF($K23>1, IF($K23=4, "Inconnu", IF($K23=99, "Surveillance", G23)), 0),"Non requis") -> 0 | U23: =IF(INTRO!$E$43="Endémique", IF($K23>1, IF($K23=4, "Inconnu", IF($K23=99, "Surveillance", SUM($R23:$T23))), 0),"Non requis") -> 0 | V23: 1 | W23: 0 | X23: 1 | Y23: 0 | AF23: 23752 | AG23: SINTRA NEMA
A24: =IF(INTRO!$E$33<>0,INTRO!$E$33, " ") -> Guinée Bissau | B24: Bijagos | C24: Bubaque | D24: 8138 | E24: =IF(INTRO!$E$48="","",ROUND($D24*INTRO!$E$48,0)) -> 1082 | F24: =IF(INTRO!$E$49="","",ROUND($D24*INTRO!$E$49,0)) -> 2085 | G24: =IF(INTRO!$E$50="","",ROUND($D24*INTRO!$E$50,0)) -> 4610 | H24: 1 | I24: 4 | J24: 3 | K24: 0 | L24: =IF(INTRO!$E$37="Endémique",IF($H24>0,IF($H24=4,"Inconnu",IF($H24=99,"Interrompu",$D24)),0),"Non requis") -> 8138 | M24: =IF(INTRO!$E$39="Endémique", IF($I24>0, IF($I24=4,"Inconnu",IF($I24=99,"Interrompu",$D24)), 0),"Non requis") -> Inconnu | N24: =IF(INTRO!$E$41="Endémique", IF($J24>1, IF($J24=4, "Inconnu", IF($J24=99, "Surveillance", E24)), 0),"Non requis") -> 1082 | O24: =IF(INTRO!$E$41="Endémique", IF($J24>1, IF($J24=4, "Inconnu", IF($J24=99, "Surveillance", F24)), 0),"Non requis") -> 2085 | P24: =IF(INTRO!$E$41="Endémique", IF($J24>1, IF($J24=4, "Inconnu", IF($J24=99, "Surveillance", ROUND(D24*INTRO!$E$51,0))), 0),"Non requis") -> 1790 | Q24: =IF(INTRO!$E$41="Endémique", IF($J24>1, IF($J24=4, "Inconnu", IF($J24=99, "Surveillance", SUM($N24:$P24))), 0),"Non requis") -> 4957 | R24: =IF(INTRO!$E$43="Endémique", IF($K24>1, IF($K24=4, "Inconnu", IF($K24=99, "Surveillance", ROUND(E24*0.75,0))), 0),"Non requis") -> 0 | S24: =IF(INTRO!$E$43="Endémique", IF($K24>1, IF($K24=4, "Inconnu", IF($K24=99, "Surveillance", F24)), 0),"Non requis") -> 0 | T24: =IF(INTRO!$E$43="Endémique", IF($K24>1, IF($K24=4, "Inconnu", IF($K24=99, "Surveillance", G24)), 0),"Non requis") -> 0 | U24: =IF(INTRO!$E$43="Endémique", IF($K24>1, IF($K24=4, "Inconnu", IF($K24=99, "Surveillance", SUM($R24:$T24))), 0),"Non requis") -> 0 | V24: 1 | W24: 0 | X24: 2 | Y24: 0 | AF24: 23670 | AG24: Bubaque
A25: =IF(INTRO!$E$33<>0,INTRO!$E$33, " ") -> Guinée Bissau | B25: Bijagos | C25: Canhabaque | D25: 3201 | E25: =IF(INTRO!$E$48="","",ROUND($D25*INTRO!$E$48,0)) -> 426 | F25: =IF(INTRO!$E$49="","",ROUND($D25*INTRO!$E$49,0)) -> 820 | G25: =IF(INTRO!$E$50="","",ROUND($D25*INTRO!$E$50,0)) -> 1813 | H25: 1 | I25: 4 | J25: 3 | K25: 0 | L25: =IF(INTRO!$E$37="Endémique",IF($H25>0,IF($H25=4,"Inconnu",IF($H25=99,"Interrompu",$D25)),0),"Non requis") -> 3201 | M25: =IF(INTRO!$E$39="Endémique", IF($I25>0, IF($I25=4,"Inconnu",IF($I25=99,"Interrompu",$D25)), 0),"Non requis") -> Inconnu | N25: =IF(INTRO!$E$41="Endémique", IF($J25>1, IF($J25=4, "Inconnu", IF($J25=99, "Surveillance", E25)), 0),"Non requis") -> 426 | O25: =IF(INTRO!$E$41="Endémique", IF($J25>1, IF($J25=4, "Inconnu", IF($J25=99, "Surveillance", F25)), 0),"Non requis") -> 820 | P25: =IF(INTRO!$E$41="Endémique", IF($J25>1, IF($J25=4, "Inconnu", IF($J25=99, "Surveillance", ROUND(D25*INTRO!$E$51,0))), 0),"Non requis") -> 704 | Q25: =IF(INTRO!$E$41="Endémique", IF($J25>1, IF($J25=4, "Inconnu", IF($J25=99, "Surveillance", SUM($N25:$P25))), 0),"Non requis") -> 1950 | R25: =IF(INTRO!$E$43="Endémique", IF($K25>1, IF($K25=4, "Inconnu", IF($K25=99, "Surveillance", ROUND(E25*0.75,0))), 0),"Non requis") -> 0 | S25: =IF(INTRO!$E$43="Endémique", IF($K25>1, IF($K25=4, "Inconnu", IF($K25=99, "Surveillance", F25)), 0),"Non requis") -> 0 | T25: =IF(INTRO!$E$43="Endémique", IF($K25>1, IF($K25=4, "Inconnu", IF($K25=99, "Surveillance", G25)), 0),"Non requis") -> 0 | U25: =IF(INTRO!$E$43="Endémique", IF($K25>1, IF($K25=4, "Inconnu", IF($K25=99, "Surveillance", SUM($R25:$T25))), 0),"Non requis") -> 0 | V25: 1 | W25: 0 | X25: 2 | Y25: 0 | AF25: 23642 | AG25: Canhabaque
A26: =IF(INTRO!$E$33<>0,INTRO!$E$33, " ") -> Guinée Bissau | B26: Bijagos | C26: Canogo | D26: 731 | E26: =IF(INTRO!$E$48="","",ROUND($D26*INTRO!$E$48,0)) -> 97 | F26: =IF(INTRO!$E$49="","",ROUND($D26*INTRO!$E$49,0)) -> 187 | G26: =IF(INTRO!$E$50="","",ROUND($D26*INTRO!$E$50,0)) -> 414 | H26: 1 | I26: 4 | J26: 3 | K26: 0 | L26: =IF(INTRO!$E$37="Endémique",IF($H26>0,IF($H26=4,"Inconnu",IF($H26=99,"Interrompu",$D26)),0),"Non requis") -> 731 | M26: =IF(INTRO!$E$39="Endémique", IF($I26>0, IF($I26=4,"Inconnu",IF($I26=99,"Interrompu",$D26)), 0),"Non requis") -> Inconnu | N26: =IF(INTRO!$E$41="Endémique", IF($J26>1, IF($J26=4, "Inconnu", IF($J26=99, "Surveillance", E26)), 0),"Non requis") -> 97 | O26: =IF(INTRO!$E$41="Endémique", IF($J26>1, IF($J26=4, "Inconnu", IF($J26=99, "Surveillance", F26)), 0),"Non requis") -> 187 | P26: =IF(INTRO!$E$41="Endémique", IF($J26>1, IF($J26=4, "Inconnu", IF($J26=99, "Surveillance", ROUND(D26*INTRO!$E$51,0))), 0),"Non requis") -> 161 | Q26: =IF(INTRO!$E$41="Endémique", IF($J26>1, IF($J26=4, "Inconnu", IF($J26=99, "Surveillance", SUM($N26:$P26))), 0),"Non requis") -> 445 | R26: =IF(INTRO!$E$43="Endémique", IF($K26>1, IF($K26=4, "Inconnu", IF($K26=99, "Surveillance", ROUND(E26*0.75,0))), 0),"Non requis") -> 0 | S26: =IF(INTRO!$E$43="Endémique", IF($K26>1, IF($K26=4, "Inconnu", IF($K26=99, "Surveillance", F26)), 0),"Non requis") -> 0 | T26: =IF(INTRO!$E$43="Endémique", IF($K26>1, IF($K26=4, "Inconnu", IF($K26=99, "Surveillance", G26)), 0),"Non requis") -> 0 | U26: =IF(INTRO!$E$43="Endémique", IF($K26>1, IF($K26=4, "Inconnu", IF($K26=99, "Surveillance", SUM($R26:$T26))), 0),"Non requis") -> 0 | V26: 1 | W26: 0 | X26: 2 | Y26: 0 | AF26: 23643 | AG26: Canogo
A27: =IF(INTRO!$E$33<>0,INTRO!$E$33, " ") -> Guinée Bissau | B27: Bijagos | C27: Caravela | D27: 2268 | E27: =IF(INTRO!$E$48="","",ROUND($D27*INTRO!$E$48,0)) -> 302 | F27: =IF(INTRO!$E$49="","",ROUND($D27*INTRO!$E$49,0)) -> 581 | G27: =IF(INTRO!$E$50="","",ROUND($D27*INTRO!$E$50,0)) -> 1285 | H27: 1 | I27: 4 | J27: 3 | K27: 0 | L27: =IF(INTRO!$E$37="Endémique",IF($H27>0,IF($H27=4,"Inconnu",IF($H27=99,"Interrompu",$D27)),0),"Non requis") -> 2268 | M27: =IF(INTRO!$E$39="Endémique", IF($I27>0, IF($I27=4,"Inconnu",IF($I27=99,"Interrompu",$D27)), 0),"Non requis") -> Inconnu | N27: =IF(INTRO!$E$41="Endémique", IF($J27>1, IF($J27=4, "Inconnu", IF($J27=99, "Surveillance", E27)), 0),"Non requis") -> 302 | O27: =IF(INTRO!$E$41="Endémique", IF($J27>1, IF($J27=4, "Inconnu", IF($J27=99, "Surveillance", F27)), 0),"Non requis") -> 581 | P27: =IF(INTRO!$E$41="Endémique", IF($J27>1, IF($J27=4, "Inconnu", IF($J27=99, "Surveillance", ROUND(D27*INTRO!$E$51,0))), 0),"Non requis") -> 499 | Q27: =IF(INTRO!$E$41="Endémique", IF($J27>1, IF($J27=4, "Inconnu", IF($J27=99, "Surveillance", SUM($N27:$P27))), 0),"Non requis") -> 1382 | R27: =IF(INTRO!$E$43="Endémique", IF($K27>1, IF($K27=4, "Inconnu", IF($K27=99, "Surveillance", ROUND(E27*0.75,0))), 0),"Non requis") -> 0 | S27: =IF(INTRO!$E$43="Endémique", IF($K27>1, IF($K27=4, "Inconnu", IF($K27=99, "Surveillance", F27)), 0),"Non requis") -> 0 | T27: =IF(INTRO!$E$43="Endémique", IF($K27>1, IF($K27=4, "Inconnu", IF($K27=99, "Surveillance", G27)), 0),"Non requis") -> 0 | U27: =IF(INTRO!$E$43="Endémique", IF($K27>1, IF($K27=4, "Inconnu", IF($K27=99, "Surveillance", SUM($R27:$T27))), 0),"Non requis") -> 0 | V27: 1 | W27: 0 | X27: 2 | Y27: 0 | AF27: 23671 | AG27: Caravela
A28: =IF(INTRO!$E$33<>0,INTRO!$E$33, " ") -> Guinée Bissau | B28: Bijagos | C28: Formosa | D28: 3746 | E28: =IF(INTRO!$E$48="","",ROUND($D28*INTRO!$E$48,0)) -> 498 | F28: =IF(INTRO!$E$49="","",ROUND($D28*INTRO!$E$49,0)) -> 960 | G28: =IF(INTRO!$E$50="","",ROUND($D28*INTRO!$E$50,0)) -> 2122 | H28: 1 | I28: 4 | J28: 3 | K28: 0 | L28: =IF(INTRO!$E$37="Endémique",IF($H28>0,IF($H28=4,"Inconnu",IF($H28=99,"Interrompu",$D28)),0),"Non requis") -> 3746 | M28: =IF(INTRO!$E$39="Endémique", IF($I28>0, IF($I28=4,"Inconnu",IF($I28=99,"Interrompu",$D28)), 0),"Non requis") -> Inconnu | N28: =IF(INTRO!$E$41="Endémique", IF($J28>1, IF($J28=4, "Inconnu", IF($J28=99, "Surveillance", E28)), 0),"Non requis") -> 498 | O28: =IF(INTRO!$E$41="Endémique", IF($J28>1, IF($J28=4, "Inconnu", IF($J28=99, "Surveillance", F28)), 0),"Non requis") -> 960 | P28: =IF(INTRO!$E$41="Endémique", IF($J28>1, IF($J28=4, "Inconnu", IF($J28=99, "Surveillance", ROUND(D28*INTRO!$E$51,0))), 0),"Non requis") -> 824 | Q28: =IF(INTRO!$E$41="Endémique", IF($J28>1, IF($J28=4, "Inconnu", IF($J28=99, "Surveillance", SUM($N28:$P28))), 0),"Non requis") -> 2282 | R28: =IF(INTRO!$E$43="Endémique", IF($K28>1, IF($K28=4, "Inconnu", IF($K28=99, "Surveillance", ROUND(E28*0.75,0))), 0),"Non requis") -> 0 | S28: =IF(INTRO!$E$43="Endémique", IF($K28>1, IF($K28=4, "Inconnu", IF($K28=99, "Surveillance", F28)), 0),"Non requis") -> 0 | T28: =IF(INTRO!$E$43="Endémique", IF($K28>1, IF($K28=4, "Inconnu", IF($K28=99, "Surveillance", G28)), 0),"Non requis") -> 0 | U28: =IF(INTRO!$E$43="Endémique", IF($K28>1, IF($K28=4, "Inconnu", IF($K28=99, "Surveillance", SUM($R28:$T28))), 0),"Non requis") -> 0 | V28: 1 | W28: 0 | X28: 2 | Y28: 0 | AF28: 23672 | AG28: Formosa
A29: =IF(INTRO!$E$33<>0,INTRO!$E$33, " ") -> Guinée Bissau | B29: Bijagos | C29: Orango Grande | D29: 1574 | E29: =IF(INTRO!$E$48="","",ROUND($D29*INTRO!$E$48,0)) -> 209 | F29: =IF(INTRO!$E$49="","",ROUND($D29*INTRO!$E$49,0)) -> 403 | G29: =IF(INTRO!$E$50="","",ROUND($D29*INTRO!$E$50,0)) -> 892 | H29: 1 | I29: 4 | J29: 3 | K29: 0 | L29: =IF(INTRO!$E$37="Endémique",IF($H29>0,IF($H29=4,"Inconnu",IF($H29=99,"Interrompu",$D29)),0),"Non requis") -> 1574 | M29: =IF(INTRO!$E$39="Endémique", IF($I29>0, IF($I29=4,"Inconnu",IF($I29=99,"Interrompu",$D29)), 0),"Non requis") -> Inconnu | N29: =IF(INTRO!$E$41="Endémique", IF($J29>1, IF($J29=4, "Inconnu", IF($J29=99, "Surveillance", E29)), 0),"Non requis") -> 209 | O29: =IF(INTRO!$E$41="Endémique", IF($J29>1, IF($J29=4, "Inconnu", IF($J29=99, "Surveillance", F29)), 0),"Non requis") -> 403 | P29: =IF(INTRO!$E$41="Endémique", IF($J29>1, IF($J29=4, "Inconnu", IF($J29=99, "Surveillance", ROUND(D29*INTRO!$E$51,0))), 0),"Non requis") -> 346 | Q29: =IF(INTRO!$E$41="Endémique", IF($J29>1, IF($J29=4, "Inconnu", IF($J29=99, "Surveillance", SUM($N29:$P29))), 0),"Non requis") -> 958 | R29: =IF(INTRO!$E$43="Endémique", IF($K29>1, IF($K29=4, "Inconnu", IF($K29=99, "Surveillance", ROUND(E29*0.75,0))), 0),"Non requis") -> 0 | S29: =IF(INTRO!$E$43="Endémique", IF($K29>1, IF($K29=4, "Inconnu", IF($K29=99, "Surveillance", F29)), 0),"Non requis") -> 0 | T29: =IF(INTRO!$E$43="Endémique", IF($K29>1, IF($K29=4, "Inconnu", IF($K29=99, "Surveillance", G29)), 0),"Non requis") -> 0 | U29: =IF(INTRO!$E$43="Endémique", IF($K29>1, IF($K29=4, "Inconnu", IF($K29=99, "Surveillance", SUM($R29:$T29))), 0),"Non requis") -> 0 | V29: 1 | W29: 0 | X29: 2 | Y29: 0 | AF29: 23673 | AG29: Orango Grande
A30: =IF(INTRO!$E$33<>0,INTRO!$E$33, " ") -> Guinée Bissau | B30: Bijagos | C30: Orango zinho | D30: 889 | E30: =IF(INTRO!$E$48="","",ROUND($D30*INTRO!$E$48,0)) -> 118 | F30: =IF(INTRO!$E$49="","",ROUND($D30*INTRO!$E$49,0)) -> 228 | G30: =IF(INTRO!$E$50="","",ROUND($D30*INTRO!$E$50,0)) -> 504 | H30: 1 | I30: 4 | J30: 3 | K30: 0 | L30: =IF(INTRO!$E$37="Endémique",IF($H30>0,IF($H30=4,"Inconnu",IF($H30=99,"Interrompu",$D30)),0),"Non requis") -> 889 | M30: =IF(INTRO!$E$39="Endémique", IF($I30>0, IF($I30=4,"Inconnu",IF($I30=99,"Interrompu",$D30)), 0),"Non requis") -> Inconnu | N30: =IF(INTRO!$E$41="Endémique", IF($J30>1, IF($J30=4, "Inconnu", IF($J30=99, "Surveillance", E30)), 0),"Non requis") -> 118 | O30: =IF(INTRO!$E$41="Endémique", IF($J30>1, IF($J30=4, "Inconnu", IF($J30=99, "Surveillance", F30)), 0),"Non requis") -> 228 | P30: =IF(INTRO!$E$41="Endémique", IF($J30>1, IF($J30=4, "Inconnu", IF($J30=99, "Surveillance", ROUND(D30*INTRO!$E$51,0))), 0),"Non requis") -> 196 | Q30: =IF(INTRO!$E$41="Endémique", IF($J30>1, IF($J30=4, "Inconnu", IF($J30=99, "Surveillance", SUM($N30:$P30))), 0),"Non requis") -> 542 | R30: =IF(INTRO!$E$43="Endémique", IF($K30>1, IF($K30=4, "Inconnu", IF($K30=99, "Surveillance", ROUND(E30*0.75,0))), 0),"Non requis") -> 0 | S30: =IF(INTRO!$E$43="Endémique", IF($K30>1, IF($K30=4, "Inconnu", IF($K30=99, "Surveillance", F30)), 0),"Non requis") -> 0 | T30: =IF(INTRO!$E$43="Endémique", IF($K30>1, IF($K30=4, "Inconnu", IF($K30=99, "Surveillance", G30)), 0),"Non requis") -> 0 | U30: =IF(INTRO!$E$43="Endémique", IF($K30>1, IF($K30=4, "Inconnu", IF($K30=99, "Surveillance", SUM($R30:$T30))), 0),"Non requis") -> 0 | V30: 1 | W30: 0 | X30: 2 | Y30: 0 | AF30: 23674 | AG30: Orango zinho
A31: =IF(INTRO!$E$33<>0,INTRO!$E$33, " ") -> Guinée Bissau | B31: Bijagos | C31: Soga | D31: 1061 | E31: =IF(INTRO!$E$48="","",ROUND($D31*INTRO!$E$48,0)) -> 141 | F31: =IF(INTRO!$E$49="","",ROUND($D31*INTRO!$E$49,0)) -> 272 | G31: =IF(INTRO!$E$50="","",ROUND($D31*INTRO!$E$50,0)) -> 601 | H31: 1 | I31: 4 | J31: 3 | K31: 0 | L31: =IF(INTRO!$E$37="Endémique",IF($H31>0,IF($H31=4,"Inconnu",IF($H31=99,"Interrompu",$D31)),0),"Non requis") -> 1061 | M31: =IF(INTRO!$E$39="Endémique", IF($I31>0, IF($I31=4,"Inconnu",IF($I31=99,"Interrompu",$D31)), 0),"Non requis") -> Inconnu | N31: =IF(INTRO!$E$41="Endémique", IF($J31>1, IF($J31=4, "Inconnu", IF($J31=99, "Surveillance", E31)), 0),"Non requis") -> 141 | O31: =IF(INTRO!$E$41="Endémique", IF($J31>1, IF($J31=4, "Inconnu", IF($J31=99, "Surveillance", F31)), 0),"Non requis") -> 272 | P31: =IF(INTRO!$E$41="Endémique", IF($J31>1, IF($J31=4, "Inconnu", IF($J31=99, "Surveillance", ROUND(D31*INTRO!$E$51,0))), 0),"Non requis") -> 233 | Q31: =IF(INTRO!$E$41="Endémique", IF($J31>1, IF($J31=4, "Inconnu", IF($J31=99, "Surveillance", SUM($N31:$P31))), 0),"Non requis") -> 646 | R31: =IF(INTRO!$E$43="Endémique", IF($K31>1, IF($K31=4, "Inconnu", IF($K31=99, "Surveillance", ROUND(E31*0.75,0))), 0),"Non requis") -> 0 | S31: =IF(INTRO!$E$43="Endémique", IF($K31>1, IF($K31=4, "Inconnu", IF($K31=99, "Surveillance", F31)), 0),"Non requis") -> 0 | T31: =IF(INTRO!$E$43="Endémique", IF($K31>1, IF($K31=4, "Inconnu", IF($K31=99, "Surveillance", G31)), 0),"Non requis") -> 0 | U31: =IF(INTRO!$E$43="Endémique", IF($K31>1, IF($K31=4, "Inconnu", IF($K31=99, "Surveillance", SUM($R31:$T31))), 0),"Non requis") -> 0 | V31: 1 | W31: 0 | X31: 2 | Y31: 0 | AF31: 23675 | AG31: Soga
A32: =IF(INTRO!$E$33<>0,INTRO!$E$33, " ") -> Guinée Bissau | B32: Bijagos | C32: Unhocomo | D32: 1067 | E32: =IF(INTRO!$E$48="","",ROUND($D32*INTRO!$E$48,0)) -> 142 | F32: =IF(INTRO!$E$49="","",ROUND($D32*INTRO!$E$49,0)) -> 273 | G32: =IF(INTRO!$E$50="","",ROUND($D32*INTRO!$E$50,0)) -> 604 | H32: 1 | I32: 4 | J32: 3 | K32: 0 | L32: =IF(INTRO!$E$37="Endémique",IF($H32>0,IF($H32=4,"Inconnu",IF($H32=99,"Interrompu",$D32)),0),"Non requis") -> 1067 | M32: =IF(INTRO!$E$39="Endémique", IF($I32>0, IF($I32=4,"Inconnu",IF($I32=99,"Interrompu",$D32)), 0),"Non requis") -> Inconnu | N32: =IF(INTRO!$E$41="Endémique", IF($J32>1, IF($J32=4, "Inconnu", IF($J32=99, "Surveillance", E32)), 0),"Non requis") -> 142 | O32: =IF(INTRO!$E$41="Endémique", IF($J32>1, IF($J32=4, "Inconnu", IF($J32=99, "Surveillance", F32)), 0),"Non requis") -> 273 | P32: =IF(INTRO!$E$41="Endémique", IF($J32>1, IF($J32=4, "Inconnu", IF($J32=99, "Surveillance", ROUND(D32*INTRO!$E$51,0))), 0),"Non requis") -> 235 | Q32: =IF(INTRO!$E$41="Endémique", IF($J32>1, IF($J32=4, "Inconnu", IF($J32=99, "Surveillance", SUM($N32:$P32))), 0),"Non requis") -> 650 | R32: =IF(INTRO!$E$43="Endémique", IF($K32>1, IF($K32=4, "Inconnu", IF($K32=99, "Surveillance", ROUND(E32*0.75,0))), 0),"Non requis") -> 0 | S32: =IF(INTRO!$E$43="Endémique", IF($K32>1, IF($K32=4, "Inconnu", IF($K32=99, "Surveillance", F32)), 0),"Non requis") -> 0 | T32: =IF(INTRO!$E$43="Endémique", IF($K32>1, IF($K32=4, "Inconnu", IF($K32=99, "Surveillance", G32)), 0),"Non requis") -> 0 | U32: =IF(INTRO!$E$43="Endémique", IF($K32>1, IF($K32=4, "Inconnu", IF($K32=99, "Surveillance", SUM($R32:$T32))), 0),"Non requis") -> 0 | V32: 1 | W32: 0 | X32: 2 | Y32: 0 | AF32: 23644 | AG32: Unhocomo
A33: =IF(INTRO!$E$33<>0,INTRO!$E$33, " ") -> Guinée Bissau | B33: Bijagos | C33: Uno | D33: 4188 | E33: =IF(INTRO!$E$48="","",ROUND($D33*INTRO!$E$48,0)) -> 557 | F33: =IF(INTRO!$E$49="","",ROUND($D33*INTRO!$E$49,0)) -> 1073 | G33: =IF(INTRO!$E$50="","",ROUND($D33*INTRO!$E$50,0)) -> 2373 | H33: 1 | I33: 4 | J33: 3 | K33: 0 | L33: =IF(INTRO!$E$37="Endémique",IF($H33>0,IF($H33=4,"Inconnu",IF($H33=99,"Interrompu",$D33)),0),"Non requis") -> 4188 | M33: =IF(INTRO!$E$39="Endémique", IF($I33>0, IF($I33=4,"Inconnu",IF($I33=99,"Interrompu",$D33)), 0),"Non requis") -> Inconnu | N33: =IF(INTRO!$E$41="Endémique", IF($J33>1, IF($J33=4, "Inconnu", IF($J33=99, "Surveillance", E33)), 0),"Non requis") -> 557 | O33: =IF(INTRO!$E$41="Endémique", IF($J33>1, IF($J33=4, "Inconnu", IF($J33=99, "Surveillance", F33)), 0),"Non requis") -> 1073 | P33: =IF(INTRO!$E$41="Endémique", IF($J33>1, IF($J33=4, "Inconnu", IF($J33=99, "Surveillance", ROUND(D33*INTRO!$E$51,0))), 0),"Non requis") -> 921 | Q33: =IF(INTRO!$E$41="Endémique", IF($J33>1, IF($J33=4, "Inconnu", IF($J33=99, "Surveillance", SUM($N33:$P33))), 0),"Non requis") -> 2551 | R33: =IF(INTRO!$E$43="Endémique", IF($K33>1, IF($K33=4, "Inconnu", IF($K33=99, "Surveillance", ROUND(E33*0.75,0))), 0),"Non requis") -> 0 | S33: =IF(INTRO!$E$43="Endémique", IF($K33>1, IF($K33=4, "Inconnu", IF($K33=99, "Surveillance", F33)), 0),"Non requis") -> 0 | T33: =IF(INTRO!$E$43="Endémique", IF($K33>1, IF($K33=4, "Inconnu", IF($K33=99, "Surveillance", G33)), 0),"Non requis") -> 0 | U33: =IF(INTRO!$E$43="Endémique", IF($K33>1, IF($K33=4, "Inconnu", IF($K33=99, "Surveillance", SUM($R33:$T33))), 0),"Non requis") -> 0 | V33: 1 | W33: 0 | X33: 2 | Y33: 0 | AF33: 23676 | AG33: Uno
A34: =IF(INTRO!$E$33<>0,INTRO!$E$33, " ") -> Guinée Bissau | B34: Bijagos | C34: Uracane | D34: 1945 | E34: =IF(INTRO!$E$48="","",ROUND($D34*INTRO!$E$48,0)) -> 259 | F34: =IF(INTRO!$E$49="","",ROUND($D34*INTRO!$E$49,0)) -> 498 | G34: =IF(INTRO!$E$50="","",ROUND($D34*INTRO!$E$50,0)) -> 1102 | H34: 1 | I34: 4 | J34: 3 | K34: 0 | L34: =IF(INTRO!$E$37="Endémique",IF($H34>0,IF($H34=4,"Inconnu",IF($H34=99,"Interrompu",$D34)),0),"Non requis") -> 1945 | M34: =IF(INTRO!$E$39="Endémique", IF($I34>0, IF($I34=4,"Inconnu",IF($I34=99,"Interrompu",$D34)), 0),"Non requis") -> Inconnu | N34: =IF(INTRO!$E$41="Endémique", IF($J34>1, IF($J34=4, "Inconnu", IF($J34=99, "Surveillance", E34)), 0),"Non requis") -> 259 | O34: =IF(INTRO!$E$41="Endémique", IF($J34>1, IF($J34=4, "Inconnu", IF($J34=99, "Surveillance", F34)), 0),"Non requis") -> 498 | P34: =IF(INTRO!$E$41="Endémique", IF($J34>1, IF($J34=4, "Inconnu", IF($J34=99, "Surveillance", ROUND(D34*INTRO!$E$51,0))), 0),"Non requis") -> 428 | Q34: =IF(INTRO!$E$41="Endémique", IF($J34>1, IF($J34=4, "Inconnu", IF($J34=99, "Surveillance", SUM($N34:$P34))), 0),"Non requis") -> 1185 | R34: =IF(INTRO!$E$43="Endémique", IF($K34>1, IF($K34=4, "Inconnu", IF($K34=99, "Surveillance", ROUND(E34*0.75,0))), 0),"Non requis") -> 0 | S34: =IF(INTRO!$E$43="Endémique", IF($K34>1, IF($K34=4, "Inconnu", IF($K34=99, "Surveillance", F34)), 0),"Non requis") -> 0 | T34: =IF(INTRO!$E$43="Endémique", IF($K34>1, IF($K34=4, "Inconnu", IF($K34=99, "Surveillance", G34)), 0),"Non requis") -> 0 | U34: =IF(INTRO!$E$43="Endémique", IF($K34>1, IF($K34=4, "Inconnu", IF($K34=99, "Surveillance", SUM($R34:$T34))), 0),"Non requis") -> 0 | V34: 1 | W34: 0 | X34: 2 | Y34: 0 | AF34: 23677 | AG34: Uracane
A35: =IF(INTRO!$E$33<>0,INTRO!$E$33, " ") -> Guinée Bissau | B35: Biombo | C35: BIJIMITA | D35: 13029 | E35: =IF(INTRO!$E$48="","",ROUND($D35*INTRO!$E$48,0)) -> 1733 | F35: =IF(INTRO!$E$49="","",ROUND($D35*INTRO!$E$49,0)) -> 3338 | G35: =IF(INTRO!$E$50="","",ROUND($D35*INTRO!$E$50,0)) -> 7381 | H35: 1 | I35: 4 | J35: 3 | K35: 0 | L35: =IF(INTRO!$E$37="Endémique",IF($H35>0,IF($H35=4,"Inconnu",IF($H35=99,"Interrompu",$D35)),0),"Non requis") -> 13029 | M35: =IF(INTRO!$E$39="Endémique", IF($I35>0, IF($I35=4,"Inconnu",IF($I35=99,"Interrompu",$D35)), 0),"Non requis") -> Inconnu | N35: =IF(INTRO!$E$41="Endémique", IF($J35>1, IF($J35=4, "Inconnu", IF($J35=99, "Surveillance", E35)), 0),"Non requis") -> 1733 | O35: =IF(INTRO!$E$41="Endémique", IF($J35>1, IF($J35=4, "Inconnu", IF($J35=99, "Surveillance", F35)), 0),"Non requis") -> 3338 | P35: =IF(INTRO!$E$41="Endémique", IF($J35>1, IF($J35=4, "Inconnu", IF($J35=99, "Surveillance", ROUND(D35*INTRO!$E$51,0))), 0),"Non requis") -> 2866 | Q35: =IF(INTRO!$E$41="Endémique", IF($J35>1, IF($J35=4, "Inconnu", IF($J35=99, "Surveillance", SUM($N35:$P35))), 0),"Non requis") -> 7937 | R35: =IF(INTRO!$E$43="Endémique", IF($K35>1, IF($K35=4, "Inconnu", IF($K35=99, "Surveillance", ROUND(E35*0.75,0))), 0),"Non requis") -> 0 | S35: =IF(INTRO!$E$43="Endémique", IF($K35>1, IF($K35=4, "Inconnu", IF($K35=99, "Surveillance", F35)), 0),"Non requis") -> 0 | T35: =IF(INTRO!$E$43="Endémique", IF($K35>1, IF($K35=4, "Inconnu", IF($K35=99, "Surveillance", G35)), 0),"Non requis") -> 0 | U35: =IF(INTRO!$E$43="Endémique", IF($K35>1, IF($K35=4, "Inconnu", IF($K35=99, "Surveillance", SUM($R35:$T35))), 0),"Non requis") -> 0 | V35: 1 | W35: 0 | X35: 2 | Y35: 0 | AF35: 23645 | AG35: BIJIMITA
A36: =IF(INTRO!$E$33<>0,INTRO!$E$33, " ") -> Guinée Bissau | B36: Biombo | C36: CUMURA | D36: 18118 | E36: =IF(INTRO!$E$48="","",ROUND($D36*INTRO!$E$48,0)) -> 2410 | F36: =IF(INTRO!$E$49="","",ROUND($D36*INTRO!$E$49,0)) -> 4642 | G36: =IF(INTRO!$E$50="","",ROUND($D36*INTRO!$E$50,0)) -> 10264 | H36: 1 | I36: 4 | J36: 3 | K36: 0 | L36: =IF(INTRO!$E$37="Endémique",IF($H36>0,IF($H36=4,"Inconnu",IF($H36=99,"Interrompu",$D36)),0),"Non requis") -> 18118 | M36: =IF(INTRO!$E$39="Endémique", IF($I36>0, IF($I36=4,"Inconnu",IF($I36=99,"Interrompu",$D36)), 0),"Non requis") -> Inconnu | N36: =IF(INTRO!$E$41="Endémique", IF($J36>1, IF($J36=4, "Inconnu", IF($J36=99, "Surveillance", E36)), 0),"Non requis") -> 2410 | O36: =IF(INTRO!$E$41="Endémique", IF($J36>1, IF($J36=4, "Inconnu", IF($J36=99, "Surveillance", F36)), 0),"Non requis") -> 4642 | P36: =IF(INTRO!$E$41="Endémique", IF($J36>1, IF($J36=4, "Inconnu", IF($J36=99, "Surveillance", ROUND(D36*INTRO!$E$51,0))), 0),"Non requis") -> 3986 | Q36: =IF(INTRO!$E$41="Endémique", IF($J36>1, IF($J36=4, "Inconnu", IF($J36=99, "Surveillance", SUM($N36:$P36))), 0),"Non requis") -> 11038 | R36: =IF(INTRO!$E$43="Endémique", IF($K36>1, IF($K36=4, "Inconnu", IF($K36=99, "Surveillance", ROUND(E36*0.75,0))), 0),"Non requis") -> 0 | S36: =IF(INTRO!$E$43="Endémique", IF($K36>1, IF($K36=4, "Inconnu", IF($K36=99, "Surveillance", F36)), 0),"Non requis") -> 0 | T36: =IF(INTRO!$E$43="Endémique", IF($K36>1, IF($K36=4, "Inconnu", IF($K36=99, "Surveillance", G36)), 0),"Non requis") -> 0 | U36: =IF(INTRO!$E$43="Endémique", IF($K36>1, IF($K36=4, "Inconnu", IF($K36=99, "Surveillance", SUM($R36:$T36))), 0),"Non requis") -> 0 | V36: 1 | W36: 0 | X36: 2 | Y36: 0 | AF36: 23678 | AG36: CUMURA
A37: =IF(INTRO!$E$33<>0,INTRO!$E$33, " ") -> Guinée Bissau | B37: Biombo | C37: DORSE | D37: 8493 | E37: =IF(INTRO!$E$48="","",ROUND($D37*INTRO!$E$48,0)) -> 1130 | F37: =IF(INTRO!$E$49="","",ROUND($D37*INTRO!$E$49,0)) -> 2176 | G37: =IF(INTRO!$E$50="","",ROUND($D37*INTRO!$E$50,0)) -> 4811 | H37: 1 | I37: 4 | J37: 3 | K37: 0 | L37: =IF(INTRO!$E$37="Endémique",IF($H37>0,IF($H37=4,"Inconnu",IF($H37=99,"Interrompu",$D37)),0),"Non requis") -> 8493 | M37: =IF(INTRO!$E$39="Endémique", IF($I37>0, IF($I37=4,"Inconnu",IF($I37=99,"Interrompu",$D37)), 0),"Non requis") -> Inconnu | N37: =IF(INTRO!$E$41="Endémique", IF($J37>1, IF($J37=4, "Inconnu", IF($J37=99, "Surveillance", E37)), 0),"Non requis") -> 1130 | O37: =IF(INTRO!$E$41="Endémique", IF($J37>1, IF($J37=4, "Inconnu", IF($J37=99, "Surveillance", F37)), 0),"Non requis") -> 2176 | P37: =IF(INTRO!$E$41="Endémique", IF($J37>1, IF($J37=4, "Inconnu", IF($J37=99, "Surveillance", ROUND(D37*INTRO!$E$51,0))), 0),"Non requis") -> 1868 | Q37: =IF(INTRO!$E$41="Endémique", IF($J37>1, IF($J37=4, "Inconnu", IF($J37=99, "Surveillance", SUM($N37:$P37))), 0),"Non requis") -> 5174 | R37: =IF(INTRO!$E$43="Endémique", IF($K37>1, IF($K37=4, "Inconnu", IF($K37=99, "Surveillance", ROUND(E37*0.75,0))), 0),"Non requis") -> 0 | S37: =IF(INTRO!$E$43="Endémique", IF($K37>1, IF($K37=4, "Inconnu", IF($K37=99, "Surveillance", F37)), 0),"Non requis") -> 0 | T37: =IF(INTRO!$E$43="Endémique", IF($K37>1, IF($K37=4, "Inconnu", IF($K37=99, "Surveillance", G37)), 0),"Non requis") -> 0 | U37: =IF(INTRO!$E$43="Endémique", IF($K37>1, IF($K37=4, "Inconnu", IF($K37=99, "Surveillance", SUM($R37:$T37))), 0),"Non requis") -> 0 | V37: 1 | W37: 0 | X37: 2 | Y37: 0 | AF37: 23646 | AG37: DORSE
A38: =IF(INTRO!$E$33<>0,INTRO!$E$33, " ") -> Guinée Bissau | B38: Biombo | C38: ILONDE | D38: 10052 | E38: =IF(INTRO!$E$48="","",ROUND($D38*INTRO!$E$48,0)) -> 1337 | F38: =IF(INTRO!$E$49="","",ROUND($D38*INTRO!$E$49,0)) -> 2575 | G38: =IF(INTRO!$E$50="","",ROUND($D38*INTRO!$E$50,0)) -> 5694 | H38: 1 | I38: 4 | J38: 1 | K38: 0 | L38: =IF(INTRO!$E$37="Endémique",IF($H38>0,IF($H38=4,"Inconnu",IF($H38=99,"Interrompu",$D38)),0),"Non requis") -> 10052 | M38: =IF(INTRO!$E$39="Endémique", IF($I38>0, IF($I38=4,"Inconnu",IF($I38=99,"Interrompu",$D38)), 0),"Non requis") -> Inconnu | N38: =IF(INTRO!$E$41="Endémique", IF($J38>1, IF($J38=4, "Inconnu", IF($J38=99, "Surveillance", E38)), 0),"Non requis") -> 0 | O38: =IF(INTRO!$E$41="Endémique", IF($J38>1, IF($J38=4, "Inconnu", IF($J38=99, "Surveillance", F38)), 0),"Non requis") -> 0 | P38: =IF(INTRO!$E$41="Endémique", IF($J38>1, IF($J38=4, "Inconnu", IF($J38=99, "Surveillance", ROUND(D38*INTRO!$E$51,0))), 0),"Non requis") -> 0 | Q38: =IF(INTRO!$E$41="Endémique", IF($J38>1, IF($J38=4, "Inconnu", IF($J38=99, "Surveillance", SUM($N38:$P38))), 0),"Non requis") -> 0 | R38: =IF(INTRO!$E$43="Endémique", IF($K38>1, IF($K38=4, "Inconnu", IF($K38=99, "Surveillance", ROUND(E38*0.75,0))), 0),"Non requis") -> 0 | S38: =IF(INTRO!$E$43="Endémique", IF($K38>1, IF($K38=4, "Inconnu", IF($K38=99, "Surveillance", F38)), 0),"Non requis") -> 0 | T38: =IF(INTRO!$E$43="Endémique", IF($K38>1, IF($K38=4, "Inconnu", IF($K38=99, "Surveillance", G38)), 0),"Non requis") -> 0 | U38: =IF(INTRO!$E$43="Endémique", IF($K38>1, IF($K38=4, "Inconnu", IF($K38=99, "Surveillance", SUM($R38:$T38))), 0),"Non requis") -> 0 | V38: 1 | W38: 0 | X38: 0 | Y38: 0 | AF38: 23647 | AG38: ILONDE
A39: =IF(INTRO!$E$33<>0,INTRO!$E$33, " ") -> Guinée Bissau | B39: Biombo | C39: ONDAME | D39: 17698 | E39: =IF(INTRO!$E$48="","",ROUND($D39*INTRO!$E$48,0)) -> 2354 | F39: =IF(INTRO!$E$49="","",ROUND($D39*INTRO!$E$49,0)) -> 4534 | G39: =IF(INTRO!$E$50="","",ROUND($D39*INTRO!$E$50,0)) -> 10026 | H39: 1 | I39: 4 | J39: 3 | K39: 0 | L39: =IF(INTRO!$E$37="Endémique",IF($H39>0,IF($H39=4,"Inconnu",IF($H39=99,"Interrompu",$D39)),0),"Non requis") -> 17698 | M39: =IF(INTRO!$E$39="Endémique", IF($I39>0, IF($I39=4,"Inconnu",IF($I39=99,"Interrompu",$D39)), 0),"Non requis") -> Inconnu | N39: =IF(INTRO!$E$41="Endémique", IF($J39>1, IF($J39=4, "Inconnu", IF($J39=99, "Surveillance", E39)), 0),"Non requis") -> 2354 | O39: =IF(INTRO!$E$41="Endémique", IF($J39>1, IF($J39=4, "Inconnu", IF($J39=99, "Surveillance", F39)), 0),"Non requis") -> 4534 | P39: =IF(INTRO!$E$41="Endémique", IF($J39>1, IF($J39=4, "Inconnu", IF($J39=99, "Surveillance", ROUND(D39*INTRO!$E$51,0))), 0),"Non requis") -> 3894 | Q39: =IF(INTRO!$E$41="Endémique", IF($J39>1, IF($J39=4, "Inconnu", IF($J39=99, "Surveillance", SUM($N39:$P39))), 0),"Non requis") -> 10782 | R39: =IF(INTRO!$E$43="Endémique", IF($K39>1, IF($K39=4, "Inconnu", IF($K39=99, "Surveillance", ROUND(E39*0.75,0))), 0),"Non requis") -> 0 | S39: =IF(INTRO!$E$43="Endémique", IF($K39>1, IF($K39=4, "Inconnu", IF($K39=99, "Surveillance", F39)), 0),"Non requis") -> 0 | T39: =IF(INTRO!$E$43="Endémique", IF($K39>1, IF($K39=4, "Inconnu", IF($K39=99, "Surveillance", G39)), 0),"Non requis") -> 0 | U39: =IF(INTRO!$E$43="Endémique", IF($K39>1, IF($K39=4, "Inconnu", IF($K39=99, "Surveillance", SUM($R39:$T39))), 0),"Non requis") -> 0 | V39: 1 | W39: 0 | X39: 2 | Y39: 0 | AF39: 23679 | AG39: ONDAME
A40: =IF(INTRO!$E$33<>0,INTRO!$E$33, " ") -> Guinée Bissau | B40: Biombo | C40: PRABIS | D40: 12325 | E40: =IF(INTRO!$E$48="","",ROUND($D40*INTRO!$E$48,0)) -> 1639 | F40: =IF(INTRO!$E$49="","",ROUND($D40*INTRO!$E$49,0)) -> 3158 | G40: =IF(INTRO!$E$50="","",ROUND($D40*INTRO!$E$50,0)) -> 6982 | H40: 1 | I40: 4 | J40: 3 | K40: 0 | L40: =IF(INTRO!$E$37="Endémique",IF($H40>0,IF($H40=4,"Inconnu",IF($H40=99,"Interrompu",$D40)),0),"Non requis") -> 12325 | M40: =IF(INTRO!$E$39="Endémique", IF($I40>0, IF($I40=4,"Inconnu",IF($I40=99,"Interrompu",$D40)), 0),"Non requis") -> Inconnu | N40: =IF(INTRO!$E$41="Endémique", IF($J40>1, IF($J40=4, "Inconnu", IF($J40=99, "Surveillance", E40)), 0),"Non requis") -> 1639 | O40: =IF(INTRO!$E$41="Endémique", IF($J40>1, IF($J40=4, "Inconnu", IF($J40=99, "Surveillance", F40)), 0),"Non requis") -> 3158 | P40: =IF(INTRO!$E$41="Endémique", IF($J40>1, IF($J40=4, "Inconnu", IF($J40=99, "Surveillance", ROUND(D40*INTRO!$E$51,0))), 0),"Non requis") -> 2712 | Q40: =IF(INTRO!$E$41="Endémique", IF($J40>1, IF($J40=4, "Inconnu", IF($J40=99, "Surveillance", SUM($N40:$P40))), 0),"Non requis") -> 7509 | R40: =IF(INTRO!$E$43="Endémique", IF($K40>1, IF($K40=4, "Inconnu", IF($K40=99, "Surveillance", ROUND(E40*0.75,0))), 0),"Non requis") -> 0 | S40: =IF(INTRO!$E$43="Endémique", IF($K40>1, IF($K40=4, "Inconnu", IF($K40=99, "Surveillance", F40)), 0),"Non requis") -> 0 | T40: =IF(INTRO!$E$43="Endémique", IF($K40>1, IF($K40=4, "Inconnu", IF($K40=99, "Surveillance", G40)), 0),"Non requis") -> 0 | U40: =IF(INTRO!$E$43="Endémique", IF($K40>1, IF($K40=4, "Inconnu", IF($K40=99, "Surveillance", SUM($R40:$T40))), 0),"Non requis") -> 0 | V40: 1 | W40: 0 | X40: 2 | Y40: 0 | AF40: 23680 | AG40: PRABIS
A41: =IF(INTRO!$E$33<>0,INTRO!$E$33, " ") -> Guinée Bissau | B41: Biombo | C41: QUINHAMEL | D41: 18140 | E41: =IF(INTRO!$E$48="","",ROUND($D41*INTRO!$E$48,0)) -> 2413 | F41: =IF(INTRO!$E$49="","",ROUND($D41*INTRO!$E$49,0)) -> 4647 | G41: =IF(INTRO!$E$50="","",ROUND($D41*INTRO!$E$50,0)) -> 10276 | H41: 1 | I41: 4 | J41: 3 | K41: 0 | L41: =IF(INTRO!$E$37="Endémique",IF($H41>0,IF($H41=4,"Inconnu",IF($H41=99,"Interrompu",$D41)),0),"Non requis") -> 18140 | M41: =IF(INTRO!$E$39="Endémique", IF($I41>0, IF($I41=4,"Inconnu",IF($I41=99,"Interrompu",$D41)), 0),"Non requis") -> Inconnu | N41: =IF(INTRO!$E$41="Endémique", IF($J41>1, IF($J41=4, "Inconnu", IF($J41=99, "Surveillance", E41)), 0),"Non requis") -> 2413 | O41: =IF(INTRO!$E$41="Endémique", IF($J41>1, IF($J41=4, "Inconnu", IF($J41=99, "Surveillance", F41)), 0),"Non requis") -> 4647 | P41: =IF(INTRO!$E$41="Endémique", IF($J41>1, IF($J41=4, "Inconnu", IF($J41=99, "Surveillance", ROUND(D41*INTRO!$E$51,0))), 0),"Non requis") -> 3991 | Q41: =IF(INTRO!$E$41="Endémique", IF($J41>1, IF($J41=4, "Inconnu", IF($J41=99, "Surveillance", SUM($N41:$P41))), 0),"Non requis") -> 11051 | R41: =IF(INTRO!$E$43="Endémique", IF($K41>1, IF($K41=4, "Inconnu", IF($K41=99, "Surveillance", ROUND(E41*0.75,0))), 0),"Non requis") -> 0 | S41: =IF(INTRO!$E$43="Endémique", IF($K41>1, IF($K41=4, "Inconnu", IF($K41=99, "Surveillance", F41)), 0),"Non requis") -> 0 | T41: =IF(INTRO!$E$43="Endémique", IF($K41>1, IF($K41=4, "Inconnu", IF($K41=99, "Surveillance", G41)), 0),"Non requis") -> 0 | U41: =IF(INTRO!$E$43="Endémique", IF($K41>1, IF($K41=4, "Inconnu", IF($K41=99, "Surveillance", SUM($R41:$T41))), 0),"Non requis") -> 0 | V41: 1 | W41: 0 | X41: 2 | Y41: 0 | AF41: 23681 | AG41: QUINHAMEL
A42: =IF(INTRO!$E$33<>0,INTRO!$E$33, " ") -> Guinée Bissau | B42: Biombo | C42: SAFIM | D42: 18147 | E42: =IF(INTRO!$E$48="","",ROUND($D42*INTRO!$E$48,0)) -> 2414 | F42: =IF(INTRO!$E$49="","",ROUND($D42*INTRO!$E$49,0)) -> 4649 | G42: =IF(INTRO!$E$50="","",ROUND($D42*INTRO!$E$50,0)) -> 10280 | H42: 1 | I42: 4 | J42: 2 | K42: 0 | L42: =IF(INTRO!$E$37="Endémique",IF($H42>0,IF($H42=4,"Inconnu",IF($H42=99,"Interrompu",$D42)),0),"Non requis") -> 18147 | M42: =IF(INTRO!$E$39="Endémique", IF($I42>0, IF($I42=4,"Inconnu",IF($I42=99,"Interrompu",$D42)), 0),"Non requis") -> Inconnu | N42: =IF(INTRO!$E$41="Endémique", IF($J42>1, IF($J42=4, "Inconnu", IF($J42=99, "Surveillance", E42)), 0),"Non requis") -> 2414 | O42: =IF(INTRO!$E$41="Endémique", IF($J42>1, IF($J42=4, "Inconnu", IF($J42=99, "Surveillance", F42)), 0),"Non requis") -> 4649 | P42: =IF(INTRO!$E$41="Endémique", IF($J42>1, IF($J42=4, "Inconnu", IF($J42=99, "Surveillance", ROUND(D42*INTRO!$E$51,0))), 0),"Non requis") -> 3992 | Q42: =IF(INTRO!$E$41="Endémique", IF($J42>1, IF($J42=4, "Inconnu", IF($J42=99, "Surveillance", SUM($N42:$P42))), 0),"Non requis") -> 11055 | R42: =IF(INTRO!$E$43="Endémique", IF($K42>1, IF($K42=4, "Inconnu", IF($K42=99, "Surveillance", ROUND(E42*0.75,0))), 0),"Non requis") -> 0 | S42: =IF(INTRO!$E$43="Endémique", IF($K42>1, IF($K42=4, "Inconnu", IF($K42=99, "Surveillance", F42)), 0),"Non requis") -> 0 | T42: =IF(INTRO!$E$43="Endémique", IF($K42>1, IF($K42=4, "Inconnu", IF($K42=99, "Surveillance", G42)), 0),"Non requis") -> 0 | U42: =IF(INTRO!$E$43="Endémique", IF($K42>1, IF($K42=4, "Inconnu", IF($K42=99, "Surveillance", SUM($R42:$T42))), 0),"Non requis") -> 0 | V42: 1 | W42: 0 | X42: 1 | Y42: 0 | AF42: 23682 | AG42: SAFIM
A43: =IF(INTRO!$E$33<>0,INTRO!$E$33, " ") -> Guinée Bissau | B43: Farim | C43: BINTA | D43: 8130 | E43: =IF(INTRO!$E$48="","",ROUND($D43*INTRO!$E$48,0)) -> 1081 | F43: =IF(INTRO!$E$49="","",ROUND($D43*INTRO!$E$49,0)) -> 2083 | G43: =IF(INTRO!$E$50="","",ROUND($D43*INTRO!$E$50,0)) -> 4606 | H43: 1 | I43: 4 | J43: 0 | K43: 3 | L43: =IF(INTRO!$E$37="Endémique",IF($H43>0,IF($H43=4,"Inconnu",IF($H43=99,"Interrompu",$D43)),0),"Non requis") -> 8130 | M43: =IF(INTRO!$E$39="Endémique", IF($I43>0, IF($I43=4,"Inconnu",IF($I43=99,"Interrompu",$D43)), 0),"Non requis") -> Inconnu | N43: =IF(INTRO!$E$41="Endémique", IF($J43>1, IF($J43=4, "Inconnu", IF($J43=99, "Surveillance", E43)), 0),"Non requis") -> 0 | O43: =IF(INTRO!$E$41="Endémique", IF($J43>1, IF($J43=4, "Inconnu", IF($J43=99, "Surveillance", F43)), 0),"Non requis") -> 0 | P43: =IF(INTRO!$E$41="Endémique", IF($J43>1, IF($J43=4, "Inconnu", IF($J43=99, "Surveillance", ROUND(D43*INTRO!$E$51,0))), 0),"Non requis") -> 0 | Q43: =IF(INTRO!$E$41="Endémique", IF($J43>1, IF($J43=4, "Inconnu", IF($J43=99, "Surveillance", SUM($N43:$P43))), 0),"Non requis") -> 0 | R43: =IF(INTRO!$E$43="Endémique", IF($K43>1, IF($K43=4, "Inconnu", IF($K43=99, "Surveillance", ROUND(E43*0.75,0))), 0),"Non requis") -> 811 | S43: =IF(INTRO!$E$43="Endémique", IF($K43>1, IF($K43=4, "Inconnu", IF($K43=99, "Surveillance", F43)), 0),"Non requis") -> 2083 | T43: =IF(INTRO!$E$43="Endémique", IF($K43>1, IF($K43=4, "Inconnu", IF($K43=99, "Surveillance", G43)), 0),"Non requis") -> 4606 | U43: =IF(INTRO!$E$43="Endémique", IF($K43>1, IF($K43=4, "Inconnu", IF($K43=99, "Surveillance", SUM($R43:$T43))), 0),"Non requis") -> 7500 | V43: 1 | W43: 0 | X43: 0 | Y43: 1 | AF43: 23704 | AG43: BINTA
A44: =IF(INTRO!$E$33<>0,INTRO!$E$33, " ") -> Guinée Bissau | B44: Farim | C44: CANDJAMBARI | D44: 6103 | E44: =IF(INTRO!$E$48="","",ROUND($D44*INTRO!$E$48,0)) -> 812 | F44: =IF(INTRO!$E$49="","",ROUND($D44*INTRO!$E$49,0)) -> 1564 | G44: =IF(INTRO!$E$50="","",ROUND($D44*INTRO!$E$50,0)) -> 3457 | H44: 1 | I44: 4 | J44: 0 | K44: 3 | L44: =IF(INTRO!$E$37="Endémique",IF($H44>0,IF($H44=4,"Inconnu",IF($H44=99,"Interrompu",$D44)),0),"Non requis") -> 6103 | M44: =IF(INTRO!$E$39="Endémique", IF($I44>0, IF($I44=4,"Inconnu",IF($I44=99,"Interrompu",$D44)), 0),"Non requis") -> Inconnu | N44: =IF(INTRO!$E$41="Endémique", IF($J44>1, IF($J44=4, "Inconnu", IF($J44=99, "Surveillance", E44)), 0),"Non requis") -> 0 | O44: =IF(INTRO!$E$41="Endémique", IF($J44>1, IF($J44=4, "Inconnu", IF($J44=99, "Surveillance", F44)), 0),"Non requis") -> 0 | P44: =IF(INTRO!$E$41="Endémique", IF($J44>1, IF($J44=4, "Inconnu", IF($J44=99, "Surveillance", ROUND(D44*INTRO!$E$51,0))), 0),"Non requis") -> 0 | Q44: =IF(INTRO!$E$41="Endémique", IF($J44>1, IF($J44=4, "Inconnu", IF($J44=99, "Surveillance", SUM($N44:$P44))), 0),"Non requis") -> 0 | R44: =IF(INTRO!$E$43="Endémique", IF($K44>1, IF($K44=4, "Inconnu", IF($K44=99, "Surveillance", ROUND(E44*0.75,0))), 0),"Non requis") -> 609 | S44: =IF(INTRO!$E$43="Endémique", IF($K44>1, IF($K44=4, "Inconnu", IF($K44=99, "Surveillance", F44)), 0),"Non requis") -> 1564 | T44: =IF(INTRO!$E$43="Endémique", IF($K44>1, IF($K44=4, "Inconnu", IF($K44=99, "Surveillance", G44)), 0),"Non requis") -> 3457 | U44: =IF(INTRO!$E$43="Endémique", IF($K44>1, IF($K44=4, "Inconnu", IF($K44=99, "Surveillance", SUM($R44:$T44))), 0),"Non requis") -> 5630 | V44: 1 | W44: 0 | X44: 0 | Y44: 1 | AF44: 23705 | AG44: CANDJAMBARI
A45: =IF(INTRO!$E$33<>0,INTRO!$E$33, " ") -> Guinée Bissau | B45: Farim | C45: CUNTIMA | D45: 13767 | E45: =IF(INTRO!$E$48="","",ROUND($D45*INTRO!$E$48,0)) -> 1831 | F45: =IF(INTRO!$E$49="","",ROUND($D45*INTRO!$E$49,0)) -> 3527 | G45: =IF(INTRO!$E$50="","",ROUND($D45*INTRO!$E$50,0)) -> 7799 | H45: 1 | I45: 4 | J45: 1 | K45: 3 | L45: =IF(INTRO!$E$37="Endémique",IF($H45>0,IF($H45=4,"Inconnu",IF($H45=99,"Interrompu",$D45)),0),"Non requis") -> 13767 | M45: =IF(INTRO!$E$39="Endémique", IF($I45>0, IF($I45=4,"Inconnu",IF($I45=99,"Interrompu",$D45)), 0),"Non requis") -> Inconnu | N45: =IF(INTRO!$E$41="Endémique", IF($J45>1, IF($J45=4, "Inconnu", IF($J45=99, "Surveillance", E45)), 0),"Non requis") -> 0 | O45: =IF(INTRO!$E$41="Endémique", IF($J45>1, IF($J45=4, "Inconnu", IF($J45=99, "Surveillance", F45)), 0),"Non requis") -> 0 | P45: =IF(INTRO!$E$41="Endémique", IF($J45>1, IF($J45=4, "Inconnu", IF($J45=99, "Surveillance", ROUND(D45*INTRO!$E$51,0))), 0),"Non requis") -> 0 | Q45: =IF(INTRO!$E$41="Endémique", IF($J45>1, IF($J45=4, "Inconnu", IF($J45=99, "Surveillance", SUM($N45:$P45))), 0),"Non requis") -> 0 | R45: =IF(INTRO!$E$43="Endémique", IF($K45>1, IF($K45=4, "Inconnu", IF($K45=99, "Surveillance", ROUND(E45*0.75,0))), 0),"Non requis") -> 1373 | S45: =IF(INTRO!$E$43="Endémique", IF($K45>1, IF($K45=4, "Inconnu", IF($K45=99, "Surveillance", F45)), 0),"Non requis") -> 3527 | T45: =IF(INTRO!$E$43="Endémique", IF($K45>1, IF($K45=4, "Inconnu", IF($K45=99, "Surveillance", G45)), 0),"Non requis") -> 7799 | U45: =IF(INTRO!$E$43="Endémique", IF($K45>1, IF($K45=4, "Inconnu", IF($K45=99, "Surveillance", SUM($R45:$T45))), 0),"Non requis") -> 12699 | V45: 1 | W45: 0 | X45: 0 | Y45: 1 | AF45: 23706 | AG45: CUNTIMA
A46: =IF(INTRO!$E$33<>0,INTRO!$E$33, " ") -> Guinée Bissau | B46: Farim | C46: FARIM | D46: 32315 | E46: =IF(INTRO!$E$48="","",ROUND($D46*INTRO!$E$48,0)) -> 4298 | F46: =IF(INTRO!$E$49="","",ROUND($D46*INTRO!$E$49,0)) -> 8279 | G46: =IF(INTRO!$E$50="","",ROUND($D46*INTRO!$E$50,0)) -> 18306 | H46: 1 | I46: 4 | J46: 1 | K46: 1 | L46: =IF(INTRO!$E$37="Endémique",IF($H46>0,IF($H46=4,"Inconnu",IF($H46=99,"Interrompu",$D46)),0),"Non requis") -> 32315 | M46: =IF(INTRO!$E$39="Endémique", IF($I46>0, IF($I46=4,"Inconnu",IF($I46=99,"Interrompu",$D46)), 0),"Non requis") -> Inconnu | N46: =IF(INTRO!$E$41="Endémique", IF($J46>1, IF($J46=4, "Inconnu", IF($J46=99, "Surveillance", E46)), 0),"Non requis") -> 0 | O46: =IF(INTRO!$E$41="Endémique", IF($J46>1, IF($J46=4, "Inconnu", IF($J46=99, "Surveillance", F46)), 0),"Non requis") -> 0 | P46: =IF(INTRO!$E$41="Endémique", IF($J46>1, IF($J46=4, "Inconnu", IF($J46=99, "Surveillance", ROUND(D46*INTRO!$E$51,0))), 0),"Non requis") -> 0 | Q46: =IF(INTRO!$E$41="Endémique", IF($J46>1, IF($J46=4, "Inconnu", IF($J46=99, "Surveillance", SUM($N46:$P46))), 0),"Non requis") -> 0 | R46: =IF(INTRO!$E$43="Endémique", IF($K46>1, IF($K46=4, "Inconnu", IF($K46=99, "Surveillance", ROUND(E46*0.75,0))), 0),"Non requis") -> 0 | S46: =IF(INTRO!$E$43="Endémique", IF($K46>1, IF($K46=4, "Inconnu", IF($K46=99, "Surveillance", F46)), 0),"Non requis") -> 0 | T46: =IF(INTRO!$E$43="Endémique", IF($K46>1, IF($K46=4, "Inconnu", IF($K46=99, "Surveillance", G46)), 0),"Non requis") -> 0 | U46: =IF(INTRO!$E$43="Endémique", IF($K46>1, IF($K46=4, "Inconnu", IF($K46=99, "Surveillance", SUM($R46:$T46))), 0),"Non requis") -> 0 | V46: 1 | W46: 0 | X46: 0 | Y46: 0 | AF46: 23708 | AG46: FARIM
A47: =IF(INTRO!$E$33<>0,INTRO!$E$33, " ") -> Guinée Bissau | B47: Farim | C47: GUIDAGE | D47: 5262 | E47: =IF(INTRO!$E$48="","",ROUND($D47*INTRO!$E$48,0)) -> 700 | F47: =IF(INTRO!$E$49="","",ROUND($D47*INTRO!$E$49,0)) -> 1348 | G47: =IF(INTRO!$E$50="","",ROUND($D47*INTRO!$E$50,0)) -> 2981 | H47: 1 | I47: 4 | J47: 0 | K47: 3 | L47: =IF(INTRO!$E$37="Endémique",IF($H47>0,IF($H47=4,"Inconnu",IF($H47=99,"Interrompu",$D47)),0),"Non requis") -> 5262 | M47: =IF(INTRO!$E$39="Endémique", IF($I47>0, IF($I47=4,"Inconnu",IF($I47=99,"Interrompu",$D47)), 0),"Non requis") -> Inconnu | N47: =IF(INTRO!$E$41="Endémique", IF($J47>1, IF($J47=4, "Inconnu", IF($J47=99, "Surveillance", E47)), 0),"Non requis") -> 0 | O47: =IF(INTRO!$E$41="Endémique", IF($J47>1, IF($J47=4, "Inconnu", IF($J47=99, "Surveillance", F47)), 0),"Non requis") -> 0 | P47: =IF(INTRO!$E$41="Endémique", IF($J47>1, IF($J47=4, "Inconnu", IF($J47=99, "Surveillance", ROUND(D47*INTRO!$E$51,0))), 0),"Non requis") -> 0 | Q47: =IF(INTRO!$E$41="Endémique", IF($J47>1, IF($J47=4, "Inconnu", IF($J47=99, "Surveillance", SUM($N47:$P47))), 0),"Non requis") -> 0 | R47: =IF(INTRO!$E$43="Endémique", IF($K47>1, IF($K47=4, "Inconnu", IF($K47=99, "Surveillance", ROUND(E47*0.75,0))), 0),"Non requis") -> 525 | S47: =IF(INTRO!$E$43="Endémique", IF($K47>1, IF($K47=4, "Inconnu", IF($K47=99, "Surveillance", F47)), 0),"Non requis") -> 1348 | T47: =IF(INTRO!$E$43="Endémique", IF($K47>1, IF($K47=4, "Inconnu", IF($K47=99, "Surveillance", G47)), 0),"Non requis") -> 2981 | U47: =IF(INTRO!$E$43="Endémique", IF($K47>1, IF($K47=4, "Inconnu", IF($K47=99, "Surveillance", SUM($R47:$T47))), 0),"Non requis") -> 4854 | V47: 1 | W47: 0 | X47: 0 | Y47: 1 | AF47: 23707 | AG47: GUIDAGE
A48: =IF(INTRO!$E$33<>0,INTRO!$E$33, " ") -> Guinée Bissau | B48: Oio | C48: BINAR | D48: 16339 | E48: =IF(INTRO!$E$48="","",ROUND($D48*INTRO!$E$48,0)) -> 2173 | F48: =IF(INTRO!$E$49="","",ROUND($D48*INTRO!$E$49,0)) -> 4186 | G48: =IF(INTRO!$E$50="","",ROUND($D48*INTRO!$E$50,0)) -> 9256 | H48: 1 | I48: 4 | J48: 3 | K48: 1 | L48: =IF(INTRO!$E$37="Endémique",IF($H48>0,IF($H48=4,"Inconnu",IF($H48=99,"Interrompu",$D48)),0),"Non requis") -> 16339 | M48: =IF(INTRO!$E$39="Endémique", IF($I48>0, IF($I48=4,"Inconnu",IF($I48=99,"Interrompu",$D48)), 0),"Non requis") -> Inconnu | N48: =IF(INTRO!$E$41="Endémique", IF($J48>1, IF($J48=4, "Inconnu", IF($J48=99, "Surveillance", E48)), 0),"Non requis") -> 2173 | O48: =IF(INTRO!$E$41="Endémique", IF($J48>1, IF($J48=4, "Inconnu", IF($J48=99, "Surveillance", F48)), 0),"Non requis") -> 4186 | P48: =IF(INTRO!$E$41="Endémique", IF($J48>1, IF($J48=4, "Inconnu", IF($J48=99, "Surveillance", ROUND(D48*INTRO!$E$51,0))), 0),"Non requis") -> 3595 | Q48: =IF(INTRO!$E$41="Endémique", IF($J48>1, IF($J48=4, "Inconnu", IF($J48=99, "Surveillance", SUM($N48:$P48))), 0),"Non requis") -> 9954 | R48: =IF(INTRO!$E$43="Endémique", IF($K48>1, IF($K48=4, "Inconnu", IF($K48=99, "Surveillance", ROUND(E48*0.75,0))), 0),"Non requis") -> 0 | S48: =IF(INTRO!$E$43="Endémique", IF($K48>1, IF($K48=4, "Inconnu", IF($K48=99, "Surveillance", F48)), 0),"Non requis") -> 0 | T48: =IF(INTRO!$E$43="Endémique", IF($K48>1, IF($K48=4, "Inconnu", IF($K48=99, "Surveillance", G48)), 0),"Non requis") -> 0 | U48: =IF(INTRO!$E$43="Endémique", IF($K48>1, IF($K48=4, "Inconnu", IF($K48=99, "Surveillance", SUM($R48:$T48))), 0),"Non requis") -> 0 | V48: 1 | W48: 0 | X48: 2 | Y48: 0 | AF48: 23731 | AG48: BINAR
A49: =IF(INTRO!$E$33<>0,INTRO!$E$33, " ") -> Guinée Bissau | B49: Oio | C49: BISSORA | D49: 48293 | E49: =IF(INTRO!$E$48="","",ROUND($D49*INTRO!$E$48,0)) -> 6423 | F49: =IF(INTRO!$E$49="","",ROUND($D49*INTRO!$E$49,0)) -> 12373 | G49: =IF(INTRO!$E$50="","",ROUND($D49*INTRO!$E$50,0)) -> 27358 | H49: 1 | I49: 4 | J49: 1 | K49: 0 | L49: =IF(INTRO!$E$37="Endémique",IF($H49>0,IF($H49=4,"Inconnu",IF($H49=99,"Interrompu",$D49)),0),"Non requis") -> 48293 | M49: =IF(INTRO!$E$39="Endémique", IF($I49>0, IF($I49=4,"Inconnu",IF($I49=99,"Interrompu",$D49)), 0),"Non requis") -> Inconnu | N49: =IF(INTRO!$E$41="Endémique", IF($J49>1, IF($J49=4, "Inconnu", IF($J49=99, "Surveillance", E49)), 0),"Non requis") -> 0 | O49: =IF(INTRO!$E$41="Endémique", IF($J49>1, IF($J49=4, "Inconnu", IF($J49=99, "Surveillance", F49)), 0),"Non requis") -> 0 | P49: =IF(INTRO!$E$41="Endémique", IF($J49>1, IF($J49=4, "Inconnu", IF($J49=99, "Surveillance", ROUND(D49*INTRO!$E$51,0))), 0),"Non requis") -> 0 | Q49: =IF(INTRO!$E$41="Endémique", IF($J49>1, IF($J49=4, "Inconnu", IF($J49=99, "Surveillance", SUM($N49:$P49))), 0),"Non requis") -> 0 | R49: =IF(INTRO!$E$43="Endémique", IF($K49>1, IF($K49=4, "Inconnu", IF($K49=99, "Surveillance", ROUND(E49*0.75,0))), 0),"Non requis") -> 0 | S49: =IF(INTRO!$E$43="Endémique", IF($K49>1, IF($K49=4, "Inconnu", IF($K49=99, "Surveillance", F49)), 0),"Non requis") -> 0 | T49: =IF(INTRO!$E$43="Endémique", IF($K49>1, IF($K49=4, "Inconnu", IF($K49=99, "Surveillance", G49)), 0),"Non requis") -> 0 | U49: =IF(INTRO!$E$43="Endémique", IF($K49>1, IF($K49=4, "Inconnu", IF($K49=99, "Surveillance", SUM($R49:$T49))), 0),"Non requis") -> 0 | V49: 1 | W49: 0 | X49: 0 | Y49: 0 | AF49: 23732 | AG49: BISSORA
A50: =IF(INTRO!$E$33<>0,INTRO!$E$33, " ") -> Guinée Bissau | B50: Oio | C50: ENCHEIA | D50: 15449 | E50: =IF(INTRO!$E$48="","",ROUND($D50*INTRO!$E$48,0)) -> 2055 | F50: =IF(INTRO!$E$49="","",ROUND($D50*INTRO!$E$49,0)) -> 3958 | G50: =IF(INTRO!$E$50="","",ROUND($D50*INTRO!$E$50,0)) -> 8752 | H50: 1 | I50: 4 | J50: 3 | K50: 1 | L50: =IF(INTRO!$E$37="Endémique",IF($H50>0,IF($H50=4,"Inconnu",IF($H50=99,"Interrompu",$D50)),0),"Non requis") -> 15449 | M50: =IF(INTRO!$E$39="Endémique", IF($I50>0, IF($I50=4,"Inconnu",IF($I50=99,"Interrompu",$D50)), 0),"Non requis") -> Inconnu | N50: =IF(INTRO!$E$41="Endémique", IF($J50>1, IF($J50=4, "Inconnu", IF($J50=99, "Surveillance", E50)), 0),"Non requis") -> 2055 | O50: =IF(INTRO!$E$41="Endémique", IF($J50>1, IF($J50=4, "Inconnu", IF($J50=99, "Surveillance", F50)), 0),"Non requis") -> 3958 | P50: =IF(INTRO!$E$41="Endémique", IF($J50>1, IF($J50=4, "Inconnu", IF($J50=99, "Surveillance", ROUND(D50*INTRO!$E$51,0))), 0),"Non requis") -> 3399 | Q50: =IF(INTRO!$E$41="Endémique", IF($J50>1, IF($J50=4, "Inconnu", IF($J50=99, "Surveillance", SUM($N50:$P50))), 0),"Non requis") -> 9412 | R50: =IF(INTRO!$E$43="Endémique", IF($K50>1, IF($K50=4, "Inconnu", IF($K50=99, "Surveillance", ROUND(E50*0.75,0))), 0),"Non requis") -> 0 | S50: =IF(INTRO!$E$43="Endémique", IF($K50>1, IF($K50=4, "Inconnu", IF($K50=99, "Surveillance", F50)), 0),"Non requis") -> 0 | T50: =IF(INTRO!$E$43="Endémique", IF($K50>1, IF($K50=4, "Inconnu", IF($K50=99, "Surveillance", G50)), 0),"Non requis") -> 0 | U50: =IF(INTRO!$E$43="Endémique", IF($K50>1, IF($K50=4, "Inconnu", IF($K50=99, "Surveillance", SUM($R50:$T50))), 0),"Non requis") -> 0 | V50: 1 | W50: 0 | X50: 2 | Y50: 0 | AF50: 23733 | AG50: ENCHEIA
A51: =IF(INTRO!$E$33<>0,INTRO!$E$33, " ") -> Guinée Bissau | B51: Oio | C51: GÃ-MAMUDO | D51: 12543 | E51: =IF(INTRO!$E$48="","",ROUND($D51*INTRO!$E$48,0)) -> 1668 | F51: =IF(INTRO!$E$49="","",ROUND($D51*INTRO!$E$49,0)) -> 3214 | G51: =IF(INTRO!$E$50="","",ROUND($D51*INTRO!$E$50,0)) -> 7106 | H51: 1 | I51: 4 | J51: 3 | K51: 1 | L51: =IF(INTRO!$E$37="Endémique",IF($H51>0,IF($H51=4,"Inconnu",IF($H51=99,"Interrompu",$D51)),0),"Non requis") -> 12543 | M51: =IF(INTRO!$E$39="Endémique", IF($I51>0, IF($I51=4,"Inconnu",IF($I51=99,"Interrompu",$D51)), 0),"Non requis") -> Inconnu | N51: =IF(INTRO!$E$41="Endémique", IF($J51>1, IF($J51=4, "Inconnu", IF($J51=99, "Surveillance", E51)), 0),"Non requis") -> 1668 | O51: =IF(INTRO!$E$41="Endémique", IF($J51>1, IF($J51=4, "Inconnu", IF($J51=99, "Surveillance", F51)), 0),"Non requis") -> 3214 | P51: =IF(INTRO!$E$41="Endémique", IF($J51>1, IF($J51=4, "Inconnu", IF($J51=99, "Surveillance", ROUND(D51*INTRO!$E$51,0))), 0),"Non requis") -> 2759 | Q51: =IF(INTRO!$E$41="Endémique", IF($J51>1, IF($J51=4, "Inconnu", IF($J51=99, "Surveillance", SUM($N51:$P51))), 0),"Non requis") -> 7641 | R51: =IF(INTRO!$E$43="Endémique", IF($K51>1, IF($K51=4, "Inconnu", IF($K51=99, "Surveillance", ROUND(E51*0.75,0))), 0),"Non requis") -> 0 | S51: =IF(INTRO!$E$43="Endémique", IF($K51>1, IF($K51=4, "Inconnu", IF($K51=99, "Surveillance", F51)), 0),"Non requis") -> 0 | T51: =IF(INTRO!$E$43="Endémique", IF($K51>1, IF($K51=4, "Inconnu", IF($K51=99, "Surveillance", G51)), 0),"Non requis") -> 0 | U51: =IF(INTRO!$E$43="Endémique", IF($K51>1, IF($K51=4, "Inconnu", IF($K51=99, "Surveillance", SUM($R51:$T51))), 0),"Non requis") -> 0 | V51: 1 | W51: 0 | X51: 2 | Y51: 0 | AF51: 23734 | AG51: GÃ-MAMUDO
A52: =IF(INTRO!$E$33<>0,INTRO!$E$33, " ") -> Guinée Bissau | B52: Oio | C52: MANSABA | D52: 28546 | E52: =IF(INTRO!$E$48="","",ROUND($D52*INTRO!$E$48,0)) -> 3797 | F52: =IF(INTRO!$E$49="","",ROUND($D52*INTRO!$E$49,0)) -> 7313 | G52: =IF(INTRO!$E$50="","",ROUND($D52*INTRO!$E$50,0)) -> 16171 | H52: 1 | I52: 4 | J52: 1 | K52: 0 | L52: =IF(INTRO!$E$37="Endémique",IF($H52>0,IF($H52=4,"Inconnu",IF($H52=99,"Interrompu",$D52)),0),"Non requis") -> 28546 | M52: =IF(INTRO!$E$39="Endémique", IF($I52>0, IF($I52=4,"Inconnu",IF($I52=99,"Interrompu",$D52)), 0),"Non requis") -> Inconnu | N52: =IF(INTRO!$E$41="Endémique", IF($J52>1, IF($J52=4, "Inconnu", IF($J52=99, "Surveillance", E52)), 0),"Non requis") -> 0 | O52: =IF(INTRO!$E$41="Endémique", IF($J52>1, IF($J52=4, "Inconnu", IF($J52=99, "Surveillance", F52)), 0),"Non requis") -> 0 | P52: =IF(INTRO!$E$41="Endémique", IF($J52>1, IF($J52=4, "Inconnu", IF($J52=99, "Surveillance", ROUND(D52*INTRO!$E$51,0))), 0),"Non requis") -> 0 | Q52: =IF(INTRO!$E$41="Endémique", IF($J52>1, IF($J52=4, "Inconnu", IF($J52=99, "Surveillance", SUM($N52:$P52))), 0),"Non requis") -> 0 | R52: =IF(INTRO!$E$43="Endémique", IF($K52>1, IF($K52=4, "Inconnu", IF($K52=99, "Surveillance", ROUND(E52*0.75,0))), 0),"Non requis") -> 0 | S52: =IF(INTRO!$E$43="Endémique", IF($K52>1, IF($K52=4, "Inconnu", IF($K52=99, "Surveillance", F52)), 0),"Non requis") -> 0 | T52: =IF(INTRO!$E$43="Endémique", IF($K52>1, IF($K52=4, "Inconnu", IF($K52=99, "Surveillance", G52)), 0),"Non requis") -> 0 | U52: =IF(INTRO!$E$43="Endémique", IF($K52>1, IF($K52=4, "Inconnu", IF($K52=99, "Surveillance", SUM($R52:$T52))), 0),"Non requis") -> 0 | V52: 1 | W52: 0 | X52: 0 | Y52: 0 | AF52: 23735 | AG52: MANSABA
A53: =IF(INTRO!$E$33<>0,INTRO!$E$33, " ") -> Guinée Bissau | B53: Oio | C53: MANSOA | D53: 45960 | E53: =IF(INTRO!$E$48="","",ROUND($D53*INTRO!$E$48,0)) -> 6113 | F53: =IF(INTRO!$E$49="","",ROUND($D53*INTRO!$E$49,0)) -> 11775 | G53: =IF(INTRO!$E$50="","",ROUND($D53*INTRO!$E$50,0)) -> 26036 | H53: 1 | I53: 4 | J53: 1 | K53: 0 | L53: =IF(INTRO!$E$37="Endémique",IF($H53>0,IF($H53=4,"Inconnu",IF($H53=99,"Interrompu",$D53)),0),"Non requis") -> 45960 | M53: =IF(INTRO!$E$39="Endémique", IF($I53>0, IF($I53=4,"Inconnu",IF($I53=99,"Interrompu",$D53)), 0),"Non requis") -> Inconnu | N53: =IF(INTRO!$E$41="Endémique", IF($J53>1, IF($J53=4, "Inconnu", IF($J53=99, "Surveillance", E53)), 0),"Non requis") -> 0 | O53: =IF(INTRO!$E$41="Endémique", IF($J53>1, IF($J53=4, "Inconnu", IF($J53=99, "Surveillance", F53)), 0),"Non requis") -> 0 | P53: =IF(INTRO!$E$41="Endémique", IF($J53>1, IF($J53=4, "Inconnu", IF($J53=99, "Surveillance", ROUND(D53*INTRO!$E$51,0))), 0),"Non requis") -> 0 | Q53: =IF(INTRO!$E$41="Endémique", IF($J53>1, IF($J53=4, "Inconnu", IF($J53=99, "Surveillance", SUM($N53:$P53))), 0),"Non requis") -> 0 | R53: =IF(INTRO!$E$43="Endémique", IF($K53>1, IF($K53=4, "Inconnu", IF($K53=99, "Surveillance", ROUND(E53*0.75,0))), 0),"Non requis") -> 0 | S53: =IF(INTRO!$E$43="Endémique", IF($K53>1, IF($K53=4, "Inconnu", IF($K53=99, "Surveillance", F53)), 0),"Non requis") -> 0 | T53: =IF(INTRO!$E$43="Endémique", IF($K53>1, IF($K53=4, "Inconnu", IF($K53=99, "Surveillance", G53)), 0),"Non requis") -> 0 | U53: =IF(INTRO!$E$43="Endémique", IF($K53>1, IF($K53=4, "Inconnu", IF($K53=99, "Surveillance", SUM($R53:$T53))), 0),"Non requis") -> 0 | V53: 1 | W53: 0 | X53: 0 | Y53: 0 | AF53: 23736 | AG53: MANSOA
A54: =IF(INTRO!$E$33<>0,INTRO!$E$33, " ") -> Guinée Bissau | B54: Oio | C54: MORES | D54: 12136 | E54: =IF(INTRO!$E$48="","",ROUND($D54*INTRO!$E$48,0)) -> 1614 | F54: =IF(INTRO!$E$49="","",ROUND($D54*INTRO!$E$49,0)) -> 3109 | G54: =IF(INTRO!$E$50="","",ROUND($D54*INTRO!$E$50,0)) -> 6875 | H54: 1 | I54: 4 | J54: 3 | K54: 1 | L54: =IF(INTRO!$E$37="Endémique",IF($H54>0,IF($H54=4,"Inconnu",IF($H54=99,"Interrompu",$D54)),0),"Non requis") -> 12136 | M54: =IF(INTRO!$E$39="Endémique", IF($I54>0, IF($I54=4,"Inconnu",IF($I54=99,"Interrompu",$D54)), 0),"Non requis") -> Inconnu | N54: =IF(INTRO!$E$41="Endémique", IF($J54>1, IF($J54=4, "Inconnu", IF($J54=99, "Surveillance", E54)), 0),"Non requis") -> 1614 | O54: =IF(INTRO!$E$41="Endémique", IF($J54>1, IF($J54=4, "Inconnu", IF($J54=99, "Surveillance", F54)), 0),"Non requis") -> 3109 | P54: =IF(INTRO!$E$41="Endémique", IF($J54>1, IF($J54=4, "Inconnu", IF($J54=99, "Surveillance", ROUND(D54*INTRO!$E$51,0))), 0),"Non requis") -> 2670 | Q54: =IF(INTRO!$E$41="Endémique", IF($J54>1, IF($J54=4, "Inconnu", IF($J54=99, "Surveillance", SUM($N54:$P54))), 0),"Non requis") -> 7393 | R54: =IF(INTRO!$E$43="Endémique", IF($K54>1, IF($K54=4, "Inconnu", IF($K54=99, "Surveillance", ROUND(E54*0.75,0))), 0),"Non requis") -> 0 | S54: =IF(INTRO!$E$43="Endémique", IF($K54>1, IF($K54=4, "Inconnu", IF($K54=99, "Surveillance", F54)), 0),"Non requis") -> 0 | T54: =IF(INTRO!$E$43="Endémique", IF($K54>1, IF($K54=4, "Inconnu", IF($K54=99, "Surveillance", G54)), 0),"Non requis") -> 0 | U54: =IF(INTRO!$E$43="Endémique", IF($K54>1, IF($K54=4, "Inconnu", IF($K54=99, "Surveillance", SUM($R54:$T54))), 0),"Non requis") -> 0 | V54: 1 | W54: 0 | X54: 2 | Y54: 0 | AF54: 23737 | AG54: MORES
A55: =IF(INTRO!$E$33<>0,INTRO!$E$33, " ") -> Guinée Bissau | B55: Oio | C55: NHACRA | D55: 29507 | E55: =IF(INTRO!$E$48="","",ROUND($D55*INTRO!$E$48,0)) -> 3924 | F55: =IF(INTRO!$E$49="","",ROUND($D55*INTRO!$E$49,0)) -> 7560 | G55: =IF(INTRO!$E$50="","",ROUND($D55*INTRO!$E$50,0)) -> 16716 | H55: 1 | I55: 4 | J55: 1 | K55: 0 | L55: =IF(INTRO!$E$37="Endémique",IF($H55>0,IF($H55=4,"Inconnu",IF($H55=99,"Interrompu",$D55)),0),"Non requis") -> 29507 | M55: =IF(INTRO!$E$39="Endémique", IF($I55>0, IF($I55=4,"Inconnu",IF($I55=99,"Interrompu",$D55)), 0),"Non requis") -> Inconnu | N55: =IF(INTRO!$E$41="Endémique", IF($J55>1, IF($J55=4, "Inconnu", IF($J55=99, "Surveillance", E55)), 0),"Non requis") -> 0 | O55: =IF(INTRO!$E$41="Endémique", IF($J55>1, IF($J55=4, "Inconnu", IF($J55=99, "Surveillance", F55)), 0),"Non requis") -> 0 | P55: =IF(INTRO!$E$41="Endémique", IF($J55>1, IF($J55=4, "Inconnu", IF($J55=99, "Surveillance", ROUND(D55*INTRO!$E$51,0))), 0),"Non requis") -> 0 | Q55: =IF(INTRO!$E$41="Endémique", IF($J55>1, IF($J55=4, "Inconnu", IF($J55=99, "Surveillance", SUM($N55:$P55))), 0),"Non requis") -> 0 | R55: =IF(INTRO!$E$43="Endémique", IF($K55>1, IF($K55=4, "Inconnu", IF($K55=99, "Surveillance", ROUND(E55*0.75,0))), 0),"Non requis") -> 0 | S55: =IF(INTRO!$E$43="Endémique", IF($K55>1, IF($K55=4, "Inconnu", IF($K55=99, "Surveillance", F55)), 0),"Non requis") -> 0 | T55: =IF(INTRO!$E$43="Endémique", IF($K55>1, IF($K55=4, "Inconnu", IF($K55=99, "Surveillance", G55)), 0),"Non requis") -> 0 | U55: =IF(INTRO!$E$43="Endémique", IF($K55>1, IF($K55=4, "Inconnu", IF($K55=99, "Surveillance", SUM($R55:$T55))), 0),"Non requis") -> 0 | V55: 1 | W55: 0 | X55: 0 | Y55: 0 | AF55: 23738 | AG55: NHACRA
A56: =IF(INTRO!$E$33<>0,INTRO!$E$33, " ") -> Guinée Bissau | B56: Oio | C56: OLOSSATO | D56: 18321 | E56: =IF(INTRO!$E$48="","",ROUND($D56*INTRO!$E$48,0)) -> 2437 | F56: =IF(INTRO!$E$49="","",ROUND($D56*INTRO!$E$49,0)) -> 4694 | G56: =IF(INTRO!$E$50="","",ROUND($D56*INTRO!$E$50,0)) -> 10379 | H56: 1 | I56: 4 | J56: 3 | K56: 1 | L56: =IF(INTRO!$E$37="Endémique",IF($H56>0,IF($H56=4,"Inconnu",IF($H56=99,"Interrompu",$D56)),0),"Non requis") -> 18321 | M56: =IF(INTRO!$E$39="Endémique", IF($I56>0, IF($I56=4,"Inconnu",IF($I56=99,"Interrompu",$D56)), 0),"Non requis") -> Inconnu | N56: =IF(INTRO!$E$41="Endémique", IF($J56>1, IF($J56=4, "Inconnu", IF($J56=99, "Surveillance", E56)), 0),"Non requis") -> 2437 | O56: =IF(INTRO!$E$41="Endémique", IF($J56>1, IF($J56=4, "Inconnu", IF($J56=99, "Surveillance", F56)), 0),"Non requis") -> 4694 | P56: =IF(INTRO!$E$41="Endémique", IF($J56>1, IF($J56=4, "Inconnu", IF($J56=99, "Surveillance", ROUND(D56*INTRO!$E$51,0))), 0),"Non requis") -> 4031 | Q56: =IF(INTRO!$E$41="Endémique", IF($J56>1, IF($J56=4, "Inconnu", IF($J56=99, "Surveillance", SUM($N56:$P56))), 0),"Non requis") -> 11162 | R56: =IF(INTRO!$E$43="Endémique", IF($K56>1, IF($K56=4, "Inconnu", IF($K56=99, "Surveillance", ROUND(E56*0.75,0))), 0),"Non requis") -> 0 | S56: =IF(INTRO!$E$43="Endémique", IF($K56>1, IF($K56=4, "Inconnu", IF($K56=99, "Surveillance", F56)), 0),"Non requis") -> 0 | T56: =IF(INTRO!$E$43="Endémique", IF($K56>1, IF($K56=4, "Inconnu", IF($K56=99, "Surveillance", G56)), 0),"Non requis") -> 0 | U56: =IF(INTRO!$E$43="Endémique", IF($K56>1, IF($K56=4, "Inconnu", IF($K56=99, "Surveillance", SUM($R56:$T56))), 0),"Non requis") -> 0 | V56: 1 | W56: 0 | X56: 2 | Y56: 0 | AF56: 23739 | AG56: OLOSSATO
A57: =IF(INTRO!$E$33<>0,INTRO!$E$33, " ") -> Guinée Bissau | B57: Oio | C57: PORTUGOL | D57: 6728 | E57: =IF(INTRO!$E$48="","",ROUND($D57*INTRO!$E$48,0)) -> 895 | F57: =IF(INTRO!$E$49="","",ROUND($D57*INTRO!$E$49,0)) -> 1724 | G57: =IF(INTRO!$E$50="","",ROUND($D57*INTRO!$E$50,0)) -> 3811 | H57: 1 | I57: 4 | J57: 3 | K57: 1 | L57: =IF(INTRO!$E$37="Endémique",IF($H57>0,IF($H57=4,"Inconnu",IF($H57=99,"Interrompu",$D57)),0),"Non requis") -> 6728 | M57: =IF(INTRO!$E$39="Endémique", IF($I57>0, IF($I57=4,"Inconnu",IF($I57=99,"Interrompu",$D57)), 0),"Non requis") -> Inconnu | N57: =IF(INTRO!$E$41="Endémique", IF($J57>1, IF($J57=4, "Inconnu", IF($J57=99, "Surveillance", E57)), 0),"Non requis") -> 895 | O57: =IF(INTRO!$E$41="Endémique", IF($J57>1, IF($J57=4, "Inconnu", IF($J57=99, "Surveillance", F57)), 0),"Non requis") -> 1724 | P57: =IF(INTRO!$E$41="Endémique", IF($J57>1, IF($J57=4, "Inconnu", IF($J57=99, "Surveillance", ROUND(D57*INTRO!$E$51,0))), 0),"Non requis") -> 1480 | Q57: =IF(INTRO!$E$41="Endémique", IF($J57>1, IF($J57=4, "Inconnu", IF($J57=99, "Surveillance", SUM($N57:$P57))), 0),"Non requis") -> 4099 | R57: =IF(INTRO!$E$43="Endémique", IF($K57>1, IF($K57=4, "Inconnu", IF($K57=99, "Surveillance", ROUND(E57*0.75,0))), 0),"Non requis") -> 0 | S57: =IF(INTRO!$E$43="Endémique", IF($K57>1, IF($K57=4, "Inconnu", IF($K57=99, "Surveillance", F57)), 0),"Non requis") -> 0 | T57: =IF(INTRO!$E$43="Endémique", IF($K57>1, IF($K57=4, "Inconnu", IF($K57=99, "Surveillance", G57)), 0),"Non requis") -> 0 | U57: =IF(INTRO!$E$43="Endémique", IF($K57>1, IF($K57=4, "Inconnu", IF($K57=99, "Surveillance", SUM($R57:$T57))), 0),"Non requis") -> 0 | V57: 1 | W57: 0 | X57: 2 | Y57: 0 | AF57: 23730 | AG57: PORTUGOL
A58: =IF(INTRO!$E$33<>0,INTRO!$E$33, " ") -> Guinée Bissau | B58: Bolama | C58: BOLAMA | D58: 7381 | E58: =IF(INTRO!$E$48="","",ROUND($D58*INTRO!$E$48,0)) -> 982 | F58: =IF(INTRO!$E$49="","",ROUND($D58*INTRO!$E$49,0)) -> 1891 | G58: =IF(INTRO!$E$50="","",ROUND($D58*INTRO!$E$50,0)) -> 4181 | H58: 1 | I58: 4 | J58: 1 | K58: 0 | L58: =IF(INTRO!$E$37="Endémique",IF($H58>0,IF($H58=4,"Inconnu",IF($H58=99,"Interrompu",$D58)),0),"Non requis") -> 7381 | M58: =IF(INTRO!$E$39="Endémique", IF($I58>0, IF($I58=4,"Inconnu",IF($I58=99,"Interrompu",$D58)), 0),"Non requis") -> Inconnu | N58: =IF(INTRO!$E$41="Endémique", IF($J58>1, IF($J58=4, "Inconnu", IF($J58=99, "Surveillance", E58)), 0),"Non requis") -> 0 | O58: =IF(INTRO!$E$41="Endémique", IF($J58>1, IF($J58=4, "Inconnu", IF($J58=99, "Surveillance", F58)), 0),"Non requis") -> 0 | P58: =IF(INTRO!$E$41="Endémique", IF($J58>1, IF($J58=4, "Inconnu", IF($J58=99, "Surveillance", ROUND(D58*INTRO!$E$51,0))), 0),"Non requis") -> 0 | Q58: =IF(INTRO!$E$41="Endémique", IF($J58>1, IF($J58=4, "Inconnu", IF($J58=99, "Surveillance", SUM($N58:$P58))), 0),"Non requis") -> 0 | R58: =IF(INTRO!$E$43="Endémique", IF($K58>1, IF($K58=4, "Inconnu", IF($K58=99, "Surveillance", ROUND(E58*0.75,0))), 0),"Non requis") -> 0 | S58: =IF(INTRO!$E$43="Endémique", IF($K58>1, IF($K58=4, "Inconnu", IF($K58=99, "Surveillance", F58)), 0),"Non requis") -> 0 | T58: =IF(INTRO!$E$43="Endémique", IF($K58>1, IF($K58=4, "Inconnu", IF($K58=99, "Surveillance", G58)), 0),"Non requis") -> 0 | U58: =IF(INTRO!$E$43="Endémique", IF($K58>1, IF($K58=4, "Inconnu", IF($K58=99, "Surveillance", SUM($R58:$T58))), 0),"Non requis") -> 0 | V58: 1 | W58: 0 | X58: 0 | Y58: 0 | AF58: 23683 | AG58: BOLAMA
A59: =IF(INTRO!$E$33<>0,INTRO!$E$33, " ") -> Guinée Bissau | B59: Bolama | C59: I. GALINHAS | D59: 2000 | E59: =IF(INTRO!$E$48="","",ROUND($D59*INTRO!$E$48,0)) -> 266 | F59: =IF(INTRO!$E$49="","",ROUND($D59*INTRO!$E$49,0)) -> 512 | G59: =IF(INTRO!$E$50="","",ROUND($D59*INTRO!$E$50,0)) -> 1133 | H59: 1 | I59: 4 | J59: 0 | K59: 0 | L59: =IF(INTRO!$E$37="Endémique",IF($H59>0,IF($H59=4,"Inconnu",IF($H59=99,"Interrompu",$D59)),0),"Non requis") -> 2000 | M59: =IF(INTRO!$E$39="Endémique", IF($I59>0, IF($I59=4,"Inconnu",IF($I59=99,"Interrompu",$D59)), 0),"Non requis") -> Inconnu | N59: =IF(INTRO!$E$41="Endémique", IF($J59>1, IF($J59=4, "Inconnu", IF($J59=99, "Surveillance", E59)), 0),"Non requis") -> 0 | O59: =IF(INTRO!$E$41="Endémique", IF($J59>1, IF($J59=4, "Inconnu", IF($J59=99, "Surveillance", F59)), 0),"Non requis") -> 0 | P59: =IF(INTRO!$E$41="Endémique", IF($J59>1, IF($J59=4, "Inconnu", IF($J59=99, "Surveillance", ROUND(D59*INTRO!$E$51,0))), 0),"Non requis") -> 0 | Q59: =IF(INTRO!$E$41="Endémique", IF($J59>1, IF($J59=4, "Inconnu", IF($J59=99, "Surveillance", SUM($N59:$P59))), 0),"Non requis") -> 0 | R59: =IF(INTRO!$E$43="Endémique", IF($K59>1, IF($K59=4, "Inconnu", IF($K59=99, "Surveillance", ROUND(E59*0.75,0))), 0),"Non requis") -> 0 | S59: =IF(INTRO!$E$43="Endémique", IF($K59>1, IF($K59=4, "Inconnu", IF($K59=99, "Surveillance", F59)), 0),"Non requis") -> 0 | T59: =IF(INTRO!$E$43="Endémique", IF($K59>1, IF($K59=4, "Inconnu", IF($K59=99, "Surveillance", G59)), 0),"Non requis") -> 0 | U59: =IF(INTRO!$E$43="Endémique", IF($K59>1, IF($K59=4, "Inconnu", IF($K59=99, "Surveillance", SUM($R59:$T59))), 0),"Non requis") -> 0 | V59: 1 | W59: 0 | X59: 0 | Y59: 0 | AF59: 23655 | AG59: ILHA DE GALINHAS
A60: =IF(INTRO!$E$33<>0,INTRO!$E$33, " ") -> Guinée Bissau | B60: Bolama | C60: SÃO-JOÃO | D60: 3124 | E60: =IF(INTRO!$E$48="","",ROUND($D60*INTRO!$E$48,0)) -> 415 | F60: =IF(INTRO!$E$49="","",ROUND($D60*INTRO!$E$49,0)) -> 800 | G60: =IF(INTRO!$E$50="","",ROUND($D60*INTRO!$E$50,0)) -> 1770 | H60: 1 | I60: 4 | J60: 1 | K60: 0 | L60: =IF(INTRO!$E$37="Endémique",IF($H60>0,IF($H60=4,"Inconnu",IF($H60=99,"Interrompu",$D60)),0),"Non requis") -> 3124 | M60: =IF(INTRO!$E$39="Endémique", IF($I60>0, IF($I60=4,"Inconnu",IF($I60=99,"Interrompu",$D60)), 0),"Non requis") -> Inconnu | N60: =IF(INTRO!$E$41="Endémique", IF($J60>1, IF($J60=4, "Inconnu", IF($J60=99, "Surveillance", E60)), 0),"Non requis") -> 0 | O60: =IF(INTRO!$E$41="Endémique", IF($J60>1, IF($J60=4, "Inconnu", IF($J60=99, "Surveillance", F60)), 0),"Non requis") -> 0 | P60: =IF(INTRO!$E$41="Endémique", IF($J60>1, IF($J60=4, "Inconnu", IF($J60=99, "Surveillance", ROUND(D60*INTRO!$E$51,0))), 0),"Non requis") -> 0 | Q60: =IF(INTRO!$E$41="Endémique", IF($J60>1, IF($J60=4, "Inconnu", IF($J60=99, "Surveillance", SUM($N60:$P60))), 0),"Non requis") -> 0 | R60: =IF(INTRO!$E$43="Endémique", IF($K60>1, IF($K60=4, "Inconnu", IF($K60=99, "Surveillance", ROUND(E60*0.75,0))), 0),"Non requis") -> 0 | S60: =IF(INTRO!$E$43="Endémique", IF($K60>1, IF($K60=4, "Inconnu", IF($K60=99, "Surveillance", F60)), 0),"Non requis") -> 0 | T60: =IF(INTRO!$E$43="Endémique", IF($K60>1, IF($K60=4, "Inconnu", IF($K60=99, "Surveillance", G60)), 0),"Non requis") -> 0 | U60: =IF(INTRO!$E$43="Endémique", IF($K60>1, IF($K60=4, "Inconnu", IF($K60=99, "Surveillance", SUM($R60:$T60))), 0),"Non requis") -> 0 | V60: 1 | W60: 0 | X60: 0 | Y60: 0 | AF60: 23684 | AG60: SÃO-JOÃO
A61: =IF(INTRO!$E$33<>0,INTRO!$E$33, " ") -> Guinée Bissau | B61: Gabu | C61: BAJOCUNDA | D61: 7278 | E61: =IF(INTRO!$E$48="","",ROUND($D61*INTRO!$E$48,0)) -> 968 | F61: =IF(INTRO!$E$49="","",ROUND($D61*INTRO!$E$49,0)) -> 1865 | G61: =IF(INTRO!$E$50="","",ROUND($D61*INTRO!$E$50,0)) -> 4123 | H61: 1 | I61: 1 | J61: 2 | K61: 2 | L61: =IF(INTRO!$E$37="Endémique",IF($H61>0,IF($H61=4,"Inconnu",IF($H61=99,"Interrompu",$D61)),0),"Non requis") -> 7278 | M61: =IF(INTRO!$E$39="Endémique", IF($I61>0, IF($I61=4,"Inconnu",IF($I61=99,"Interrompu",$D61)), 0),"Non requis") -> 7278 | N61: =IF(INTRO!$E$41="Endémique", IF($J61>1, IF($J61=4, "Inconnu", IF($J61=99, "Surveillance", E61)), 0),"Non requis") -> 968 | O61: =IF(INTRO!$E$41="Endémique", IF($J61>1, IF($J61=4, "Inconnu", IF($J61=99, "Surveillance", F61)), 0),"Non requis") -> 1865 | P61: =IF(INTRO!$E$41="Endémique", IF($J61>1, IF($J61=4, "Inconnu", IF($J61=99, "Surveillance", ROUND(D61*INTRO!$E$51,0))), 0),"Non requis") -> 1601 | Q61: =IF(INTRO!$E$41="Endémique", IF($J61>1, IF($J61=4, "Inconnu", IF($J61=99, "Surveillance", SUM($N61:$P61))), 0),"Non requis") -> 4434 | R61: =IF(INTRO!$E$43="Endémique", IF($K61>1, IF($K61=4, "Inconnu", IF($K61=99, "Surveillance", ROUND(E61*0.75,0))), 0),"Non requis") -> 726 | S61: =IF(INTRO!$E$43="Endémique", IF($K61>1, IF($K61=4, "Inconnu", IF($K61=99, "Surveillance", F61)), 0),"Non requis") -> 1865 | T61: =IF(INTRO!$E$43="Endémique", IF($K61>1, IF($K61=4, "Inconnu", IF($K61=99, "Surveillance", G61)), 0),"Non requis") -> 4123 | U61: =IF(INTRO!$E$43="Endémique", IF($K61>1, IF($K61=4, "Inconnu", IF($K61=99, "Surveillance", SUM($R61:$T61))), 0),"Non requis") -> 6714 | V61: 1 | W61: 1 | X61: 1 | Y61: 1 | AF61: 23709 | AG61: BAJOCUNDA
A62: =IF(INTRO!$E$33<>0,INTRO!$E$33, " ") -> Guinée Bissau | B62: Gabu | C62: BELI | D62: 6564 | E62: =IF(INTRO!$E$48="","",ROUND($D62*INTRO!$E$48,0)) -> 873 | F62: =IF(INTRO!$E$49="","",ROUND($D62*INTRO!$E$49,0)) -> 1682 | G62: =IF(INTRO!$E$50="","",ROUND($D62*INTRO!$E$50,0)) -> 3719 | H62: 1 | I62: 1 | J62: 1 | K62: 2 | L62: =IF(INTRO!$E$37="Endémique",IF($H62>0,IF($H62=4,"Inconnu",IF($H62=99,"Interrompu",$D62)),0),"Non requis") -> 6564 | M62: =IF(INTRO!$E$39="Endémique", IF($I62>0, IF($I62=4,"Inconnu",IF($I62=99,"Interrompu",$D62)), 0),"Non requis") -> 6564 | N62: =IF(INTRO!$E$41="Endémique", IF($J62>1, IF($J62=4, "Inconnu", IF($J62=99, "Surveillance", E62)), 0),"Non requis") -> 0 | O62: =IF(INTRO!$E$41="Endémique", IF($J62>1, IF($J62=4, "Inconnu", IF($J62=99, "Surveillance", F62)), 0),"Non requis") -> 0 | P62: =IF(INTRO!$E$41="Endémique", IF($J62>1, IF($J62=4, "Inconnu", IF($J62=99, "Surveillance", ROUND(D62*INTRO!$E$51,0))), 0),"Non requis") -> 0 | Q62: =IF(INTRO!$E$41="Endémique", IF($J62>1, IF($J62=4, "Inconnu", IF($J62=99, "Surveillance", SUM($N62:$P62))), 0),"Non requis") -> 0 | R62: =IF(INTRO!$E$43="Endémique", IF($K62>1, IF($K62=4, "Inconnu", IF($K62=99, "Surveillance", ROUND(E62*0.75,0))), 0),"Non requis") -> 655 | S62: =IF(INTRO!$E$43="Endémique", IF($K62>1, IF($K62=4, "Inconnu", IF($K62=99, "Surveillance", F62)), 0),"Non requis") -> 1682 | T62: =IF(INTRO!$E$43="Endémique", IF($K62>1, IF($K62=4, "Inconnu", IF($K62=99, "Surveillance", G62)), 0),"Non requis") -> 3719 | U62: =IF(INTRO!$E$43="Endémique", IF($K62>1, IF($K62=4, "Inconnu", IF($K62=99, "Surveillance", SUM($R62:$T62))), 0),"Non requis") -> 6056 | V62: 1 | W62: 1 | X62: 0 | Y62: 1 | AF62: 23710 | AG62: BELI
A63: =IF(INTRO!$E$33<>0,INTRO!$E$33, " ") -> Guinée Bissau | B63: Gabu | C63: BURUNTUMA | D63: 12761 | E63: =IF(INTRO!$E$48="","",ROUND($D63*INTRO!$E$48,0)) -> 1697 | F63: =IF(INTRO!$E$49="","",ROUND($D63*INTRO!$E$49,0)) -> 3269 | G63: =IF(INTRO!$E$50="","",ROUND($D63*INTRO!$E$50,0)) -> 7229 | H63: 1 | I63: 1 | J63: 2 | K63: 2 | L63: =IF(INTRO!$E$37="Endémique",IF($H63>0,IF($H63=4,"Inconnu",IF($H63=99,"Interrompu",$D63)),0),"Non requis") -> 12761 | M63: =IF(INTRO!$E$39="Endémique", IF($I63>0, IF($I63=4,"Inconnu",IF($I63=99,"Interrompu",$D63)), 0),"Non requis") -> 12761 | N63: =IF(INTRO!$E$41="Endémique", IF($J63>1, IF($J63=4, "Inconnu", IF($J63=99, "Surveillance", E63)), 0),"Non requis") -> 1697 | O63: =IF(INTRO!$E$41="Endémique", IF($J63>1, IF($J63=4, "Inconnu", IF($J63=99, "Surveillance", F63)), 0),"Non requis") -> 3269 | P63: =IF(INTRO!$E$41="Endémique", IF($J63>1, IF($J63=4, "Inconnu", IF($J63=99, "Surveillance", ROUND(D63*INTRO!$E$51,0))), 0),"Non requis") -> 2807 | Q63: =IF(INTRO!$E$41="Endémique", IF($J63>1, IF($J63=4, "Inconnu", IF($J63=99, "Surveillance", SUM($N63:$P63))), 0),"Non requis") -> 7773 | R63: =IF(INTRO!$E$43="Endémique", IF($K63>1, IF($K63=4, "Inconnu", IF($K63=99, "Surveillance", ROUND(E63*0.75,0))), 0),"Non requis") -> 1273 | S63: =IF(INTRO!$E$43="Endémique", IF($K63>1, IF($K63=4, "Inconnu", IF($K63=99, "Surveillance", F63)), 0),"Non requis") -> 3269 | T63: =IF(INTRO!$E$43="Endémique", IF($K63>1, IF($K63=4, "Inconnu", IF($K63=99, "Surveillance", G63)), 0),"Non requis") -> 7229 | U63: =IF(INTRO!$E$43="Endémique", IF($K63>1, IF($K63=4, "Inconnu", IF($K63=99, "Surveillance", SUM($R63:$T63))), 0),"Non requis") -> 11771 | V63: 1 | W63: 1 | X63: 1 | Y63: 1 | AF63: 23711 | AG63: BURUNTUMA
A64: =IF(INTRO!$E$33<>0,INTRO!$E$33, " ") -> Guinée Bissau | B64: Gabu | C64: CANJADUDE | D64: 9487 | E64: =IF(INTRO!$E$48="","",ROUND($D64*INTRO!$E$48,0)) -> 1262 | F64: =IF(INTRO!$E$49="","",ROUND($D64*INTRO!$E$49,0)) -> 2431 | G64: =IF(INTRO!$E$50="","",ROUND($D64*INTRO!$E$50,0)) -> 5374 | H64: 1 | I64: 1 | J64: 0 | K64: 0 | L64: =IF(INTRO!$E$37="Endémique",IF($H64>0,IF($H64=4,"Inconnu",IF($H64=99,"Interrompu",$D64)),0),"Non requis") -> 9487 | M64: =IF(INTRO!$E$39="Endémique", IF($I64>0, IF($I64=4,"Inconnu",IF($I64=99,"Interrompu",$D64)), 0),"Non requis") -> 9487 | N64: =IF(INTRO!$E$41="Endémique", IF($J64>1, IF($J64=4, "Inconnu", IF($J64=99, "Surveillance", E64)), 0),"Non requis") -> 0 | O64: =IF(INTRO!$E$41="Endémique", IF($J64>1, IF($J64=4, "Inconnu", IF($J64=99, "Surveillance", F64)), 0),"Non requis") -> 0 | P64: =IF(INTRO!$E$41="Endémique", IF($J64>1, IF($J64=4, "Inconnu", IF($J64=99, "Surveillance", ROUND(D64*INTRO!$E$51,0))), 0),"Non requis") -> 0 | Q64: =IF(INTRO!$E$41="Endémique", IF($J64>1, IF($J64=4, "Inconnu", IF($J64=99, "Surveillance", SUM($N64:$P64))), 0),"Non requis") -> 0 | R64: =IF(INTRO!$E$43="Endémique", IF($K64>1, IF($K64=4, "Inconnu", IF($K64=99, "Surveillance", ROUND(E64*0.75,0))), 0),"Non requis") -> 0 | S64: =IF(INTRO!$E$43="Endémique", IF($K64>1, IF($K64=4, "Inconnu", IF($K64=99, "Surveillance", F64)), 0),"Non requis") -> 0 | T64: =IF(INTRO!$E$43="Endémique", IF($K64>1, IF($K64=4, "Inconnu", IF($K64=99, "Surveillance", G64)), 0),"Non requis") -> 0 | U64: =IF(INTRO!$E$43="Endémique", IF($K64>1, IF($K64=4, "Inconnu", IF($K64=99, "Surveillance", SUM($R64:$T64))), 0),"Non requis") -> 0 | V64: 1 | W64: 1 | X64: 0 | Y64: 0 | AF64: 23719 | AG64: CANJADUDE
A65: =IF(INTRO!$E$33<>0,INTRO!$E$33, " ") -> Guinée Bissau | B65: Gabu | C65: CANQUELIFA | D65: 7784 | E65: =IF(INTRO!$E$48="","",ROUND($D65*INTRO!$E$48,0)) -> 1035 | F65: =IF(INTRO!$E$49="","",ROUND($D65*INTRO!$E$49,0)) -> 1994 | G65: =IF(INTRO!$E$50="","",ROUND($D65*INTRO!$E$50,0)) -> 4410 | H65: 1 | I65: 1 | J65: 2 | K65: 2 | L65: =IF(INTRO!$E$37="Endémique",IF($H65>0,IF($H65=4,"Inconnu",IF($H65=99,"Interrompu",$D65)),0),"Non requis") -> 7784 | M65: =IF(INTRO!$E$39="Endémique", IF($I65>0, IF($I65=4,"Inconnu",IF($I65=99,"Interrompu",$D65)), 0),"Non requis") -> 7784 | N65: =IF(INTRO!$E$41="Endémique", IF($J65>1, IF($J65=4, "Inconnu", IF($J65=99, "Surveillance", E65)), 0),"Non requis") -> 1035 | O65: =IF(INTRO!$E$41="Endémique", IF($J65>1, IF($J65=4, "Inconnu", IF($J65=99, "Surveillance", F65)), 0),"Non requis") -> 1994 | P65: =IF(INTRO!$E$41="Endémique", IF($J65>1, IF($J65=4, "Inconnu", IF($J65=99, "Surveillance", ROUND(D65*INTRO!$E$51,0))), 0),"Non requis") -> 1712 | Q65: =IF(INTRO!$E$41="Endémique", IF($J65>1, IF($J65=4, "Inconnu", IF($J65=99, "Surveillance", SUM($N65:$P65))), 0),"Non requis") -> 4741 | R65: =IF(INTRO!$E$43="Endémique", IF($K65>1, IF($K65=4, "Inconnu", IF($K65=99, "Surveillance", ROUND(E65*0.75,0))), 0),"Non requis") -> 776 | S65: =IF(INTRO!$E$43="Endémique", IF($K65>1, IF($K65=4, "Inconnu", IF($K65=99, "Surveillance", F65)), 0),"Non requis") -> 1994 | T65: =IF(INTRO!$E$43="Endémique", IF($K65>1, IF($K65=4, "Inconnu", IF($K65=99, "Surveillance", G65)), 0),"Non requis") -> 4410 | U65: =IF(INTRO!$E$43="Endémique", IF($K65>1, IF($K65=4, "Inconnu", IF($K65=99, "Surveillance", SUM($R65:$T65))), 0),"Non requis") -> 7180 | V65: 1 | W65: 1 | X65: 1 | Y65: 1 | AF65: 23712 | AG65: CANQUELIFA
A66: =IF(INTRO!$E$33<>0,INTRO!$E$33, " ") -> Guinée Bissau | B66: Gabu | C66: CANSISSE | D66: 7515 | E66: =IF(INTRO!$E$48="","",ROUND($D66*INTRO!$E$48,0)) -> 999 | F66: =IF(INTRO!$E$49="","",ROUND($D66*INTRO!$E$49,0)) -> 1925 | G66: =IF(INTRO!$E$50="","",ROUND($D66*INTRO!$E$50,0)) -> 4257 | H66: 1 | I66: 1 | J66: 2 | K66: 2 | L66: =IF(INTRO!$E$37="Endémique",IF($H66>0,IF($H66=4,"Inconnu",IF($H66=99,"Interrompu",$D66)),0),"Non requis") -> 7515 | M66: =IF(INTRO!$E$39="Endémique", IF($I66>0, IF($I66=4,"Inconnu",IF($I66=99,"Interrompu",$D66)), 0),"Non requis") -> 7515 | N66: =IF(INTRO!$E$41="Endémique", IF($J66>1, IF($J66=4, "Inconnu", IF($J66=99, "Surveillance", E66)), 0),"Non requis") -> 999 | O66: =IF(INTRO!$E$41="Endémique", IF($J66>1, IF($J66=4, "Inconnu", IF($J66=99, "Surveillance", F66)), 0),"Non requis") -> 1925 | P66: =IF(INTRO!$E$41="Endémique", IF($J66>1, IF($J66=4, "Inconnu", IF($J66=99, "Surveillance", ROUND(D66*INTRO!$E$51,0))), 0),"Non requis") -> 1653 | Q66: =IF(INTRO!$E$41="Endémique", IF($J66>1, IF($J66=4, "Inconnu", IF($J66=99, "Surveillance", SUM($N66:$P66))), 0),"Non requis") -> 4577 | R66: =IF(INTRO!$E$43="Endémique", IF($K66>1, IF($K66=4, "Inconnu", IF($K66=99, "Surveillance", ROUND(E66*0.75,0))), 0),"Non requis") -> 749 | S66: =IF(INTRO!$E$43="Endémique", IF($K66>1, IF($K66=4, "Inconnu", IF($K66=99, "Surveillance", F66)), 0),"Non requis") -> 1925 | T66: =IF(INTRO!$E$43="Endémique", IF($K66>1, IF($K66=4, "Inconnu", IF($K66=99, "Surveillance", G66)), 0),"Non requis") -> 4257 | U66: =IF(INTRO!$E$43="Endémique", IF($K66>1, IF($K66=4, "Inconnu", IF($K66=99, "Surveillance", SUM($R66:$T66))), 0),"Non requis") -> 6931 | V66: 1 | W66: 1 | X66: 1 | Y66: 1 | AF66: 23713 | AG66: CANSISSE
A67: =IF(INTRO!$E$33<>0,INTRO!$E$33, " ") -> Guinée Bissau | B67: Gabu | C67: FASSE | D67: 11405 | E67: =IF(INTRO!$E$48="","",ROUND($D67*INTRO!$E$48,0)) -> 1517 | F67: =IF(INTRO!$E$49="","",ROUND($D67*INTRO!$E$49,0)) -> 2922 | G67: =IF(INTRO!$E$50="","",ROUND($D67*INTRO!$E$50,0)) -> 6461 | H67: 1 | I67: 1 | J67: 2 | K67: 2 | L67: =IF(INTRO!$E$37="Endémique",IF($H67>0,IF($H67=4,"Inconnu",IF($H67=99,"Interrompu",$D67)),0),"Non requis") -> 11405 | M67: =IF(INTRO!$E$39="Endémique", IF($I67>0, IF($I67=4,"Inconnu",IF($I67=99,"Interrompu",$D67)), 0),"Non requis") -> 11405 | N67: =IF(INTRO!$E$41="Endémique", IF($J67>1, IF($J67=4, "Inconnu", IF($J67=99, "Surveillance", E67)), 0),"Non requis") -> 1517 | O67: =IF(INTRO!$E$41="Endémique", IF($J67>1, IF($J67=4, "Inconnu", IF($J67=99, "Surveillance", F67)), 0),"Non requis") -> 2922 | P67: =IF(INTRO!$E$41="Endémique", IF($J67>1, IF($J67=4, "Inconnu", IF($J67=99, "Surveillance", ROUND(D67*INTRO!$E$51,0))), 0),"Non requis") -> 2509 | Q67: =IF(INTRO!$E$41="Endémique", IF($J67>1, IF($J67=4, "Inconnu", IF($J67=99, "Surveillance", SUM($N67:$P67))), 0),"Non requis") -> 6948 | R67: =IF(INTRO!$E$43="Endémique", IF($K67>1, IF($K67=4, "Inconnu", IF($K67=99, "Surveillance", ROUND(E67*0.75,0))), 0),"Non requis") -> 1138 | S67: =IF(INTRO!$E$43="Endémique", IF($K67>1, IF($K67=4, "Inconnu", IF($K67=99, "Surveillance", F67)), 0),"Non requis") -> 2922 | T67: =IF(INTRO!$E$43="Endémique", IF($K67>1, IF($K67=4, "Inconnu", IF($K67=99, "Surveillance", G67)), 0),"Non requis") -> 6461 | U67: =IF(INTRO!$E$43="Endémique", IF($K67>1, IF($K67=4, "Inconnu", IF($K67=99, "Surveillance", SUM($R67:$T67))), 0),"Non requis") -> 10521 | V67: 1 | W67: 1 | X67: 1 | Y67: 1 | AF67: 23716 | AG67: FASSE
A68: =IF(INTRO!$E$33<>0,INTRO!$E$33, " ") -> Guinée Bissau | B68: Gabu | C68: PAUNCA | D68: 19168 | E68: =IF(INTRO!$E$48="","",ROUND($D68*INTRO!$E$48,0)) -> 2549 | F68: =IF(INTRO!$E$49="","",ROUND($D68*INTRO!$E$49,0)) -> 4911 | G68: =IF(INTRO!$E$50="","",ROUND($D68*INTRO!$E$50,0)) -> 10859 | H68: 1 | I68: 1 | J68: 2 | K68: 2 | L68: =IF(INTRO!$E$37="Endémique",IF($H68>0,IF($H68=4,"Inconnu",IF($H68=99,"Interrompu",$D68)),0),"Non requis") -> 19168 | M68: =IF(INTRO!$E$39="Endémique", IF($I68>0, IF($I68=4,"Inconnu",IF($I68=99,"Interrompu",$D68)), 0),"Non requis") -> 19168 | N68: =IF(INTRO!$E$41="Endémique", IF($J68>1, IF($J68=4, "Inconnu", IF($J68=99, "Surveillance", E68)), 0),"Non requis") -> 2549 | O68: =IF(INTRO!$E$41="Endémique", IF($J68>1, IF($J68=4, "Inconnu", IF($J68=99, "Surveillance", F68)), 0),"Non requis") -> 4911 | P68: =IF(INTRO!$E$41="Endémique", IF($J68>1, IF($J68=4, "Inconnu", IF($J68=99, "Surveillance", ROUND(D68*INTRO!$E$51,0))), 0),"Non requis") -> 4217 | Q68: =IF(INTRO!$E$41="Endémique", IF($J68>1, IF($J68=4, "Inconnu", IF($J68=99, "Surveillance", SUM($N68:$P68))), 0),"Non requis") -> 11677 | R68: =IF(INTRO!$E$43="Endémique", IF($K68>1, IF($K68=4, "Inconnu", IF($K68=99, "Surveillance", ROUND(E68*0.75,0))), 0),"Non requis") -> 1912 | S68: =IF(INTRO!$E$43="Endémique", IF($K68>1, IF($K68=4, "Inconnu", IF($K68=99, "Surveillance", F68)), 0),"Non requis") -> 4911 | T68: =IF(INTRO!$E$43="Endémique", IF($K68>1, IF($K68=4, "Inconnu", IF($K68=99, "Surveillance", G68)), 0),"Non requis") -> 10859 | U68: =IF(INTRO!$E$43="Endémique", IF($K68>1, IF($K68=4, "Inconnu", IF($K68=99, "Surveillance", SUM($R68:$T68))), 0),"Non requis") -> 17682 | V68: 1 | W68: 1 | X68: 1 | Y68: 1 | AF68: 23717 | AG68: PAUNCA
A69: =IF(INTRO!$E$33<>0,INTRO!$E$33, " ") -> Guinée Bissau | B69: Gabu | C69: PITCHE | D69: 24782 | E69: =IF(INTRO!$E$48="","",ROUND($D69*INTRO!$E$48,0)) -> 3296 | F69: =IF(INTRO!$E$49="","",ROUND($D69*INTRO!$E$49,0)) -> 6349 | G69: =IF(INTRO!$E$50="","",ROUND($D69*INTRO!$E$50,0)) -> 14039 | H69: 1 | I69: 1 | J69: 0 | K69: 1 | L69: =IF(INTRO!$E$37="Endémique",IF($H69>0,IF($H69=4,"Inconnu",IF($H69=99,"Interrompu",$D69)),0),"Non requis") -> 24782 | M69: =IF(INTRO!$E$39="Endémique", IF($I69>0, IF($I69=4,"Inconnu",IF($I69=99,"Interrompu",$D69)), 0),"Non requis") -> 24782 | N69: =IF(INTRO!$E$41="Endémique", IF($J69>1, IF($J69=4, "Inconnu", IF($J69=99, "Surveillance", E69)), 0),"Non requis") -> 0 | O69: =IF(INTRO!$E$41="Endémique", IF($J69>1, IF($J69=4, "Inconnu", IF($J69=99, "Surveillance", F69)), 0),"Non requis") -> 0 | P69: =IF(INTRO!$E$41="Endémique", IF($J69>1, IF($J69=4, "Inconnu", IF($J69=99, "Surveillance", ROUND(D69*INTRO!$E$51,0))), 0),"Non requis") -> 0 | Q69: =IF(INTRO!$E$41="Endémique", IF($J69>1, IF($J69=4, "Inconnu", IF($J69=99, "Surveillance", SUM($N69:$P69))), 0),"Non requis") -> 0 | R69: =IF(INTRO!$E$43="Endémique", IF($K69>1, IF($K69=4, "Inconnu", IF($K69=99, "Surveillance", ROUND(E69*0.75,0))), 0),"Non requis") -> 0 | S69: =IF(INTRO!$E$43="Endémique", IF($K69>1, IF($K69=4, "Inconnu", IF($K69=99, "Surveillance", F69)), 0),"Non requis") -> 0 | T69: =IF(INTRO!$E$43="Endémique", IF($K69>1, IF($K69=4, "Inconnu", IF($K69=99, "Surveillance", G69)), 0),"Non requis") -> 0 | U69: =IF(INTRO!$E$43="Endémique", IF($K69>1, IF($K69=4, "Inconnu", IF($K69=99, "Surveillance", SUM($R69:$T69))), 0),"Non requis") -> 0 | V69: 1 | W69: 1 | X69: 0 | Y69: 0 | AF69: 23726 | AG69: PITCHE
A70: =IF(INTRO!$E$33<>0,INTRO!$E$33, " ") -> Guinée Bissau | B70: Gabu | C70: DARA | D70: 18455 | E70: =IF(INTRO!$E$48="","",ROUND($D70*INTRO!$E$48,0)) -> 2455 | F70: =IF(INTRO!$E$49="","",ROUND($D70*INTRO!$E$49,0)) -> 4728 | G70: =IF(INTRO!$E$50="","",ROUND($D70*INTRO!$E$50,0)) -> 10455 | H70: 1 | I70: 1 | J70: 2 | K70: 2 | L70: =IF(INTRO!$E$37="Endémique",IF($H70>0,IF($H70=4,"Inconnu",IF($H70=99,"Interrompu",$D70)),0),"Non requis") -> 18455 | M70: =IF(INTRO!$E$39="Endémique", IF($I70>0, IF($I70=4,"Inconnu",IF($I70=99,"Interrompu",$D70)), 0),"Non requis") -> 18455 | N70: =IF(INTRO!$E$41="Endémique", IF($J70>1, IF($J70=4, "Inconnu", IF($J70=99, "Surveillance", E70)), 0),"Non requis") -> 2455 | O70: =IF(INTRO!$E$41="Endémique", IF($J70>1, IF($J70=4, "Inconnu", IF($J70=99, "Surveillance", F70)), 0),"Non requis") -> 4728 | P70: =IF(INTRO!$E$41="Endémique", IF($J70>1, IF($J70=4, "Inconnu", IF($J70=99, "Surveillance", ROUND(D70*INTRO!$E$51,0))), 0),"Non requis") -> 4060 | Q70: =IF(INTRO!$E$41="Endémique", IF($J70>1, IF($J70=4, "Inconnu", IF($J70=99, "Surveillance", SUM($N70:$P70))), 0),"Non requis") -> 11243 | R70: =IF(INTRO!$E$43="Endémique", IF($K70>1, IF($K70=4, "Inconnu", IF($K70=99, "Surveillance", ROUND(E70*0.75,0))), 0),"Non requis") -> 1841 | S70: =IF(INTRO!$E$43="Endémique", IF($K70>1, IF($K70=4, "Inconnu", IF($K70=99, "Surveillance", F70)), 0),"Non requis") -> 4728 | T70: =IF(INTRO!$E$43="Endémique", IF($K70>1, IF($K70=4, "Inconnu", IF($K70=99, "Surveillance", G70)), 0),"Non requis") -> 10455 | U70: =IF(INTRO!$E$43="Endémique", IF($K70>1, IF($K70=4, "Inconnu", IF($K70=99, "Surveillance", SUM($R70:$T70))), 0),"Non requis") -> 17024 | V70: 1 | W70: 1 | X70: 1 | Y70: 1 | AF70: 23715 | AG70: DARA
A71: =IF(INTRO!$E$33<>0,INTRO!$E$33, " ") -> Guinée Bissau | B71: Gabu | C71: PIRADA | D71: 15013 | E71: =IF(INTRO!$E$48="","",ROUND($D71*INTRO!$E$48,0)) -> 1997 | F71: =IF(INTRO!$E$49="","",ROUND($D71*INTRO!$E$49,0)) -> 3846 | G71: =IF(INTRO!$E$50="","",ROUND($D71*INTRO!$E$50,0)) -> 8505 | H71: 1 | I71: 1 | J71: 1 | K71: 1 | L71: =IF(INTRO!$E$37="Endémique",IF($H71>0,IF($H71=4,"Inconnu",IF($H71=99,"Interrompu",$D71)),0),"Non requis") -> 15013 | M71: =IF(INTRO!$E$39="Endémique", IF($I71>0, IF($I71=4,"Inconnu",IF($I71=99,"Interrompu",$D71)), 0),"Non requis") -> 15013 | N71: =IF(INTRO!$E$41="Endémique", IF($J71>1, IF($J71=4, "Inconnu", IF($J71=99, "Surveillance", E71)), 0),"Non requis") -> 0 | O71: =IF(INTRO!$E$41="Endémique", IF($J71>1, IF($J71=4, "Inconnu", IF($J71=99, "Surveillance", F71)), 0),"Non requis") -> 0 | P71: =IF(INTRO!$E$41="Endémique", IF($J71>1, IF($J71=4, "Inconnu", IF($J71=99, "Surveillance", ROUND(D71*INTRO!$E$51,0))), 0),"Non requis") -> 0 | Q71: =IF(INTRO!$E$41="Endémique", IF($J71>1, IF($J71=4, "Inconnu", IF($J71=99, "Surveillance", SUM($N71:$P71))), 0),"Non requis") -> 0 | R71: =IF(INTRO!$E$43="Endémique", IF($K71>1, IF($K71=4, "Inconnu", IF($K71=99, "Surveillance", ROUND(E71*0.75,0))), 0),"Non requis") -> 0 | S71: =IF(INTRO!$E$43="Endémique", IF($K71>1, IF($K71=4, "Inconnu", IF($K71=99, "Surveillance", F71)), 0),"Non requis") -> 0 | T71: =IF(INTRO!$E$43="Endémique", IF($K71>1, IF($K71=4, "Inconnu", IF($K71=99, "Surveillance", G71)), 0),"Non requis") -> 0 | U71: =IF(INTRO!$E$43="Endémique", IF($K71>1, IF($K71=4, "Inconnu", IF($K71=99, "Surveillance", SUM($R71:$T71))), 0),"Non requis") -> 0 | V71: 1 | W71: 1 | X71: 0 | Y71: 0 | AF71: 23725 | AG71: PIRADA
A72: =IF(INTRO!$E$33<>0,INTRO!$E$33, " ") -> Guinée Bissau | B72: Gabu | C72: DANDUM | D72: 4578 | E72: =IF(INTRO!$E$48="","",ROUND($D72*INTRO!$E$48,0)) -> 609 | F72: =IF(INTRO!$E$49="","",ROUND($D72*INTRO!$E$49,0)) -> 1173 | G72: =IF(INTRO!$E$50="","",ROUND($D72*INTRO!$E$50,0)) -> 2593 | H72: 1 | I72: 1 | J72: 2 | K72: 2 | L72: =IF(INTRO!$E$37="Endémique",IF($H72>0,IF($H72=4,"Inconnu",IF($H72=99,"Interrompu",$D72)),0),"Non requis") -> 4578 | M72: =IF(INTRO!$E$39="Endémique", IF($I72>0, IF($I72=4,"Inconnu",IF($I72=99,"Interrompu",$D72)), 0),"Non requis") -> 4578 | N72: =IF(INTRO!$E$41="Endémique", IF($J72>1, IF($J72=4, "Inconnu", IF($J72=99, "Surveillance", E72)), 0),"Non requis") -> 609 | O72: =IF(INTRO!$E$41="Endémique", IF($J72>1, IF($J72=4, "Inconnu", IF($J72=99, "Surveillance", F72)), 0),"Non requis") -> 1173 | P72: =IF(INTRO!$E$41="Endémique", IF($J72>1, IF($J72=4, "Inconnu", IF($J72=99, "Surveillance", ROUND(D72*INTRO!$E$51,0))), 0),"Non requis") -> 1007 | Q72: =IF(INTRO!$E$41="Endémique", IF($J72>1, IF($J72=4, "Inconnu", IF($J72=99, "Surveillance", SUM($N72:$P72))), 0),"Non requis") -> 2789 | R72: =IF(INTRO!$E$43="Endémique", IF($K72>1, IF($K72=4, "Inconnu", IF($K72=99, "Surveillance", ROUND(E72*0.75,0))), 0),"Non requis") -> 457 | S72: =IF(INTRO!$E$43="Endémique", IF($K72>1, IF($K72=4, "Inconnu", IF($K72=99, "Surveillance", F72)), 0),"Non requis") -> 1173 | T72: =IF(INTRO!$E$43="Endémique", IF($K72>1, IF($K72=4, "Inconnu", IF($K72=99, "Surveillance", G72)), 0),"Non requis") -> 2593 | U72: =IF(INTRO!$E$43="Endémique", IF($K72>1, IF($K72=4, "Inconnu", IF($K72=99, "Surveillance", SUM($R72:$T72))), 0),"Non requis") -> 4223 | V72: 1 | W72: 1 | X72: 1 | Y72: 1 | AF72: 23714 | AG72: DANDUM
A73: =IF(INTRO!$E$33<>0,INTRO!$E$33, " ") -> Guinée Bissau | B73: Gabu | C73: MANSADJAM | D73: 17322 | E73: =IF(INTRO!$E$48="","",ROUND($D73*INTRO!$E$48,0)) -> 2304 | F73: =IF(INTRO!$E$49="","",ROUND($D73*INTRO!$E$49,0)) -> 4438 | G73: =IF(INTRO!$E$50="","",ROUND($D73*INTRO!$E$50,0)) -> 9813 | H73: 1 | I73: 1 | J73: 2 | K73: 2 | L73: =IF(INTRO!$E$37="Endémique",IF($H73>0,IF($H73=4,"Inconnu",IF($H73=99,"Interrompu",$D73)),0),"Non requis") -> 17322 | M73: =IF(INTRO!$E$39="Endémique", IF($I73>0, IF($I73=4,"Inconnu",IF($I73=99,"Interrompu",$D73)), 0),"Non requis") -> 17322 | N73: =IF(INTRO!$E$41="Endémique", IF($J73>1, IF($J73=4, "Inconnu", IF($J73=99, "Surveillance", E73)), 0),"Non requis") -> 2304 | O73: =IF(INTRO!$E$41="Endémique", IF($J73>1, IF($J73=4, "Inconnu", IF($J73=99, "Surveillance", F73)), 0),"Non requis") -> 4438 | P73: =IF(INTRO!$E$41="Endémique", IF($J73>1, IF($J73=4, "Inconnu", IF($J73=99, "Surveillance", ROUND(D73*INTRO!$E$51,0))), 0),"Non requis") -> 3811 | Q73: =IF(INTRO!$E$41="Endémique", IF($J73>1, IF($J73=4, "Inconnu", IF($J73=99, "Surveillance", SUM($N73:$P73))), 0),"Non requis") -> 10553 | R73: =IF(INTRO!$E$43="Endémique", IF($K73>1, IF($K73=4, "Inconnu", IF($K73=99, "Surveillance", ROUND(E73*0.75,0))), 0),"Non requis") -> 1728 | S73: =IF(INTRO!$E$43="Endémique", IF($K73>1, IF($K73=4, "Inconnu", IF($K73=99, "Surveillance", F73)), 0),"Non requis") -> 4438 | T73: =IF(INTRO!$E$43="Endémique", IF($K73>1, IF($K73=4, "Inconnu", IF($K73=99, "Surveillance", G73)), 0),"Non requis") -> 9813 | U73: =IF(INTRO!$E$43="Endémique", IF($K73>1, IF($K73=4, "Inconnu", IF($K73=99, "Surveillance", SUM($R73:$T73))), 0),"Non requis") -> 15979 | V73: 1 | W73: 1 | X73: 1 | Y73: 1 | AF73: 23724 | AG73: MANSADJAM
A74: =IF(INTRO!$E$33<>0,INTRO!$E$33, " ") -> Guinée Bissau | B74: Gabu | C74: SONACO | D74: 22440 | E74: =IF(INTRO!$E$48="","",ROUND($D74*INTRO!$E$48,0)) -> 2985 | F74: =IF(INTRO!$E$49="","",ROUND($D74*INTRO!$E$49,0)) -> 5749 | G74: =IF(INTRO!$E$50="","",ROUND($D74*INTRO!$E$50,0)) -> 12712 | H74: 1 | I74: 1 | J74: 1 | K74: 2 | L74: =IF(INTRO!$E$37="Endémique",IF($H74>0,IF($H74=4,"Inconnu",IF($H74=99,"Interrompu",$D74)),0),"Non requis") -> 22440 | M74: =IF(INTRO!$E$39="Endémique", IF($I74>0, IF($I74=4,"Inconnu",IF($I74=99,"Interrompu",$D74)), 0),"Non requis") -> 22440 | N74: =IF(INTRO!$E$41="Endémique", IF($J74>1, IF($J74=4, "Inconnu", IF($J74=99, "Surveillance", E74)), 0),"Non requis") -> 0 | O74: =IF(INTRO!$E$41="Endémique", IF($J74>1, IF($J74=4, "Inconnu", IF($J74=99, "Surveillance", F74)), 0),"Non requis") -> 0 | P74: =IF(INTRO!$E$41="Endémique", IF($J74>1, IF($J74=4, "Inconnu", IF($J74=99, "Surveillance", ROUND(D74*INTRO!$E$51,0))), 0),"Non requis") -> 0 | Q74: =IF(INTRO!$E$41="Endémique", IF($J74>1, IF($J74=4, "Inconnu", IF($J74=99, "Surveillance", SUM($N74:$P74))), 0),"Non requis") -> 0 | R74: =IF(INTRO!$E$43="Endémique", IF($K74>1, IF($K74=4, "Inconnu", IF($K74=99, "Surveillance", ROUND(E74*0.75,0))), 0),"Non requis") -> 2239 | S74: =IF(INTRO!$E$43="Endémique", IF($K74>1, IF($K74=4, "Inconnu", IF($K74=99, "Surveillance", F74)), 0),"Non requis") -> 5749 | T74: =IF(INTRO!$E$43="Endémique", IF($K74>1, IF($K74=4, "Inconnu", IF($K74=99, "Surveillance", G74)), 0),"Non requis") -> 12712 | U74: =IF(INTRO!$E$43="Endémique", IF($K74>1, IF($K74=4, "Inconnu", IF($K74=99, "Surveillance", SUM($R74:$T74))), 0),"Non requis") -> 20700 | V74: 1 | W74: 1 | X74: 0 | Y74: 1 | AF74: 23727 | AG74: SONACO
A75: =IF(INTRO!$E$33<>0,INTRO!$E$33, " ") -> Guinée Bissau | B75: Gabu | C75: LUGADJOLE | D75: 5022 | E75: =IF(INTRO!$E$48="","",ROUND($D75*INTRO!$E$48,0)) -> 668 | F75: =IF(INTRO!$E$49="","",ROUND($D75*INTRO!$E$49,0)) -> 1287 | G75: =IF(INTRO!$E$50="","",ROUND($D75*INTRO!$E$50,0)) -> 2845 | H75: 1 | I75: 1 | J75: 2 | K75: 2 | L75: =IF(INTRO!$E$37="Endémique",IF($H75>0,IF($H75=4,"Inconnu",IF($H75=99,"Interrompu",$D75)),0),"Non requis") -> 5022 | M75: =IF(INTRO!$E$39="Endémique", IF($I75>0, IF($I75=4,"Inconnu",IF($I75=99,"Interrompu",$D75)), 0),"Non requis") -> 5022 | N75: =IF(INTRO!$E$41="Endémique", IF($J75>1, IF($J75=4, "Inconnu", IF($J75=99, "Surveillance", E75)), 0),"Non requis") -> 668 | O75: =IF(INTRO!$E$41="Endémique", IF($J75>1, IF($J75=4, "Inconnu", IF($J75=99, "Surveillance", F75)), 0),"Non requis") -> 1287 | P75: =IF(INTRO!$E$41="Endémique", IF($J75>1, IF($J75=4, "Inconnu", IF($J75=99, "Surveillance", ROUND(D75*INTRO!$E$51,0))), 0),"Non requis") -> 1105 | Q75: =IF(INTRO!$E$41="Endémique", IF($J75>1, IF($J75=4, "Inconnu", IF($J75=99, "Surveillance", SUM($N75:$P75))), 0),"Non requis") -> 3060 | R75: =IF(INTRO!$E$43="Endémique", IF($K75>1, IF($K75=4, "Inconnu", IF($K75=99, "Surveillance", ROUND(E75*0.75,0))), 0),"Non requis") -> 501 | S75: =IF(INTRO!$E$43="Endémique", IF($K75>1, IF($K75=4, "Inconnu", IF($K75=99, "Surveillance", F75)), 0),"Non requis") -> 1287 | T75: =IF(INTRO!$E$43="Endémique", IF($K75>1, IF($K75=4, "Inconnu", IF($K75=99, "Surveillance", G75)), 0),"Non requis") -> 2845 | U75: =IF(INTRO!$E$43="Endémique", IF($K75>1, IF($K75=4, "Inconnu", IF($K75=99, "Surveillance", SUM($R75:$T75))), 0),"Non requis") -> 4633 | V75: 1 | W75: 1 | X75: 1 | Y75: 1 | AF75: 23722 | AG75: LUGADJOL
A76: =IF(INTRO!$E$33<>0,INTRO!$E$33, " ") -> Guinée Bissau | B76: Gabu | C76: GABU | D76: 50203 | E76: =IF(INTRO!$E$48="","",ROUND($D76*INTRO!$E$48,0)) -> 6677 | F76: =IF(INTRO!$E$49="","",ROUND($D76*INTRO!$E$49,0)) -> 12862 | G76: =IF(INTRO!$E$50="","",ROUND($D76*INTRO!$E$50,0)) -> 28440 | H76: 1 | I76: 1 | J76: 0 | K76: 2 | L76: =IF(INTRO!$E$37="Endémique",IF($H76>0,IF($H76=4,"Inconnu",IF($H76=99,"Interrompu",$D76)),0),"Non requis") -> 50203 | M76: =IF(INTRO!$E$39="Endémique", IF($I76>0, IF($I76=4,"Inconnu",IF($I76=99,"Interrompu",$D76)), 0),"Non requis") -> 50203 | N76: =IF(INTRO!$E$41="Endémique", IF($J76>1, IF($J76=4, "Inconnu", IF($J76=99, "Surveillance", E76)), 0),"Non requis") -> 0 | O76: =IF(INTRO!$E$41="Endémique", IF($J76>1, IF($J76=4, "Inconnu", IF($J76=99, "Surveillance", F76)), 0),"Non requis") -> 0 | P76: =IF(INTRO!$E$41="Endémique", IF($J76>1, IF($J76=4, "Inconnu", IF($J76=99, "Surveillance", ROUND(D76*INTRO!$E$51,0))), 0),"Non requis") -> 0 | Q76: =IF(INTRO!$E$41="Endémique", IF($J76>1, IF($J76=4, "Inconnu", IF($J76=99, "Surveillance", SUM($N76:$P76))), 0),"Non requis") -> 0 | R76: =IF(INTRO!$E$43="Endémique", IF($K76>1, IF($K76=4, "Inconnu", IF($K76=99, "Surveillance", ROUND(E76*0.75,0))), 0),"Non requis") -> 5008 | S76: =IF(INTRO!$E$43="Endémique", IF($K76>1, IF($K76=4, "Inconnu", IF($K76=99, "Surveillance", F76)), 0),"Non requis") -> 12862 | T76: =IF(INTRO!$E$43="Endémique", IF($K76>1, IF($K76=4, "Inconnu", IF($K76=99, "Surveillance", G76)), 0),"Non requis") -> 28440 | U76: =IF(INTRO!$E$43="Endémique", IF($K76>1, IF($K76=4, "Inconnu", IF($K76=99, "Surveillance", SUM($R76:$T76))), 0),"Non requis") -> 46310 | V76: 1 | W76: 1 | X76: 0 | Y76: 1 | AF76: 23721 | AG76: GABU
A77: =IF(INTRO!$E$33<>0,INTRO!$E$33, " ") -> Guinée Bissau | B77: Gabu | C77: CANDJUFA | D77: 24287 | E77: =IF(INTRO!$E$48="","",ROUND($D77*INTRO!$E$48,0)) -> 3230 | F77: =IF(INTRO!$E$49="","",ROUND($D77*INTRO!$E$49,0)) -> 6222 | G77: =IF(INTRO!$E$50="","",ROUND($D77*INTRO!$E$50,0)) -> 13759 | H77: 1 | I77: 1 | J77: 2 | K77: 2 | L77: =IF(INTRO!$E$37="Endémique",IF($H77>0,IF($H77=4,"Inconnu",IF($H77=99,"Interrompu",$D77)),0),"Non requis") -> 24287 | M77: =IF(INTRO!$E$39="Endémique", IF($I77>0, IF($I77=4,"Inconnu",IF($I77=99,"Interrompu",$D77)), 0),"Non requis") -> 24287 | N77: =IF(INTRO!$E$41="Endémique", IF($J77>1, IF($J77=4, "Inconnu", IF($J77=99, "Surveillance", E77)), 0),"Non requis") -> 3230 | O77: =IF(INTRO!$E$41="Endémique", IF($J77>1, IF($J77=4, "Inconnu", IF($J77=99, "Surveillance", F77)), 0),"Non requis") -> 6222 | P77: =IF(INTRO!$E$41="Endémique", IF($J77>1, IF($J77=4, "Inconnu", IF($J77=99, "Surveillance", ROUND(D77*INTRO!$E$51,0))), 0),"Non requis") -> 5343 | Q77: =IF(INTRO!$E$41="Endémique", IF($J77>1, IF($J77=4, "Inconnu", IF($J77=99, "Surveillance", SUM($N77:$P77))), 0),"Non requis") -> 14795 | R77: =IF(INTRO!$E$43="Endémique", IF($K77>1, IF($K77=4, "Inconnu", IF($K77=99, "Surveillance", ROUND(E77*0.75,0))), 0),"Non requis") -> 2423 | S77: =IF(INTRO!$E$43="Endémique", IF($K77>1, IF($K77=4, "Inconnu", IF($K77=99, "Surveillance", F77)), 0),"Non requis") -> 6222 | T77: =IF(INTRO!$E$43="Endémique", IF($K77>1, IF($K77=4, "Inconnu", IF($K77=99, "Surveillance", G77)), 0),"Non requis") -> 13759 | U77: =IF(INTRO!$E$43="Endémique", IF($K77>1, IF($K77=4, "Inconnu", IF($K77=99, "Surveillance", SUM($R77:$T77))), 0),"Non requis") -> 22404 | V77: 1 | W77: 1 | X77: 1 | Y77: 1 | AF77: 23720 | AG77: CANJUFA
A78: =IF(INTRO!$E$33<>0,INTRO!$E$33, " ") -> Guinée Bissau | B78: Gabu | C78: MAFANCO | D78: 19168 | E78: =IF(INTRO!$E$48="","",ROUND($D78*INTRO!$E$48,0)) -> 2549 | F78: =IF(INTRO!$E$49="","",ROUND($D78*INTRO!$E$49,0)) -> 4911 | G78: =IF(INTRO!$E$50="","",ROUND($D78*INTRO!$E$50,0)) -> 10859 | H78: 1 | I78: 1 | J78: 2 | K78: 2 | L78: =IF(INTRO!$E$37="Endémique",IF($H78>0,IF($H78=4,"Inconnu",IF($H78=99,"Interrompu",$D78)),0),"Non requis") -> 19168 | M78: =IF(INTRO!$E$39="Endémique", IF($I78>0, IF($I78=4,"Inconnu",IF($I78=99,"Interrompu",$D78)), 0),"Non requis") -> 19168 | N78: =IF(INTRO!$E$41="Endémique", IF($J78>1, IF($J78=4, "Inconnu", IF($J78=99, "Surveillance", E78)), 0),"Non requis") -> 2549 | O78: =IF(INTRO!$E$41="Endémique", IF($J78>1, IF($J78=4, "Inconnu", IF($J78=99, "Surveillance", F78)), 0),"Non requis") -> 4911 | P78: =IF(INTRO!$E$41="Endémique", IF($J78>1, IF($J78=4, "Inconnu", IF($J78=99, "Surveillance", ROUND(D78*INTRO!$E$51,0))), 0),"Non requis") -> 4217 | Q78: =IF(INTRO!$E$41="Endémique", IF($J78>1, IF($J78=4, "Inconnu", IF($J78=99, "Surveillance", SUM($N78:$P78))), 0),"Non requis") -> 11677 | R78: =IF(INTRO!$E$43="Endémique", IF($K78>1, IF($K78=4, "Inconnu", IF($K78=99, "Surveillance", ROUND(E78*0.75,0))), 0),"Non requis") -> 1912 | S78: =IF(INTRO!$E$43="Endémique", IF($K78>1, IF($K78=4, "Inconnu", IF($K78=99, "Surveillance", F78)), 0),"Non requis") -> 4911 | T78: =IF(INTRO!$E$43="Endémique", IF($K78>1, IF($K78=4, "Inconnu", IF($K78=99, "Surveillance", G78)), 0),"Non requis") -> 10859 | U78: =IF(INTRO!$E$43="Endémique", IF($K78>1, IF($K78=4, "Inconnu", IF($K78=99, "Surveillance", SUM($R78:$T78))), 0),"Non requis") -> 17682 | V78: 1 | W78: 1 | X78: 1 | Y78: 1 | AF78: 23723 | AG78: MAFANCO
A79: =IF(INTRO!$E$33<>0,INTRO!$E$33, " ") -> Guinée Bissau | B79: Gabu | C79: TUMANA | D79: 18676 | E79: =IF(INTRO!$E$48="","",ROUND($D79*INTRO!$E$48,0)) -> 2484 | F79: =IF(INTRO!$E$49="","",ROUND($D79*INTRO!$E$49,0)) -> 4785 | G79: =IF(INTRO!$E$50="","",ROUND($D79*INTRO!$E$50,0)) -> 10580 | H79: 1 | I79: 1 | J79: 2 | K79: 2 | L79: =IF(INTRO!$E$37="Endémique",IF($H79>0,IF($H79=4,"Inconnu",IF($H79=99,"Interrompu",$D79)),0),"Non requis") -> 18676 | M79: =IF(INTRO!$E$39="Endémique", IF($I79>0, IF($I79=4,"Inconnu",IF($I79=99,"Interrompu",$D79)), 0),"Non requis") -> 18676 | N79: =IF(INTRO!$E$41="Endémique", IF($J79>1, IF($J79=4, "Inconnu", IF($J79=99, "Surveillance", E79)), 0),"Non requis") -> 2484 | O79: =IF(INTRO!$E$41="Endémique", IF($J79>1, IF($J79=4, "Inconnu", IF($J79=99, "Surveillance", F79)), 0),"Non requis") -> 4785 | P79: =IF(INTRO!$E$41="Endémique", IF($J79>1, IF($J79=4, "Inconnu", IF($J79=99, "Surveillance", ROUND(D79*INTRO!$E$51,0))), 0),"Non requis") -> 4109 | Q79: =IF(INTRO!$E$41="Endémique", IF($J79>1, IF($J79=4, "Inconnu", IF($J79=99, "Surveillance", SUM($N79:$P79))), 0),"Non requis") -> 11378 | R79: =IF(INTRO!$E$43="Endémique", IF($K79>1, IF($K79=4, "Inconnu", IF($K79=99, "Surveillance", ROUND(E79*0.75,0))), 0),"Non requis") -> 1863 | S79: =IF(INTRO!$E$43="Endémique", IF($K79>1, IF($K79=4, "Inconnu", IF($K79=99, "Surveillance", F79)), 0),"Non requis") -> 4785 | T79: =IF(INTRO!$E$43="Endémique", IF($K79>1, IF($K79=4, "Inconnu", IF($K79=99, "Surveillance", G79)), 0),"Non requis") -> 10580 | U79: =IF(INTRO!$E$43="Endémique", IF($K79>1, IF($K79=4, "Inconnu", IF($K79=99, "Surveillance", SUM($R79:$T79))), 0),"Non requis") -> 17228 | V79: 1 | W79: 1 | X79: 1 | Y79: 1 | AF79: 23728 | AG79: TUMANA
A80: =IF(INTRO!$E$33<>0,INTRO!$E$33, " ") -> Guinée Bissau | B80: Bafata | C80: Xitole | D80: 21027 | E80: =IF(INTRO!$E$48="","",ROUND($D80*INTRO!$E$48,0)) -> 2797 | F80: =IF(INTRO!$E$49="","",ROUND($D80*INTRO!$E$49,0)) -> 5387 | G80: =IF(INTRO!$E$50="","",ROUND($D80*INTRO!$E$50,0)) -> 11912 | H80: 1 | I80: 1 | J80: 1 | K80: 1 | L80: =IF(INTRO!$E$37="Endémique",IF($H80>0,IF($H80=4,"Inconnu",IF($H80=99,"Interrompu",$D80)),0),"Non requis") -> 21027 | M80: =IF(INTRO!$E$39="Endémique", IF($I80>0, IF($I80=4,"Inconnu",IF($I80=99,"Interrompu",$D80)), 0),"Non requis") -> 21027 | N80: =IF(INTRO!$E$41="Endémique", IF($J80>1, IF($J80=4, "Inconnu", IF($J80=99, "Surveillance", E80)), 0),"Non requis") -> 0 | O80: =IF(INTRO!$E$41="Endémique", IF($J80>1, IF($J80=4, "Inconnu", IF($J80=99, "Surveillance", F80)), 0),"Non requis") -> 0 | P80: =IF(INTRO!$E$41="Endémique", IF($J80>1, IF($J80=4, "Inconnu", IF($J80=99, "Surveillance", ROUND(D80*INTRO!$E$51,0))), 0),"Non requis") -> 0 | Q80: =IF(INTRO!$E$41="Endémique", IF($J80>1, IF($J80=4, "Inconnu", IF($J80=99, "Surveillance", SUM($N80:$P80))), 0),"Non requis") -> 0 | R80: =IF(INTRO!$E$43="Endémique", IF($K80>1, IF($K80=4, "Inconnu", IF($K80=99, "Surveillance", ROUND(E80*0.75,0))), 0),"Non requis") -> 0 | S80: =IF(INTRO!$E$43="Endémique", IF($K80>1, IF($K80=4, "Inconnu", IF($K80=99, "Surveillance", F80)), 0),"Non requis") -> 0 | T80: =IF(INTRO!$E$43="Endémique", IF($K80>1, IF($K80=4, "Inconnu", IF($K80=99, "Surveillance", G80)), 0),"Non requis") -> 0 | U80: =IF(INTRO!$E$43="Endémique", IF($K80>1, IF($K80=4, "Inconnu", IF($K80=99, "Surveillance", SUM($R80:$T80))), 0),"Non requis") -> 0 | V80: 1 | W80: 1 | X80: 0 | Y80: 0 | AF80: 23669 | AG80: XITOLE
A81: =IF(INTRO!$E$33<>0,INTRO!$E$33, " ") -> Guinée Bissau | B81: Bafata | C81: Contubuel | D81: 31931 | E81: =IF(INTRO!$E$48="","",ROUND($D81*INTRO!$E$48,0)) -> 4247 | F81: =IF(INTRO!$E$49="","",ROUND($D81*INTRO!$E$49,0)) -> 8181 | G81: =IF(INTRO!$E$50="","",ROUND($D81*INTRO!$E$50,0)) -> 18089 | H81: 1 | I81: 1 | J81: 1 | K81: 2 | L81: =IF(INTRO!$E$37="Endémique",IF($H81>0,IF($H81=4,"Inconnu",IF($H81=99,"Interrompu",$D81)),0),"Non requis") -> 31931 | M81: =IF(INTRO!$E$39="Endémique", IF($I81>0, IF($I81=4,"Inconnu",IF($I81=99,"Interrompu",$D81)), 0),"Non requis") -> 31931 | N81: =IF(INTRO!$E$41="Endémique", IF($J81>1, IF($J81=4, "Inconnu", IF($J81=99, "Surveillance", E81)), 0),"Non requis") -> 0 | O81: =IF(INTRO!$E$41="Endémique", IF($J81>1, IF($J81=4, "Inconnu", IF($J81=99, "Surveillance", F81)), 0),"Non requis") -> 0 | P81: =IF(INTRO!$E$41="Endémique", IF($J81>1, IF($J81=4, "Inconnu", IF($J81=99, "Surveillance", ROUND(D81*INTRO!$E$51,0))), 0),"Non requis") -> 0 | Q81: =IF(INTRO!$E$41="Endémique", IF($J81>1, IF($J81=4, "Inconnu", IF($J81=99, "Surveillance", SUM($N81:$P81))), 0),"Non requis") -> 0 | R81: =IF(INTRO!$E$43="Endémique", IF($K81>1, IF($K81=4, "Inconnu", IF($K81=99, "Surveillance", ROUND(E81*0.75,0))), 0),"Non requis") -> 3185 | S81: =IF(INTRO!$E$43="Endémique", IF($K81>1, IF($K81=4, "Inconnu", IF($K81=99, "Surveillance", F81)), 0),"Non requis") -> 8181 | T81: =IF(INTRO!$E$43="Endémique", IF($K81>1, IF($K81=4, "Inconnu", IF($K81=99, "Surveillance", G81)), 0),"Non requis") -> 18089 | U81: =IF(INTRO!$E$43="Endémique", IF($K81>1, IF($K81=4, "Inconnu", IF($K81=99, "Surveillance", SUM($R81:$T81))), 0),"Non requis") -> 29455 | V81: 1 | W81: 1 | X81: 0 | Y81: 1 | AF81: 23659 | AG81: CONTUBOEL
A82: =IF(INTRO!$E$33<>0,INTRO!$E$33, " ") -> Guinée Bissau | B82: Bafata | C82: Tendinto | D82: 8753 | E82: =IF(INTRO!$E$48="","",ROUND($D82*INTRO!$E$48,0)) -> 1164 | F82: =IF(INTRO!$E$49="","",ROUND($D82*INTRO!$E$49,0)) -> 2243 | G82: =IF(INTRO!$E$50="","",ROUND($D82*INTRO!$E$50,0)) -> 4959 | H82: 1 | I82: 1 | J82: 1 | K82: 1 | L82: =IF(INTRO!$E$37="Endémique",IF($H82>0,IF($H82=4,"Inconnu",IF($H82=99,"Interrompu",$D82)),0),"Non requis") -> 8753 | M82: =IF(INTRO!$E$39="Endémique", IF($I82>0, IF($I82=4,"Inconnu",IF($I82=99,"Interrompu",$D82)), 0),"Non requis") -> 8753 | N82: =IF(INTRO!$E$41="Endémique", IF($J82>1, IF($J82=4, "Inconnu", IF($J82=99, "Surveillance", E82)), 0),"Non requis") -> 0 | O82: =IF(INTRO!$E$41="Endémique", IF($J82>1, IF($J82=4, "Inconnu", IF($J82=99, "Surveillance", F82)), 0),"Non requis") -> 0 | P82: =IF(INTRO!$E$41="Endémique", IF($J82>1, IF($J82=4, "Inconnu", IF($J82=99, "Surveillance", ROUND(D82*INTRO!$E$51,0))), 0),"Non requis") -> 0 | Q82: =IF(INTRO!$E$41="Endémique", IF($J82>1, IF($J82=4, "Inconnu", IF($J82=99, "Surveillance", SUM($N82:$P82))), 0),"Non requis") -> 0 | R82: =IF(INTRO!$E$43="Endémique", IF($K82>1, IF($K82=4, "Inconnu", IF($K82=99, "Surveillance", ROUND(E82*0.75,0))), 0),"Non requis") -> 0 | S82: =IF(INTRO!$E$43="Endémique", IF($K82>1, IF($K82=4, "Inconnu", IF($K82=99, "Surveillance", F82)), 0),"Non requis") -> 0 | T82: =IF(INTRO!$E$43="Endémique", IF($K82>1, IF($K82=4, "Inconnu", IF($K82=99, "Surveillance", G82)), 0),"Non requis") -> 0 | U82: =IF(INTRO!$E$43="Endémique", IF($K82>1, IF($K82=4, "Inconnu", IF($K82=99, "Surveillance", SUM($R82:$T82))), 0),"Non requis") -> 0 | V82: 1 | W82: 1 | X82: 0 | Y82: 0 | AF82: 23668 | AG82: TENDINTO
A83: =IF(INTRO!$E$33<>0,INTRO!$E$33, " ") -> Guinée Bissau | B83: Bafata | C83: Geba | D83: 15543 | E83: =IF(INTRO!$E$48="","",ROUND($D83*INTRO!$E$48,0)) -> 2067 | F83: =IF(INTRO!$E$49="","",ROUND($D83*INTRO!$E$49,0)) -> 3982 | G83: =IF(INTRO!$E$50="","",ROUND($D83*INTRO!$E$50,0)) -> 8805 | H83: 1 | I83: 1 | J83: 0 | K83: 1 | L83: =IF(INTRO!$E$37="Endémique",IF($H83>0,IF($H83=4,"Inconnu",IF($H83=99,"Interrompu",$D83)),0),"Non requis") -> 15543 | M83: =IF(INTRO!$E$39="Endémique", IF($I83>0, IF($I83=4,"Inconnu",IF($I83=99,"Interrompu",$D83)), 0),"Non requis") -> 15543 | N83: =IF(INTRO!$E$41="Endémique", IF($J83>1, IF($J83=4, "Inconnu", IF($J83=99, "Surveillance", E83)), 0),"Non requis") -> 0 | O83: =IF(INTRO!$E$41="Endémique", IF($J83>1, IF($J83=4, "Inconnu", IF($J83=99, "Surveillance", F83)), 0),"Non requis") -> 0 | P83: =IF(INTRO!$E$41="Endémique", IF($J83>1, IF($J83=4, "Inconnu", IF($J83=99, "Surveillance", ROUND(D83*INTRO!$E$51,0))), 0),"Non requis") -> 0 | Q83: =IF(INTRO!$E$41="Endémique", IF($J83>1, IF($J83=4, "Inconnu", IF($J83=99, "Surveillance", SUM($N83:$P83))), 0),"Non requis") -> 0 | R83: =IF(INTRO!$E$43="Endémique", IF($K83>1, IF($K83=4, "Inconnu", IF($K83=99, "Surveillance", ROUND(E83*0.75,0))), 0),"Non requis") -> 0 | S83: =IF(INTRO!$E$43="Endémique", IF($K83>1, IF($K83=4, "Inconnu", IF($K83=99, "Surveillance", F83)), 0),"Non requis") -> 0 | T83: =IF(INTRO!$E$43="Endémique", IF($K83>1, IF($K83=4, "Inconnu", IF($K83=99, "Surveillance", G83)), 0),"Non requis") -> 0 | U83: =IF(INTRO!$E$43="Endémique", IF($K83>1, IF($K83=4, "Inconnu", IF($K83=99, "Surveillance", SUM($R83:$T83))), 0),"Non requis") -> 0 | V83: 1 | W83: 1 | X83: 0 | Y83: 0 | AF83: 23663 | AG83: GEBA
A84: =IF(INTRO!$E$33<>0,INTRO!$E$33, " ") -> Guinée Bissau | B84: Bafata | C84: Tantancosse | D84: 18124 | E84: =IF(INTRO!$E$48="","",ROUND($D84*INTRO!$E$48,0)) -> 2410 | F84: =IF(INTRO!$E$49="","",ROUND($D84*INTRO!$E$49,0)) -> 4643 | G84: =IF(INTRO!$E$50="","",ROUND($D84*INTRO!$E$50,0)) -> 10267 | H84: 1 | I84: 1 | J84: 1 | K84: 1 | L84: =IF(INTRO!$E$37="Endémique",IF($H84>0,IF($H84=4,"Inconnu",IF($H84=99,"Interrompu",$D84)),0),"Non requis") -> 18124 | M84: =IF(INTRO!$E$39="Endémique", IF($I84>0, IF($I84=4,"Inconnu",IF($I84=99,"Interrompu",$D84)), 0),"Non requis") -> 18124 | N84: =IF(INTRO!$E$41="Endémique", IF($J84>1, IF($J84=4, "Inconnu", IF($J84=99, "Surveillance", E84)), 0),"Non requis") -> 0 | O84: =IF(INTRO!$E$41="Endémique", IF($J84>1, IF($J84=4, "Inconnu", IF($J84=99, "Surveillance", F84)), 0),"Non requis") -> 0 | P84: =IF(INTRO!$E$41="Endémique", IF($J84>1, IF($J84=4, "Inconnu", IF($J84=99, "Surveillance", ROUND(D84*INTRO!$E$51,0))), 0),"Non requis") -> 0 | Q84: =IF(INTRO!$E$41="Endémique", IF($J84>1, IF($J84=4, "Inconnu", IF($J84=99, "Surveillance", SUM($N84:$P84))), 0),"Non requis") -> 0 | R84: =IF(INTRO!$E$43="Endémique", IF($K84>1, IF($K84=4, "Inconnu", IF($K84=99, "Surveillance", ROUND(E84*0.75,0))), 0),"Non requis") -> 0 | S84: =IF(INTRO!$E$43="Endémique", IF($K84>1, IF($K84=4, "Inconnu", IF($K84=99, "Surveillance", F84)), 0),"Non requis") -> 0 | T84: =IF(INTRO!$E$43="Endémique", IF($K84>1, IF($K84=4, "Inconnu", IF($K84=99, "Surveillance", G84)), 0),"Non requis") -> 0 | U84: =IF(INTRO!$E$43="Endémique", IF($K84>1, IF($K84=4, "Inconnu", IF($K84=99, "Surveillance", SUM($R84:$T84))), 0),"Non requis") -> 0 | V84: 1 | W84: 1 | X84: 0 | Y84: 0 | AF84: 23667 | AG84: TANTAM COSSÉ
A85: =IF(INTRO!$E$33<>0,INTRO!$E$33, " ") -> Guinée Bissau | B85: Bafata | C85: Ga-mamudo | D85: 22737 | E85: =IF(INTRO!$E$48="","",ROUND($D85*INTRO!$E$48,0)) -> 3024 | F85: =IF(INTRO!$E$49="","",ROUND($D85*INTRO!$E$49,0)) -> 5825 | G85: =IF(INTRO!$E$50="","",ROUND($D85*INTRO!$E$50,0)) -> 12881 | H85: 1 | I85: 1 | J85: 1 | K85: 2 | L85: =IF(INTRO!$E$37="Endémique",IF($H85>0,IF($H85=4,"Inconnu",IF($H85=99,"Interrompu",$D85)),0),"Non requis") -> 22737 | M85: =IF(INTRO!$E$39="Endémique", IF($I85>0, IF($I85=4,"Inconnu",IF($I85=99,"Interrompu",$D85)), 0),"Non requis") -> 22737 | N85: =IF(INTRO!$E$41="Endémique", IF($J85>1, IF($J85=4, "Inconnu", IF($J85=99, "Surveillance", E85)), 0),"Non requis") -> 0 | O85: =IF(INTRO!$E$41="Endémique", IF($J85>1, IF($J85=4, "Inconnu", IF($J85=99, "Surveillance", F85)), 0),"Non requis") -> 0 | P85: =IF(INTRO!$E$41="Endémique", IF($J85>1, IF($J85=4, "Inconnu", IF($J85=99, "Surveillance", ROUND(D85*INTRO!$E$51,0))), 0),"Non requis") -> 0 | Q85: =IF(INTRO!$E$41="Endémique", IF($J85>1, IF($J85=4, "Inconnu", IF($J85=99, "Surveillance", SUM($N85:$P85))), 0),"Non requis") -> 0 | R85: =IF(INTRO!$E$43="Endémique", IF($K85>1, IF($K85=4, "Inconnu", IF($K85=99, "Surveillance", ROUND(E85*0.75,0))), 0),"Non requis") -> 2268 | S85: =IF(INTRO!$E$43="Endémique", IF($K85>1, IF($K85=4, "Inconnu", IF($K85=99, "Surveillance", F85)), 0),"Non requis") -> 5825 | T85: =IF(INTRO!$E$43="Endémique", IF($K85>1, IF($K85=4, "Inconnu", IF($K85=99, "Surveillance", G85)), 0),"Non requis") -> 12881 | U85: =IF(INTRO!$E$43="Endémique", IF($K85>1, IF($K85=4, "Inconnu", IF($K85=99, "Surveillance", SUM($R85:$T85))), 0),"Non requis") -> 20974 | V85: 1 | W85: 1 | X85: 0 | Y85: 1 | AF85: 23662 | AG85: GÃ-GAMAMUDO
A86: =IF(INTRO!$E$33<>0,INTRO!$E$33, " ") -> Guinée Bissau | B86: Bafata | C86: Bambadinca | D86: 33394 | E86: =IF(INTRO!$E$48="","",ROUND($D86*INTRO!$E$48,0)) -> 4441 | F86: =IF(INTRO!$E$49="","",ROUND($D86*INTRO!$E$49,0)) -> 8556 | G86: =IF(INTRO!$E$50="","",ROUND($D86*INTRO!$E$50,0)) -> 18918 | H86: 1 | I86: 1 | J86: 1 | K86: 1 | L86: =IF(INTRO!$E$37="Endémique",IF($H86>0,IF($H86=4,"Inconnu",IF($H86=99,"Interrompu",$D86)),0),"Non requis") -> 33394 | M86: =IF(INTRO!$E$39="Endémique", IF($I86>0, IF($I86=4,"Inconnu",IF($I86=99,"Interrompu",$D86)), 0),"Non requis") -> 33394 | N86: =IF(INTRO!$E$41="Endémique", IF($J86>1, IF($J86=4, "Inconnu", IF($J86=99, "Surveillance", E86)), 0),"Non requis") -> 0 | O86: =IF(INTRO!$E$41="Endémique", IF($J86>1, IF($J86=4, "Inconnu", IF($J86=99, "Surveillance", F86)), 0),"Non requis") -> 0 | P86: =IF(INTRO!$E$41="Endémique", IF($J86>1, IF($J86=4, "Inconnu", IF($J86=99, "Surveillance", ROUND(D86*INTRO!$E$51,0))), 0),"Non requis") -> 0 | Q86: =IF(INTRO!$E$41="Endémique", IF($J86>1, IF($J86=4, "Inconnu", IF($J86=99, "Surveillance", SUM($N86:$P86))), 0),"Non requis") -> 0 | R86: =IF(INTRO!$E$43="Endémique", IF($K86>1, IF($K86=4, "Inconnu", IF($K86=99, "Surveillance", ROUND(E86*0.75,0))), 0),"Non requis") -> 0 | S86: =IF(INTRO!$E$43="Endémique", IF($K86>1, IF($K86=4, "Inconnu", IF($K86=99, "Surveillance", F86)), 0),"Non requis") -> 0 | T86: =IF(INTRO!$E$43="Endémique", IF($K86>1, IF($K86=4, "Inconnu", IF($K86=99, "Surveillance", G86)), 0),"Non requis") -> 0 | U86: =IF(INTRO!$E$43="Endémique", IF($K86>1, IF($K86=4, "Inconnu", IF($K86=99, "Surveillance", SUM($R86:$T86))), 0),"Non requis") -> 0 | V86: 1 | W86: 1 | X86: 0 | Y86: 0 | AF86: 23657 | AG86: BAMBADINCA
A87: =IF(INTRO!$E$33<>0,INTRO!$E$33, " ") -> Guinée Bissau | B87: Bafata | C87: Ga carnes | D87: 4794 | E87: =IF(INTRO!$E$48="","",ROUND($D87*INTRO!$E$48,0)) -> 638 | F87: =IF(INTRO!$E$49="","",ROUND($D87*INTRO!$E$49,0)) -> 1228 | G87: =IF(INTRO!$E$50="","",ROUND($D87*INTRO!$E$50,0)) -> 2716 | H87: 1 | I87: 1 | J87: 1 | K87: 1 | L87: =IF(INTRO!$E$37="Endémique",IF($H87>0,IF($H87=4,"Inconnu",IF($H87=99,"Interrompu",$D87)),0),"Non requis") -> 4794 | M87: =IF(INTRO!$E$39="Endémique", IF($I87>0, IF($I87=4,"Inconnu",IF($I87=99,"Interrompu",$D87)), 0),"Non requis") -> 4794 | N87: =IF(INTRO!$E$41="Endémique", IF($J87>1, IF($J87=4, "Inconnu", IF($J87=99, "Surveillance", E87)), 0),"Non requis") -> 0 | O87: =IF(INTRO!$E$41="Endémique", IF($J87>1, IF($J87=4, "Inconnu", IF($J87=99, "Surveillance", F87)), 0),"Non requis") -> 0 | P87: =IF(INTRO!$E$41="Endémique", IF($J87>1, IF($J87=4, "Inconnu", IF($J87=99, "Surveillance", ROUND(D87*INTRO!$E$51,0))), 0),"Non requis") -> 0 | Q87: =IF(INTRO!$E$41="Endémique", IF($J87>1, IF($J87=4, "Inconnu", IF($J87=99, "Surveillance", SUM($N87:$P87))), 0),"Non requis") -> 0 | R87: =IF(INTRO!$E$43="Endémique", IF($K87>1, IF($K87=4, "Inconnu", IF($K87=99, "Surveillance", ROUND(E87*0.75,0))), 0),"Non requis") -> 0 | S87: =IF(INTRO!$E$43="Endémique", IF($K87>1, IF($K87=4, "Inconnu", IF($K87=99, "Surveillance", F87)), 0),"Non requis") -> 0 | T87: =IF(INTRO!$E$43="Endémique", IF($K87>1, IF($K87=4, "Inconnu", IF($K87=99, "Surveillance", G87)), 0),"Non requis") -> 0 | U87: =IF(INTRO!$E$43="Endémique", IF($K87>1, IF($K87=4, "Inconnu", IF($K87=99, "Surveillance", SUM($R87:$T87))), 0),"Non requis") -> 0 | V87: 1 | W87: 1 | X87: 0 | Y87: 0 | AF87: 23664 | AG87: GÃ-CARNÊS
A88: =IF(INTRO!$E$33<>0,INTRO!$E$33, " ") -> Guinée Bissau | B88: Bafata | C88: Cambaju | D88: 8859 | E88: =IF(INTRO!$E$48="","",ROUND($D88*INTRO!$E$48,0)) -> 1178 | F88: =IF(INTRO!$E$49="","",ROUND($D88*INTRO!$E$49,0)) -> 2270 | G88: =IF(INTRO!$E$50="","",ROUND($D88*INTRO!$E$50,0)) -> 5019 | H88: 1 | I88: 1 | J88: 1 | K88: 1 | L88: =IF(INTRO!$E$37="Endémique",IF($H88>0,IF($H88=4,"Inconnu",IF($H88=99,"Interrompu",$D88)),0),"Non requis") -> 8859 | M88: =IF(INTRO!$E$39="Endémique", IF($I88>0, IF($I88=4,"Inconnu",IF($I88=99,"Interrompu",$D88)), 0),"Non requis") -> 8859 | N88: =IF(INTRO!$E$41="Endémique", IF($J88>1, IF($J88=4, "Inconnu", IF($J88=99, "Surveillance", E88)), 0),"Non requis") -> 0 | O88: =IF(INTRO!$E$41="Endémique", IF($J88>1, IF($J88=4, "Inconnu", IF($J88=99, "Surveillance", F88)), 0),"Non requis") -> 0 | P88: =IF(INTRO!$E$41="Endémique", IF($J88>1, IF($J88=4, "Inconnu", IF($J88=99, "Surveillance", ROUND(D88*INTRO!$E$51,0))), 0),"Non requis") -> 0 | Q88: =IF(INTRO!$E$41="Endémique", IF($J88>1, IF($J88=4, "Inconnu", IF($J88=99, "Surveillance", SUM($N88:$P88))), 0),"Non requis") -> 0 | R88: =IF(INTRO!$E$43="Endémique", IF($K88>1, IF($K88=4, "Inconnu", IF($K88=99, "Surveillance", ROUND(E88*0.75,0))), 0),"Non requis") -> 0 | S88: =IF(INTRO!$E$43="Endémique", IF($K88>1, IF($K88=4, "Inconnu", IF($K88=99, "Surveillance", F88)), 0),"Non requis") -> 0 | T88: =IF(INTRO!$E$43="Endémique", IF($K88>1, IF($K88=4, "Inconnu", IF($K88=99, "Surveillance", G88)), 0),"Non requis") -> 0 | U88: =IF(INTRO!$E$43="Endémique", IF($K88>1, IF($K88=4, "Inconnu", IF($K88=99, "Surveillance", SUM($R88:$T88))), 0),"Non requis") -> 0 | V88: 1 | W88: 1 | X88: 0 | Y88: 0 | AF88: 23658 | AG88: CAMBADJU
A89: =IF(INTRO!$E$33<>0,INTRO!$E$33, " ") -> Guinée Bissau | B89: Bafata | C89: Gam ture | D89: 9509 | E89: =IF(INTRO!$E$48="","",ROUND($D89*INTRO!$E$48,0)) -> 1265 | F89: =IF(INTRO!$E$49="","",ROUND($D89*INTRO!$E$49,0)) -> 2436 | G89: =IF(INTRO!$E$50="","",ROUND($D89*INTRO!$E$50,0)) -> 5387 | H89: 1 | I89: 1 | J89: 1 | K89: 1 | L89: =IF(INTRO!$E$37="Endémique",IF($H89>0,IF($H89=4,"Inconnu",IF($H89=99,"Interrompu",$D89)),0),"Non requis") -> 9509 | M89: =IF(INTRO!$E$39="Endémique", IF($I89>0, IF($I89=4,"Inconnu",IF($I89=99,"Interrompu",$D89)), 0),"Non requis") -> 9509 | N89: =IF(INTRO!$E$41="Endémique", IF($J89>1, IF($J89=4, "Inconnu", IF($J89=99, "Surveillance", E89)), 0),"Non requis") -> 0 | O89: =IF(INTRO!$E$41="Endémique", IF($J89>1, IF($J89=4, "Inconnu", IF($J89=99, "Surveillance", F89)), 0),"Non requis") -> 0 | P89: =IF(INTRO!$E$41="Endémique", IF($J89>1, IF($J89=4, "Inconnu", IF($J89=99, "Surveillance", ROUND(D89*INTRO!$E$51,0))), 0),"Non requis") -> 0 | Q89: =IF(INTRO!$E$41="Endémique", IF($J89>1, IF($J89=4, "Inconnu", IF($J89=99, "Surveillance", SUM($N89:$P89))), 0),"Non requis") -> 0 | R89: =IF(INTRO!$E$43="Endémique", IF($K89>1, IF($K89=4, "Inconnu", IF($K89=99, "Surveillance", ROUND(E89*0.75,0))), 0),"Non requis") -> 0 | S89: =IF(INTRO!$E$43="Endémique", IF($K89>1, IF($K89=4, "Inconnu", IF($K89=99, "Surveillance", F89)), 0),"Non requis") -> 0 | T89: =IF(INTRO!$E$43="Endémique", IF($K89>1, IF($K89=4, "Inconnu", IF($K89=99, "Surveillance", G89)), 0),"Non requis") -> 0 | U89: =IF(INTRO!$E$43="Endémique", IF($K89>1, IF($K89=4, "Inconnu", IF($K89=99, "Surveillance", SUM($R89:$T89))), 0),"Non requis") -> 0 | V89: 1 | W89: 1 | X89: 0 | Y89: 0 | AF89: 23665 | AG89: GÃ-TURÉ
A90: =IF(INTRO!$E$33<>0,INTRO!$E$33, " ") -> Guinée Bissau | B90: Bafata | C90: Sare bacar | D90: 9228 | E90: =IF(INTRO!$E$48="","",ROUND($D90*INTRO!$E$48,0)) -> 1227 | F90: =IF(INTRO!$E$49="","",ROUND($D90*INTRO!$E$49,0)) -> 2364 | G90: =IF(INTRO!$E$50="","",ROUND($D90*INTRO!$E$50,0)) -> 5228 | H90: 1 | I90: 1 | J90: 1 | K90: 1 | L90: =IF(INTRO!$E$37="Endémique",IF($H90>0,IF($H90=4,"Inconnu",IF($H90=99,"Interrompu",$D90)),0),"Non requis") -> 9228 | M90: =IF(INTRO!$E$39="Endémique", IF($I90>0, IF($I90=4,"Inconnu",IF($I90=99,"Interrompu",$D90)), 0),"Non requis") -> 9228 | N90: =IF(INTRO!$E$41="Endémique", IF($J90>1, IF($J90=4, "Inconnu", IF($J90=99, "Surveillance", E90)), 0),"Non requis") -> 0 | O90: =IF(INTRO!$E$41="Endémique", IF($J90>1, IF($J90=4, "Inconnu", IF($J90=99, "Surveillance", F90)), 0),"Non requis") -> 0 | P90: =IF(INTRO!$E$41="Endémique", IF($J90>1, IF($J90=4, "Inconnu", IF($J90=99, "Surveillance", ROUND(D90*INTRO!$E$51,0))), 0),"Non requis") -> 0 | Q90: =IF(INTRO!$E$41="Endémique", IF($J90>1, IF($J90=4, "Inconnu", IF($J90=99, "Surveillance", SUM($N90:$P90))), 0),"Non requis") -> 0 | R90: =IF(INTRO!$E$43="Endémique", IF($K90>1, IF($K90=4, "Inconnu", IF($K90=99, "Surveillance", ROUND(E90*0.75,0))), 0),"Non requis") -> 0 | S90: =IF(INTRO!$E$43="Endémique", IF($K90>1, IF($K90=4, "Inconnu", IF($K90=99, "Surveillance", F90)), 0),"Non requis") -> 0 | T90: =IF(INTRO!$E$43="Endémique", IF($K90>1, IF($K90=4, "Inconnu", IF($K90=99, "Surveillance", G90)), 0),"Non requis") -> 0 | U90: =IF(INTRO!$E$43="Endémique", IF($K90>1, IF($K90=4, "Inconnu", IF($K90=99, "Surveillance", SUM($R90:$T90))), 0),"Non requis") -> 0 | V90: 1 | W90: 1 | X90: 0 | Y90: 0 | AF90: 23666 | AG90: SARE-BACAR
A91: =IF(INTRO!$E$33<>0,INTRO!$E$33, " ") -> Guinée Bissau | B91: Bafata | C91: Fajonquito | D91: 15636 | E91: =IF(INTRO!$E$48="","",ROUND($D91*INTRO!$E$48,0)) -> 2080 | F91: =IF(INTRO!$E$49="","",ROUND($D91*INTRO!$E$49,0)) -> 4006 | G91: =IF(INTRO!$E$50="","",ROUND($D91*INTRO!$E$50,0)) -> 8858 | H91: 1 | I91: 1 | J91: 1 | K91: 1 | L91: =IF(INTRO!$E$37="Endémique",IF($H91>0,IF($H91=4,"Inconnu",IF($H91=99,"Interrompu",$D91)),0),"Non requis") -> 15636 | M91: =IF(INTRO!$E$39="Endémique", IF($I91>0, IF($I91=4,"Inconnu",IF($I91=99,"Interrompu",$D91)), 0),"Non requis") -> 15636 | N91: =IF(INTRO!$E$41="Endémique", IF($J91>1, IF($J91=4, "Inconnu", IF($J91=99, "Surveillance", E91)), 0),"Non requis") -> 0 | O91: =IF(INTRO!$E$41="Endémique", IF($J91>1, IF($J91=4, "Inconnu", IF($J91=99, "Surveillance", F91)), 0),"Non requis") -> 0 | P91: =IF(INTRO!$E$41="Endémique", IF($J91>1, IF($J91=4, "Inconnu", IF($J91=99, "Surveillance", ROUND(D91*INTRO!$E$51,0))), 0),"Non requis") -> 0 | Q91: =IF(INTRO!$E$41="Endémique", IF($J91>1, IF($J91=4, "Inconnu", IF($J91=99, "Surveillance", SUM($N91:$P91))), 0),"Non requis") -> 0 | R91: =IF(INTRO!$E$43="Endémique", IF($K91>1, IF($K91=4, "Inconnu", IF($K91=99, "Surveillance", ROUND(E91*0.75,0))), 0),"Non requis") -> 0 | S91: =IF(INTRO!$E$43="Endémique", IF($K91>1, IF($K91=4, "Inconnu", IF($K91=99, "Surveillance", F91)), 0),"Non requis") -> 0 | T91: =IF(INTRO!$E$43="Endémique", IF($K91>1, IF($K91=4, "Inconnu", IF($K91=99, "Surveillance", G91)), 0),"Non requis") -> 0 | U91: =IF(INTRO!$E$43="Endémique", IF($K91>1, IF($K91=4, "Inconnu", IF($K91=99, "Surveillance", SUM($R91:$T91))), 0),"Non requis") -> 0 | V91: 1 | W91: 1 | X91: 0 | Y91: 0 | AF91: 23661 | AG91: FAJONQUITO
A92: =IF(INTRO!$E$33<>0,INTRO!$E$33, " ") -> Guinée Bissau | B92: Bafata | C92: Cosse | D92: 25259 | E92: =IF(INTRO!$E$48="","",ROUND($D92*INTRO!$E$48,0)) -> 3359 | F92: =IF(INTRO!$E$49="","",ROUND($D92*INTRO!$E$49,0)) -> 6471 | G92: =IF(INTRO!$E$50="","",ROUND($D92*INTRO!$E$50,0)) -> 14309 | H92: 1 | I92: 1 | J92: 1 | K92: 1 | L92: =IF(INTRO!$E$37="Endémique",IF($H92>0,IF($H92=4,"Inconnu",IF($H92=99,"Interrompu",$D92)),0),"Non requis") -> 25259 | M92: =IF(INTRO!$E$39="Endémique", IF($I92>0, IF($I92=4,"Inconnu",IF($I92=99,"Interrompu",$D92)), 0),"Non requis") -> 25259 | N92: =IF(INTRO!$E$41="Endémique", IF($J92>1, IF($J92=4, "Inconnu", IF($J92=99, "Surveillance", E92)), 0),"Non requis") -> 0 | O92: =IF(INTRO!$E$41="Endémique", IF($J92>1, IF($J92=4, "Inconnu", IF($J92=99, "Surveillance", F92)), 0),"Non requis") -> 0 | P92: =IF(INTRO!$E$41="Endémique", IF($J92>1, IF($J92=4, "Inconnu", IF($J92=99, "Surveillance", ROUND(D92*INTRO!$E$51,0))), 0),"Non requis") -> 0 | Q92: =IF(INTRO!$E$41="Endémique", IF($J92>1, IF($J92=4, "Inconnu", IF($J92=99, "Surveillance", SUM($N92:$P92))), 0),"Non requis") -> 0 | R92: =IF(INTRO!$E$43="Endémique", IF($K92>1, IF($K92=4, "Inconnu", IF($K92=99, "Surveillance", ROUND(E92*0.75,0))), 0),"Non requis") -> 0 | S92: =IF(INTRO!$E$43="Endémique", IF($K92>1, IF($K92=4, "Inconnu", IF($K92=99, "Surveillance", F92)), 0),"Non requis") -> 0 | T92: =IF(INTRO!$E$43="Endémique", IF($K92>1, IF($K92=4, "Inconnu", IF($K92=99, "Surveillance", G92)), 0),"Non requis") -> 0 | U92: =IF(INTRO!$E$43="Endémique", IF($K92>1, IF($K92=4, "Inconnu", IF($K92=99, "Surveillance", SUM($R92:$T92))), 0),"Non requis") -> 0 | V92: 1 | W92: 1 | X92: 0 | Y92: 0 | AF92: 23660 | AG92: COSSÉ
A93: =IF(INTRO!$E$33<>0,INTRO!$E$33, " ") -> Guinée Bissau | B93: Bafata | C93: Bafata | D93: 79743 | E93: =IF(INTRO!$E$48="","",ROUND($D93*INTRO!$E$48,0)) -> 10606 | F93: =IF(INTRO!$E$49="","",ROUND($D93*INTRO!$E$49,0)) -> 20430 | G93: =IF(INTRO!$E$50="","",ROUND($D93*INTRO!$E$50,0)) -> 45174 | H93: 1 | I93: 1 | J93: 1 | K93: 2 | L93: =IF(INTRO!$E$37="Endémique",IF($H93>0,IF($H93=4,"Inconnu",IF($H93=99,"Interrompu",$D93)),0),"Non requis") -> 79743 | M93: =IF(INTRO!$E$39="Endémique", IF($I93>0, IF($I93=4,"Inconnu",IF($I93=99,"Interrompu",$D93)), 0),"Non requis") -> 79743 | N93: =IF(INTRO!$E$41="Endémique", IF($J93>1, IF($J93=4, "Inconnu", IF($J93=99, "Surveillance", E93)), 0),"Non requis") -> 0 | O93: =IF(INTRO!$E$41="Endémique", IF($J93>1, IF($J93=4, "Inconnu", IF($J93=99, "Surveillance", F93)), 0),"Non requis") -> 0 | P93: =IF(INTRO!$E$41="Endémique", IF($J93>1, IF($J93=4, "Inconnu", IF($J93=99, "Surveillance", ROUND(D93*INTRO!$E$51,0))), 0),"Non requis") -> 0 | Q93: =IF(INTRO!$E$41="Endémique", IF($J93>1, IF($J93=4, "Inconnu", IF($J93=99, "Surveillance", SUM($N93:$P93))), 0),"Non requis") -> 0 | R93: =IF(INTRO!$E$43="Endémique", IF($K93>1, IF($K93=4, "Inconnu", IF($K93=99, "Surveillance", ROUND(E93*0.75,0))), 0),"Non requis") -> 7955 | S93: =IF(INTRO!$E$43="Endémique", IF($K93>1, IF($K93=4, "Inconnu", IF($K93=99, "Surveillance", F93)), 0),"Non requis") -> 20430 | T93: =IF(INTRO!$E$43="Endémique", IF($K93>1, IF($K93=4, "Inconnu", IF($K93=99, "Surveillance", G93)), 0),"Non requis") -> 45174 | U93: =IF(INTRO!$E$43="Endémique", IF($K93>1, IF($K93=4, "Inconnu", IF($K93=99, "Surveillance", SUM($R93:$T93))), 0),"Non requis") -> 73559 | V93: 1 | W93: 1 | X93: 0 | Y93: 1 | AF93: 23656 | AG93: BAFATA
A94: =IF(INTRO!$E$33<>0,INTRO!$E$33, " ") -> Guinée Bissau | B94: Tombali | C94: BEDANDA | D94: 19224 | E94: =IF(INTRO!$E$48="","",ROUND($D94*INTRO!$E$48,0)) -> 2557 | F94: =IF(INTRO!$E$49="","",ROUND($D94*INTRO!$E$49,0)) -> 4925 | G94: =IF(INTRO!$E$50="","",ROUND($D94*INTRO!$E$50,0)) -> 10890 | H94: 0 | I94: 4 | J94: 2 | K94: 0 | L94: =IF(INTRO!$E$37="Endémique",IF($H94>0,IF($H94=4,"Inconnu",IF($H94=99,"Interrompu",$D94)),0),"Non requis") -> 0 | M94: =IF(INTRO!$E$39="Endémique", IF($I94>0, IF($I94=4,"Inconnu",IF($I94=99,"Interrompu",$D94)), 0),"Non requis") -> Inconnu | N94: =IF(INTRO!$E$41="Endémique", IF($J94>1, IF($J94=4, "Inconnu", IF($J94=99, "Surveillance", E94)), 0),"Non requis") -> 2557 | O94: =IF(INTRO!$E$41="Endémique", IF($J94>1, IF($J94=4, "Inconnu", IF($J94=99, "Surveillance", F94)), 0),"Non requis") -> 4925 | P94: =IF(INTRO!$E$41="Endémique", IF($J94>1, IF($J94=4, "Inconnu", IF($J94=99, "Surveillance", ROUND(D94*INTRO!$E$51,0))), 0),"Non requis") -> 4229 | Q94: =IF(INTRO!$E$41="Endémique", IF($J94>1, IF($J94=4, "Inconnu", IF($J94=99, "Surveillance", SUM($N94:$P94))), 0),"Non requis") -> 11711 | R94: =IF(INTRO!$E$43="Endémique", IF($K94>1, IF($K94=4, "Inconnu", IF($K94=99, "Surveillance", ROUND(E94*0.75,0))), 0),"Non requis") -> 0 | S94: =IF(INTRO!$E$43="Endémique", IF($K94>1, IF($K94=4, "Inconnu", IF($K94=99, "Surveillance", F94)), 0),"Non requis") -> 0 | T94: =IF(INTRO!$E$43="Endémique", IF($K94>1, IF($K94=4, "Inconnu", IF($K94=99, "Surveillance", G94)), 0),"Non requis") -> 0 | U94: =IF(INTRO!$E$43="Endémique", IF($K94>1, IF($K94=4, "Inconnu", IF($K94=99, "Surveillance", SUM($R94:$T94))), 0),"Non requis") -> 0 | V94: 0 | W94: 0 | X94: 1 | Y94: 0 | AF94: 23754 | AG94: BEDANDA
A95: =IF(INTRO!$E$33<>0,INTRO!$E$33, " ") -> Guinée Bissau | B95: Tombali | C95: CACINE | D95: 14013 | E95: =IF(INTRO!$E$48="","",ROUND($D95*INTRO!$E$48,0)) -> 1864 | F95: =IF(INTRO!$E$49="","",ROUND($D95*INTRO!$E$49,0)) -> 3590 | G95: =IF(INTRO!$E$50="","",ROUND($D95*INTRO!$E$50,0)) -> 7938 | H95: 0 | I95: 4 | J95: 1 | K95: 0 | L95: =IF(INTRO!$E$37="Endémique",IF($H95>0,IF($H95=4,"Inconnu",IF($H95=99,"Interrompu",$D95)),0),"Non requis") -> 0 | M95: =IF(INTRO!$E$39="Endémique", IF($I95>0, IF($I95=4,"Inconnu",IF($I95=99,"Interrompu",$D95)), 0),"Non requis") -> Inconnu | N95: =IF(INTRO!$E$41="Endémique", IF($J95>1, IF($J95=4, "Inconnu", IF($J95=99, "Surveillance", E95)), 0),"Non requis") -> 0 | O95: =IF(INTRO!$E$41="Endémique", IF($J95>1, IF($J95=4, "Inconnu", IF($J95=99, "Surveillance", F95)), 0),"Non requis") -> 0 | P95: =IF(INTRO!$E$41="Endémique", IF($J95>1, IF($J95=4, "Inconnu", IF($J95=99, "Surveillance", ROUND(D95*INTRO!$E$51,0))), 0),"Non requis") -> 0 | Q95: =IF(INTRO!$E$41="Endémique", IF($J95>1, IF($J95=4, "Inconnu", IF($J95=99, "Surveillance", SUM($N95:$P95))), 0),"Non requis") -> 0 | R95: =IF(INTRO!$E$43="Endémique", IF($K95>1, IF($K95=4, "Inconnu", IF($K95=99, "Surveillance", ROUND(E95*0.75,0))), 0),"Non requis") -> 0 | S95: =IF(INTRO!$E$43="Endémique", IF($K95>1, IF($K95=4, "Inconnu", IF($K95=99, "Surveillance", F95)), 0),"Non requis") -> 0 | T95: =IF(INTRO!$E$43="Endémique", IF($K95>1, IF($K95=4, "Inconnu", IF($K95=99, "Surveillance", G95)), 0),"Non requis") -> 0 | U95: =IF(INTRO!$E$43="Endémique", IF($K95>1, IF($K95=4, "Inconnu", IF($K95=99, "Surveillance", SUM($R95:$T95))), 0),"Non requis") -> 0 | V95: 0 | W95: 0 | X95: 0 | Y95: 0 | AF95: 23755 | AG95: CACINE
A96: =IF(INTRO!$E$33<>0,INTRO!$E$33, " ") -> Guinée Bissau | B96: Tombali | C96: CALAQUE | D96: 18134 | E96: =IF(INTRO!$E$48="","",ROUND($D96*INTRO!$E$48,0)) -> 2412 | F96: =IF(INTRO!$E$49="","",ROUND($D96*INTRO!$E$49,0)) -> 4646 | G96: =IF(INTRO!$E$50="","",ROUND($D96*INTRO!$E$50,0)) -> 10273 | H96: 0 | I96: 4 | J96: 3 | K96: 1 | L96: =IF(INTRO!$E$37="Endémique",IF($H96>0,IF($H96=4,"Inconnu",IF($H96=99,"Interrompu",$D96)),0),"Non requis") -> 0 | M96: =IF(INTRO!$E$39="Endémique", IF($I96>0, IF($I96=4,"Inconnu",IF($I96=99,"Interrompu",$D96)), 0),"Non requis") -> Inconnu | N96: =IF(INTRO!$E$41="Endémique", IF($J96>1, IF($J96=4, "Inconnu", IF($J96=99, "Surveillance", E96)), 0),"Non requis") -> 2412 | O96: =IF(INTRO!$E$41="Endémique", IF($J96>1, IF($J96=4, "Inconnu", IF($J96=99, "Surveillance", F96)), 0),"Non requis") -> 4646 | P96: =IF(INTRO!$E$41="Endémique", IF($J96>1, IF($J96=4, "Inconnu", IF($J96=99, "Surveillance", ROUND(D96*INTRO!$E$51,0))), 0),"Non requis") -> 3989 | Q96: =IF(INTRO!$E$41="Endémique", IF($J96>1, IF($J96=4, "Inconnu", IF($J96=99, "Surveillance", SUM($N96:$P96))), 0),"Non requis") -> 11047 | R96: =IF(INTRO!$E$43="Endémique", IF($K96>1, IF($K96=4, "Inconnu", IF($K96=99, "Surveillance", ROUND(E96*0.75,0))), 0),"Non requis") -> 0 | S96: =IF(INTRO!$E$43="Endémique", IF($K96>1, IF($K96=4, "Inconnu", IF($K96=99, "Surveillance", F96)), 0),"Non requis") -> 0 | T96: =IF(INTRO!$E$43="Endémique", IF($K96>1, IF($K96=4, "Inconnu", IF($K96=99, "Surveillance", G96)), 0),"Non requis") -> 0 | U96: =IF(INTRO!$E$43="Endémique", IF($K96>1, IF($K96=4, "Inconnu", IF($K96=99, "Surveillance", SUM($R96:$T96))), 0),"Non requis") -> 0 | V96: 0 | W96: 0 | X96: 2 | Y96: 0 | AF96: 23753 | AG96: CALAQUE
A97: =IF(INTRO!$E$33<>0,INTRO!$E$33, " ") -> Guinée Bissau | B97: Tombali | C97: CATIO | D97: 21190 | E97: =IF(INTRO!$E$48="","",ROUND($D97*INTRO!$E$48,0)) -> 2818 | F97: =IF(INTRO!$E$49="","",ROUND($D97*INTRO!$E$49,0)) -> 5429 | G97: =IF(INTRO!$E$50="","",ROUND($D97*INTRO!$E$50,0)) -> 12004 | H97: 0 | I97: 4 | J97: 1 | K97: 1 | L97: =IF(INTRO!$E$37="Endémique",IF($H97>0,IF($H97=4,"Inconnu",IF($H97=99,"Interrompu",$D97)),0),"Non requis") -> 0 | M97: =IF(INTRO!$E$39="Endémique", IF($I97>0, IF($I97=4,"Inconnu",IF($I97=99,"Interrompu",$D97)), 0),"Non requis") -> Inconnu | N97: =IF(INTRO!$E$41="Endémique", IF($J97>1, IF($J97=4, "Inconnu", IF($J97=99, "Surveillance", E97)), 0),"Non requis") -> 0 | O97: =IF(INTRO!$E$41="Endémique", IF($J97>1, IF($J97=4, "Inconnu", IF($J97=99, "Surveillance", F97)), 0),"Non requis") -> 0 | P97: =IF(INTRO!$E$41="Endémique", IF($J97>1, IF($J97=4, "Inconnu", IF($J97=99, "Surveillance", ROUND(D97*INTRO!$E$51,0))), 0),"Non requis") -> 0 | Q97: =IF(INTRO!$E$41="Endémique", IF($J97>1, IF($J97=4, "Inconnu", IF($J97=99, "Surveillance", SUM($N97:$P97))), 0),"Non requis") -> 0 | R97: =IF(INTRO!$E$43="Endémique", IF($K97>1, IF($K97=4, "Inconnu", IF($K97=99, "Surveillance", ROUND(E97*0.75,0))), 0),"Non requis") -> 0 | S97: =IF(INTRO!$E$43="Endémique", IF($K97>1, IF($K97=4, "Inconnu", IF($K97=99, "Surveillance", F97)), 0),"Non requis") -> 0 | T97: =IF(INTRO!$E$43="Endémique", IF($K97>1, IF($K97=4, "Inconnu", IF($K97=99, "Surveillance", G97)), 0),"Non requis") -> 0 | U97: =IF(INTRO!$E$43="Endémique", IF($K97>1, IF($K97=4, "Inconnu", IF($K97=99, "Surveillance", SUM($R97:$T97))), 0),"Non requis") -> 0 | V97: 0 | W97: 0 | X97: 0 | Y97: 0 | AF97: 23756 | AG97: CATIO
A98: =IF(INTRO!$E$33<>0,INTRO!$E$33, " ") -> Guinée Bissau | B98: Tombali | C98: KOMO | D98: 12037 | E98: =IF(INTRO!$E$48="","",ROUND($D98*INTRO!$E$48,0)) -> 1601 | F98: =IF(INTRO!$E$49="","",ROUND($D98*INTRO!$E$49,0)) -> 3084 | G98: =IF(INTRO!$E$50="","",ROUND($D98*INTRO!$E$50,0)) -> 6819 | H98: 0 | I98: 4 | J98: 2 | K98: 1 | L98: =IF(INTRO!$E$37="Endémique",IF($H98>0,IF($H98=4,"Inconnu",IF($H98=99,"Interrompu",$D98)),0),"Non requis") -> 0 | M98: =IF(INTRO!$E$39="Endémique", IF($I98>0, IF($I98=4,"Inconnu",IF($I98=99,"Interrompu",$D98)), 0),"Non requis") -> Inconnu | N98: =IF(INTRO!$E$41="Endémique", IF($J98>1, IF($J98=4, "Inconnu", IF($J98=99, "Surveillance", E98)), 0),"Non requis") -> 1601 | O98: =IF(INTRO!$E$41="Endémique", IF($J98>1, IF($J98=4, "Inconnu", IF($J98=99, "Surveillance", F98)), 0),"Non requis") -> 3084 | P98: =IF(INTRO!$E$41="Endémique", IF($J98>1, IF($J98=4, "Inconnu", IF($J98=99, "Surveillance", ROUND(D98*INTRO!$E$51,0))), 0),"Non requis") -> 2648 | Q98: =IF(INTRO!$E$41="Endémique", IF($J98>1, IF($J98=4, "Inconnu", IF($J98=99, "Surveillance", SUM($N98:$P98))), 0),"Non requis") -> 7333 | R98: =IF(INTRO!$E$43="Endémique", IF($K98>1, IF($K98=4, "Inconnu", IF($K98=99, "Surveillance", ROUND(E98*0.75,0))), 0),"Non requis") -> 0 | S98: =IF(INTRO!$E$43="Endémique", IF($K98>1, IF($K98=4, "Inconnu", IF($K98=99, "Surveillance", F98)), 0),"Non requis") -> 0 | T98: =IF(INTRO!$E$43="Endémique", IF($K98>1, IF($K98=4, "Inconnu", IF($K98=99, "Surveillance", G98)), 0),"Non requis") -> 0 | U98: =IF(INTRO!$E$43="Endémique", IF($K98>1, IF($K98=4, "Inconnu", IF($K98=99, "Surveillance", SUM($R98:$T98))), 0),"Non requis") -> 0 | V98: 0 | W98: 0 | X98: 1 | Y98: 0 | AF98: 23757 | AG98: KOMO
A99: =IF(INTRO!$E$33<>0,INTRO!$E$33, " ") -> Guinée Bissau | B99: Tombali | C99: QUEBO | D99: 22572 | E99: =IF(INTRO!$E$48="","",ROUND($D99*INTRO!$E$48,0)) -> 3002 | F99: =IF(INTRO!$E$49="","",ROUND($D99*INTRO!$E$49,0)) -> 5783 | G99: =IF(INTRO!$E$50="","",ROUND($D99*INTRO!$E$50,0)) -> 12787 | H99: 0 | I99: 4 | J99: 2 | K99: 0 | L99: =IF(INTRO!$E$37="Endémique",IF($H99>0,IF($H99=4,"Inconnu",IF($H99=99,"Interrompu",$D99)),0),"Non requis") -> 0 | M99: =IF(INTRO!$E$39="Endémique", IF($I99>0, IF($I99=4,"Inconnu",IF($I99=99,"Interrompu",$D99)), 0),"Non requis") -> Inconnu | N99: =IF(INTRO!$E$41="Endémique", IF($J99>1, IF($J99=4, "Inconnu", IF($J99=99, "Surveillance", E99)), 0),"Non requis") -> 3002 | O99: =IF(INTRO!$E$41="Endémique", IF($J99>1, IF($J99=4, "Inconnu", IF($J99=99, "Surveillance", F99)), 0),"Non requis") -> 5783 | P99: =IF(INTRO!$E$41="Endémique", IF($J99>1, IF($J99=4, "Inconnu", IF($J99=99, "Surveillance", ROUND(D99*INTRO!$E$51,0))), 0),"Non requis") -> 4966 | Q99: =IF(INTRO!$E$41="Endémique", IF($J99>1, IF($J99=4, "Inconnu", IF($J99=99, "Surveillance", SUM($N99:$P99))), 0),"Non requis") -> 13751 | R99: =IF(INTRO!$E$43="Endémique", IF($K99>1, IF($K99=4, "Inconnu", IF($K99=99, "Surveillance", ROUND(E99*0.75,0))), 0),"Non requis") -> 0 | S99: =IF(INTRO!$E$43="Endémique", IF($K99>1, IF($K99=4, "Inconnu", IF($K99=99, "Surveillance", F99)), 0),"Non requis") -> 0 | T99: =IF(INTRO!$E$43="Endémique", IF($K99>1, IF($K99=4, "Inconnu", IF($K99=99, "Surveillance", G99)), 0),"Non requis") -> 0 | U99: =IF(INTRO!$E$43="Endémique", IF($K99>1, IF($K99=4, "Inconnu", IF($K99=99, "Surveillance", SUM($R99:$T99))), 0),"Non requis") -> 0 | V99: 0 | W99: 0 | X99: 1 | Y99: 0 | AF99: 23758 | AG99: QUEBO
A100: =IF(INTRO!$E$33<>0,INTRO!$E$33, " ") -> Guinée Bissau | B100: Tombali | C100: SANCONHA | D100: 8205 | E100: =IF(INTRO!$E$48="","",ROUND($D100*INTRO!$E$48,0)) -> 1091 | F100: =IF(INTRO!$E$49="","",ROUND($D100*INTRO!$E$49,0)) -> 2102 | G100: =IF(INTRO!$E$50="","",ROUND($D100*INTRO!$E$50,0)) -> 4648 | H100: 0 | I100: 4 | J100: 3 | K100: 1 | L100: =IF(INTRO!$E$37="Endémique",IF($H100>0,IF($H100=4,"Inconnu",IF($H100=99,"Interrompu",$D100)),0),"Non requis") -> 0 | M100: =IF(INTRO!$E$39="Endémique", IF($I100>0, IF($I100=4,"Inconnu",IF($I100=99,"Interrompu",$D100)), 0),"Non requis") -> Inconnu | N100: =IF(INTRO!$E$41="Endémique", IF($J100>1, IF($J100=4, "Inconnu", IF($J100=99, "Surveillance", E100)), 0),"Non requis") -> 1091 | O100: =IF(INTRO!$E$41="Endémique", IF($J100>1, IF($J100=4, "Inconnu", IF($J100=99, "Surveillance", F100)), 0),"Non requis") -> 2102 | P100: =IF(INTRO!$E$41="Endémique", IF($J100>1, IF($J100=4, "Inconnu", IF($J100=99, "Surveillance", ROUND(D100*INTRO!$E$51,0))), 0),"Non requis") -> 1805 | Q100: =IF(INTRO!$E$41="Endémique", IF($J100>1, IF($J100=4, "Inconnu", IF($J100=99, "Surveillance", SUM($N100:$P100))), 0),"Non requis") -> 4998 | R100: =IF(INTRO!$E$43="Endémique", IF($K100>1, IF($K100=4, "Inconnu", IF($K100=99, "Surveillance", ROUND(E100*0.75,0))), 0),"Non requis") -> 0 | S100: =IF(INTRO!$E$43="Endémique", IF($K100>1, IF($K100=4, "Inconnu", IF($K100=99, "Surveillance", F100)), 0),"Non requis") -> 0 | T100: =IF(INTRO!$E$43="Endémique", IF($K100>1, IF($K100=4, "Inconnu", IF($K100=99, "Surveillance", G100)), 0),"Non requis") -> 0 | U100: =IF(INTRO!$E$43="Endémique", IF($K100>1, IF($K100=4, "Inconnu", IF($K100=99, "Surveillance", SUM($R100:$T100))), 0),"Non requis") -> 0 | V100: 0 | W100: 0 | X100: 2 | Y100: 0 | AF100: 23759 | AG100: SANCONHA
A101: =IF(INTRO!$E$33<>0,INTRO!$E$33, " ") -> Guinée Bissau | B101: Tombali | C101: TIMBO | D101: 15600 | E101: =IF(INTRO!$E$48="","",ROUND($D101*INTRO!$E$48,0)) -> 2075 | F101: =IF(INTRO!$E$49="","",ROUND($D101*INTRO!$E$49,0)) -> 3997 | G101: =IF(INTRO!$E$50="","",ROUND($D101*INTRO!$E$50,0)) -> 8837 | H101: 0 | I101: 4 | J101: 3 | K101: 1 | L101: =IF(INTRO!$E$37="Endémique",IF($H101>0,IF($H101=4,"Inconnu",IF($H101=99,"Interrompu",$D101)),0),"Non requis") -> 0 | M101: =IF(INTRO!$E$39="Endémique", IF($I101>0, IF($I101=4,"Inconnu",IF($I101=99,"Interrompu",$D101)), 0),"Non requis") -> Inconnu | N101: =IF(INTRO!$E$41="Endémique", IF($J101>1, IF($J101=4, "Inconnu", IF($J101=99, "Surveillance", E101)), 0),"Non requis") -> 2075 | O101: =IF(INTRO!$E$41="Endémique", IF($J101>1, IF($J101=4, "Inconnu", IF($J101=99, "Surveillance", F101)), 0),"Non requis") -> 3997 | P101: =IF(INTRO!$E$41="Endémique", IF($J101>1, IF($J101=4, "Inconnu", IF($J101=99, "Surveillance", ROUND(D101*INTRO!$E$51,0))), 0),"Non requis") -> 3432 | Q101: =IF(INTRO!$E$41="Endémique", IF($J101>1, IF($J101=4, "Inconnu", IF($J101=99, "Surveillance", SUM($N101:$P101))), 0),"Non requis") -> 9504 | R101: =IF(INTRO!$E$43="Endémique", IF($K101>1, IF($K101=4, "Inconnu", IF($K101=99, "Surveillance", ROUND(E101*0.75,0))), 0),"Non requis") -> 0 | S101: =IF(INTRO!$E$43="Endémique", IF($K101>1, IF($K101=4, "Inconnu", IF($K101=99, "Surveillance", F101)), 0),"Non requis") -> 0 | T101: =IF(INTRO!$E$43="Endémique", IF($K101>1, IF($K101=4, "Inconnu", IF($K101=99, "Surveillance", G101)), 0),"Non requis") -> 0 | U101: =IF(INTRO!$E$43="Endémique", IF($K101>1, IF($K101=4, "Inconnu", IF($K101=99, "Surveillance", SUM($R101:$T101))), 0),"Non requis") -> 0 | V101: 0 | W101: 0 | X101: 2 | Y101: 0 | AF101: 23760 | AG101: TIMBO
A102: =IF(INTRO!$E$33<>0,INTRO!$E$33, " ") -> Guinée Bissau | B102: Quinara | C102: BRANDÃO | D102: 10703 | E102: =IF(INTRO!$E$48="","",ROUND($D102*INTRO!$E$48,0)) -> 1423 | F102: =IF(INTRO!$E$49="","",ROUND($D102*INTRO!$E$49,0)) -> 2742 | G102: =IF(INTRO!$E$50="","",ROUND($D102*INTRO!$E$50,0)) -> 6063 | H102: 1 | I102: 4 | J102: 3 | K102: 1 | L102: =IF(INTRO!$E$37="Endémique",IF($H102>0,IF($H102=4,"Inconnu",IF($H102=99,"Interrompu",$D102)),0),"Non requis") -> 10703 | M102: =IF(INTRO!$E$39="Endémique", IF($I102>0, IF($I102=4,"Inconnu",IF($I102=99,"Interrompu",$D102)), 0),"Non requis") -> Inconnu | N102: =IF(INTRO!$E$41="Endémique", IF($J102>1, IF($J102=4, "Inconnu", IF($J102=99, "Surveillance", E102)), 0),"Non requis") -> 1423 | O102: =IF(INTRO!$E$41="Endémique", IF($J102>1, IF($J102=4, "Inconnu", IF($J102=99, "Surveillance", F102)), 0),"Non requis") -> 2742 | P102: =IF(INTRO!$E$41="Endémique", IF($J102>1, IF($J102=4, "Inconnu", IF($J102=99, "Surveillance", ROUND(D102*INTRO!$E$51,0))), 0),"Non requis") -> 2355 | Q102: =IF(INTRO!$E$41="Endémique", IF($J102>1, IF($J102=4, "Inconnu", IF($J102=99, "Surveillance", SUM($N102:$P102))), 0),"Non requis") -> 6520 | R102: =IF(INTRO!$E$43="Endémique", IF($K102>1, IF($K102=4, "Inconnu", IF($K102=99, "Surveillance", ROUND(E102*0.75,0))), 0),"Non requis") -> 0 | S102: =IF(INTRO!$E$43="Endémique", IF($K102>1, IF($K102=4, "Inconnu", IF($K102=99, "Surveillance", F102)), 0),"Non requis") -> 0 | T102: =IF(INTRO!$E$43="Endémique", IF($K102>1, IF($K102=4, "Inconnu", IF($K102=99, "Surveillance", G102)), 0),"Non requis") -> 0 | U102: =IF(INTRO!$E$43="Endémique", IF($K102>1, IF($K102=4, "Inconnu", IF($K102=99, "Surveillance", SUM($R102:$T102))), 0),"Non requis") -> 0 | V102: 1 | W102: 0 | X102: 2 | Y102: 0 | AF102: 23740 | AG102: BRANDÃO
A103: =IF(INTRO!$E$33<>0,INTRO!$E$33, " ") -> Guinée Bissau | B103: Quinara | C103: BUBA | D103: 25019 | E103: =IF(INTRO!$E$48="","",ROUND($D103*INTRO!$E$48,0)) -> 3328 | F103: =IF(INTRO!$E$49="","",ROUND($D103*INTRO!$E$49,0)) -> 6410 | G103: =IF(INTRO!$E$50="","",ROUND($D103*INTRO!$E$50,0)) -> 14173 | H103: 1 | I103: 4 | J103: 2 | K103: 0 | L103: =IF(INTRO!$E$37="Endémique",IF($H103>0,IF($H103=4,"Inconnu",IF($H103=99,"Interrompu",$D103)),0),"Non requis") -> 25019 | M103: =IF(INTRO!$E$39="Endémique", IF($I103>0, IF($I103=4,"Inconnu",IF($I103=99,"Interrompu",$D103)), 0),"Non requis") -> Inconnu | N103: =IF(INTRO!$E$41="Endémique", IF($J103>1, IF($J103=4, "Inconnu", IF($J103=99, "Surveillance", E103)), 0),"Non requis") -> 3328 | O103: =IF(INTRO!$E$41="Endémique", IF($J103>1, IF($J103=4, "Inconnu", IF($J103=99, "Surveillance", F103)), 0),"Non requis") -> 6410 | P103: =IF(INTRO!$E$41="Endémique", IF($J103>1, IF($J103=4, "Inconnu", IF($J103=99, "Surveillance", ROUND(D103*INTRO!$E$51,0))), 0),"Non requis") -> 5504 | Q103: =IF(INTRO!$E$41="Endémique", IF($J103>1, IF($J103=4, "Inconnu", IF($J103=99, "Surveillance", SUM($N103:$P103))), 0),"Non requis") -> 15242 | R103: =IF(INTRO!$E$43="Endémique", IF($K103>1, IF($K103=4, "Inconnu", IF($K103=99, "Surveillance", ROUND(E103*0.75,0))), 0),"Non requis") -> 0 | S103: =IF(INTRO!$E$43="Endémique", IF($K103>1, IF($K103=4, "Inconnu", IF($K103=99, "Surveillance", F103)), 0),"Non requis") -> 0 | T103: =IF(INTRO!$E$43="Endémique", IF($K103>1, IF($K103=4, "Inconnu", IF($K103=99, "Surveillance", G103)), 0),"Non requis") -> 0 | U103: =IF(INTRO!$E$43="Endémique", IF($K103>1, IF($K103=4, "Inconnu", IF($K103=99, "Surveillance", SUM($R103:$T103))), 0),"Non requis") -> 0 | V103: 1 | W103: 0 | X103: 1 | Y103: 0 | AF103: 23742 | AG103: BUBA
A104: =IF(INTRO!$E$33<>0,INTRO!$E$33, " ") -> Guinée Bissau | B104: Quinara | C104: DAR-ES-SALAM | D104: 6976 | E104: =IF(INTRO!$E$48="","",ROUND($D104*INTRO!$E$48,0)) -> 928 | F104: =IF(INTRO!$E$49="","",ROUND($D104*INTRO!$E$49,0)) -> 1787 | G104: =IF(INTRO!$E$50="","",ROUND($D104*INTRO!$E$50,0)) -> 3952 | H104: 1 | I104: 4 | J104: 3 | K104: 1 | L104: =IF(INTRO!$E$37="Endémique",IF($H104>0,IF($H104=4,"Inconnu",IF($H104=99,"Interrompu",$D104)),0),"Non requis") -> 6976 | M104: =IF(INTRO!$E$39="Endémique", IF($I104>0, IF($I104=4,"Inconnu",IF($I104=99,"Interrompu",$D104)), 0),"Non requis") -> Inconnu | N104: =IF(INTRO!$E$41="Endémique", IF($J104>1, IF($J104=4, "Inconnu", IF($J104=99, "Surveillance", E104)), 0),"Non requis") -> 928 | O104: =IF(INTRO!$E$41="Endémique", IF($J104>1, IF($J104=4, "Inconnu", IF($J104=99, "Surveillance", F104)), 0),"Non requis") -> 1787 | P104: =IF(INTRO!$E$41="Endémique", IF($J104>1, IF($J104=4, "Inconnu", IF($J104=99, "Surveillance", ROUND(D104*INTRO!$E$51,0))), 0),"Non requis") -> 1535 | Q104: =IF(INTRO!$E$41="Endémique", IF($J104>1, IF($J104=4, "Inconnu", IF($J104=99, "Surveillance", SUM($N104:$P104))), 0),"Non requis") -> 4250 | R104: =IF(INTRO!$E$43="Endémique", IF($K104>1, IF($K104=4, "Inconnu", IF($K104=99, "Surveillance", ROUND(E104*0.75,0))), 0),"Non requis") -> 0 | S104: =IF(INTRO!$E$43="Endémique", IF($K104>1, IF($K104=4, "Inconnu", IF($K104=99, "Surveillance", F104)), 0),"Non requis") -> 0 | T104: =IF(INTRO!$E$43="Endémique", IF($K104>1, IF($K104=4, "Inconnu", IF($K104=99, "Surveillance", G104)), 0),"Non requis") -> 0 | U104: =IF(INTRO!$E$43="Endémique", IF($K104>1, IF($K104=4, "Inconnu", IF($K104=99, "Surveillance", SUM($R104:$T104))), 0),"Non requis") -> 0 | V104: 1 | W104: 0 | X104: 2 | Y104: 0 | AF104: 23741 | AG104: DAR-ES-SALAM
A105: =IF(INTRO!$E$33<>0,INTRO!$E$33, " ") -> Guinée Bissau | B105: Quinara | C105: EMPADA | D105: 18259 | E105: =IF(INTRO!$E$48="","",ROUND($D105*INTRO!$E$48,0)) -> 2428 | F105: =IF(INTRO!$E$49="","",ROUND($D105*INTRO!$E$49,0)) -> 4678 | G105: =IF(INTRO!$E$50="","",ROUND($D105*INTRO!$E$50,0)) -> 10344 | H105: 1 | I105: 4 | J105: 2 | K105: 0 | L105: =IF(INTRO!$E$37="Endémique",IF($H105>0,IF($H105=4,"Inconnu",IF($H105=99,"Interrompu",$D105)),0),"Non requis") -> 18259 | M105: =IF(INTRO!$E$39="Endémique", IF($I105>0, IF($I105=4,"Inconnu",IF($I105=99,"Interrompu",$D105)), 0),"Non requis") -> Inconnu | N105: =IF(INTRO!$E$41="Endémique", IF($J105>1, IF($J105=4, "Inconnu", IF($J105=99, "Surveillance", E105)), 0),"Non requis") -> 2428 | O105: =IF(INTRO!$E$41="Endémique", IF($J105>1, IF($J105=4, "Inconnu", IF($J105=99, "Surveillance", F105)), 0),"Non requis") -> 4678 | P105: =IF(INTRO!$E$41="Endémique", IF($J105>1, IF($J105=4, "Inconnu", IF($J105=99, "Surveillance", ROUND(D105*INTRO!$E$51,0))), 0),"Non requis") -> 4017 | Q105: =IF(INTRO!$E$41="Endémique", IF($J105>1, IF($J105=4, "Inconnu", IF($J105=99, "Surveillance", SUM($N105:$P105))), 0),"Non requis") -> 11123 | R105: =IF(INTRO!$E$43="Endémique", IF($K105>1, IF($K105=4, "Inconnu", IF($K105=99, "Surveillance", ROUND(E105*0.75,0))), 0),"Non requis") -> 0 | S105: =IF(INTRO!$E$43="Endémique", IF($K105>1, IF($K105=4, "Inconnu", IF($K105=99, "Surveillance", F105)), 0),"Non requis") -> 0 | T105: =IF(INTRO!$E$43="Endémique", IF($K105>1, IF($K105=4, "Inconnu", IF($K105=99, "Surveillance", G105)), 0),"Non requis") -> 0 | U105: =IF(INTRO!$E$43="Endémique", IF($K105>1, IF($K105=4, "Inconnu", IF($K105=99, "Surveillance", SUM($R105:$T105))), 0),"Non requis") -> 0 | V105: 1 | W105: 0 | X105: 1 | Y105: 0 | AF105: 23743 | AG105: EMPADA
A106: =IF(INTRO!$E$33<>0,INTRO!$E$33, " ") -> Guinée Bissau | B106: Quinara | C106: FULACUNDA | D106: 15112 | E106: =IF(INTRO!$E$48="","",ROUND($D106*INTRO!$E$48,0)) -> 2010 | F106: =IF(INTRO!$E$49="","",ROUND($D106*INTRO!$E$49,0)) -> 3872 | G106: =IF(INTRO!$E$50="","",ROUND($D106*INTRO!$E$50,0)) -> 8561 | H106: 1 | I106: 4 | J106: 2 | K106: 0 | L106: =IF(INTRO!$E$37="Endémique",IF($H106>0,IF($H106=4,"Inconnu",IF($H106=99,"Interrompu",$D106)),0),"Non requis") -> 15112 | M106: =IF(INTRO!$E$39="Endémique", IF($I106>0, IF($I106=4,"Inconnu",IF($I106=99,"Interrompu",$D106)), 0),"Non requis") -> Inconnu | N106: =IF(INTRO!$E$41="Endémique", IF($J106>1, IF($J106=4, "Inconnu", IF($J106=99, "Surveillance", E106)), 0),"Non requis") -> 2010 | O106: =IF(INTRO!$E$41="Endémique", IF($J106>1, IF($J106=4, "Inconnu", IF($J106=99, "Surveillance", F106)), 0),"Non requis") -> 3872 | P106: =IF(INTRO!$E$41="Endémique", IF($J106>1, IF($J106=4, "Inconnu", IF($J106=99, "Surveillance", ROUND(D106*INTRO!$E$51,0))), 0),"Non requis") -> 3325 | Q106: =IF(INTRO!$E$41="Endémique", IF($J106>1, IF($J106=4, "Inconnu", IF($J106=99, "Surveillance", SUM($N106:$P106))), 0),"Non requis") -> 9207 | R106: =IF(INTRO!$E$43="Endémique", IF($K106>1, IF($K106=4, "Inconnu", IF($K106=99, "Surveillance", ROUND(E106*0.75,0))), 0),"Non requis") -> 0 | S106: =IF(INTRO!$E$43="Endémique", IF($K106>1, IF($K106=4, "Inconnu", IF($K106=99, "Surveillance", F106)), 0),"Non requis") -> 0 | T106: =IF(INTRO!$E$43="Endémique", IF($K106>1, IF($K106=4, "Inconnu", IF($K106=99, "Surveillance", G106)), 0),"Non requis") -> 0 | U106: =IF(INTRO!$E$43="Endémique", IF($K106>1, IF($K106=4, "Inconnu", IF($K106=99, "Surveillance", SUM($R106:$T106))), 0),"Non requis") -> 0 | V106: 1 | W106: 0 | X106: 1 | Y106: 0 | AF106: 23744 | AG106: FULACUNDA
A107: =IF(INTRO!$E$33<>0,INTRO!$E$33, " ") -> Guinée Bissau | B107: Quinara | C107: TITE | D107: 12097 | E107: =IF(INTRO!$E$48="","",ROUND($D107*INTRO!$E$48,0)) -> 1609 | F107: =IF(INTRO!$E$49="","",ROUND($D107*INTRO!$E$49,0)) -> 3099 | G107: =IF(INTRO!$E$50="","",ROUND($D107*INTRO!$E$50,0)) -> 6853 | H107: 1 | I107: 4 | J107: 2 | K107: 0 | L107: =IF(INTRO!$E$37="Endémique",IF($H107>0,IF($H107=4,"Inconnu",IF($H107=99,"Interrompu",$D107)),0),"Non requis") -> 12097 | M107: =IF(INTRO!$E$39="Endémique", IF($I107>0, IF($I107=4,"Inconnu",IF($I107=99,"Interrompu",$D107)), 0),"Non requis") -> Inconnu | N107: =IF(INTRO!$E$41="Endémique", IF($J107>1, IF($J107=4, "Inconnu", IF($J107=99, "Surveillance", E107)), 0),"Non requis") -> 1609 | O107: =IF(INTRO!$E$41="Endémique", IF($J107>1, IF($J107=4, "Inconnu", IF($J107=99, "Surveillance", F107)), 0),"Non requis") -> 3099 | P107: =IF(INTRO!$E$41="Endémique", IF($J107>1, IF($J107=4, "Inconnu", IF($J107=99, "Surveillance", ROUND(D107*INTRO!$E$51,0))), 0),"Non requis") -> 2661 | Q107: =IF(INTRO!$E$41="Endémique", IF($J107>1, IF($J107=4, "Inconnu", IF($J107=99, "Surveillance", SUM($N107:$P107))), 0),"Non requis") -> 7369 | R107: =IF(INTRO!$E$43="Endémique", IF($K107>1, IF($K107=4, "Inconnu", IF($K107=99, "Surveillance", ROUND(E107*0.75,0))), 0),"Non requis") -> 0 | S107: =IF(INTRO!$E$43="Endémique", IF($K107>1, IF($K107=4, "Inconnu", IF($K107=99, "Surveillance", F107)), 0),"Non requis") -> 0 | T107: =IF(INTRO!$E$43="Endémique", IF($K107>1, IF($K107=4, "Inconnu", IF($K107=99, "Surveillance", G107)), 0),"Non requis") -> 0 | U107: =IF(INTRO!$E$43="Endémique", IF($K107>1, IF($K107=4, "Inconnu", IF($K107=99, "Surveillance", SUM($R107:$T107))), 0),"Non requis") -> 0 | V107: 1 | W107: 0 | X107: 1 | Y107: 0 | AF107: 23745 | AG107: TITE
A108: =IF(INTRO!$E$33<>0,INTRO!$E$33, " ") -> Guinée Bissau | B108: Cacheu | C108: Bará | D108: 6292 | E108: =IF(INTRO!$E$48="","",ROUND($D108*INTRO!$E$48,0)) -> 837 | F108: =IF(INTRO!$E$49="","",ROUND($D108*INTRO!$E$49,0)) -> 1612 | G108: =IF(INTRO!$E$50="","",ROUND($D108*INTRO!$E$50,0)) -> 3564 | H108: 1 | I108: 4 | J108: 3 | K108: 2 | L108: =IF(INTRO!$E$37="Endémique",IF($H108>0,IF($H108=4,"Inconnu",IF($H108=99,"Interrompu",$D108)),0),"Non requis") -> 6292 | M108: =IF(INTRO!$E$39="Endémique", IF($I108>0, IF($I108=4,"Inconnu",IF($I108=99,"Interrompu",$D108)), 0),"Non requis") -> Inconnu | N108: =IF(INTRO!$E$41="Endémique", IF($J108>1, IF($J108=4, "Inconnu", IF($J108=99, "Surveillance", E108)), 0),"Non requis") -> 837 | O108: =IF(INTRO!$E$41="Endémique", IF($J108>1, IF($J108=4, "Inconnu", IF($J108=99, "Surveillance", F108)), 0),"Non requis") -> 1612 | P108: =IF(INTRO!$E$41="Endémique", IF($J108>1, IF($J108=4, "Inconnu", IF($J108=99, "Surveillance", ROUND(D108*INTRO!$E$51,0))), 0),"Non requis") -> 1384 | Q108: =IF(INTRO!$E$41="Endémique", IF($J108>1, IF($J108=4, "Inconnu", IF($J108=99, "Surveillance", SUM($N108:$P108))), 0),"Non requis") -> 3833 | R108: =IF(INTRO!$E$43="Endémique", IF($K108>1, IF($K108=4, "Inconnu", IF($K108=99, "Surveillance", ROUND(E108*0.75,0))), 0),"Non requis") -> 628 | S108: =IF(INTRO!$E$43="Endémique", IF($K108>1, IF($K108=4, "Inconnu", IF($K108=99, "Surveillance", F108)), 0),"Non requis") -> 1612 | T108: =IF(INTRO!$E$43="Endémique", IF($K108>1, IF($K108=4, "Inconnu", IF($K108=99, "Surveillance", G108)), 0),"Non requis") -> 3564 | U108: =IF(INTRO!$E$43="Endémique", IF($K108>1, IF($K108=4, "Inconnu", IF($K108=99, "Surveillance", SUM($R108:$T108))), 0),"Non requis") -> 5804 | V108: 1 | W108: 0 | X108: 2 | Y108: 1 | AF108: 23689 | AG108: Bará
A109: =IF(INTRO!$E$33<>0,INTRO!$E$33, " ") -> Guinée Bissau | B109: Cacheu | C109: Barro | D109: 9198 | E109: =IF(INTRO!$E$48="","",ROUND($D109*INTRO!$E$48,0)) -> 1223 | F109: =IF(INTRO!$E$49="","",ROUND($D109*INTRO!$E$49,0)) -> 2357 | G109: =IF(INTRO!$E$50="","",ROUND($D109*INTRO!$E$50,0)) -> 5211 | H109: 1 | I109: 4 | J109: 3 | K109: 2 | L109: =IF(INTRO!$E$37="Endémique",IF($H109>0,IF($H109=4,"Inconnu",IF($H109=99,"Interrompu",$D109)),0),"Non requis") -> 9198 | M109: =IF(INTRO!$E$39="Endémique", IF($I109>0, IF($I109=4,"Inconnu",IF($I109=99,"Interrompu",$D109)), 0),"Non requis") -> Inconnu | N109: =IF(INTRO!$E$41="Endémique", IF($J109>1, IF($J109=4, "Inconnu", IF($J109=99, "Surveillance", E109)), 0),"Non requis") -> 1223 | O109: =IF(INTRO!$E$41="Endémique", IF($J109>1, IF($J109=4, "Inconnu", IF($J109=99, "Surveillance", F109)), 0),"Non requis") -> 2357 | P109: =IF(INTRO!$E$41="Endémique", IF($J109>1, IF($J109=4, "Inconnu", IF($J109=99, "Surveillance", ROUND(D109*INTRO!$E$51,0))), 0),"Non requis") -> 2024 | Q109: =IF(INTRO!$E$41="Endémique", IF($J109>1, IF($J109=4, "Inconnu", IF($J109=99, "Surveillance", SUM($N109:$P109))), 0),"Non requis") -> 5604 | R109: =IF(INTRO!$E$43="Endémique", IF($K109>1, IF($K109=4, "Inconnu", IF($K109=99, "Surveillance", ROUND(E109*0.75,0))), 0),"Non requis") -> 917 | S109: =IF(INTRO!$E$43="Endémique", IF($K109>1, IF($K109=4, "Inconnu", IF($K109=99, "Surveillance", F109)), 0),"Non requis") -> 2357 | T109: =IF(INTRO!$E$43="Endémique", IF($K109>1, IF($K109=4, "Inconnu", IF($K109=99, "Surveillance", G109)), 0),"Non requis") -> 5211 | U109: =IF(INTRO!$E$43="Endémique", IF($K109>1, IF($K109=4, "Inconnu", IF($K109=99, "Surveillance", SUM($R109:$T109))), 0),"Non requis") -> 8485 | V109: 1 | W109: 0 | X109: 2 | Y109: 1 | AF109: 23688 | AG109: Barro
A110: =IF(INTRO!$E$33<>0,INTRO!$E$33, " ") -> Guinée Bissau | B110: Cacheu | C110: Batucar | D110: 7493 | E110: =IF(INTRO!$E$48="","",ROUND($D110*INTRO!$E$48,0)) -> 997 | F110: =IF(INTRO!$E$49="","",ROUND($D110*INTRO!$E$49,0)) -> 1920 | G110: =IF(INTRO!$E$50="","",ROUND($D110*INTRO!$E$50,0)) -> 4245 | H110: 1 | I110: 4 | J110: 3 | K110: 2 | L110: =IF(INTRO!$E$37="Endémique",IF($H110>0,IF($H110=4,"Inconnu",IF($H110=99,"Interrompu",$D110)),0),"Non requis") -> 7493 | M110: =IF(INTRO!$E$39="Endémique", IF($I110>0, IF($I110=4,"Inconnu",IF($I110=99,"Interrompu",$D110)), 0),"Non requis") -> Inconnu | N110: =IF(INTRO!$E$41="Endémique", IF($J110>1, IF($J110=4, "Inconnu", IF($J110=99, "Surveillance", E110)), 0),"Non requis") -> 997 | O110: =IF(INTRO!$E$41="Endémique", IF($J110>1, IF($J110=4, "Inconnu", IF($J110=99, "Surveillance", F110)), 0),"Non requis") -> 1920 | P110: =IF(INTRO!$E$41="Endémique", IF($J110>1, IF($J110=4, "Inconnu", IF($J110=99, "Surveillance", ROUND(D110*INTRO!$E$51,0))), 0),"Non requis") -> 1648 | Q110: =IF(INTRO!$E$41="Endémique", IF($J110>1, IF($J110=4, "Inconnu", IF($J110=99, "Surveillance", SUM($N110:$P110))), 0),"Non requis") -> 4565 | R110: =IF(INTRO!$E$43="Endémique", IF($K110>1, IF($K110=4, "Inconnu", IF($K110=99, "Surveillance", ROUND(E110*0.75,0))), 0),"Non requis") -> 748 | S110: =IF(INTRO!$E$43="Endémique", IF($K110>1, IF($K110=4, "Inconnu", IF($K110=99, "Surveillance", F110)), 0),"Non requis") -> 1920 | T110: =IF(INTRO!$E$43="Endémique", IF($K110>1, IF($K110=4, "Inconnu", IF($K110=99, "Surveillance", G110)), 0),"Non requis") -> 4245 | U110: =IF(INTRO!$E$43="Endémique", IF($K110>1, IF($K110=4, "Inconnu", IF($K110=99, "Surveillance", SUM($R110:$T110))), 0),"Non requis") -> 6913 | V110: 1 | W110: 0 | X110: 2 | Y110: 1 | AF110: 23690 | AG110: Batucar
A111: =IF(INTRO!$E$33<>0,INTRO!$E$33, " ") -> Guinée Bissau | B111: Cacheu | C111: Begene | D111: 16762 | E111: =IF(INTRO!$E$48="","",ROUND($D111*INTRO!$E$48,0)) -> 2229 | F111: =IF(INTRO!$E$49="","",ROUND($D111*INTRO!$E$49,0)) -> 4294 | G111: =IF(INTRO!$E$50="","",ROUND($D111*INTRO!$E$50,0)) -> 9496 | H111: 1 | I111: 4 | J111: 3 | K111: 2 | L111: =IF(INTRO!$E$37="Endémique",IF($H111>0,IF($H111=4,"Inconnu",IF($H111=99,"Interrompu",$D111)),0),"Non requis") -> 16762 | M111: =IF(INTRO!$E$39="Endémique", IF($I111>0, IF($I111=4,"Inconnu",IF($I111=99,"Interrompu",$D111)), 0),"Non requis") -> Inconnu | N111: =IF(INTRO!$E$41="Endémique", IF($J111>1, IF($J111=4, "Inconnu", IF($J111=99, "Surveillance", E111)), 0),"Non requis") -> 2229 | O111: =IF(INTRO!$E$41="Endémique", IF($J111>1, IF($J111=4, "Inconnu", IF($J111=99, "Surveillance", F111)), 0),"Non requis") -> 4294 | P111: =IF(INTRO!$E$41="Endémique", IF($J111>1, IF($J111=4, "Inconnu", IF($J111=99, "Surveillance", ROUND(D111*INTRO!$E$51,0))), 0),"Non requis") -> 3688 | Q111: =IF(INTRO!$E$41="Endémique", IF($J111>1, IF($J111=4, "Inconnu", IF($J111=99, "Surveillance", SUM($N111:$P111))), 0),"Non requis") -> 10211 | R111: =IF(INTRO!$E$43="Endémique", IF($K111>1, IF($K111=4, "Inconnu", IF($K111=99, "Surveillance", ROUND(E111*0.75,0))), 0),"Non requis") -> 1672 | S111: =IF(INTRO!$E$43="Endémique", IF($K111>1, IF($K111=4, "Inconnu", IF($K111=99, "Surveillance", F111)), 0),"Non requis") -> 4294 | T111: =IF(INTRO!$E$43="Endémique", IF($K111>1, IF($K111=4, "Inconnu", IF($K111=99, "Surveillance", G111)), 0),"Non requis") -> 9496 | U111: =IF(INTRO!$E$43="Endémique", IF($K111>1, IF($K111=4, "Inconnu", IF($K111=99, "Surveillance", SUM($R111:$T111))), 0),"Non requis") -> 15462 | V111: 1 | W111: 0 | X111: 2 | Y111: 1 | AF111: 23691 | AG111: Begene
A112: =IF(INTRO!$E$33<>0,INTRO!$E$33, " ") -> Guinée Bissau | B112: Cacheu | C112: Bula | D112: 24311 | E112: =IF(INTRO!$E$48="","",ROUND($D112*INTRO!$E$48,0)) -> 3233 | F112: =IF(INTRO!$E$49="","",ROUND($D112*INTRO!$E$49,0)) -> 6228 | G112: =IF(INTRO!$E$50="","",ROUND($D112*INTRO!$E$50,0)) -> 13772 | H112: 1 | I112: 4 | J112: 1 | K112: 0 | L112: =IF(INTRO!$E$37="Endémique",IF($H112>0,IF($H112=4,"Inconnu",IF($H112=99,"Interrompu",$D112)),0),"Non requis") -> 24311 | M112: =IF(INTRO!$E$39="Endémique", IF($I112>0, IF($I112=4,"Inconnu",IF($I112=99,"Interrompu",$D112)), 0),"Non requis") -> Inconnu | N112: =IF(INTRO!$E$41="Endémique", IF($J112>1, IF($J112=4, "Inconnu", IF($J112=99, "Surveillance", E112)), 0),"Non requis") -> 0 | O112: =IF(INTRO!$E$41="Endémique", IF($J112>1, IF($J112=4, "Inconnu", IF($J112=99, "Surveillance", F112)), 0),"Non requis") -> 0 | P112: =IF(INTRO!$E$41="Endémique", IF($J112>1, IF($J112=4, "Inconnu", IF($J112=99, "Surveillance", ROUND(D112*INTRO!$E$51,0))), 0),"Non requis") -> 0 | Q112: =IF(INTRO!$E$41="Endémique", IF($J112>1, IF($J112=4, "Inconnu", IF($J112=99, "Surveillance", SUM($N112:$P112))), 0),"Non requis") -> 0 | R112: =IF(INTRO!$E$43="Endémique", IF($K112>1, IF($K112=4, "Inconnu", IF($K112=99, "Surveillance", ROUND(E112*0.75,0))), 0),"Non requis") -> 0 | S112: =IF(INTRO!$E$43="Endémique", IF($K112>1, IF($K112=4, "Inconnu", IF($K112=99, "Surveillance", F112)), 0),"Non requis") -> 0 | T112: =IF(INTRO!$E$43="Endémique", IF($K112>1, IF($K112=4, "Inconnu", IF($K112=99, "Surveillance", G112)), 0),"Non requis") -> 0 | U112: =IF(INTRO!$E$43="Endémique", IF($K112>1, IF($K112=4, "Inconnu", IF($K112=99, "Surveillance", SUM($R112:$T112))), 0),"Non requis") -> 0 | V112: 1 | W112: 0 | X112: 0 | Y112: 0 | AF112: 23685 | AG112: Bula
A113: =IF(INTRO!$E$33<>0,INTRO!$E$33, " ") -> Guinée Bissau | B113: Cacheu | C113: Cacheu | D113: 14627 | E113: =IF(INTRO!$E$48="","",ROUND($D113*INTRO!$E$48,0)) -> 1945 | F113: =IF(INTRO!$E$49="","",ROUND($D113*INTRO!$E$49,0)) -> 3747 | G113: =IF(INTRO!$E$50="","",ROUND($D113*INTRO!$E$50,0)) -> 8286 | H113: 1 | I113: 4 | J113: 1 | K113: 0 | L113: =IF(INTRO!$E$37="Endémique",IF($H113>0,IF($H113=4,"Inconnu",IF($H113=99,"Interrompu",$D113)),0),"Non requis") -> 14627 | M113: =IF(INTRO!$E$39="Endémique", IF($I113>0, IF($I113=4,"Inconnu",IF($I113=99,"Interrompu",$D113)), 0),"Non requis") -> Inconnu | N113: =IF(INTRO!$E$41="Endémique", IF($J113>1, IF($J113=4, "Inconnu", IF($J113=99, "Surveillance", E113)), 0),"Non requis") -> 0 | O113: =IF(INTRO!$E$41="Endémique", IF($J113>1, IF($J113=4, "Inconnu", IF($J113=99, "Surveillance", F113)), 0),"Non requis") -> 0 | P113: =IF(INTRO!$E$41="Endémique", IF($J113>1, IF($J113=4, "Inconnu", IF($J113=99, "Surveillance", ROUND(D113*INTRO!$E$51,0))), 0),"Non requis") -> 0 | Q113: =IF(INTRO!$E$41="Endémique", IF($J113>1, IF($J113=4, "Inconnu", IF($J113=99, "Surveillance", SUM($N113:$P113))), 0),"Non requis") -> 0 | R113: =IF(INTRO!$E$43="Endémique", IF($K113>1, IF($K113=4, "Inconnu", IF($K113=99, "Surveillance", ROUND(E113*0.75,0))), 0),"Non requis") -> 0 | S113: =IF(INTRO!$E$43="Endémique", IF($K113>1, IF($K113=4, "Inconnu", IF($K113=99, "Surveillance", F113)), 0),"Non requis") -> 0 | T113: =IF(INTRO!$E$43="Endémique", IF($K113>1, IF($K113=4, "Inconnu", IF($K113=99, "Surveillance", G113)), 0),"Non requis") -> 0 | U113: =IF(INTRO!$E$43="Endémique", IF($K113>1, IF($K113=4, "Inconnu", IF($K113=99, "Surveillance", SUM($R113:$T113))), 0),"Non requis") -> 0 | V113: 1 | W113: 0 | X113: 0 | Y113: 0 | AF113: 23692 | AG113: Cacheu
A114: =IF(INTRO!$E$33<>0,INTRO!$E$33, " ") -> Guinée Bissau | B114: Cacheu | C114: Caió | D114: 11230 | E114: =IF(INTRO!$E$48="","",ROUND($D114*INTRO!$E$48,0)) -> 1494 | F114: =IF(INTRO!$E$49="","",ROUND($D114*INTRO!$E$49,0)) -> 2877 | G114: =IF(INTRO!$E$50="","",ROUND($D114*INTRO!$E$50,0)) -> 6362 | H114: 1 | I114: 4 | J114: 1 | K114: 0 | L114: =IF(INTRO!$E$37="Endémique",IF($H114>0,IF($H114=4,"Inconnu",IF($H114=99,"Interrompu",$D114)),0),"Non requis") -> 11230 | M114: =IF(INTRO!$E$39="Endémique", IF($I114>0, IF($I114=4,"Inconnu",IF($I114=99,"Interrompu",$D114)), 0),"Non requis") -> Inconnu | N114: =IF(INTRO!$E$41="Endémique", IF($J114>1, IF($J114=4, "Inconnu", IF($J114=99, "Surveillance", E114)), 0),"Non requis") -> 0 | O114: =IF(INTRO!$E$41="Endémique", IF($J114>1, IF($J114=4, "Inconnu", IF($J114=99, "Surveillance", F114)), 0),"Non requis") -> 0 | P114: =IF(INTRO!$E$41="Endémique", IF($J114>1, IF($J114=4, "Inconnu", IF($J114=99, "Surveillance", ROUND(D114*INTRO!$E$51,0))), 0),"Non requis") -> 0 | Q114: =IF(INTRO!$E$41="Endémique", IF($J114>1, IF($J114=4, "Inconnu", IF($J114=99, "Surveillance", SUM($N114:$P114))), 0),"Non requis") -> 0 | R114: =IF(INTRO!$E$43="Endémique", IF($K114>1, IF($K114=4, "Inconnu", IF($K114=99, "Surveillance", ROUND(E114*0.75,0))), 0),"Non requis") -> 0 | S114: =IF(INTRO!$E$43="Endémique", IF($K114>1, IF($K114=4, "Inconnu", IF($K114=99, "Surveillance", F114)), 0),"Non requis") -> 0 | T114: =IF(INTRO!$E$43="Endémique", IF($K114>1, IF($K114=4, "Inconnu", IF($K114=99, "Surveillance", G114)), 0),"Non requis") -> 0 | U114: =IF(INTRO!$E$43="Endémique", IF($K114>1, IF($K114=4, "Inconnu", IF($K114=99, "Surveillance", SUM($R114:$T114))), 0),"Non requis") -> 0 | V114: 1 | W114: 0 | X114: 0 | Y114: 0 | AF114: 23693 | AG114: Caió
A115: =IF(INTRO!$E$33<>0,INTRO!$E$33, " ") -> Guinée Bissau | B115: Cacheu | C115: Calequisse | D115: 10119 | E115: =IF(INTRO!$E$48="","",ROUND($D115*INTRO!$E$48,0)) -> 1346 | F115: =IF(INTRO!$E$49="","",ROUND($D115*INTRO!$E$49,0)) -> 2592 | G115: =IF(INTRO!$E$50="","",ROUND($D115*INTRO!$E$50,0)) -> 5732 | H115: 1 | I115: 4 | J115: 1 | K115: 0 | L115: =IF(INTRO!$E$37="Endémique",IF($H115>0,IF($H115=4,"Inconnu",IF($H115=99,"Interrompu",$D115)),0),"Non requis") -> 10119 | M115: =IF(INTRO!$E$39="Endémique", IF($I115>0, IF($I115=4,"Inconnu",IF($I115=99,"Interrompu",$D115)), 0),"Non requis") -> Inconnu | N115: =IF(INTRO!$E$41="Endémique", IF($J115>1, IF($J115=4, "Inconnu", IF($J115=99, "Surveillance", E115)), 0),"Non requis") -> 0 | O115: =IF(INTRO!$E$41="Endémique", IF($J115>1, IF($J115=4, "Inconnu", IF($J115=99, "Surveillance", F115)), 0),"Non requis") -> 0 | P115: =IF(INTRO!$E$41="Endémique", IF($J115>1, IF($J115=4, "Inconnu", IF($J115=99, "Surveillance", ROUND(D115*INTRO!$E$51,0))), 0),"Non requis") -> 0 | Q115: =IF(INTRO!$E$41="Endémique", IF($J115>1, IF($J115=4, "Inconnu", IF($J115=99, "Surveillance", SUM($N115:$P115))), 0),"Non requis") -> 0 | R115: =IF(INTRO!$E$43="Endémique", IF($K115>1, IF($K115=4, "Inconnu", IF($K115=99, "Surveillance", ROUND(E115*0.75,0))), 0),"Non requis") -> 0 | S115: =IF(INTRO!$E$43="Endémique", IF($K115>1, IF($K115=4, "Inconnu", IF($K115=99, "Surveillance", F115)), 0),"Non requis") -> 0 | T115: =IF(INTRO!$E$43="Endémique", IF($K115>1, IF($K115=4, "Inconnu", IF($K115=99, "Surveillance", G115)), 0),"Non requis") -> 0 | U115: =IF(INTRO!$E$43="Endémique", IF($K115>1, IF($K115=4, "Inconnu", IF($K115=99, "Surveillance", SUM($R115:$T115))), 0),"Non requis") -> 0 | V115: 1 | W115: 0 | X115: 0 | Y115: 0 | AF115: 23686 | AG115: Calequisse
A116: =IF(INTRO!$E$33<>0,INTRO!$E$33, " ") -> Guinée Bissau | B116: Cacheu | C116: Canchungo | D116: 22385 | E116: =IF(INTRO!$E$48="","",ROUND($D116*INTRO!$E$48,0)) -> 2977 | F116: =IF(INTRO!$E$49="","",ROUND($D116*INTRO!$E$49,0)) -> 5735 | G116: =IF(INTRO!$E$50="","",ROUND($D116*INTRO!$E$50,0)) -> 12681 | H116: 1 | I116: 4 | J116: 1 | K116: 0 | L116: =IF(INTRO!$E$37="Endémique",IF($H116>0,IF($H116=4,"Inconnu",IF($H116=99,"Interrompu",$D116)),0),"Non requis") -> 22385 | M116: =IF(INTRO!$E$39="Endémique", IF($I116>0, IF($I116=4,"Inconnu",IF($I116=99,"Interrompu",$D116)), 0),"Non requis") -> Inconnu | N116: =IF(INTRO!$E$41="Endémique", IF($J116>1, IF($J116=4, "Inconnu", IF($J116=99, "Surveillance", E116)), 0),"Non requis") -> 0 | O116: =IF(INTRO!$E$41="Endémique", IF($J116>1, IF($J116=4, "Inconnu", IF($J116=99, "Surveillance", F116)), 0),"Non requis") -> 0 | P116: =IF(INTRO!$E$41="Endémique", IF($J116>1, IF($J116=4, "Inconnu", IF($J116=99, "Surveillance", ROUND(D116*INTRO!$E$51,0))), 0),"Non requis") -> 0 | Q116: =IF(INTRO!$E$41="Endémique", IF($J116>1, IF($J116=4, "Inconnu", IF($J116=99, "Surveillance", SUM($N116:$P116))), 0),"Non requis") -> 0 | R116: =IF(INTRO!$E$43="Endémique", IF($K116>1, IF($K116=4, "Inconnu", IF($K116=99, "Surveillance", ROUND(E116*0.75,0))), 0),"Non requis") -> 0 | S116: =IF(INTRO!$E$43="Endémique", IF($K116>1, IF($K116=4, "Inconnu", IF($K116=99, "Surveillance", F116)), 0),"Non requis") -> 0 | T116: =IF(INTRO!$E$43="Endémique", IF($K116>1, IF($K116=4, "Inconnu", IF($K116=99, "Surveillance", G116)), 0),"Non requis") -> 0 | U116: =IF(INTRO!$E$43="Endémique", IF($K116>1, IF($K116=4, "Inconnu", IF($K116=99, "Surveillance", SUM($R116:$T116))), 0),"Non requis") -> 0 | V116: 1 | W116: 0 | X116: 0 | Y116: 0 | AF116: 23694 | AG116: Canchungo
A117: =IF(INTRO!$E$33<>0,INTRO!$E$33, " ") -> Guinée Bissau | B117: Cacheu | C117: Carenque | D117: 9777 | E117: =IF(INTRO!$E$48="","",ROUND($D117*INTRO!$E$48,0)) -> 1300 | F117: =IF(INTRO!$E$49="","",ROUND($D117*INTRO!$E$49,0)) -> 2505 | G117: =IF(INTRO!$E$50="","",ROUND($D117*INTRO!$E$50,0)) -> 5539 | H117: 1 | I117: 4 | J117: 3 | K117: 2 | L117: =IF(INTRO!$E$37="Endémique",IF($H117>0,IF($H117=4,"Inconnu",IF($H117=99,"Interrompu",$D117)),0),"Non requis") -> 9777 | M117: =IF(INTRO!$E$39="Endémique", IF($I117>0, IF($I117=4,"Inconnu",IF($I117=99,"Interrompu",$D117)), 0),"Non requis") -> Inconnu | N117: =IF(INTRO!$E$41="Endémique", IF($J117>1, IF($J117=4, "Inconnu", IF($J117=99, "Surveillance", E117)), 0),"Non requis") -> 1300 | O117: =IF(INTRO!$E$41="Endémique", IF($J117>1, IF($J117=4, "Inconnu", IF($J117=99, "Surveillance", F117)), 0),"Non requis") -> 2505 | P117: =IF(INTRO!$E$41="Endémique", IF($J117>1, IF($J117=4, "Inconnu", IF($J117=99, "Surveillance", ROUND(D117*INTRO!$E$51,0))), 0),"Non requis") -> 2151 | Q117: =IF(INTRO!$E$41="Endémique", IF($J117>1, IF($J117=4, "Inconnu", IF($J117=99, "Surveillance", SUM($N117:$P117))), 0),"Non requis") -> 5956 | R117: =IF(INTRO!$E$43="Endémique", IF($K117>1, IF($K117=4, "Inconnu", IF($K117=99, "Surveillance", ROUND(E117*0.75,0))), 0),"Non requis") -> 975 | S117: =IF(INTRO!$E$43="Endémique", IF($K117>1, IF($K117=4, "Inconnu", IF($K117=99, "Surveillance", F117)), 0),"Non requis") -> 2505 | T117: =IF(INTRO!$E$43="Endémique", IF($K117>1, IF($K117=4, "Inconnu", IF($K117=99, "Surveillance", G117)), 0),"Non requis") -> 5539 | U117: =IF(INTRO!$E$43="Endémique", IF($K117>1, IF($K117=4, "Inconnu", IF($K117=99, "Surveillance", SUM($R117:$T117))), 0),"Non requis") -> 9019 | V117: 1 | W117: 0 | X117: 2 | Y117: 1 | AF117: 23695 | AG117: Carenque
A118: =IF(INTRO!$E$33<>0,INTRO!$E$33, " ") -> Guinée Bissau | B118: Cacheu | C118: Có | D118: 7943 | E118: =IF(INTRO!$E$48="","",ROUND($D118*INTRO!$E$48,0)) -> 1056 | F118: =IF(INTRO!$E$49="","",ROUND($D118*INTRO!$E$49,0)) -> 2035 | G118: =IF(INTRO!$E$50="","",ROUND($D118*INTRO!$E$50,0)) -> 4500 | H118: 1 | I118: 4 | J118: 3 | K118: 2 | L118: =IF(INTRO!$E$37="Endémique",IF($H118>0,IF($H118=4,"Inconnu",IF($H118=99,"Interrompu",$D118)),0),"Non requis") -> 7943 | M118: =IF(INTRO!$E$39="Endémique", IF($I118>0, IF($I118=4,"Inconnu",IF($I118=99,"Interrompu",$D118)), 0),"Non requis") -> Inconnu | N118: =IF(INTRO!$E$41="Endémique", IF($J118>1, IF($J118=4, "Inconnu", IF($J118=99, "Surveillance", E118)), 0),"Non requis") -> 1056 | O118: =IF(INTRO!$E$41="Endémique", IF($J118>1, IF($J118=4, "Inconnu", IF($J118=99, "Surveillance", F118)), 0),"Non requis") -> 2035 | P118: =IF(INTRO!$E$41="Endémique", IF($J118>1, IF($J118=4, "Inconnu", IF($J118=99, "Surveillance", ROUND(D118*INTRO!$E$51,0))), 0),"Non requis") -> 1747 | Q118: =IF(INTRO!$E$41="Endémique", IF($J118>1, IF($J118=4, "Inconnu", IF($J118=99, "Surveillance", SUM($N118:$P118))), 0),"Non requis") -> 4838 | R118: =IF(INTRO!$E$43="Endémique", IF($K118>1, IF($K118=4, "Inconnu", IF($K118=99, "Surveillance", ROUND(E118*0.75,0))), 0),"Non requis") -> 792 | S118: =IF(INTRO!$E$43="Endémique", IF($K118>1, IF($K118=4, "Inconnu", IF($K118=99, "Surveillance", F118)), 0),"Non requis") -> 2035 | T118: =IF(INTRO!$E$43="Endémique", IF($K118>1, IF($K118=4, "Inconnu", IF($K118=99, "Surveillance", G118)), 0),"Non requis") -> 4500 | U118: =IF(INTRO!$E$43="Endémique", IF($K118>1, IF($K118=4, "Inconnu", IF($K118=99, "Surveillance", SUM($R118:$T118))), 0),"Non requis") -> 7327 | V118: 1 | W118: 0 | X118: 2 | Y118: 1 | AF118: 23761 | AG118: Có
A119: =IF(INTRO!$E$33<>0,INTRO!$E$33, " ") -> Guinée Bissau | B119: Cacheu | C119: Ingoré | D119: 27175 | E119: =IF(INTRO!$E$48="","",ROUND($D119*INTRO!$E$48,0)) -> 3614 | F119: =IF(INTRO!$E$49="","",ROUND($D119*INTRO!$E$49,0)) -> 6962 | G119: =IF(INTRO!$E$50="","",ROUND($D119*INTRO!$E$50,0)) -> 15395 | H119: 1 | I119: 4 | J119: 1 | K119: 0 | L119: =IF(INTRO!$E$37="Endémique",IF($H119>0,IF($H119=4,"Inconnu",IF($H119=99,"Interrompu",$D119)),0),"Non requis") -> 27175 | M119: =IF(INTRO!$E$39="Endémique", IF($I119>0, IF($I119=4,"Inconnu",IF($I119=99,"Interrompu",$D119)), 0),"Non requis") -> Inconnu | N119: =IF(INTRO!$E$41="Endémique", IF($J119>1, IF($J119=4, "Inconnu", IF($J119=99, "Surveillance", E119)), 0),"Non requis") -> 0 | O119: =IF(INTRO!$E$41="Endémique", IF($J119>1, IF($J119=4, "Inconnu", IF($J119=99, "Surveillance", F119)), 0),"Non requis") -> 0 | P119: =IF(INTRO!$E$41="Endémique", IF($J119>1, IF($J119=4, "Inconnu", IF($J119=99, "Surveillance", ROUND(D119*INTRO!$E$51,0))), 0),"Non requis") -> 0 | Q119: =IF(INTRO!$E$41="Endémique", IF($J119>1, IF($J119=4, "Inconnu", IF($J119=99, "Surveillance", SUM($N119:$P119))), 0),"Non requis") -> 0 | R119: =IF(INTRO!$E$43="Endémique", IF($K119>1, IF($K119=4, "Inconnu", IF($K119=99, "Surveillance", ROUND(E119*0.75,0))), 0),"Non requis") -> 0 | S119: =IF(INTRO!$E$43="Endémique", IF($K119>1, IF($K119=4, "Inconnu", IF($K119=99, "Surveillance", F119)), 0),"Non requis") -> 0 | T119: =IF(INTRO!$E$43="Endémique", IF($K119>1, IF($K119=4, "Inconnu", IF($K119=99, "Surveillance", G119)), 0),"Non requis") -> 0 | U119: =IF(INTRO!$E$43="Endémique", IF($K119>1, IF($K119=4, "Inconnu", IF($K119=99, "Surveillance", SUM($R119:$T119))), 0),"Non requis") -> 0 | V119: 1 | W119: 0 | X119: 0 | Y119: 0 | AF119: 23696 | AG119: Ingoré
A120: =IF(INTRO!$E$33<>0,INTRO!$E$33, " ") -> Guinée Bissau | B120: Cacheu | C120: Jeta | D120: 2029 | E120: =IF(INTRO!$E$48="","",ROUND($D120*INTRO!$E$48,0)) -> 270 | F120: =IF(INTRO!$E$49="","",ROUND($D120*INTRO!$E$49,0)) -> 520 | G120: =IF(INTRO!$E$50="","",ROUND($D120*INTRO!$E$50,0)) -> 1149 | H120: 1 | I120: 4 | J120: 3 | K120: 2 | L120: =IF(INTRO!$E$37="Endémique",IF($H120>0,IF($H120=4,"Inconnu",IF($H120=99,"Interrompu",$D120)),0),"Non requis") -> 2029 | M120: =IF(INTRO!$E$39="Endémique", IF($I120>0, IF($I120=4,"Inconnu",IF($I120=99,"Interrompu",$D120)), 0),"Non requis") -> Inconnu | N120: =IF(INTRO!$E$41="Endémique", IF($J120>1, IF($J120=4, "Inconnu", IF($J120=99, "Surveillance", E120)), 0),"Non requis") -> 270 | O120: =IF(INTRO!$E$41="Endémique", IF($J120>1, IF($J120=4, "Inconnu", IF($J120=99, "Surveillance", F120)), 0),"Non requis") -> 520 | P120: =IF(INTRO!$E$41="Endémique", IF($J120>1, IF($J120=4, "Inconnu", IF($J120=99, "Surveillance", ROUND(D120*INTRO!$E$51,0))), 0),"Non requis") -> 446 | Q120: =IF(INTRO!$E$41="Endémique", IF($J120>1, IF($J120=4, "Inconnu", IF($J120=99, "Surveillance", SUM($N120:$P120))), 0),"Non requis") -> 1236 | R120: =IF(INTRO!$E$43="Endémique", IF($K120>1, IF($K120=4, "Inconnu", IF($K120=99, "Surveillance", ROUND(E120*0.75,0))), 0),"Non requis") -> 203 | S120: =IF(INTRO!$E$43="Endémique", IF($K120>1, IF($K120=4, "Inconnu", IF($K120=99, "Surveillance", F120)), 0),"Non requis") -> 520 | T120: =IF(INTRO!$E$43="Endémique", IF($K120>1, IF($K120=4, "Inconnu", IF($K120=99, "Surveillance", G120)), 0),"Non requis") -> 1149 | U120: =IF(INTRO!$E$43="Endémique", IF($K120>1, IF($K120=4, "Inconnu", IF($K120=99, "Surveillance", SUM($R120:$T120))), 0),"Non requis") -> 1872 | V120: 1 | W120: 0 | X120: 2 | Y120: 1 | AF120: 23697 | AG120: Jeta
A121: =IF(INTRO!$E$33<>0,INTRO!$E$33, " ") -> Guinée Bissau | B121: Cacheu | C121: Pecixe | D121: 7715 | E121: =IF(INTRO!$E$48="","",ROUND($D121*INTRO!$E$48,0)) -> 1026 | F121: =IF(INTRO!$E$49="","",ROUND($D121*INTRO!$E$49,0)) -> 1977 | G121: =IF(INTRO!$E$50="","",ROUND($D121*INTRO!$E$50,0)) -> 4371 | H121: 1 | I121: 4 | J121: 3 | K121: 2 | L121: =IF(INTRO!$E$37="Endémique",IF($H121>0,IF($H121=4,"Inconnu",IF($H121=99,"Interrompu",$D121)),0),"Non requis") -> 7715 | M121: =IF(INTRO!$E$39="Endémique", IF($I121>0, IF($I121=4,"Inconnu",IF($I121=99,"Interrompu",$D121)), 0),"Non requis") -> Inconnu | N121: =IF(INTRO!$E$41="Endémique", IF($J121>1, IF($J121=4, "Inconnu", IF($J121=99, "Surveillance", E121)), 0),"Non requis") -> 1026 | O121: =IF(INTRO!$E$41="Endémique", IF($J121>1, IF($J121=4, "Inconnu", IF($J121=99, "Surveillance", F121)), 0),"Non requis") -> 1977 | P121: =IF(INTRO!$E$41="Endémique", IF($J121>1, IF($J121=4, "Inconnu", IF($J121=99, "Surveillance", ROUND(D121*INTRO!$E$51,0))), 0),"Non requis") -> 1697 | Q121: =IF(INTRO!$E$41="Endémique", IF($J121>1, IF($J121=4, "Inconnu", IF($J121=99, "Surveillance", SUM($N121:$P121))), 0),"Non requis") -> 4700 | R121: =IF(INTRO!$E$43="Endémique", IF($K121>1, IF($K121=4, "Inconnu", IF($K121=99, "Surveillance", ROUND(E121*0.75,0))), 0),"Non requis") -> 770 | S121: =IF(INTRO!$E$43="Endémique", IF($K121>1, IF($K121=4, "Inconnu", IF($K121=99, "Surveillance", F121)), 0),"Non requis") -> 1977 | T121: =IF(INTRO!$E$43="Endémique", IF($K121>1, IF($K121=4, "Inconnu", IF($K121=99, "Surveillance", G121)), 0),"Non requis") -> 4371 | U121: =IF(INTRO!$E$43="Endémique", IF($K121>1, IF($K121=4, "Inconnu", IF($K121=99, "Surveillance", SUM($R121:$T121))), 0),"Non requis") -> 7118 | V121: 1 | W121: 0 | X121: 2 | Y121: 1 | AF121: 23698 | AG121: Pecixe
A122: =IF(INTRO!$E$33<>0,INTRO!$E$33, " ") -> Guinée Bissau | B122: Cacheu | C122: Pelundo | D122: 12939 | E122: =IF(INTRO!$E$48="","",ROUND($D122*INTRO!$E$48,0)) -> 1721 | F122: =IF(INTRO!$E$49="","",ROUND($D122*INTRO!$E$49,0)) -> 3315 | G122: =IF(INTRO!$E$50="","",ROUND($D122*INTRO!$E$50,0)) -> 7330 | H122: 1 | I122: 4 | J122: 3 | K122: 2 | L122: =IF(INTRO!$E$37="Endémique",IF($H122>0,IF($H122=4,"Inconnu",IF($H122=99,"Interrompu",$D122)),0),"Non requis") -> 12939 | M122: =IF(INTRO!$E$39="Endémique", IF($I122>0, IF($I122=4,"Inconnu",IF($I122=99,"Interrompu",$D122)), 0),"Non requis") -> Inconnu | N122: =IF(INTRO!$E$41="Endémique", IF($J122>1, IF($J122=4, "Inconnu", IF($J122=99, "Surveillance", E122)), 0),"Non requis") -> 1721 | O122: =IF(INTRO!$E$41="Endémique", IF($J122>1, IF($J122=4, "Inconnu", IF($J122=99, "Surveillance", F122)), 0),"Non requis") -> 3315 | P122: =IF(INTRO!$E$41="Endémique", IF($J122>1, IF($J122=4, "Inconnu", IF($J122=99, "Surveillance", ROUND(D122*INTRO!$E$51,0))), 0),"Non requis") -> 2847 | Q122: =IF(INTRO!$E$41="Endémique", IF($J122>1, IF($J122=4, "Inconnu", IF($J122=99, "Surveillance", SUM($N122:$P122))), 0),"Non requis") -> 7883 | R122: =IF(INTRO!$E$43="Endémique", IF($K122>1, IF($K122=4, "Inconnu", IF($K122=99, "Surveillance", ROUND(E122*0.75,0))), 0),"Non requis") -> 1291 | S122: =IF(INTRO!$E$43="Endémique", IF($K122>1, IF($K122=4, "Inconnu", IF($K122=99, "Surveillance", F122)), 0),"Non requis") -> 3315 | T122: =IF(INTRO!$E$43="Endémique", IF($K122>1, IF($K122=4, "Inconnu", IF($K122=99, "Surveillance", G122)), 0),"Non requis") -> 7330 | U122: =IF(INTRO!$E$43="Endémique", IF($K122>1, IF($K122=4, "Inconnu", IF($K122=99, "Surveillance", SUM($R122:$T122))), 0),"Non requis") -> 11936 | V122: 1 | W122: 0 | X122: 2 | Y122: 1 | AF122: 23699 | AG122: Pelundo
A123: =IF(INTRO!$E$33<>0,INTRO!$E$33, " ") -> Guinée Bissau | B123: Cacheu | C123: S.Domingos | D123: 22361 | E123: =IF(INTRO!$E$48="","",ROUND($D123*INTRO!$E$48,0)) -> 2974 | F123: =IF(INTRO!$E$49="","",ROUND($D123*INTRO!$E$49,0)) -> 5729 | G123: =IF(INTRO!$E$50="","",ROUND($D123*INTRO!$E$50,0)) -> 12668 | H123: 1 | I123: 4 | J123: 1 | K123: 2 | L123: =IF(INTRO!$E$37="Endémique",IF($H123>0,IF($H123=4,"Inconnu",IF($H123=99,"Interrompu",$D123)),0),"Non requis") -> 22361 | M123: =IF(INTRO!$E$39="Endémique", IF($I123>0, IF($I123=4,"Inconnu",IF($I123=99,"Interrompu",$D123)), 0),"Non requis") -> Inconnu | N123: =IF(INTRO!$E$41="Endémique", IF($J123>1, IF($J123=4, "Inconnu", IF($J123=99, "Surveillance", E123)), 0),"Non requis") -> 0 | O123: =IF(INTRO!$E$41="Endémique", IF($J123>1, IF($J123=4, "Inconnu", IF($J123=99, "Surveillance", F123)), 0),"Non requis") -> 0 | P123: =IF(INTRO!$E$41="Endémique", IF($J123>1, IF($J123=4, "Inconnu", IF($J123=99, "Surveillance", ROUND(D123*INTRO!$E$51,0))), 0),"Non requis") -> 0 | Q123: =IF(INTRO!$E$41="Endémique", IF($J123>1, IF($J123=4, "Inconnu", IF($J123=99, "Surveillance", SUM($N123:$P123))), 0),"Non requis") -> 0 | R123: =IF(INTRO!$E$43="Endémique", IF($K123>1, IF($K123=4, "Inconnu", IF($K123=99, "Surveillance", ROUND(E123*0.75,0))), 0),"Non requis") -> 2231 | S123: =IF(INTRO!$E$43="Endémique", IF($K123>1, IF($K123=4, "Inconnu", IF($K123=99, "Surveillance", F123)), 0),"Non requis") -> 5729 | T123: =IF(INTRO!$E$43="Endémique", IF($K123>1, IF($K123=4, "Inconnu", IF($K123=99, "Surveillance", G123)), 0),"Non requis") -> 12668 | U123: =IF(INTRO!$E$43="Endémique", IF($K123>1, IF($K123=4, "Inconnu", IF($K123=99, "Surveillance", SUM($R123:$T123))), 0),"Non requis") -> 20628 | V123: 1 | W123: 0 | X123: 0 | Y123: 1 | AF123: 23687 | AG123: S.Domingos
A124: =IF(INTRO!$E$33<>0,INTRO!$E$33, " ") -> Guinée Bissau | B124: Cacheu | C124: Sedengal | D124: 15459 | E124: =IF(INTRO!$E$48="","",ROUND($D124*INTRO!$E$48,0)) -> 2056 | F124: =IF(INTRO!$E$49="","",ROUND($D124*INTRO!$E$49,0)) -> 3961 | G124: =IF(INTRO!$E$50="","",ROUND($D124*INTRO!$E$50,0)) -> 8758 | H124: 1 | I124: 4 | J124: 3 | K124: 2 | L124: =IF(INTRO!$E$37="Endémique",IF($H124>0,IF($H124=4,"Inconnu",IF($H124=99,"Interrompu",$D124)),0),"Non requis") -> 15459 | M124: =IF(INTRO!$E$39="Endémique", IF($I124>0, IF($I124=4,"Inconnu",IF($I124=99,"Interrompu",$D124)), 0),"Non requis") -> Inconnu | N124: =IF(INTRO!$E$41="Endémique", IF($J124>1, IF($J124=4, "Inconnu", IF($J124=99, "Surveillance", E124)), 0),"Non requis") -> 2056 | O124: =IF(INTRO!$E$41="Endémique", IF($J124>1, IF($J124=4, "Inconnu", IF($J124=99, "Surveillance", F124)), 0),"Non requis") -> 3961 | P124: =IF(INTRO!$E$41="Endémique", IF($J124>1, IF($J124=4, "Inconnu", IF($J124=99, "Surveillance", ROUND(D124*INTRO!$E$51,0))), 0),"Non requis") -> 3401 | Q124: =IF(INTRO!$E$41="Endémique", IF($J124>1, IF($J124=4, "Inconnu", IF($J124=99, "Surveillance", SUM($N124:$P124))), 0),"Non requis") -> 9418 | R124: =IF(INTRO!$E$43="Endémique", IF($K124>1, IF($K124=4, "Inconnu", IF($K124=99, "Surveillance", ROUND(E124*0.75,0))), 0),"Non requis") -> 1542 | S124: =IF(INTRO!$E$43="Endémique", IF($K124>1, IF($K124=4, "Inconnu", IF($K124=99, "Surveillance", F124)), 0),"Non requis") -> 3961 | T124: =IF(INTRO!$E$43="Endémique", IF($K124>1, IF($K124=4, "Inconnu", IF($K124=99, "Surveillance", G124)), 0),"Non requis") -> 8758 | U124: =IF(INTRO!$E$43="Endémique", IF($K124>1, IF($K124=4, "Inconnu", IF($K124=99, "Surveillance", SUM($R124:$T124))), 0),"Non requis") -> 14261 | V124: 1 | W124: 0 | X124: 2 | Y124: 1 | AF124: 23700 | AG124: Sedengal
A125: =IF(INTRO!$E$33<>0,INTRO!$E$33, " ") -> Guinée Bissau | B125: Cacheu | C125: Suzana | D125: 10635 | E125: =IF(INTRO!$E$48="","",ROUND($D125*INTRO!$E$48,0)) -> 1414 | F125: =IF(INTRO!$E$49="","",ROUND($D125*INTRO!$E$49,0)) -> 2725 | G125: =IF(INTRO!$E$50="","",ROUND($D125*INTRO!$E$50,0)) -> 6025 | H125: 1 | I125: 4 | J125: 3 | K125: 2 | L125: =IF(INTRO!$E$37="Endémique",IF($H125>0,IF($H125=4,"Inconnu",IF($H125=99,"Interrompu",$D125)),0),"Non requis") -> 10635 | M125: =IF(INTRO!$E$39="Endémique", IF($I125>0, IF($I125=4,"Inconnu",IF($I125=99,"Interrompu",$D125)), 0),"Non requis") -> Inconnu | N125: =IF(INTRO!$E$41="Endémique", IF($J125>1, IF($J125=4, "Inconnu", IF($J125=99, "Surveillance", E125)), 0),"Non requis") -> 1414 | O125: =IF(INTRO!$E$41="Endémique", IF($J125>1, IF($J125=4, "Inconnu", IF($J125=99, "Surveillance", F125)), 0),"Non requis") -> 2725 | P125: =IF(INTRO!$E$41="Endémique", IF($J125>1, IF($J125=4, "Inconnu", IF($J125=99, "Surveillance", ROUND(D125*INTRO!$E$51,0))), 0),"Non requis") -> 2340 | Q125: =IF(INTRO!$E$41="Endémique", IF($J125>1, IF($J125=4, "Inconnu", IF($J125=99, "Surveillance", SUM($N125:$P125))), 0),"Non requis") -> 6479 | R125: =IF(INTRO!$E$43="Endémique", IF($K125>1, IF($K125=4, "Inconnu", IF($K125=99, "Surveillance", ROUND(E125*0.75,0))), 0),"Non requis") -> 1061 | S125: =IF(INTRO!$E$43="Endémique", IF($K125>1, IF($K125=4, "Inconnu", IF($K125=99, "Surveillance", F125)), 0),"Non requis") -> 2725 | T125: =IF(INTRO!$E$43="Endémique", IF($K125>1, IF($K125=4, "Inconnu", IF($K125=99, "Surveillance", G125)), 0),"Non requis") -> 6025 | U125: =IF(INTRO!$E$43="Endémique", IF($K125>1, IF($K125=4, "Inconnu", IF($K125=99, "Surveillance", SUM($R125:$T125))), 0),"Non requis") -> 9811 | V125: 1 | W125: 0 | X125: 2 | Y125: 1 | AF125: 23701 | AG125: Suzana
A126: =IF(INTRO!$E$33<>0,INTRO!$E$33, " ") -> Guinée Bissau | B126: Cacheu | C126: Varela | D126: 12316 | E126: =IF(INTRO!$E$48="","",ROUND($D126*INTRO!$E$48,0)) -> 1638 | F126: =IF(INTRO!$E$49="","",ROUND($D126*INTRO!$E$49,0)) -> 3155 | G126: =IF(INTRO!$E$50="","",ROUND($D126*INTRO!$E$50,0)) -> 6977 | H126: 1 | I126: 4 | J126: 3 | K126: 2 | L126: =IF(INTRO!$E$37="Endémique",IF($H126>0,IF($H126=4,"Inconnu",IF($H126=99,"Interrompu",$D126)),0),"Non requis") -> 12316 | M126: =IF(INTRO!$E$39="Endémique", IF($I126>0, IF($I126=4,"Inconnu",IF($I126=99,"Interrompu",$D126)), 0),"Non requis") -> Inconnu | N126: =IF(INTRO!$E$41="Endémique", IF($J126>1, IF($J126=4, "Inconnu", IF($J126=99, "Surveillance", E126)), 0),"Non requis") -> 1638 | O126: =IF(INTRO!$E$41="Endémique", IF($J126>1, IF($J126=4, "Inconnu", IF($J126=99, "Surveillance", F126)), 0),"Non requis") -> 3155 | P126: =IF(INTRO!$E$41="Endémique", IF($J126>1, IF($J126=4, "Inconnu", IF($J126=99, "Surveillance", ROUND(D126*INTRO!$E$51,0))), 0),"Non requis") -> 2710 | Q126: =IF(INTRO!$E$41="Endémique", IF($J126>1, IF($J126=4, "Inconnu", IF($J126=99, "Surveillance", SUM($N126:$P126))), 0),"Non requis") -> 7503 | R126: =IF(INTRO!$E$43="Endémique", IF($K126>1, IF($K126=4, "Inconnu", IF($K126=99, "Surveillance", ROUND(E126*0.75,0))), 0),"Non requis") -> 1229 | S126: =IF(INTRO!$E$43="Endémique", IF($K126>1, IF($K126=4, "Inconnu", IF($K126=99, "Surveillance", F126)), 0),"Non requis") -> 3155 | T126: =IF(INTRO!$E$43="Endémique", IF($K126>1, IF($K126=4, "Inconnu", IF($K126=99, "Surveillance", G126)), 0),"Non requis") -> 6977 | U126: =IF(INTRO!$E$43="Endémique", IF($K126>1, IF($K126=4, "Inconnu", IF($K126=99, "Surveillance", SUM($R126:$T126))), 0),"Non requis") -> 11361 | V126: 1 | W126: 0 | X126: 2 | Y126: 1 | AF126: 23702 | AG126: Varela

Sheet DEC (hidden)
A1: Diethylcarbamazine (DEC)
A2: Structure administrative, population ciblée par groupe d'âge, plan de traitement et information sur les comprimés
A4: TOTAL | D4: =SUBTOTAL(9,D$10:D$1010) -> 0 | E4: 0 | F4: 0 | G4: 0 | I4: =SUBTOTAL(9,I$10:I$1010) -> 0 | J4: 0 | K4: 0 | L4: 0
A6: Structure administrative du pays | D6: Population nécessitant un traitement avec DEC | H6: Plan de traitement | I6: Population cible | J6: Diethylcarbamazine (DEC)
A7: Pays | B7: Région/Département | C7: District | D7: EAPréS | E7: EAS | F7: Adultes | G7: Total | H7: FL | I7: FL | J7: Total requis | K7: Reste en stock | L7: Comprimés devant être fournis
A10: =IF(INTRO!$E$39<>"Non endémique", " ", IF(INTRO!$E$37="Non endémique"," ", IF(COUNTRY_INFO!A10=0," ",COUNTRY_INFO!A10))) ->  | B10: =IF(INTRO!$E$39<>"Non endémique", " ", IF(INTRO!$E$37="Non endémique"," ", IF(COUNTRY_INFO!B10=0," ",COUNTRY_INFO!B10))) ->  | C10: =IF(INTRO!$E$39<>"Non endémique", " ", IF(INTRO!$E$37="Non endémique"," ", IF(COUNTRY_INFO!C10=0," ",COUNTRY_INFO!C10))) ->  | D10: =IF(INTRO!$E$39<>"Non endémique", 0, IF(INTRO!$E$37="Non endémique",0,IF(COUNTRY_INFO!$H10=1,COUNTRY_INFO!E10,0))) -> 0 | E10: =IF(INTRO!$E$39<>"Non endémique", 0, IF(INTRO!$E$37="Non endémique",0,IF(COUNTRY_INFO!$H10=1,COUNTRY_INFO!F10,0))) -> 0 | F10: =IF(INTRO!$E$39<>"Non endémique", 0, IF(INTRO!$E$37="Non endémique",0,IF(COUNTRY_INFO!$H10=1,COUNTRY_INFO!G10,0))) -> 0 | G10: =SUM(D10:F10) -> 0 | H10: =IF(INTRO!$E$39="Non endémique",IF(INTRO!$E$37="Non endémique","Non requis",COUNTRY_INFO!V10),"Traiter avec IVM") -> Traiter avec IVM | I10: =IF(H10=1,G10,0) -> 0 | J10: =IF(I10>0,I10*2.5,0) -> 0 | L10: =IF($J10>$K10,$J10-$K10,0) -> 0
A11: =IF(INTRO!$E$39<>"Non endémique", " ", IF(INTRO!$E$37="Non endémique"," ", IF(COUNTRY_INFO!A11=0," ",COUNTRY_INFO!A11))) ->  | B11: =IF(INTRO!$E$39<>"Non endémique", " ", IF(INTRO!$E$37="Non endémique"," ", IF(COUNTRY_INFO!B11=0," ",COUNTRY_INFO!B11))) ->  | C11: =IF(INTRO!$E$39<>"Non endémique", " ", IF(INTRO!$E$37="Non endémique"," ", IF(COUNTRY_INFO!C11=0," ",COUNTRY_INFO!C11))) ->  | D11: =IF(INTRO!$E$39<>"Non endémique", 0, IF(INTRO!$E$37="Non endémique",0,IF(COUNTRY_INFO!$H11=1,COUNTRY_INFO!E11,0))) -> 0 | E11: =IF(INTRO!$E$39<>"Non endémique", 0, IF(INTRO!$E$37="Non endémique",0,IF(COUNTRY_INFO!$H11=1,COUNTRY_INFO!F11,0))) -> 0 | F11: =IF(INTRO!$E$39<>"Non endémique", 0, IF(INTRO!$E$37="Non endémique",0,IF(COUNTRY_INFO!$H11=1,COUNTRY_INFO!G11,0))) -> 0 | G11: =SUM(D11:F11) -> 0 | H11: =IF(INTRO!$E$39="Non endémique",IF(INTRO!$E$37="Non endémique","Non requis",COUNTRY_INFO!V11),"Traiter avec IVM") -> Traiter avec IVM | I11: =IF(H11=1,G11,0) -> 0 | J11: =IF(I11>0,I11*2.5,0) -> 0 | L11: 0
A12: =IF(INTRO!$E$39<>"Non endémique", " ", IF(INTRO!$E$37="Non endémique"," ", IF(COUNTRY_INFO!A12=0," ",COUNTRY_INFO!A12))) ->  | B12: =IF(INTRO!$E$39<>"Non endémique", " ", IF(INTRO!$E$37="Non endémique"," ", IF(COUNTRY_INFO!B12=0," ",COUNTRY_INFO!B12))) ->  | C12: =IF(INTRO!$E$39<>"Non endémique", " ", IF(INTRO!$E$37="Non endémique"," ", IF(COUNTRY_INFO!C12=0," ",COUNTRY_INFO!C12))) ->  | D12: =IF(INTRO!$E$39<>"Non endémique", 0, IF(INTRO!$E$37="Non endémique",0,IF(COUNTRY_INFO!$H12=1,COUNTRY_INFO!E12,0))) -> 0 | E12: =IF(INTRO!$E$39<>"Non endémique", 0, IF(INTRO!$E$37="Non endémique",0,IF(COUNTRY_INFO!$H12=1,COUNTRY_INFO!F12,0))) -> 0 | F12: =IF(INTRO!$E$39<>"Non endémique", 0, IF(INTRO!$E$37="Non endémique",0,IF(COUNTRY_INFO!$H12=1,COUNTRY_INFO!G12,0))) -> 0 | G12: 0 | H12: =IF(INTRO!$E$39="Non endémique",IF(INTRO!$E$37="Non endémique","Non requis",COUNTRY_INFO!V12),"Traiter avec IVM") -> Traiter avec IVM | I12: 0 | J12: 0 | L12: 0
A13: =IF(INTRO!$E$39<>"Non endémique", " ", IF(INTRO!$E$37="Non endémique"," ", IF(COUNTRY_INFO!A13=0," ",COUNTRY_INFO!A13))) ->  | B13: =IF(INTRO!$E$39<>"Non endémique", " ", IF(INTRO!$E$37="Non endémique"," ", IF(COUNTRY_INFO!B13=0," ",COUNTRY_INFO!B13))) ->  | C13: =IF(INTRO!$E$39<>"Non endémique", " ", IF(INTRO!$E$37="Non endémique"," ", IF(COUNTRY_INFO!C13=0," ",COUNTRY_INFO!C13))) ->  | D13: =IF(INTRO!$E$39<>"Non endémique", 0, IF(INTRO!$E$37="Non endémique",0,IF(COUNTRY_INFO!$H13=1,COUNTRY_INFO!E13,0))) -> 0 | E13: =IF(INTRO!$E$39<>"Non endémique", 0, IF(INTRO!$E$37="Non endémique",0,IF(COUNTRY_INFO!$H13=1,COUNTRY_INFO!F13,0))) -> 0 | F13: =IF(INTRO!$E$39<>"Non endémique", 0, IF(INTRO!$E$37="Non endémique",0,IF(COUNTRY_INFO!$H13=1,COUNTRY_INFO!G13,0))) -> 0 | G13: 0 | H13: =IF(INTRO!$E$39="Non endémique",IF(INTRO!$E$37="Non endémique","Non requis",COUNTRY_INFO!V13),"Traiter avec IVM") -> Traiter avec IVM | I13: 0 | J13: 0 | L13: 0
A14: =IF(INTRO!$E$39<>"Non endémique", " ", IF(INTRO!$E$37="Non endémique"," ", IF(COUNTRY_INFO!A14=0," ",COUNTRY_INFO!A14))) ->  | B14: =IF(INTRO!$E$39<>"Non endémique", " ", IF(INTRO!$E$37="Non endémique"," ", IF(COUNTRY_INFO!B14=0," ",COUNTRY_INFO!B14))) ->  | C14: =IF(INTRO!$E$39<>"Non endémique", " ", IF(INTRO!$E$37="Non endémique"," ", IF(COUNTRY_INFO!C14=0," ",COUNTRY_INFO!C14))) ->  | D14: =IF(INTRO!$E$39<>"Non endémique", 0, IF(INTRO!$E$37="Non endémique",0,IF(COUNTRY_INFO!$H14=1,COUNTRY_INFO!E14,0))) -> 0 | E14: =IF(INTRO!$E$39<>"Non endémique", 0, IF(INTRO!$E$37="Non endémique",0,IF(COUNTRY_INFO!$H14=1,COUNTRY_INFO!F14,0))) -> 0 | F14: =IF(INTRO!$E$39<>"Non endémique", 0, IF(INTRO!$E$37="Non endémique",0,IF(COUNTRY_INFO!$H14=1,COUNTRY_INFO!G14,0))) -> 0 | G14: 0 | H14: =IF(INTRO!$E$39="Non endémique",IF(INTRO!$E$37="Non endémique","Non requis",COUNTRY_INFO!V14),"Traiter avec IVM") -> Traiter avec IVM | I14: 0 | J14: 0 | L14: 0
A15: =IF(INTRO!$E$39<>"Non endémique", " ", IF(INTRO!$E$37="Non endémique"," ", IF(COUNTRY_INFO!A15=0," ",COUNTRY_INFO!A15))) ->  | B15: =IF(INTRO!$E$39<>"Non endémique", " ", IF(INTRO!$E$37="Non endémique"," ", IF(COUNTRY_INFO!B15=0," ",COUNTRY_INFO!B15))) ->  | C15: =IF(INTRO!$E$39<>"Non endémique", " ", IF(INTRO!$E$37="Non endémique"," ", IF(COUNTRY_INFO!C15=0," ",COUNTRY_INFO!C15))) ->  | D15: =IF(INTRO!$E$39<>"Non endémique", 0, IF(INTRO!$E$37="Non endémique",0,IF(COUNTRY_INFO!$H15=1,COUNTRY_INFO!E15,0))) -> 0 | E15: =IF(INTRO!$E$39<>"Non endémique", 0, IF(INTRO!$E$37="Non endémique",0,IF(COUNTRY_INFO!$H15=1,COUNTRY_INFO!F15,0))) -> 0 | F15: =IF(INTRO!$E$39<>"Non endémique", 0, IF(INTRO!$E$37="Non endémique",0,IF(COUNTRY_INFO!$H15=1,COUNTRY_INFO!G15,0))) -> 0 | G15: 0 | H15: =IF(INTRO!$E$39="Non endémique",IF(INTRO!$E$37="Non endémique","Non requis",COUNTRY_INFO!V15),"Traiter avec IVM") -> Traiter avec IVM | I15: 0 | J15: 0 | L15: 0
A16: =IF(INTRO!$E$39<>"Non endémique", " ", IF(INTRO!$E$37="Non endémique"," ", IF(COUNTRY_INFO!A16=0," ",COUNTRY_INFO!A16))) ->  | B16: =IF(INTRO!$E$39<>"Non endémique", " ", IF(INTRO!$E$37="Non endémique"," ", IF(COUNTRY_INFO!B16=0," ",COUNTRY_INFO!B16))) ->  | C16: =IF(INTRO!$E$39<>"Non endémique", " ", IF(INTRO!$E$37="Non endémique"," ", IF(COUNTRY_INFO!C16=0," ",COUNTRY_INFO!C16))) ->  | D16: =IF(INTRO!$E$39<>"Non endémique", 0, IF(INTRO!$E$37="Non endémique",0,IF(COUNTRY_INFO!$H16=1,COUNTRY_INFO!E16,0))) -> 0 | E16: =IF(INTRO!$E$39<>"Non endémique", 0, IF(INTRO!$E$37="Non endémique",0,IF(COUNTRY_INFO!$H16=1,COUNTRY_INFO!F16,0))) -> 0 | F16: =IF(INTRO!$E$39<>"Non endémique", 0, IF(INTRO!$E$37="Non endémique",0,IF(COUNTRY_INFO!$H16=1,COUNTRY_INFO!G16,0))) -> 0 | G16: 0 | H16: =IF(INTRO!$E$39="Non endémique",IF(INTRO!$E$37="Non endémique","Non requis",COUNTRY_INFO!V16),"Traiter avec IVM") -> Traiter avec IVM | I16: 0 | J16: 0 | L16: 0
A17: =IF(INTRO!$E$39<>"Non endémique", " ", IF(INTRO!$E$37="Non endémique"," ", IF(COUNTRY_INFO!A17=0," ",COUNTRY_INFO!A17))) ->  | B17: =IF(INTRO!$E$39<>"Non endémique", " ", IF(INTRO!$E$37="Non endémique"," ", IF(COUNTRY_INFO!B17=0," ",COUNTRY_INFO!B17))) ->  | C17: =IF(INTRO!$E$39<>"Non endémique", " ", IF(INTRO!$E$37="Non endémique"," ", IF(COUNTRY_INFO!C17=0," ",COUNTRY_INFO!C17))) ->  | D17: =IF(INTRO!$E$39<>"Non endémique", 0, IF(INTRO!$E$37="Non endémique",0,IF(COUNTRY_INFO!$H17=1,COUNTRY_INFO!E17,0))) -> 0 | E17: =IF(INTRO!$E$39<>"Non endémique", 0, IF(INTRO!$E$37="Non endémique",0,IF(COUNTRY_INFO!$H17=1,COUNTRY_INFO!F17,0))) -> 0 | F17: =IF(INTRO!$E$39<>"Non endémique", 0, IF(INTRO!$E$37="Non endémique",0,IF(COUNTRY_INFO!$H17=1,COUNTRY_INFO!G17,0))) -> 0 | G17: 0 | H17: =IF(INTRO!$E$39="Non endémique",IF(INTRO!$E$37="Non endémique","Non requis",COUNTRY_INFO!V17),"Traiter avec IVM") -> Traiter avec IVM | I17: 0 | J17: 0 | L17: 0
A18: =IF(INTRO!$E$39<>"Non endémique", " ", IF(INTRO!$E$37="Non endémique"," ", IF(COUNTRY_INFO!A18=0," ",COUNTRY_INFO!A18))) ->  | B18: =IF(INTRO!$E$39<>"Non endémique", " ", IF(INTRO!$E$37="Non endémique"," ", IF(COUNTRY_INFO!B18=0," ",COUNTRY_INFO!B18))) ->  | C18: =IF(INTRO!$E$39<>"Non endémique", " ", IF(INTRO!$E$37="Non endémique"," ", IF(COUNTRY_INFO!C18=0," ",COUNTRY_INFO!C18))) ->  | D18: =IF(INTRO!$E$39<>"Non endémique", 0, IF(INTRO!$E$37="Non endémique",0,IF(COUNTRY_INFO!$H18=1,COUNTRY_INFO!E18,0))) -> 0 | E18: =IF(INTRO!$E$39<>"Non endémique", 0, IF(INTRO!$E$37="Non endémique",0,IF(COUNTRY_INFO!$H18=1,COUNTRY_INFO!F18,0))) -> 0 | F18: =IF(INTRO!$E$39<>"Non endémique", 0, IF(INTRO!$E$37="Non endémique",0,IF(COUNTRY_INFO!$H18=1,COUNTRY_INFO!G18,0))) -> 0 | G18: 0 | H18: =IF(INTRO!$E$39="Non endémique",IF(INTRO!$E$37="Non endémique","Non requis",COUNTRY_INFO!V18),"Traiter avec IVM") -> Traiter avec IVM | I18: 0 | J18: 0 | L18: 0
A19: =IF(INTRO!$E$39<>"Non endémique", " ", IF(INTRO!$E$37="Non endémique"," ", IF(COUNTRY_INFO!A19=0," ",COUNTRY_INFO!A19))) ->  | B19: =IF(INTRO!$E$39<>"Non endémique", " ", IF(INTRO!$E$37="Non endémique"," ", IF(COUNTRY_INFO!B19=0," ",COUNTRY_INFO!B19))) ->  | C19: =IF(INTRO!$E$39<>"Non endémique", " ", IF(INTRO!$E$37="Non endémique"," ", IF(COUNTRY_INFO!C19=0," ",COUNTRY_INFO!C19))) ->  | D19: =IF(INTRO!$E$39<>"Non endémique", 0, IF(INTRO!$E$37="Non endémique",0,IF(COUNTRY_INFO!$H19=1,COUNTRY_INFO!E19,0))) -> 0 | E19: =IF(INTRO!$E$39<>"Non endémique", 0, IF(INTRO!$E$37="Non endémique",0,IF(COUNTRY_INFO!$H19=1,COUNTRY_INFO!F19,0))) -> 0 | F19: =IF(INTRO!$E$39<>"Non endémique", 0, IF(INTRO!$E$37="Non endémique",0,IF(COUNTRY_INFO!$H19=1,COUNTRY_INFO!G19,0))) -> 0 | G19: 0 | H19: =IF(INTRO!$E$39="Non endémique",IF(INTRO!$E$37="Non endémique","Non requis",COUNTRY_INFO!V19),"Traiter avec IVM") -> Traiter avec IVM | I19: 0 | J19: 0 | L19: 0
A20: =IF(INTRO!$E$39<>"Non endémique", " ", IF(INTRO!$E$37="Non endémique"," ", IF(COUNTRY_INFO!A20=0," ",COUNTRY_INFO!A20))) ->  | B20: =IF(INTRO!$E$39<>"Non endémique", " ", IF(INTRO!$E$37="Non endémique"," ", IF(COUNTRY_INFO!B20=0," ",COUNTRY_INFO!B20))) ->  | C20: =IF(INTRO!$E$39<>"Non endémique", " ", IF(INTRO!$E$37="Non endémique"," ", IF(COUNTRY_INFO!C20=0," ",COUNTRY_INFO!C20))) ->  | D20: =IF(INTRO!$E$39<>"Non endémique", 0, IF(INTRO!$E$37="Non endémique",0,IF(COUNTRY_INFO!$H20=1,COUNTRY_INFO!E20,0))) -> 0 | E20: =IF(INTRO!$E$39<>"Non endémique", 0, IF(INTRO!$E$37="Non endémique",0,IF(COUNTRY_INFO!$H20=1,COUNTRY_INFO!F20,0))) -> 0 | F20: =IF(INTRO!$E$39<>"Non endémique", 0, IF(INTRO!$E$37="Non endémique",0,IF(COUNTRY_INFO!$H20=1,COUNTRY_INFO!G20,0))) -> 0 | G20: 0 | H20: =IF(INTRO!$E$39="Non endémique",IF(INTRO!$E$37="Non endémique","Non requis",COUNTRY_INFO!V20),"Traiter avec IVM") -> Traiter avec IVM | I20: 0 | J20: 0 | L20: 0
A21: =IF(INTRO!$E$39<>"Non endémique", " ", IF(INTRO!$E$37="Non endémique"," ", IF(COUNTRY_INFO!A21=0," ",COUNTRY_INFO!A21))) ->  | B21: =IF(INTRO!$E$39<>"Non endémique", " ", IF(INTRO!$E$37="Non endémique"," ", IF(COUNTRY_INFO!B21=0," ",COUNTRY_INFO!B21))) ->  | C21: =IF(INTRO!$E$39<>"Non endémique", " ", IF(INTRO!$E$37="Non endémique"," ", IF(COUNTRY_INFO!C21=0," ",COUNTRY_INFO!C21))) ->  | D21: =IF(INTRO!$E$39<>"Non endémique", 0, IF(INTRO!$E$37="Non endémique",0,IF(COUNTRY_INFO!$H21=1,COUNTRY_INFO!E21,0))) -> 0 | E21: =IF(INTRO!$E$39<>"Non endémique", 0, IF(INTRO!$E$37="Non endémique",0,IF(COUNTRY_INFO!$H21=1,COUNTRY_INFO!F21,0))) -> 0 | F21: =IF(INTRO!$E$39<>"Non endémique", 0, IF(INTRO!$E$37="Non endémique",0,IF(COUNTRY_INFO!$H21=1,COUNTRY_INFO!G21,0))) -> 0 | G21: 0 | H21: =IF(INTRO!$E$39="Non endémique",IF(INTRO!$E$37="Non endémique","Non requis",COUNTRY_INFO!V21),"Traiter avec IVM") -> Traiter avec IVM | I21: 0 | J21: 0 | L21: 0
A22: =IF(INTRO!$E$39<>"Non endémique", " ", IF(INTRO!$E$37="Non endémique"," ", IF(COUNTRY_INFO!A22=0," ",COUNTRY_INFO!A22))) ->  | B22: =IF(INTRO!$E$39<>"Non endémique", " ", IF(INTRO!$E$37="Non endémique"," ", IF(COUNTRY_INFO!B22=0," ",COUNTRY_INFO!B22))) ->  | C22: =IF(INTRO!$E$39<>"Non endémique", " ", IF(INTRO!$E$37="Non endémique"," ", IF(COUNTRY_INFO!C22=0," ",COUNTRY_INFO!C22))) ->  | D22: =IF(INTRO!$E$39<>"Non endémique", 0, IF(INTRO!$E$37="Non endémique",0,IF(COUNTRY_INFO!$H22=1,COUNTRY_INFO!E22,0))) -> 0 | E22: =IF(INTRO!$E$39<>"Non endémique", 0, IF(INTRO!$E$37="Non endémique",0,IF(COUNTRY_INFO!$H22=1,COUNTRY_INFO!F22,0))) -> 0 | F22: =IF(INTRO!$E$39<>"Non endémique", 0, IF(INTRO!$E$37="Non endémique",0,IF(COUNTRY_INFO!$H22=1,COUNTRY_INFO!G22,0))) -> 0 | G22: 0 | H22: =IF(INTRO!$E$39="Non endémique",IF(INTRO!$E$37="Non endémique","Non requis",COUNTRY_INFO!V22),"Traiter avec IVM") -> Traiter avec IVM | I22: 0 | J22: 0 | L22: 0
A23: =IF(INTRO!$E$39<>"Non endémique", " ", IF(INTRO!$E$37="Non endémique"," ", IF(COUNTRY_INFO!A23=0," ",COUNTRY_INFO!A23))) ->  | B23: =IF(INTRO!$E$39<>"Non endémique", " ", IF(INTRO!$E$37="Non endémique"," ", IF(COUNTRY_INFO!B23=0," ",COUNTRY_INFO!B23))) ->  | C23: =IF(INTRO!$E$39<>"Non endémique", " ", IF(INTRO!$E$37="Non endémique"," ", IF(COUNTRY_INFO!C23=0," ",COUNTRY_INFO!C23))) ->  | D23: =IF(INTRO!$E$39<>"Non endémique", 0, IF(INTRO!$E$37="Non endémique",0,IF(COUNTRY_INFO!$H23=1,COUNTRY_INFO!E23,0))) -> 0 | E23: =IF(INTRO!$E$39<>"Non endémique", 0, IF(INTRO!$E$37="Non endémique",0,IF(COUNTRY_INFO!$H23=1,COUNTRY_INFO!F23,0))) -> 0 | F23: =IF(INTRO!$E$39<>"Non endémique", 0, IF(INTRO!$E$37="Non endémique",0,IF(COUNTRY_INFO!$H23=1,COUNTRY_INFO!G23,0))) -> 0 | G23: 0 | H23: =IF(INTRO!$E$39="Non endémique",IF(INTRO!$E$37="Non endémique","Non requis",COUNTRY_INFO!V23),"Traiter avec IVM") -> Traiter avec IVM | I23: 0 | J23: 0 | L23: 0
A24: =IF(INTRO!$E$39<>"Non endémique", " ", IF(INTRO!$E$37="Non endémique"," ", IF(COUNTRY_INFO!A24=0," ",COUNTRY_INFO!A24))) ->  | B24: =IF(INTRO!$E$39<>"Non endémique", " ", IF(INTRO!$E$37="Non endémique"," ", IF(COUNTRY_INFO!B24=0," ",COUNTRY_INFO!B24))) ->  | C24: =IF(INTRO!$E$39<>"Non endémique", " ", IF(INTRO!$E$37="Non endémique"," ", IF(COUNTRY_INFO!C24=0," ",COUNTRY_INFO!C24))) ->  | D24: =IF(INTRO!$E$39<>"Non endémique", 0, IF(INTRO!$E$37="Non endémique",0,IF(COUNTRY_INFO!$H24=1,COUNTRY_INFO!E24,0))) -> 0 | E24: =IF(INTRO!$E$39<>"Non endémique", 0, IF(INTRO!$E$37="Non endémique",0,IF(COUNTRY_INFO!$H24=1,COUNTRY_INFO!F24,0))) -> 0 | F24: =IF(INTRO!$E$39<>"Non endémique", 0, IF(INTRO!$E$37="Non endémique",0,IF(COUNTRY_INFO!$H24=1,COUNTRY_INFO!G24,0))) -> 0 | G24: 0 | H24: =IF(INTRO!$E$39="Non endémique",IF(INTRO!$E$37="Non endémique","Non requis",COUNTRY_INFO!V24),"Traiter avec IVM") -> Traiter avec IVM | I24: 0 | J24: 0 | L24: 0
A25: =IF(INTRO!$E$39<>"Non endémique", " ", IF(INTRO!$E$37="Non endémique"," ", IF(COUNTRY_INFO!A25=0," ",COUNTRY_INFO!A25))) ->  | B25: =IF(INTRO!$E$39<>"Non endémique", " ", IF(INTRO!$E$37="Non endémique"," ", IF(COUNTRY_INFO!B25=0," ",COUNTRY_INFO!B25))) ->  | C25: =IF(INTRO!$E$39<>"Non endémique", " ", IF(INTRO!$E$37="Non endémique"," ", IF(COUNTRY_INFO!C25=0," ",COUNTRY_INFO!C25))) ->  | D25: =IF(INTRO!$E$39<>"Non endémique", 0, IF(INTRO!$E$37="Non endémique",0,IF(COUNTRY_INFO!$H25=1,COUNTRY_INFO!E25,0))) -> 0 | E25: =IF(INTRO!$E$39<>"Non endémique", 0, IF(INTRO!$E$37="Non endémique",0,IF(COUNTRY_INFO!$H25=1,COUNTRY_INFO!F25,0))) -> 0 | F25: =IF(INTRO!$E$39<>"Non endémique", 0, IF(INTRO!$E$37="Non endémique",0,IF(COUNTRY_INFO!$H25=1,COUNTRY_INFO!G25,0))) -> 0 | G25: 0 | H25: =IF(INTRO!$E$39="Non endémique",IF(INTRO!$E$37="Non endémique","Non requis",COUNTRY_INFO!V25),"Traiter avec IVM") -> Traiter avec IVM | I25: 0 | J25: 0 | L25: 0
A26: =IF(INTRO!$E$39<>"Non endémique", " ", IF(INTRO!$E$37="Non endémique"," ", IF(COUNTRY_INFO!A26=0," ",COUNTRY_INFO!A26))) ->  | B26: =IF(INTRO!$E$39<>"Non endémique", " ", IF(INTRO!$E$37="Non endémique"," ", IF(COUNTRY_INFO!B26=0," ",COUNTRY_INFO!B26))) ->  | C26: =IF(INTRO!$E$39<>"Non endémique", " ", IF(INTRO!$E$37="Non endémique"," ", IF(COUNTRY_INFO!C26=0," ",COUNTRY_INFO!C26))) ->  | D26: =IF(INTRO!$E$39<>"Non endémique", 0, IF(INTRO!$E$37="Non endémique",0,IF(COUNTRY_INFO!$H26=1,COUNTRY_INFO!E26,0))) -> 0 | E26: =IF(INTRO!$E$39<>"Non endémique", 0, IF(INTRO!$E$37="Non endémique",0,IF(COUNTRY_INFO!$H26=1,COUNTRY_INFO!F26,0))) -> 0 | F26: =IF(INTRO!$E$39<>"Non endémique", 0, IF(INTRO!$E$37="Non endémique",0,IF(COUNTRY_INFO!$H26=1,COUNTRY_INFO!G26,0))) -> 0 | G26: 0 | H26: =IF(INTRO!$E$39="Non endémique",IF(INTRO!$E$37="Non endémique","Non requis",COUNTRY_INFO!V26),"Traiter avec IVM") -> Traiter avec IVM | I26: 0 | J26: 0 | L26: 0
A27: =IF(INTRO!$E$39<>"Non endémique", " ", IF(INTRO!$E$37="Non endémique"," ", IF(COUNTRY_INFO!A27=0," ",COUNTRY_INFO!A27))) ->  | B27: =IF(INTRO!$E$39<>"Non endémique", " ", IF(INTRO!$E$37="Non endémique"," ", IF(COUNTRY_INFO!B27=0," ",COUNTRY_INFO!B27))) ->  | C27: =IF(INTRO!$E$39<>"Non endémique", " ", IF(INTRO!$E$37="Non endémique"," ", IF(COUNTRY_INFO!C27=0," ",COUNTRY_INFO!C27))) ->  | D27: =IF(INTRO!$E$39<>"Non endémique", 0, IF(INTRO!$E$37="Non endémique",0,IF(COUNTRY_INFO!$H27=1,COUNTRY_INFO!E27,0))) -> 0 | E27: =IF(INTRO!$E$39<>"Non endémique", 0, IF(INTRO!$E$37="Non endémique",0,IF(COUNTRY_INFO!$H27=1,COUNTRY_INFO!F27,0))) -> 0 | F27: =IF(INTRO!$E$39<>"Non endémique", 0, IF(INTRO!$E$37="Non endémique",0,IF(COUNTRY_INFO!$H27=1,COUNTRY_INFO!G27,0))) -> 0 | G27: 0 | H27: =IF(INTRO!$E$39="Non endémique",IF(INTRO!$E$37="Non endémique","Non requis",COUNTRY_INFO!V27),"Traiter avec IVM") -> Traiter avec IVM | I27: 0 | J27: 0 | L27: 0
A28: =IF(INTRO!$E$39<>"Non endémique", " ", IF(INTRO!$E$37="Non endémique"," ", IF(COUNTRY_INFO!A28=0," ",COUNTRY_INFO!A28))) ->  | B28: =IF(INTRO!$E$39<>"Non endémique", " ", IF(INTRO!$E$37="Non endémique"," ", IF(COUNTRY_INFO!B28=0," ",COUNTRY_INFO!B28))) ->  | C28: =IF(INTRO!$E$39<>"Non endémique", " ", IF(INTRO!$E$37="Non endémique"," ", IF(COUNTRY_INFO!C28=0," ",COUNTRY_INFO!C28))) ->  | D28: =IF(INTRO!$E$39<>"Non endémique", 0, IF(INTRO!$E$37="Non endémique",0,IF(COUNTRY_INFO!$H28=1,COUNTRY_INFO!E28,0))) -> 0 | E28: =IF(INTRO!$E$39<>"Non endémique", 0, IF(INTRO!$E$37="Non endémique",0,IF(COUNTRY_INFO!$H28=1,COUNTRY_INFO!F28,0))) -> 0 | F28: =IF(INTRO!$E$39<>"Non endémique", 0, IF(INTRO!$E$37="Non endémique",0,IF(COUNTRY_INFO!$H28=1,COUNTRY_INFO!G28,0))) -> 0 | G28: 0 | H28: =IF(INTRO!$E$39="Non endémique",IF(INTRO!$E$37="Non endémique","Non requis",COUNTRY_INFO!V28),"Traiter avec IVM") -> Traiter avec IVM | I28: 0 | J28: 0 | L28: 0
A29: =IF(INTRO!$E$39<>"Non endémique", " ", IF(INTRO!$E$37="Non endémique"," ", IF(COUNTRY_INFO!A29=0," ",COUNTRY_INFO!A29))) ->  | B29: =IF(INTRO!$E$39<>"Non endémique", " ", IF(INTRO!$E$37="Non endémique"," ", IF(COUNTRY_INFO!B29=0," ",COUNTRY_INFO!B29))) ->  | C29: =IF(INTRO!$E$39<>"Non endémique", " ", IF(INTRO!$E$37="Non endémique"," ", IF(COUNTRY_INFO!C29=0," ",COUNTRY_INFO!C29))) ->  | D29: =IF(INTRO!$E$39<>"Non endémique", 0, IF(INTRO!$E$37="Non endémique",0,IF(COUNTRY_INFO!$H29=1,COUNTRY_INFO!E29,0))) -> 0 | E29: =IF(INTRO!$E$39<>"Non endémique", 0, IF(INTRO!$E$37="Non endémique",0,IF(COUNTRY_INFO!$H29=1,COUNTRY_INFO!F29,0))) -> 0 | F29: =IF(INTRO!$E$39<>"Non endémique", 0, IF(INTRO!$E$37="Non endémique",0,IF(COUNTRY_INFO!$H29=1,COUNTRY_INFO!G29,0))) -> 0 | G29: 0 | H29: =IF(INTRO!$E$39="Non endémique",IF(INTRO!$E$37="Non endémique","Non requis",COUNTRY_INFO!V29),"Traiter avec IVM") -> Traiter avec IVM | I29: 0 | J29: 0 | L29: 0
A30: =IF(INTRO!$E$39<>"Non endémique", " ", IF(INTRO!$E$37="Non endémique"," ", IF(COUNTRY_INFO!A30=0," ",COUNTRY_INFO!A30))) ->  | B30: =IF(INTRO!$E$39<>"Non endémique", " ", IF(INTRO!$E$37="Non endémique"," ", IF(COUNTRY_INFO!B30=0," ",COUNTRY_INFO!B30))) ->  | C30: =IF(INTRO!$E$39<>"Non endémique", " ", IF(INTRO!$E$37="Non endémique"," ", IF(COUNTRY_INFO!C30=0," ",COUNTRY_INFO!C30))) ->  | D30: =IF(INTRO!$E$39<>"Non endémique", 0, IF(INTRO!$E$37="Non endémique",0,IF(COUNTRY_INFO!$H30=1,COUNTRY_INFO!E30,0))) -> 0 | E30: =IF(INTRO!$E$39<>"Non endémique", 0, IF(INTRO!$E$37="Non endémique",0,IF(COUNTRY_INFO!$H30=1,COUNTRY_INFO!F30,0))) -> 0 | F30: =IF(INTRO!$E$39<>"Non endémique", 0, IF(INTRO!$E$37="Non endémique",0,IF(COUNTRY_INFO!$H30=1,COUNTRY_INFO!G30,0))) -> 0 | G30: 0 | H30: =IF(INTRO!$E$39="Non endémique",IF(INTRO!$E$37="Non endémique","Non requis",COUNTRY_INFO!V30),"Traiter avec IVM") -> Traiter avec IVM | I30: 0 | J30: 0 | L30: 0
A31: =IF(INTRO!$E$39<>"Non endémique", " ", IF(INTRO!$E$37="Non endémique"," ", IF(COUNTRY_INFO!A31=0," ",COUNTRY_INFO!A31))) ->  | B31: =IF(INTRO!$E$39<>"Non endémique", " ", IF(INTRO!$E$37="Non endémique"," ", IF(COUNTRY_INFO!B31=0," ",COUNTRY_INFO!B31))) ->  | C31: =IF(INTRO!$E$39<>"Non endémique", " ", IF(INTRO!$E$37="Non endémique"," ", IF(COUNTRY_INFO!C31=0," ",COUNTRY_INFO!C31))) ->  | D31: =IF(INTRO!$E$39<>"Non endémique", 0, IF(INTRO!$E$37="Non endémique",0,IF(COUNTRY_INFO!$H31=1,COUNTRY_INFO!E31,0))) -> 0 | E31: =IF(INTRO!$E$39<>"Non endémique", 0, IF(INTRO!$E$37="Non endémique",0,IF(COUNTRY_INFO!$H31=1,COUNTRY_INFO!F31,0))) -> 0 | F31: =IF(INTRO!$E$39<>"Non endémique", 0, IF(INTRO!$E$37="Non endémique",0,IF(COUNTRY_INFO!$H31=1,COUNTRY_INFO!G31,0))) -> 0 | G31: 0 | H31: =IF(INTRO!$E$39="Non endémique",IF(INTRO!$E$37="Non endémique","Non requis",COUNTRY_INFO!V31),"Traiter avec IVM") -> Traiter avec IVM | I31: 0 | J31: 0 | L31: 0
A32: =IF(INTRO!$E$39<>"Non endémique", " ", IF(INTRO!$E$37="Non endémique"," ", IF(COUNTRY_INFO!A32=0," ",COUNTRY_INFO!A32))) ->  | B32: =IF(INTRO!$E$39<>"Non endémique", " ", IF(INTRO!$E$37="Non endémique"," ", IF(COUNTRY_INFO!B32=0," ",COUNTRY_INFO!B32))) ->  | C32: =IF(INTRO!$E$39<>"Non endémique", " ", IF(INTRO!$E$37="Non endémique"," ", IF(COUNTRY_INFO!C32=0," ",COUNTRY_INFO!C32))) ->  | D32: =IF(INTRO!$E$39<>"Non endémique", 0, IF(INTRO!$E$37="Non endémique",0,IF(COUNTRY_INFO!$H32=1,COUNTRY_INFO!E32,0))) -> 0 | E32: =IF(INTRO!$E$39<>"Non endémique", 0, IF(INTRO!$E$37="Non endémique",0,IF(COUNTRY_INFO!$H32=1,COUNTRY_INFO!F32,0))) -> 0 | F32: =IF(INTRO!$E$39<>"Non endémique", 0, IF(INTRO!$E$37="Non endémique",0,IF(COUNTRY_INFO!$H32=1,COUNTRY_INFO!G32,0))) -> 0 | G32: 0 | H32: =IF(INTRO!$E$39="Non endémique",IF(INTRO!$E$37="Non endémique","Non requis",COUNTRY_INFO!V32),"Traiter avec IVM") -> Traiter avec IVM | I32: 0 | J32: 0 | L32: 0
A33: =IF(INTRO!$E$39<>"Non endémique", " ", IF(INTRO!$E$37="Non endémique"," ", IF(COUNTRY_INFO!A33=0," ",COUNTRY_INFO!A33))) ->  | B33: =IF(INTRO!$E$39<>"Non endémique", " ", IF(INTRO!$E$37="Non endémique"," ", IF(COUNTRY_INFO!B33=0," ",COUNTRY_INFO!B33))) ->  | C33: =IF(INTRO!$E$39<>"Non endémique", " ", IF(INTRO!$E$37="Non endémique"," ", IF(COUNTRY_INFO!C33=0," ",COUNTRY_INFO!C33))) ->  | D33: =IF(INTRO!$E$39<>"Non endémique", 0, IF(INTRO!$E$37="Non endémique",0,IF(COUNTRY_INFO!$H33=1,COUNTRY_INFO!E33,0))) -> 0 | E33: =IF(INTRO!$E$39<>"Non endémique", 0, IF(INTRO!$E$37="Non endémique",0,IF(COUNTRY_INFO!$H33=1,COUNTRY_INFO!F33,0))) -> 0 | F33: =IF(INTRO!$E$39<>"Non endémique", 0, IF(INTRO!$E$37="Non endémique",0,IF(COUNTRY_INFO!$H33=1,COUNTRY_INFO!G33,0))) -> 0 | G33: 0 | H33: =IF(INTRO!$E$39="Non endémique",IF(INTRO!$E$37="Non endémique","Non requis",COUNTRY_INFO!V33),"Traiter avec IVM") -> Traiter avec IVM | I33: 0 | J33: 0 | L33: 0
A34: =IF(INTRO!$E$39<>"Non endémique", " ", IF(INTRO!$E$37="Non endémique"," ", IF(COUNTRY_INFO!A34=0," ",COUNTRY_INFO!A34))) ->  | B34: =IF(INTRO!$E$39<>"Non endémique", " ", IF(INTRO!$E$37="Non endémique"," ", IF(COUNTRY_INFO!B34=0," ",COUNTRY_INFO!B34))) ->  | C34: =IF(INTRO!$E$39<>"Non endémique", " ", IF(INTRO!$E$37="Non endémique"," ", IF(COUNTRY_INFO!C34=0," ",COUNTRY_INFO!C34))) ->  | D34: =IF(INTRO!$E$39<>"Non endémique", 0, IF(INTRO!$E$37="Non endémique",0,IF(COUNTRY_INFO!$H34=1,COUNTRY_INFO!E34,0))) -> 0 | E34: =IF(INTRO!$E$39<>"Non endémique", 0, IF(INTRO!$E$37="Non endémique",0,IF(COUNTRY_INFO!$H34=1,COUNTRY_INFO!F34,0))) -> 0 | F34: =IF(INTRO!$E$39<>"Non endémique", 0, IF(INTRO!$E$37="Non endémique",0,IF(COUNTRY_INFO!$H34=1,COUNTRY_INFO!G34,0))) -> 0 | G34: 0 | H34: =IF(INTRO!$E$39="Non endémique",IF(INTRO!$E$37="Non endémique","Non requis",COUNTRY_INFO!V34),"Traiter avec IVM") -> Traiter avec IVM | I34: 0 | J34: 0 | L34: 0
A35: =IF(INTRO!$E$39<>"Non endémique", " ", IF(INTRO!$E$37="Non endémique"," ", IF(COUNTRY_INFO!A35=0," ",COUNTRY_INFO!A35))) ->  | B35: =IF(INTRO!$E$39<>"Non endémique", " ", IF(INTRO!$E$37="Non endémique"," ", IF(COUNTRY_INFO!B35=0," ",COUNTRY_INFO!B35))) ->  | C35: =IF(INTRO!$E$39<>"Non endémique", " ", IF(INTRO!$E$37="Non endémique"," ", IF(COUNTRY_INFO!C35=0," ",COUNTRY_INFO!C35))) ->  | D35: =IF(INTRO!$E$39<>"Non endémique", 0, IF(INTRO!$E$37="Non endémique",0,IF(COUNTRY_INFO!$H35=1,COUNTRY_INFO!E35,0))) -> 0 | E35: =IF(INTRO!$E$39<>"Non endémique", 0, IF(INTRO!$E$37="Non endémique",0,IF(COUNTRY_INFO!$H35=1,COUNTRY_INFO!F35,0))) -> 0 | F35: =IF(INTRO!$E$39<>"Non endémique", 0, IF(INTRO!$E$37="Non endémique",0,IF(COUNTRY_INFO!$H35=1,COUNTRY_INFO!G35,0))) -> 0 | G35: 0 | H35: =IF(INTRO!$E$39="Non endémique",IF(INTRO!$E$37="Non endémique","Non requis",COUNTRY_INFO!V35),"Traiter avec IVM") -> Traiter avec IVM | I35: 0 | J35: 0 | L35: 0
A36: =IF(INTRO!$E$39<>"Non endémique", " ", IF(INTRO!$E$37="Non endémique"," ", IF(COUNTRY_INFO!A36=0," ",COUNTRY_INFO!A36))) ->  | B36: =IF(INTRO!$E$39<>"Non endémique", " ", IF(INTRO!$E$37="Non endémique"," ", IF(COUNTRY_INFO!B36=0," ",COUNTRY_INFO!B36))) ->  | C36: =IF(INTRO!$E$39<>"Non endémique", " ", IF(INTRO!$E$37="Non endémique"," ", IF(COUNTRY_INFO!C36=0," ",COUNTRY_INFO!C36))) ->  | D36: =IF(INTRO!$E$39<>"Non endémique", 0, IF(INTRO!$E$37="Non endémique",0,IF(COUNTRY_INFO!$H36=1,COUNTRY_INFO!E36,0))) -> 0 | E36: =IF(INTRO!$E$39<>"Non endémique", 0, IF(INTRO!$E$37="Non endémique",0,IF(COUNTRY_INFO!$H36=1,COUNTRY_INFO!F36,0))) -> 0 | F36: =IF(INTRO!$E$39<>"Non endémique", 0, IF(INTRO!$E$37="Non endémique",0,IF(COUNTRY_INFO!$H36=1,COUNTRY_INFO!G36,0))) -> 0 | G36: 0 | H36: =IF(INTRO!$E$39="Non endémique",IF(INTRO!$E$37="Non endémique","Non requis",COUNTRY_INFO!V36),"Traiter avec IVM") -> Traiter avec IVM | I36: 0 | J36: 0 | L36: 0
A37: =IF(INTRO!$E$39<>"Non endémique", " ", IF(INTRO!$E$37="Non endémique"," ", IF(COUNTRY_INFO!A37=0," ",COUNTRY_INFO!A37))) ->  | B37: =IF(INTRO!$E$39<>"Non endémique", " ", IF(INTRO!$E$37="Non endémique"," ", IF(COUNTRY_INFO!B37=0," ",COUNTRY_INFO!B37))) ->  | C37: =IF(INTRO!$E$39<>"Non endémique", " ", IF(INTRO!$E$37="Non endémique"," ", IF(COUNTRY_INFO!C37=0," ",COUNTRY_INFO!C37))) ->  | D37: =IF(INTRO!$E$39<>"Non endémique", 0, IF(INTRO!$E$37="Non endémique",0,IF(COUNTRY_INFO!$H37=1,COUNTRY_INFO!E37,0))) -> 0 | E37: =IF(INTRO!$E$39<>"Non endémique", 0, IF(INTRO!$E$37="Non endémique",0,IF(COUNTRY_INFO!$H37=1,COUNTRY_INFO!F37,0))) -> 0 | F37: =IF(INTRO!$E$39<>"Non endémique", 0, IF(INTRO!$E$37="Non endémique",0,IF(COUNTRY_INFO!$H37=1,COUNTRY_INFO!G37,0))) -> 0 | G37: 0 | H37: =IF(INTRO!$E$39="Non endémique",IF(INTRO!$E$37="Non endémique","Non requis",COUNTRY_INFO!V37),"Traiter avec IVM") -> Traiter avec IVM | I37: 0 | J37: 0 | L37: 0
A38: =IF(INTRO!$E$39<>"Non endémique", " ", IF(INTRO!$E$37="Non endémique"," ", IF(COUNTRY_INFO!A38=0," ",COUNTRY_INFO!A38))) ->  | B38: =IF(INTRO!$E$39<>"Non endémique", " ", IF(INTRO!$E$37="Non endémique"," ", IF(COUNTRY_INFO!B38=0," ",COUNTRY_INFO!B38))) ->  | C38: =IF(INTRO!$E$39<>"Non endémique", " ", IF(INTRO!$E$37="Non endémique"," ", IF(COUNTRY_INFO!C38=0," ",COUNTRY_INFO!C38))) ->  | D38: =IF(INTRO!$E$39<>"Non endémique", 0, IF(INTRO!$E$37="Non endémique",0,IF(COUNTRY_INFO!$H38=1,COUNTRY_INFO!E38,0))) -> 0 | E38: =IF(INTRO!$E$39<>"Non endémique", 0, IF(INTRO!$E$37="Non endémique",0,IF(COUNTRY_INFO!$H38=1,COUNTRY_INFO!F38,0))) -> 0 | F38: =IF(INTRO!$E$39<>"Non endémique", 0, IF(INTRO!$E$37="Non endémique",0,IF(COUNTRY_INFO!$H38=1,COUNTRY_INFO!G38,0))) -> 0 | G38: 0 | H38: =IF(INTRO!$E$39="Non endémique",IF(INTRO!$E$37="Non endémique","Non requis",COUNTRY_INFO!V38),"Traiter avec IVM") -> Traiter avec IVM | I38: 0 | J38: 0 | L38: 0
A39: =IF(INTRO!$E$39<>"Non endémique", " ", IF(INTRO!$E$37="Non endémique"," ", IF(COUNTRY_INFO!A39=0," ",COUNTRY_INFO!A39))) ->  | B39: =IF(INTRO!$E$39<>"Non endémique", " ", IF(INTRO!$E$37="Non endémique"," ", IF(COUNTRY_INFO!B39=0," ",COUNTRY_INFO!B39))) ->  | C39: =IF(INTRO!$E$39<>"Non endémique", " ", IF(INTRO!$E$37="Non endémique"," ", IF(COUNTRY_INFO!C39=0," ",COUNTRY_INFO!C39))) ->  | D39: =IF(INTRO!$E$39<>"Non endémique", 0, IF(INTRO!$E$37="Non endémique",0,IF(COUNTRY_INFO!$H39=1,COUNTRY_INFO!E39,0))) -> 0 | E39: =IF(INTRO!$E$39<>"Non endémique", 0, IF(INTRO!$E$37="Non endémique",0,IF(COUNTRY_INFO!$H39=1,COUNTRY_INFO!F39,0))) -> 0 | F39: =IF(INTRO!$E$39<>"Non endémique", 0, IF(INTRO!$E$37="Non endémique",0,IF(COUNTRY_INFO!$H39=1,COUNTRY_INFO!G39,0))) -> 0 | G39: 0 | H39: =IF(INTRO!$E$39="Non endémique",IF(INTRO!$E$37="Non endémique","Non requis",COUNTRY_INFO!V39),"Traiter avec IVM") -> Traiter avec IVM | I39: 0 | J39: 0 | L39: 0
A40: =IF(INTRO!$E$39<>"Non endémique", " ", IF(INTRO!$E$37="Non endémique"," ", IF(COUNTRY_INFO!A40=0," ",COUNTRY_INFO!A40))) ->  | B40: =IF(INTRO!$E$39<>"Non endémique", " ", IF(INTRO!$E$37="Non endémique"," ", IF(COUNTRY_INFO!B40=0," ",COUNTRY_INFO!B40))) ->  | C40: =IF(INTRO!$E$39<>"Non endémique", " ", IF(INTRO!$E$37="Non endémique"," ", IF(COUNTRY_INFO!C40=0," ",COUNTRY_INFO!C40))) ->  | D40: =IF(INTRO!$E$39<>"Non endémique", 0, IF(INTRO!$E$37="Non endémique",0,IF(COUNTRY_INFO!$H40=1,COUNTRY_INFO!E40,0))) -> 0 | E40: =IF(INTRO!$E$39<>"Non endémique", 0, IF(INTRO!$E$37="Non endémique",0,IF(COUNTRY_INFO!$H40=1,COUNTRY_INFO!F40,0))) -> 0 | F40: =IF(INTRO!$E$39<>"Non endémique", 0, IF(INTRO!$E$37="Non endémique",0,IF(COUNTRY_INFO!$H40=1,COUNTRY_INFO!G40,0))) -> 0 | G40: 0 | H40: =IF(INTRO!$E$39="Non endémique",IF(INTRO!$E$37="Non endémique","Non requis",COUNTRY_INFO!V40),"Traiter avec IVM") -> Traiter avec IVM | I40: 0 | J40: 0 | L40: 0
A41: =IF(INTRO!$E$39<>"Non endémique", " ", IF(INTRO!$E$37="Non endémique"," ", IF(COUNTRY_INFO!A41=0," ",COUNTRY_INFO!A41))) ->  | B41: =IF(INTRO!$E$39<>"Non endémique", " ", IF(INTRO!$E$37="Non endémique"," ", IF(COUNTRY_INFO!B41=0," ",COUNTRY_INFO!B41))) ->  | C41: =IF(INTRO!$E$39<>"Non endémique", " ", IF(INTRO!$E$37="Non endémique"," ", IF(COUNTRY_INFO!C41=0," ",COUNTRY_INFO!C41))) ->  | D41: =IF(INTRO!$E$39<>"Non endémique", 0, IF(INTRO!$E$37="Non endémique",0,IF(COUNTRY_INFO!$H41=1,COUNTRY_INFO!E41,0))) -> 0 | E41: =IF(INTRO!$E$39<>"Non endémique", 0, IF(INTRO!$E$37="Non endémique",0,IF(COUNTRY_INFO!$H41=1,COUNTRY_INFO!F41,0))) -> 0 | F41: =IF(INTRO!$E$39<>"Non endémique", 0, IF(INTRO!$E$37="Non endémique",0,IF(COUNTRY_INFO!$H41=1,COUNTRY_INFO!G41,0))) -> 0 | G41: 0 | H41: =IF(INTRO!$E$39="Non endémique",IF(INTRO!$E$37="Non endémique","Non requis",COUNTRY_INFO!V41),"Traiter avec IVM") -> Traiter avec IVM | I41: 0 | J41: 0 | L41: 0
A42: =IF(INTRO!$E$39<>"Non endémique", " ", IF(INTRO!$E$37="Non endémique"," ", IF(COUNTRY_INFO!A42=0," ",COUNTRY_INFO!A42))) ->  | B42: =IF(INTRO!$E$39<>"Non endémique", " ", IF(INTRO!$E$37="Non endémique"," ", IF(COUNTRY_INFO!B42=0," ",COUNTRY_INFO!B42))) ->  | C42: =IF(INTRO!$E$39<>"Non endémique", " ", IF(INTRO!$E$37="Non endémique"," ", IF(COUNTRY_INFO!C42=0," ",COUNTRY_INFO!C42))) ->  | D42: =IF(INTRO!$E$39<>"Non endémique", 0, IF(INTRO!$E$37="Non endémique",0,IF(COUNTRY_INFO!$H42=1,COUNTRY_INFO!E42,0))) -> 0 | E42: =IF(INTRO!$E$39<>"Non endémique", 0, IF(INTRO!$E$37="Non endémique",0,IF(COUNTRY_INFO!$H42=1,COUNTRY_INFO!F42,0))) -> 0 | F42: =IF(INTRO!$E$39<>"Non endémique", 0, IF(INTRO!$E$37="Non endémique",0,IF(COUNTRY_INFO!$H42=1,COUNTRY_INFO!G42,0))) -> 0 | G42: 0 | H42: =IF(INTRO!$E$39="Non endémique",IF(INTRO!$E$37="Non endémique","Non requis",COUNTRY_INFO!V42),"Traiter avec IVM") -> Traiter avec IVM | I42: 0 | J42: 0 | L42: 0
A43: =IF(INTRO!$E$39<>"Non endémique", " ", IF(INTRO!$E$37="Non endémique"," ", IF(COUNTRY_INFO!A43=0," ",COUNTRY_INFO!A43))) ->  | B43: =IF(INTRO!$E$39<>"Non endémique", " ", IF(INTRO!$E$37="Non endémique"," ", IF(COUNTRY_INFO!B43=0," ",COUNTRY_INFO!B43))) ->  | C43: =IF(INTRO!$E$39<>"Non endémique", " ", IF(INTRO!$E$37="Non endémique"," ", IF(COUNTRY_INFO!C43=0," ",COUNTRY_INFO!C43))) ->  | D43: =IF(INTRO!$E$39<>"Non endémique", 0, IF(INTRO!$E$37="Non endémique",0,IF(COUNTRY_INFO!$H43=1,COUNTRY_INFO!E43,0))) -> 0 | E43: =IF(INTRO!$E$39<>"Non endémique", 0, IF(INTRO!$E$37="Non endémique",0,IF(COUNTRY_INFO!$H43=1,COUNTRY_INFO!F43,0))) -> 0 | F43: =IF(INTRO!$E$39<>"Non endémique", 0, IF(INTRO!$E$37="Non endémique",0,IF(COUNTRY_INFO!$H43=1,COUNTRY_INFO!G43,0))) -> 0 | G43: 0 | H43: =IF(INTRO!$E$39="Non endémique",IF(INTRO!$E$37="Non endémique","Non requis",COUNTRY_INFO!V43),"Traiter avec IVM") -> Traiter avec IVM | I43: 0 | J43: 0 | L43: 0
A44: =IF(INTRO!$E$39<>"Non endémique", " ", IF(INTRO!$E$37="Non endémique"," ", IF(COUNTRY_INFO!A44=0," ",COUNTRY_INFO!A44))) ->  | B44: =IF(INTRO!$E$39<>"Non endémique", " ", IF(INTRO!$E$37="Non endémique"," ", IF(COUNTRY_INFO!B44=0," ",COUNTRY_INFO!B44))) ->  | C44: =IF(INTRO!$E$39<>"Non endémique", " ", IF(INTRO!$E$37="Non endémique"," ", IF(COUNTRY_INFO!C44=0," ",COUNTRY_INFO!C44))) ->  | D44: =IF(INTRO!$E$39<>"Non endémique", 0, IF(INTRO!$E$37="Non endémique",0,IF(COUNTRY_INFO!$H44=1,COUNTRY_INFO!E44,0))) -> 0 | E44: =IF(INTRO!$E$39<>"Non endémique", 0, IF(INTRO!$E$37="Non endémique",0,IF(COUNTRY_INFO!$H44=1,COUNTRY_INFO!F44,0))) -> 0 | F44: =IF(INTRO!$E$39<>"Non endémique", 0, IF(INTRO!$E$37="Non endémique",0,IF(COUNTRY_INFO!$H44=1,COUNTRY_INFO!G44,0))) -> 0 | G44: 0 | H44: =IF(INTRO!$E$39="Non endémique",IF(INTRO!$E$37="Non endémique","Non requis",COUNTRY_INFO!V44),"Traiter avec IVM") -> Traiter avec IVM | I44: 0 | J44: 0 | L44: 0
A45: =IF(INTRO!$E$39<>"Non endémique", " ", IF(INTRO!$E$37="Non endémique"," ", IF(COUNTRY_INFO!A45=0," ",COUNTRY_INFO!A45))) ->  | B45: =IF(INTRO!$E$39<>"Non endémique", " ", IF(INTRO!$E$37="Non endémique"," ", IF(COUNTRY_INFO!B45=0," ",COUNTRY_INFO!B45))) ->  | C45: =IF(INTRO!$E$39<>"Non endémique", " ", IF(INTRO!$E$37="Non endémique"," ", IF(COUNTRY_INFO!C45=0," ",COUNTRY_INFO!C45))) ->  | D45: =IF(INTRO!$E$39<>"Non endémique", 0, IF(INTRO!$E$37="Non endémique",0,IF(COUNTRY_INFO!$H45=1,COUNTRY_INFO!E45,0))) -> 0 | E45: =IF(INTRO!$E$39<>"Non endémique", 0, IF(INTRO!$E$37="Non endémique",0,IF(COUNTRY_INFO!$H45=1,COUNTRY_INFO!F45,0))) -> 0 | F45: =IF(INTRO!$E$39<>"Non endémique", 0, IF(INTRO!$E$37="Non endémique",0,IF(COUNTRY_INFO!$H45=1,COUNTRY_INFO!G45,0))) -> 0 | G45: 0 | H45: =IF(INTRO!$E$39="Non endémique",IF(INTRO!$E$37="Non endémique","Non requis",COUNTRY_INFO!V45),"Traiter avec IVM") -> Traiter avec IVM | I45: 0 | J45: 0 | L45: 0
A46: =IF(INTRO!$E$39<>"Non endémique", " ", IF(INTRO!$E$37="Non endémique"," ", IF(COUNTRY_INFO!A46=0," ",COUNTRY_INFO!A46))) ->  | B46: =IF(INTRO!$E$39<>"Non endémique", " ", IF(INTRO!$E$37="Non endémique"," ", IF(COUNTRY_INFO!B46=0," ",COUNTRY_INFO!B46))) ->  | C46: =IF(INTRO!$E$39<>"Non endémique", " ", IF(INTRO!$E$37="Non endémique"," ", IF(COUNTRY_INFO!C46=0," ",COUNTRY_INFO!C46))) ->  | D46: =IF(INTRO!$E$39<>"Non endémique", 0, IF(INTRO!$E$37="Non endémique",0,IF(COUNTRY_INFO!$H46=1,COUNTRY_INFO!E46,0))) -> 0 | E46: =IF(INTRO!$E$39<>"Non endémique", 0, IF(INTRO!$E$37="Non endémique",0,IF(COUNTRY_INFO!$H46=1,COUNTRY_INFO!F46,0))) -> 0 | F46: =IF(INTRO!$E$39<>"Non endémique", 0, IF(INTRO!$E$37="Non endémique",0,IF(COUNTRY_INFO!$H46=1,COUNTRY_INFO!G46,0))) -> 0 | G46: 0 | H46: =IF(INTRO!$E$39="Non endémique",IF(INTRO!$E$37="Non endémique","Non requis",COUNTRY_INFO!V46),"Traiter avec IVM") -> Traiter avec IVM | I46: 0 | J46: 0 | L46: 0
A47: =IF(INTRO!$E$39<>"Non endémique", " ", IF(INTRO!$E$37="Non endémique"," ", IF(COUNTRY_INFO!A47=0," ",COUNTRY_INFO!A47))) ->  | B47: =IF(INTRO!$E$39<>"Non endémique", " ", IF(INTRO!$E$37="Non endémique"," ", IF(COUNTRY_INFO!B47=0," ",COUNTRY_INFO!B47))) ->  | C47: =IF(INTRO!$E$39<>"Non endémique", " ", IF(INTRO!$E$37="Non endémique"," ", IF(COUNTRY_INFO!C47=0," ",COUNTRY_INFO!C47))) ->  | D47: =IF(INTRO!$E$39<>"Non endémique", 0, IF(INTRO!$E$37="Non endémique",0,IF(COUNTRY_INFO!$H47=1,COUNTRY_INFO!E47,0))) -> 0 | E47: =IF(INTRO!$E$39<>"Non endémique", 0, IF(INTRO!$E$37="Non endémique",0,IF(COUNTRY_INFO!$H47=1,COUNTRY_INFO!F47,0))) -> 0 | F47: =IF(INTRO!$E$39<>"Non endémique", 0, IF(INTRO!$E$37="Non endémique",0,IF(COUNTRY_INFO!$H47=1,COUNTRY_INFO!G47,0))) -> 0 | G47: 0 | H47: =IF(INTRO!$E$39="Non endémique",IF(INTRO!$E$37="Non endémique","Non requis",COUNTRY_INFO!V47),"Traiter avec IVM") -> Traiter avec IVM | I47: 0 | J47: 0 | L47: 0
A48: =IF(INTRO!$E$39<>"Non endémique", " ", IF(INTRO!$E$37="Non endémique"," ", IF(COUNTRY_INFO!A48=0," ",COUNTRY_INFO!A48))) ->  | B48: =IF(INTRO!$E$39<>"Non endémique", " ", IF(INTRO!$E$37="Non endémique"," ", IF(COUNTRY_INFO!B48=0," ",COUNTRY_INFO!B48))) ->  | C48: =IF(INTRO!$E$39<>"Non endémique", " ", IF(INTRO!$E$37="Non endémique"," ", IF(COUNTRY_INFO!C48=0," ",COUNTRY_INFO!C48))) ->  | D48: =IF(INTRO!$E$39<>"Non endémique", 0, IF(INTRO!$E$37="Non endémique",0,IF(COUNTRY_INFO!$H48=1,COUNTRY_INFO!E48,0))) -> 0 | E48: =IF(INTRO!$E$39<>"Non endémique", 0, IF(INTRO!$E$37="Non endémique",0,IF(COUNTRY_INFO!$H48=1,COUNTRY_INFO!F48,0))) -> 0 | F48: =IF(INTRO!$E$39<>"Non endémique", 0, IF(INTRO!$E$37="Non endémique",0,IF(COUNTRY_INFO!$H48=1,COUNTRY_INFO!G48,0))) -> 0 | G48: 0 | H48: =IF(INTRO!$E$39="Non endémique",IF(INTRO!$E$37="Non endémique","Non requis",COUNTRY_INFO!V48),"Traiter avec IVM") -> Traiter avec IVM | I48: 0 | J48: 0 | L48: 0
A49: =IF(INTRO!$E$39<>"Non endémique", " ", IF(INTRO!$E$37="Non endémique"," ", IF(COUNTRY_INFO!A49=0," ",COUNTRY_INFO!A49))) ->  | B49: =IF(INTRO!$E$39<>"Non endémique", " ", IF(INTRO!$E$37="Non endémique"," ", IF(COUNTRY_INFO!B49=0," ",COUNTRY_INFO!B49))) ->  | C49: =IF(INTRO!$E$39<>"Non endémique", " ", IF(INTRO!$E$37="Non endémique"," ", IF(COUNTRY_INFO!C49=0," ",COUNTRY_INFO!C49))) ->  | D49: =IF(INTRO!$E$39<>"Non endémique", 0, IF(INTRO!$E$37="Non endémique",0,IF(COUNTRY_INFO!$H49=1,COUNTRY_INFO!E49,0))) -> 0 | E49: =IF(INTRO!$E$39<>"Non endémique", 0, IF(INTRO!$E$37="Non endémique",0,IF(COUNTRY_INFO!$H49=1,COUNTRY_INFO!F49,0))) -> 0 | F49: =IF(INTRO!$E$39<>"Non endémique", 0, IF(INTRO!$E$37="Non endémique",0,IF(COUNTRY_INFO!$H49=1,COUNTRY_INFO!G49,0))) -> 0 | G49: 0 | H49: =IF(INTRO!$E$39="Non endémique",IF(INTRO!$E$37="Non endémique","Non requis",COUNTRY_INFO!V49),"Traiter avec IVM") -> Traiter avec IVM | I49: 0 | J49: 0 | L49: 0
A50: =IF(INTRO!$E$39<>"Non endémique", " ", IF(INTRO!$E$37="Non endémique"," ", IF(COUNTRY_INFO!A50=0," ",COUNTRY_INFO!A50))) ->  | B50: =IF(INTRO!$E$39<>"Non endémique", " ", IF(INTRO!$E$37="Non endémique"," ", IF(COUNTRY_INFO!B50=0," ",COUNTRY_INFO!B50))) ->  | C50: =IF(INTRO!$E$39<>"Non endémique", " ", IF(INTRO!$E$37="Non endémique"," ", IF(COUNTRY_INFO!C50=0," ",COUNTRY_INFO!C50))) ->  | D50: =IF(INTRO!$E$39<>"Non endémique", 0, IF(INTRO!$E$37="Non endémique",0,IF(COUNTRY_INFO!$H50=1,COUNTRY_INFO!E50,0))) -> 0 | E50: =IF(INTRO!$E$39<>"Non endémique", 0, IF(INTRO!$E$37="Non endémique",0,IF(COUNTRY_INFO!$H50=1,COUNTRY_INFO!F50,0))) -> 0 | F50: =IF(INTRO!$E$39<>"Non endémique", 0, IF(INTRO!$E$37="Non endémique",0,IF(COUNTRY_INFO!$H50=1,COUNTRY_INFO!G50,0))) -> 0 | G50: 0 | H50: =IF(INTRO!$E$39="Non endémique",IF(INTRO!$E$37="Non endémique","Non requis",COUNTRY_INFO!V50),"Traiter avec IVM") -> Traiter avec IVM | I50: 0 | J50: 0 | L50: 0
A51: =IF(INTRO!$E$39<>"Non endémique", " ", IF(INTRO!$E$37="Non endémique"," ", IF(COUNTRY_INFO!A51=0," ",COUNTRY_INFO!A51))) ->  | B51: =IF(INTRO!$E$39<>"Non endémique", " ", IF(INTRO!$E$37="Non endémique"," ", IF(COUNTRY_INFO!B51=0," ",COUNTRY_INFO!B51))) ->  | C51: =IF(INTRO!$E$39<>"Non endémique", " ", IF(INTRO!$E$37="Non endémique"," ", IF(COUNTRY_INFO!C51=0," ",COUNTRY_INFO!C51))) ->  | D51: =IF(INTRO!$E$39<>"Non endémique", 0, IF(INTRO!$E$37="Non endémique",0,IF(COUNTRY_INFO!$H51=1,COUNTRY_INFO!E51,0))) -> 0 | E51: =IF(INTRO!$E$39<>"Non endémique", 0, IF(INTRO!$E$37="Non endémique",0,IF(COUNTRY_INFO!$H51=1,COUNTRY_INFO!F51,0))) -> 0 | F51: =IF(INTRO!$E$39<>"Non endémique", 0, IF(INTRO!$E$37="Non endémique",0,IF(COUNTRY_INFO!$H51=1,COUNTRY_INFO!G51,0))) -> 0 | G51: 0 | H51: =IF(INTRO!$E$39="Non endémique",IF(INTRO!$E$37="Non endémique","Non requis",COUNTRY_INFO!V51),"Traiter avec IVM") -> Traiter avec IVM | I51: 0 | J51: 0 | L51: 0
A52: =IF(INTRO!$E$39<>"Non endémique", " ", IF(INTRO!$E$37="Non endémique"," ", IF(COUNTRY_INFO!A52=0," ",COUNTRY_INFO!A52))) ->  | B52: =IF(INTRO!$E$39<>"Non endémique", " ", IF(INTRO!$E$37="Non endémique"," ", IF(COUNTRY_INFO!B52=0," ",COUNTRY_INFO!B52))) ->  | C52: =IF(INTRO!$E$39<>"Non endémique", " ", IF(INTRO!$E$37="Non endémique"," ", IF(COUNTRY_INFO!C52=0," ",COUNTRY_INFO!C52))) ->  | D52: =IF(INTRO!$E$39<>"Non endémique", 0, IF(INTRO!$E$37="Non endémique",0,IF(COUNTRY_INFO!$H52=1,COUNTRY_INFO!E52,0))) -> 0 | E52: =IF(INTRO!$E$39<>"Non endémique", 0, IF(INTRO!$E$37="Non endémique",0,IF(COUNTRY_INFO!$H52=1,COUNTRY_INFO!F52,0))) -> 0 | F52: =IF(INTRO!$E$39<>"Non endémique", 0, IF(INTRO!$E$37="Non endémique",0,IF(COUNTRY_INFO!$H52=1,COUNTRY_INFO!G52,0))) -> 0 | G52: 0 | H52: =IF(INTRO!$E$39="Non endémique",IF(INTRO!$E$37="Non endémique","Non requis",COUNTRY_INFO!V52),"Traiter avec IVM") -> Traiter avec IVM | I52: 0 | J52: 0 | L52: 0
A53: =IF(INTRO!$E$39<>"Non endémique", " ", IF(INTRO!$E$37="Non endémique"," ", IF(COUNTRY_INFO!A53=0," ",COUNTRY_INFO!A53))) ->  | B53: =IF(INTRO!$E$39<>"Non endémique", " ", IF(INTRO!$E$37="Non endémique"," ", IF(COUNTRY_INFO!B53=0," ",COUNTRY_INFO!B53))) ->  | C53: =IF(INTRO!$E$39<>"Non endémique", " ", IF(INTRO!$E$37="Non endémique"," ", IF(COUNTRY_INFO!C53=0," ",COUNTRY_INFO!C53))) ->  | D53: =IF(INTRO!$E$39<>"Non endémique", 0, IF(INTRO!$E$37="Non endémique",0,IF(COUNTRY_INFO!$H53=1,COUNTRY_INFO!E53,0))) -> 0 | E53: =IF(INTRO!$E$39<>"Non endémique", 0, IF(INTRO!$E$37="Non endémique",0,IF(COUNTRY_INFO!$H53=1,COUNTRY_INFO!F53,0))) -> 0 | F53: =IF(INTRO!$E$39<>"Non endémique", 0, IF(INTRO!$E$37="Non endémique",0,IF(COUNTRY_INFO!$H53=1,COUNTRY_INFO!G53,0))) -> 0 | G53: 0 | H53: =IF(INTRO!$E$39="Non endémique",IF(INTRO!$E$37="Non endémique","Non requis",COUNTRY_INFO!V53),"Traiter avec IVM") -> Traiter avec IVM | I53: 0 | J53: 0 | L53: 0
A54: =IF(INTRO!$E$39<>"Non endémique", " ", IF(INTRO!$E$37="Non endémique"," ", IF(COUNTRY_INFO!A54=0," ",COUNTRY_INFO!A54))) ->  | B54: =IF(INTRO!$E$39<>"Non endémique", " ", IF(INTRO!$E$37="Non endémique"," ", IF(COUNTRY_INFO!B54=0," ",COUNTRY_INFO!B54))) ->  | C54: =IF(INTRO!$E$39<>"Non endémique", " ", IF(INTRO!$E$37="Non endémique"," ", IF(COUNTRY_INFO!C54=0," ",COUNTRY_INFO!C54))) ->  | D54: =IF(INTRO!$E$39<>"Non endémique", 0, IF(INTRO!$E$37="Non endémique",0,IF(COUNTRY_INFO!$H54=1,COUNTRY_INFO!E54,0))) -> 0 | E54: =IF(INTRO!$E$39<>"Non endémique", 0, IF(INTRO!$E$37="Non endémique",0,IF(COUNTRY_INFO!$H54=1,COUNTRY_INFO!F54,0))) -> 0 | F54: =IF(INTRO!$E$39<>"Non endémique", 0, IF(INTRO!$E$37="Non endémique",0,IF(COUNTRY_INFO!$H54=1,COUNTRY_INFO!G54,0))) -> 0 | G54: 0 | H54: =IF(INTRO!$E$39="Non endémique",IF(INTRO!$E$37="Non endémique","Non requis",COUNTRY_INFO!V54),"Traiter avec IVM") -> Traiter avec IVM | I54: 0 | J54: 0 | L54: 0
A55: =IF(INTRO!$E$39<>"Non endémique", " ", IF(INTRO!$E$37="Non endémique"," ", IF(COUNTRY_INFO!A55=0," ",COUNTRY_INFO!A55))) ->  | B55: =IF(INTRO!$E$39<>"Non endémique", " ", IF(INTRO!$E$37="Non endémique"," ", IF(COUNTRY_INFO!B55=0," ",COUNTRY_INFO!B55))) ->  | C55: =IF(INTRO!$E$39<>"Non endémique", " ", IF(INTRO!$E$37="Non endémique"," ", IF(COUNTRY_INFO!C55=0," ",COUNTRY_INFO!C55))) ->  | D55: =IF(INTRO!$E$39<>"Non endémique", 0, IF(INTRO!$E$37="Non endémique",0,IF(COUNTRY_INFO!$H55=1,COUNTRY_INFO!E55,0))) -> 0 | E55: =IF(INTRO!$E$39<>"Non endémique", 0, IF(INTRO!$E$37="Non endémique",0,IF(COUNTRY_INFO!$H55=1,COUNTRY_INFO!F55,0))) -> 0 | F55: =IF(INTRO!$E$39<>"Non endémique", 0, IF(INTRO!$E$37="Non endémique",0,IF(COUNTRY_INFO!$H55=1,COUNTRY_INFO!G55,0))) -> 0 | G55: 0 | H55: =IF(INTRO!$E$39="Non endémique",IF(INTRO!$E$37="Non endémique","Non requis",COUNTRY_INFO!V55),"Traiter avec IVM") -> Traiter avec IVM | I55: 0 | J55: 0 | L55: 0
A56: =IF(INTRO!$E$39<>"Non endémique", " ", IF(INTRO!$E$37="Non endémique"," ", IF(COUNTRY_INFO!A56=0," ",COUNTRY_INFO!A56))) ->  | B56: =IF(INTRO!$E$39<>"Non endémique", " ", IF(INTRO!$E$37="Non endémique"," ", IF(COUNTRY_INFO!B56=0," ",COUNTRY_INFO!B56))) ->  | C56: =IF(INTRO!$E$39<>"Non endémique", " ", IF(INTRO!$E$37="Non endémique"," ", IF(COUNTRY_INFO!C56=0," ",COUNTRY_INFO!C56))) ->  | D56: =IF(INTRO!$E$39<>"Non endémique", 0, IF(INTRO!$E$37="Non endémique",0,IF(COUNTRY_INFO!$H56=1,COUNTRY_INFO!E56,0))) -> 0 | E56: =IF(INTRO!$E$39<>"Non endémique", 0, IF(INTRO!$E$37="Non endémique",0,IF(COUNTRY_INFO!$H56=1,COUNTRY_INFO!F56,0))) -> 0 | F56: =IF(INTRO!$E$39<>"Non endémique", 0, IF(INTRO!$E$37="Non endémique",0,IF(COUNTRY_INFO!$H56=1,COUNTRY_INFO!G56,0))) -> 0 | G56: 0 | H56: =IF(INTRO!$E$39="Non endémique",IF(INTRO!$E$37="Non endémique","Non requis",COUNTRY_INFO!V56),"Traiter avec IVM") -> Traiter avec IVM | I56: 0 | J56: 0 | L56: 0
A57: =IF(INTRO!$E$39<>"Non endémique", " ", IF(INTRO!$E$37="Non endémique"," ", IF(COUNTRY_INFO!A57=0," ",COUNTRY_INFO!A57))) ->  | B57: =IF(INTRO!$E$39<>"Non endémique", " ", IF(INTRO!$E$37="Non endémique"," ", IF(COUNTRY_INFO!B57=0," ",COUNTRY_INFO!B57))) ->  | C57: =IF(INTRO!$E$39<>"Non endémique", " ", IF(INTRO!$E$37="Non endémique"," ", IF(COUNTRY_INFO!C57=0," ",COUNTRY_INFO!C57))) ->  | D57: =IF(INTRO!$E$39<>"Non endémique", 0, IF(INTRO!$E$37="Non endémique",0,IF(COUNTRY_INFO!$H57=1,COUNTRY_INFO!E57,0))) -> 0 | E57: =IF(INTRO!$E$39<>"Non endémique", 0, IF(INTRO!$E$37="Non endémique",0,IF(COUNTRY_INFO!$H57=1,COUNTRY_INFO!F57,0))) -> 0 | F57: =IF(INTRO!$E$39<>"Non endémique", 0, IF(INTRO!$E$37="Non endémique",0,IF(COUNTRY_INFO!$H57=1,COUNTRY_INFO!G57,0))) -> 0 | G57: 0 | H57: =IF(INTRO!$E$39="Non endémique",IF(INTRO!$E$37="Non endémique","Non requis",COUNTRY_INFO!V57),"Traiter avec IVM") -> Traiter avec IVM | I57: 0 | J57: 0 | L57: 0
A58: =IF(INTRO!$E$39<>"Non endémique", " ", IF(INTRO!$E$37="Non endémique"," ", IF(COUNTRY_INFO!A58=0," ",COUNTRY_INFO!A58))) ->  | B58: =IF(INTRO!$E$39<>"Non endémique", " ", IF(INTRO!$E$37="Non endémique"," ", IF(COUNTRY_INFO!B58=0," ",COUNTRY_INFO!B58))) ->  | C58: =IF(INTRO!$E$39<>"Non endémique", " ", IF(INTRO!$E$37="Non endémique"," ", IF(COUNTRY_INFO!C58=0," ",COUNTRY_INFO!C58))) ->  | D58: =IF(INTRO!$E$39<>"Non endémique", 0, IF(INTRO!$E$37="Non endémique",0,IF(COUNTRY_INFO!$H58=1,COUNTRY_INFO!E58,0))) -> 0 | E58: =IF(INTRO!$E$39<>"Non endémique", 0, IF(INTRO!$E$37="Non endémique",0,IF(COUNTRY_INFO!$H58=1,COUNTRY_INFO!F58,0))) -> 0 | F58: =IF(INTRO!$E$39<>"Non endémique", 0, IF(INTRO!$E$37="Non endémique",0,IF(COUNTRY_INFO!$H58=1,COUNTRY_INFO!G58,0))) -> 0 | G58: 0 | H58: =IF(INTRO!$E$39="Non endémique",IF(INTRO!$E$37="Non endémique","Non requis",COUNTRY_INFO!V58),"Traiter avec IVM") -> Traiter avec IVM | I58: 0 | J58: 0 | L58: 0
A59: =IF(INTRO!$E$39<>"Non endémique", " ", IF(INTRO!$E$37="Non endémique"," ", IF(COUNTRY_INFO!A59=0," ",COUNTRY_INFO!A59))) ->  | B59: =IF(INTRO!$E$39<>"Non endémique", " ", IF(INTRO!$E$37="Non endémique"," ", IF(COUNTRY_INFO!B59=0," ",COUNTRY_INFO!B59))) ->  | C59: =IF(INTRO!$E$39<>"Non endémique", " ", IF(INTRO!$E$37="Non endémique"," ", IF(COUNTRY_INFO!C59=0," ",COUNTRY_INFO!C59))) ->  | D59: =IF(INTRO!$E$39<>"Non endémique", 0, IF(INTRO!$E$37="Non endémique",0,IF(COUNTRY_INFO!$H59=1,COUNTRY_INFO!E59,0))) -> 0 | E59: =IF(INTRO!$E$39<>"Non endémique", 0, IF(INTRO!$E$37="Non endémique",0,IF(COUNTRY_INFO!$H59=1,COUNTRY_INFO!F59,0))) -> 0 | F59: =IF(INTRO!$E$39<>"Non endémique", 0, IF(INTRO!$E$37="Non endémique",0,IF(COUNTRY_INFO!$H59=1,COUNTRY_INFO!G59,0))) -> 0 | G59: 0 | H59: =IF(INTRO!$E$39="Non endémique",IF(INTRO!$E$37="Non endémique","Non requis",COUNTRY_INFO!V59),"Traiter avec IVM") -> Traiter avec IVM | I59: 0 | J59: 0 | L59: 0
A60: =IF(INTRO!$E$39<>"Non endémique", " ", IF(INTRO!$E$37="Non endémique"," ", IF(COUNTRY_INFO!A60=0," ",COUNTRY_INFO!A60))) ->  | B60: =IF(INTRO!$E$39<>"Non endémique", " ", IF(INTRO!$E$37="Non endémique"," ", IF(COUNTRY_INFO!B60=0," ",COUNTRY_INFO!B60))) ->  | C60: =IF(INTRO!$E$39<>"Non endémique", " ", IF(INTRO!$E$37="Non endémique"," ", IF(COUNTRY_INFO!C60=0," ",COUNTRY_INFO!C60))) ->  | D60: =IF(INTRO!$E$39<>"Non endémique", 0, IF(INTRO!$E$37="Non endémique",0,IF(COUNTRY_INFO!$H60=1,COUNTRY_INFO!E60,0))) -> 0 | E60: =IF(INTRO!$E$39<>"Non endémique", 0, IF(INTRO!$E$37="Non endémique",0,IF(COUNTRY_INFO!$H60=1,COUNTRY_INFO!F60,0))) -> 0 | F60: =IF(INTRO!$E$39<>"Non endémique", 0, IF(INTRO!$E$37="Non endémique",0,IF(COUNTRY_INFO!$H60=1,COUNTRY_INFO!G60,0))) -> 0 | G60: 0 | H60: =IF(INTRO!$E$39="Non endémique",IF(INTRO!$E$37="Non endémique","Non requis",COUNTRY_INFO!V60),"Traiter avec IVM") -> Traiter avec IVM | I60: 0 | J60: 0 | L60: 0
A61: =IF(INTRO!$E$39<>"Non endémique", " ", IF(INTRO!$E$37="Non endémique"," ", IF(COUNTRY_INFO!A61=0," ",COUNTRY_INFO!A61))) ->  | B61: =IF(INTRO!$E$39<>"Non endémique", " ", IF(INTRO!$E$37="Non endémique"," ", IF(COUNTRY_INFO!B61=0," ",COUNTRY_INFO!B61))) ->  | C61: =IF(INTRO!$E$39<>"Non endémique", " ", IF(INTRO!$E$37="Non endémique"," ", IF(COUNTRY_INFO!C61=0," ",COUNTRY_INFO!C61))) ->  | D61: =IF(INTRO!$E$39<>"Non endémique", 0, IF(INTRO!$E$37="Non endémique",0,IF(COUNTRY_INFO!$H61=1,COUNTRY_INFO!E61,0))) -> 0 | E61: =IF(INTRO!$E$39<>"Non endémique", 0, IF(INTRO!$E$37="Non endémique",0,IF(COUNTRY_INFO!$H61=1,COUNTRY_INFO!F61,0))) -> 0 | F61: =IF(INTRO!$E$39<>"Non endémique", 0, IF(INTRO!$E$37="Non endémique",0,IF(COUNTRY_INFO!$H61=1,COUNTRY_INFO!G61,0))) -> 0 | G61: 0 | H61: =IF(INTRO!$E$39="Non endémique",IF(INTRO!$E$37="Non endémique","Non requis",COUNTRY_INFO!V61),"Traiter avec IVM") -> Traiter avec IVM | I61: 0 | J61: 0 | L61: 0
A62: =IF(INTRO!$E$39<>"Non endémique", " ", IF(INTRO!$E$37="Non endémique"," ", IF(COUNTRY_INFO!A62=0," ",COUNTRY_INFO!A62))) ->  | B62: =IF(INTRO!$E$39<>"Non endémique", " ", IF(INTRO!$E$37="Non endémique"," ", IF(COUNTRY_INFO!B62=0," ",COUNTRY_INFO!B62))) ->  | C62: =IF(INTRO!$E$39<>"Non endémique", " ", IF(INTRO!$E$37="Non endémique"," ", IF(COUNTRY_INFO!C62=0," ",COUNTRY_INFO!C62))) ->  | D62: =IF(INTRO!$E$39<>"Non endémique", 0, IF(INTRO!$E$37="Non endémique",0,IF(COUNTRY_INFO!$H62=1,COUNTRY_INFO!E62,0))) -> 0 | E62: =IF(INTRO!$E$39<>"Non endémique", 0, IF(INTRO!$E$37="Non endémique",0,IF(COUNTRY_INFO!$H62=1,COUNTRY_INFO!F62,0))) -> 0 | F62: =IF(INTRO!$E$39<>"Non endémique", 0, IF(INTRO!$E$37="Non endémique",0,IF(COUNTRY_INFO!$H62=1,COUNTRY_INFO!G62,0))) -> 0 | G62: 0 | H62: =IF(INTRO!$E$39="Non endémique",IF(INTRO!$E$37="Non endémique","Non requis",COUNTRY_INFO!V62),"Traiter avec IVM") -> Traiter avec IVM | I62: 0 | J62: 0 | L62: 0
A63: =IF(INTRO!$E$39<>"Non endémique", " ", IF(INTRO!$E$37="Non endémique"," ", IF(COUNTRY_INFO!A63=0," ",COUNTRY_INFO!A63))) ->  | B63: =IF(INTRO!$E$39<>"Non endémique", " ", IF(INTRO!$E$37="Non endémique"," ", IF(COUNTRY_INFO!B63=0," ",COUNTRY_INFO!B63))) ->  | C63: =IF(INTRO!$E$39<>"Non endémique", " ", IF(INTRO!$E$37="Non endémique"," ", IF(COUNTRY_INFO!C63=0," ",COUNTRY_INFO!C63))) ->  | D63: =IF(INTRO!$E$39<>"Non endémique", 0, IF(INTRO!$E$37="Non endémique",0,IF(COUNTRY_INFO!$H63=1,COUNTRY_INFO!E63,0))) -> 0 | E63: =IF(INTRO!$E$39<>"Non endémique", 0, IF(INTRO!$E$37="Non endémique",0,IF(COUNTRY_INFO!$H63=1,COUNTRY_INFO!F63,0))) -> 0 | F63: =IF(INTRO!$E$39<>"Non endémique", 0, IF(INTRO!$E$37="Non endémique",0,IF(COUNTRY_INFO!$H63=1,COUNTRY_INFO!G63,0))) -> 0 | G63: 0 | H63: =IF(INTRO!$E$39="Non endémique",IF(INTRO!$E$37="Non endémique","Non requis",COUNTRY_INFO!V63),"Traiter avec IVM") -> Traiter avec IVM | I63: 0 | J63: 0 | L63: 0
A64: =IF(INTRO!$E$39<>"Non endémique", " ", IF(INTRO!$E$37="Non endémique"," ", IF(COUNTRY_INFO!A64=0," ",COUNTRY_INFO!A64))) ->  | B64: =IF(INTRO!$E$39<>"Non endémique", " ", IF(INTRO!$E$37="Non endémique"," ", IF(COUNTRY_INFO!B64=0," ",COUNTRY_INFO!B64))) ->  | C64: =IF(INTRO!$E$39<>"Non endémique", " ", IF(INTRO!$E$37="Non endémique"," ", IF(COUNTRY_INFO!C64=0," ",COUNTRY_INFO!C64))) ->  | D64: =IF(INTRO!$E$39<>"Non endémique", 0, IF(INTRO!$E$37="Non endémique",0,IF(COUNTRY_INFO!$H64=1,COUNTRY_INFO!E64,0))) -> 0 | E64: =IF(INTRO!$E$39<>"Non endémique", 0, IF(INTRO!$E$37="Non endémique",0,IF(COUNTRY_INFO!$H64=1,COUNTRY_INFO!F64,0))) -> 0 | F64: =IF(INTRO!$E$39<>"Non endémique", 0, IF(INTRO!$E$37="Non endémique",0,IF(COUNTRY_INFO!$H64=1,COUNTRY_INFO!G64,0))) -> 0 | G64: 0 | H64: =IF(INTRO!$E$39="Non endémique",IF(INTRO!$E$37="Non endémique","Non requis",COUNTRY_INFO!V64),"Traiter avec IVM") -> Traiter avec IVM | I64: 0 | J64: 0 | L64: 0
A65: =IF(INTRO!$E$39<>"Non endémique", " ", IF(INTRO!$E$37="Non endémique"," ", IF(COUNTRY_INFO!A65=0," ",COUNTRY_INFO!A65))) ->  | B65: =IF(INTRO!$E$39<>"Non endémique", " ", IF(INTRO!$E$37="Non endémique"," ", IF(COUNTRY_INFO!B65=0," ",COUNTRY_INFO!B65))) ->  | C65: =IF(INTRO!$E$39<>"Non endémique", " ", IF(INTRO!$E$37="Non endémique"," ", IF(COUNTRY_INFO!C65=0," ",COUNTRY_INFO!C65))) ->  | D65: =IF(INTRO!$E$39<>"Non endémique", 0, IF(INTRO!$E$37="Non endémique",0,IF(COUNTRY_INFO!$H65=1,COUNTRY_INFO!E65,0))) -> 0 | E65: =IF(INTRO!$E$39<>"Non endémique", 0, IF(INTRO!$E$37="Non endémique",0,IF(COUNTRY_INFO!$H65=1,COUNTRY_INFO!F65,0))) -> 0 | F65: =IF(INTRO!$E$39<>"Non endémique", 0, IF(INTRO!$E$37="Non endémique",0,IF(COUNTRY_INFO!$H65=1,COUNTRY_INFO!G65,0))) -> 0 | G65: 0 | H65: =IF(INTRO!$E$39="Non endémique",IF(INTRO!$E$37="Non endémique","Non requis",COUNTRY_INFO!V65),"Traiter avec IVM") -> Traiter avec IVM | I65: 0 | J65: 0 | L65: 0
A66: =IF(INTRO!$E$39<>"Non endémique", " ", IF(INTRO!$E$37="Non endémique"," ", IF(COUNTRY_INFO!A66=0," ",COUNTRY_INFO!A66))) ->  | B66: =IF(INTRO!$E$39<>"Non endémique", " ", IF(INTRO!$E$37="Non endémique"," ", IF(COUNTRY_INFO!B66=0," ",COUNTRY_INFO!B66))) ->  | C66: =IF(INTRO!$E$39<>"Non endémique", " ", IF(INTRO!$E$37="Non endémique"," ", IF(COUNTRY_INFO!C66=0," ",COUNTRY_INFO!C66))) ->  | D66: =IF(INTRO!$E$39<>"Non endémique", 0, IF(INTRO!$E$37="Non endémique",0,IF(COUNTRY_INFO!$H66=1,COUNTRY_INFO!E66,0))) -> 0 | E66: =IF(INTRO!$E$39<>"Non endémique", 0, IF(INTRO!$E$37="Non endémique",0,IF(COUNTRY_INFO!$H66=1,COUNTRY_INFO!F66,0))) -> 0 | F66: =IF(INTRO!$E$39<>"Non endémique", 0, IF(INTRO!$E$37="Non endémique",0,IF(COUNTRY_INFO!$H66=1,COUNTRY_INFO!G66,0))) -> 0 | G66: 0 | H66: =IF(INTRO!$E$39="Non endémique",IF(INTRO!$E$37="Non endémique","Non requis",COUNTRY_INFO!V66),"Traiter avec IVM") -> Traiter avec IVM | I66: 0 | J66: 0 | L66: 0
A67: =IF(INTRO!$E$39<>"Non endémique", " ", IF(INTRO!$E$37="Non endémique"," ", IF(COUNTRY_INFO!A67=0," ",COUNTRY_INFO!A67))) ->  | B67: =IF(INTRO!$E$39<>"Non endémique", " ", IF(INTRO!$E$37="Non endémique"," ", IF(COUNTRY_INFO!B67=0," ",COUNTRY_INFO!B67))) ->  | C67: =IF(INTRO!$E$39<>"Non endémique", " ", IF(INTRO!$E$37="Non endémique"," ", IF(COUNTRY_INFO!C67=0," ",COUNTRY_INFO!C67))) ->  | D67: =IF(INTRO!$E$39<>"Non endémique", 0, IF(INTRO!$E$37="Non endémique",0,IF(COUNTRY_INFO!$H67=1,COUNTRY_INFO!E67,0))) -> 0 | E67: =IF(INTRO!$E$39<>"Non endémique", 0, IF(INTRO!$E$37="Non endémique",0,IF(COUNTRY_INFO!$H67=1,COUNTRY_INFO!F67,0))) -> 0 | F67: =IF(INTRO!$E$39<>"Non endémique", 0, IF(INTRO!$E$37="Non endémique",0,IF(COUNTRY_INFO!$H67=1,COUNTRY_INFO!G67,0))) -> 0 | G67: 0 | H67: =IF(INTRO!$E$39="Non endémique",IF(INTRO!$E$37="Non endémique","Non requis",COUNTRY_INFO!V67),"Traiter avec IVM") -> Traiter avec IVM | I67: 0 | J67: 0 | L67: 0
A68: =IF(INTRO!$E$39<>"Non endémique", " ", IF(INTRO!$E$37="Non endémique"," ", IF(COUNTRY_INFO!A68=0," ",COUNTRY_INFO!A68))) ->  | B68: =IF(INTRO!$E$39<>"Non endémique", " ", IF(INTRO!$E$37="Non endémique"," ", IF(COUNTRY_INFO!B68=0," ",COUNTRY_INFO!B68))) ->  | C68: =IF(INTRO!$E$39<>"Non endémique", " ", IF(INTRO!$E$37="Non endémique"," ", IF(COUNTRY_INFO!C68=0," ",COUNTRY_INFO!C68))) ->  | D68: =IF(INTRO!$E$39<>"Non endémique", 0, IF(INTRO!$E$37="Non endémique",0,IF(COUNTRY_INFO!$H68=1,COUNTRY_INFO!E68,0))) -> 0 | E68: =IF(INTRO!$E$39<>"Non endémique", 0, IF(INTRO!$E$37="Non endémique",0,IF(COUNTRY_INFO!$H68=1,COUNTRY_INFO!F68,0))) -> 0 | F68: =IF(INTRO!$E$39<>"Non endémique", 0, IF(INTRO!$E$37="Non endémique",0,IF(COUNTRY_INFO!$H68=1,COUNTRY_INFO!G68,0))) -> 0 | G68: 0 | H68: =IF(INTRO!$E$39="Non endémique",IF(INTRO!$E$37="Non endémique","Non requis",COUNTRY_INFO!V68),"Traiter avec IVM") -> Traiter avec IVM | I68: 0 | J68: 0 | L68: 0
A69: =IF(INTRO!$E$39<>"Non endémique", " ", IF(INTRO!$E$37="Non endémique"," ", IF(COUNTRY_INFO!A69=0," ",COUNTRY_INFO!A69))) ->  | B69: =IF(INTRO!$E$39<>"Non endémique", " ", IF(INTRO!$E$37="Non endémique"," ", IF(COUNTRY_INFO!B69=0," ",COUNTRY_INFO!B69))) ->  | C69: =IF(INTRO!$E$39<>"Non endémique", " ", IF(INTRO!$E$37="Non endémique"," ", IF(COUNTRY_INFO!C69=0," ",COUNTRY_INFO!C69))) ->  | D69: =IF(INTRO!$E$39<>"Non endémique", 0, IF(INTRO!$E$37="Non endémique",0,IF(COUNTRY_INFO!$H69=1,COUNTRY_INFO!E69,0))) -> 0 | E69: =IF(INTRO!$E$39<>"Non endémique", 0, IF(INTRO!$E$37="Non endémique",0,IF(COUNTRY_INFO!$H69=1,COUNTRY_INFO!F69,0))) -> 0 | F69: =IF(INTRO!$E$39<>"Non endémique", 0, IF(INTRO!$E$37="Non endémique",0,IF(COUNTRY_INFO!$H69=1,COUNTRY_INFO!G69,0))) -> 0 | G69: 0 | H69: =IF(INTRO!$E$39="Non endémique",IF(INTRO!$E$37="Non endémique","Non requis",COUNTRY_INFO!V69),"Traiter avec IVM") -> Traiter avec IVM | I69: 0 | J69: 0 | L69: 0
A70: =IF(INTRO!$E$39<>"Non endémique", " ", IF(INTRO!$E$37="Non endémique"," ", IF(COUNTRY_INFO!A70=0," ",COUNTRY_INFO!A70))) ->  | B70: =IF(INTRO!$E$39<>"Non endémique", " ", IF(INTRO!$E$37="Non endémique"," ", IF(COUNTRY_INFO!B70=0," ",COUNTRY_INFO!B70))) ->  | C70: =IF(INTRO!$E$39<>"Non endémique", " ", IF(INTRO!$E$37="Non endémique"," ", IF(COUNTRY_INFO!C70=0," ",COUNTRY_INFO!C70))) ->  | D70: =IF(INTRO!$E$39<>"Non endémique", 0, IF(INTRO!$E$37="Non endémique",0,IF(COUNTRY_INFO!$H70=1,COUNTRY_INFO!E70,0))) -> 0 | E70: =IF(INTRO!$E$39<>"Non endémique", 0, IF(INTRO!$E$37="Non endémique",0,IF(COUNTRY_INFO!$H70=1,COUNTRY_INFO!F70,0))) -> 0 | F70: =IF(INTRO!$E$39<>"Non endémique", 0, IF(INTRO!$E$37="Non endémique",0,IF(COUNTRY_INFO!$H70=1,COUNTRY_INFO!G70,0))) -> 0 | G70: 0 | H70: =IF(INTRO!$E$39="Non endémique",IF(INTRO!$E$37="Non endémique","Non requis",COUNTRY_INFO!V70),"Traiter avec IVM") -> Traiter avec IVM | I70: 0 | J70: 0 | L70: 0
A71: =IF(INTRO!$E$39<>"Non endémique", " ", IF(INTRO!$E$37="Non endémique"," ", IF(COUNTRY_INFO!A71=0," ",COUNTRY_INFO!A71))) ->  | B71: =IF(INTRO!$E$39<>"Non endémique", " ", IF(INTRO!$E$37="Non endémique"," ", IF(COUNTRY_INFO!B71=0," ",COUNTRY_INFO!B71))) ->  | C71: =IF(INTRO!$E$39<>"Non endémique", " ", IF(INTRO!$E$37="Non endémique"," ", IF(COUNTRY_INFO!C71=0," ",COUNTRY_INFO!C71))) ->  | D71: =IF(INTRO!$E$39<>"Non endémique", 0, IF(INTRO!$E$37="Non endémique",0,IF(COUNTRY_INFO!$H71=1,COUNTRY_INFO!E71,0))) -> 0 | E71: =IF(INTRO!$E$39<>"Non endémique", 0, IF(INTRO!$E$37="Non endémique",0,IF(COUNTRY_INFO!$H71=1,COUNTRY_INFO!F71,0))) -> 0 | F71: =IF(INTRO!$E$39<>"Non endémique", 0, IF(INTRO!$E$37="Non endémique",0,IF(COUNTRY_INFO!$H71=1,COUNTRY_INFO!G71,0))) -> 0 | G71: 0 | H71: =IF(INTRO!$E$39="Non endémique",IF(INTRO!$E$37="Non endémique","Non requis",COUNTRY_INFO!V71),"Traiter avec IVM") -> Traiter avec IVM | I71: 0 | J71: 0 | L71: 0
A72: =IF(INTRO!$E$39<>"Non endémique", " ", IF(INTRO!$E$37="Non endémique"," ", IF(COUNTRY_INFO!A72=0," ",COUNTRY_INFO!A72))) ->  | B72: =IF(INTRO!$E$39<>"Non endémique", " ", IF(INTRO!$E$37="Non endémique"," ", IF(COUNTRY_INFO!B72=0," ",COUNTRY_INFO!B72))) ->  | C72: =IF(INTRO!$E$39<>"Non endémique", " ", IF(INTRO!$E$37="Non endémique"," ", IF(COUNTRY_INFO!C72=0," ",COUNTRY_INFO!C72))) ->  | D72: =IF(INTRO!$E$39<>"Non endémique", 0, IF(INTRO!$E$37="Non endémique",0,IF(COUNTRY_INFO!$H72=1,COUNTRY_INFO!E72,0))) -> 0 | E72: =IF(INTRO!$E$39<>"Non endémique", 0, IF(INTRO!$E$37="Non endémique",0,IF(COUNTRY_INFO!$H72=1,COUNTRY_INFO!F72,0))) -> 0 | F72: =IF(INTRO!$E$39<>"Non endémique", 0, IF(INTRO!$E$37="Non endémique",0,IF(COUNTRY_INFO!$H72=1,COUNTRY_INFO!G72,0))) -> 0 | G72: 0 | H72: =IF(INTRO!$E$39="Non endémique",IF(INTRO!$E$37="Non endémique","Non requis",COUNTRY_INFO!V72),"Traiter avec IVM") -> Traiter avec IVM | I72: 0 | J72: 0 | L72: 0
A73: =IF(INTRO!$E$39<>"Non endémique", " ", IF(INTRO!$E$37="Non endémique"," ", IF(COUNTRY_INFO!A73=0," ",COUNTRY_INFO!A73))) ->  | B73: =IF(INTRO!$E$39<>"Non endémique", " ", IF(INTRO!$E$37="Non endémique"," ", IF(COUNTRY_INFO!B73=0," ",COUNTRY_INFO!B73))) ->  | C73: =IF(INTRO!$E$39<>"Non endémique", " ", IF(INTRO!$E$37="Non endémique"," ", IF(COUNTRY_INFO!C73=0," ",COUNTRY_INFO!C73))) ->  | D73: =IF(INTRO!$E$39<>"Non endémique", 0, IF(INTRO!$E$37="Non endémique",0,IF(COUNTRY_INFO!$H73=1,COUNTRY_INFO!E73,0))) -> 0 | E73: =IF(INTRO!$E$39<>"Non endémique", 0, IF(INTRO!$E$37="Non endémique",0,IF(COUNTRY_INFO!$H73=1,COUNTRY_INFO!F73,0))) -> 0 | F73: =IF(INTRO!$E$39<>"Non endémique", 0, IF(INTRO!$E$37="Non endémique",0,IF(COUNTRY_INFO!$H73=1,COUNTRY_INFO!G73,0))) -> 0 | G73: 0 | H73: =IF(INTRO!$E$39="Non endémique",IF(INTRO!$E$37="Non endémique","Non requis",COUNTRY_INFO!V73),"Traiter avec IVM") -> Traiter avec IVM | I73: 0 | J73: 0 | L73: 0
A74: =IF(INTRO!$E$39<>"Non endémique", " ", IF(INTRO!$E$37="Non endémique"," ", IF(COUNTRY_INFO!A74=0," ",COUNTRY_INFO!A74))) ->  | B74: =IF(INTRO!$E$39<>"Non endémique", " ", IF(INTRO!$E$37="Non endémique"," ", IF(COUNTRY_INFO!B74=0," ",COUNTRY_INFO!B74))) ->  | C74: =IF(INTRO!$E$39<>"Non endémique", " ", IF(INTRO!$E$37="Non endémique"," ", IF(COUNTRY_INFO!C74=0," ",COUNTRY_INFO!C74))) ->  | D74: =IF(INTRO!$E$39<>"Non endémique", 0, IF(INTRO!$E$37="Non endémique",0,IF(COUNTRY_INFO!$H74=1,COUNTRY_INFO!E74,0))) -> 0 | E74: =IF(INTRO!$E$39<>"Non endémique", 0, IF(INTRO!$E$37="Non endémique",0,IF(COUNTRY_INFO!$H74=1,COUNTRY_INFO!F74,0))) -> 0 | F74: =IF(INTRO!$E$39<>"Non endémique", 0, IF(INTRO!$E$37="Non endémique",0,IF(COUNTRY_INFO!$H74=1,COUNTRY_INFO!G74,0))) -> 0 | G74: 0 | H74: =IF(INTRO!$E$39="Non endémique",IF(INTRO!$E$37="Non endémique","Non requis",COUNTRY_INFO!V74),"Traiter avec IVM") -> Traiter avec IVM | I74: 0 | J74: 0 | L74: 0
A75: =IF(INTRO!$E$39<>"Non endémique", " ", IF(INTRO!$E$37="Non endémique"," ", IF(COUNTRY_INFO!A75=0," ",COUNTRY_INFO!A75))) ->  | B75: =IF(INTRO!$E$39<>"Non endémique", " ", IF(INTRO!$E$37="Non endémique"," ", IF(COUNTRY_INFO!B75=0," ",COUNTRY_INFO!B75))) ->  | C75: =IF(INTRO!$E$39<>"Non endémique", " ", IF(INTRO!$E$37="Non endémique"," ", IF(COUNTRY_INFO!C75=0," ",COUNTRY_INFO!C75))) ->  | D75: =IF(INTRO!$E$39<>"Non endémique", 0, IF(INTRO!$E$37="Non endémique",0,IF(COUNTRY_INFO!$H75=1,COUNTRY_INFO!E75,0))) -> 0 | E75: =IF(INTRO!$E$39<>"Non endémique", 0, IF(INTRO!$E$37="Non endémique",0,IF(COUNTRY_INFO!$H75=1,COUNTRY_INFO!F75,0))) -> 0 | F75: =IF(INTRO!$E$39<>"Non endémique", 0, IF(INTRO!$E$37="Non endémique",0,IF(COUNTRY_INFO!$H75=1,COUNTRY_INFO!G75,0))) -> 0 | G75: =SUM(D75:F75) -> 0 | H75: =IF(INTRO!$E$39="Non endémique",IF(INTRO!$E$37="Non endémique","Non requis",COUNTRY_INFO!V75),"Traiter avec IVM") -> Traiter avec IVM | I75: =IF(H75=1,G75,0) -> 0 | J75: =IF(I75>0,I75*2.5,0) -> 0 | L75: 0
A76: =IF(INTRO!$E$39<>"Non endémique", " ", IF(INTRO!$E$37="Non endémique"," ", IF(COUNTRY_INFO!A76=0," ",COUNTRY_INFO!A76))) ->  | B76: =IF(INTRO!$E$39<>"Non endémique", " ", IF(INTRO!$E$37="Non endémique"," ", IF(COUNTRY_INFO!B76=0," ",COUNTRY_INFO!B76))) ->  | C76: =IF(INTRO!$E$39<>"Non endémique", " ", IF(INTRO!$E$37="Non endémique"," ", IF(COUNTRY_INFO!C76=0," ",COUNTRY_INFO!C76))) ->  | D76: =IF(INTRO!$E$39<>"Non endémique", 0, IF(INTRO!$E$37="Non endémique",0,IF(COUNTRY_INFO!$H76=1,COUNTRY_INFO!E76,0))) -> 0 | E76: =IF(INTRO!$E$39<>"Non endémique", 0, IF(INTRO!$E$37="Non endémique",0,IF(COUNTRY_INFO!$H76=1,COUNTRY_INFO!F76,0))) -> 0 | F76: =IF(INTRO!$E$39<>"Non endémique", 0, IF(INTRO!$E$37="Non endémique",0,IF(COUNTRY_INFO!$H76=1,COUNTRY_INFO!G76,0))) -> 0 | G76: 0 | H76: =IF(INTRO!$E$39="Non endémique",IF(INTRO!$E$37="Non endémique","Non requis",COUNTRY_INFO!V76),"Traiter avec IVM") -> Traiter avec IVM | I76: 0 | J76: 0 | L76: 0
A77: =IF(INTRO!$E$39<>"Non endémique", " ", IF(INTRO!$E$37="Non endémique"," ", IF(COUNTRY_INFO!A77=0," ",COUNTRY_INFO!A77))) ->  | B77: =IF(INTRO!$E$39<>"Non endémique", " ", IF(INTRO!$E$37="Non endémique"," ", IF(COUNTRY_INFO!B77=0," ",COUNTRY_INFO!B77))) ->  | C77: =IF(INTRO!$E$39<>"Non endémique", " ", IF(INTRO!$E$37="Non endémique"," ", IF(COUNTRY_INFO!C77=0," ",COUNTRY_INFO!C77))) ->  | D77: =IF(INTRO!$E$39<>"Non endémique", 0, IF(INTRO!$E$37="Non endémique",0,IF(COUNTRY_INFO!$H77=1,COUNTRY_INFO!E77,0))) -> 0 | E77: =IF(INTRO!$E$39<>"Non endémique", 0, IF(INTRO!$E$37="Non endémique",0,IF(COUNTRY_INFO!$H77=1,COUNTRY_INFO!F77,0))) -> 0 | F77: =IF(INTRO!$E$39<>"Non endémique", 0, IF(INTRO!$E$37="Non endémique",0,IF(COUNTRY_INFO!$H77=1,COUNTRY_INFO!G77,0))) -> 0 | G77: 0 | H77: =IF(INTRO!$E$39="Non endémique",IF(INTRO!$E$37="Non endémique","Non requis",COUNTRY_INFO!V77),"Traiter avec IVM") -> Traiter avec IVM | I77: 0 | J77: 0 | L77: 0
A78: =IF(INTRO!$E$39<>"Non endémique", " ", IF(INTRO!$E$37="Non endémique"," ", IF(COUNTRY_INFO!A78=0," ",COUNTRY_INFO!A78))) ->  | B78: =IF(INTRO!$E$39<>"Non endémique", " ", IF(INTRO!$E$37="Non endémique"," ", IF(COUNTRY_INFO!B78=0," ",COUNTRY_INFO!B78))) ->  | C78: =IF(INTRO!$E$39<>"Non endémique", " ", IF(INTRO!$E$37="Non endémique"," ", IF(COUNTRY_INFO!C78=0," ",COUNTRY_INFO!C78))) ->  | D78: =IF(INTRO!$E$39<>"Non endémique", 0, IF(INTRO!$E$37="Non endémique",0,IF(COUNTRY_INFO!$H78=1,COUNTRY_INFO!E78,0))) -> 0 | E78: =IF(INTRO!$E$39<>"Non endémique", 0, IF(INTRO!$E$37="Non endémique",0,IF(COUNTRY_INFO!$H78=1,COUNTRY_INFO!F78,0))) -> 0 | F78: =IF(INTRO!$E$39<>"Non endémique", 0, IF(INTRO!$E$37="Non endémique",0,IF(COUNTRY_INFO!$H78=1,COUNTRY_INFO!G78,0))) -> 0 | G78: 0 | H78: =IF(INTRO!$E$39="Non endémique",IF(INTRO!$E$37="Non endémique","Non requis",COUNTRY_INFO!V78),"Traiter avec IVM") -> Traiter avec IVM | I78: 0 | J78: 0 | L78: 0
A79: =IF(INTRO!$E$39<>"Non endémique", " ", IF(INTRO!$E$37="Non endémique"," ", IF(COUNTRY_INFO!A79=0," ",COUNTRY_INFO!A79))) ->  | B79: =IF(INTRO!$E$39<>"Non endémique", " ", IF(INTRO!$E$37="Non endémique"," ", IF(COUNTRY_INFO!B79=0," ",COUNTRY_INFO!B79))) ->  | C79: =IF(INTRO!$E$39<>"Non endémique", " ", IF(INTRO!$E$37="Non endémique"," ", IF(COUNTRY_INFO!C79=0," ",COUNTRY_INFO!C79))) ->  | D79: =IF(INTRO!$E$39<>"Non endémique", 0, IF(INTRO!$E$37="Non endémique",0,IF(COUNTRY_INFO!$H79=1,COUNTRY_INFO!E79,0))) -> 0 | E79: =IF(INTRO!$E$39<>"Non endémique", 0, IF(INTRO!$E$37="Non endémique",0,IF(COUNTRY_INFO!$H79=1,COUNTRY_INFO!F79,0))) -> 0 | F79: =IF(INTRO!$E$39<>"Non endémique", 0, IF(INTRO!$E$37="Non endémique",0,IF(COUNTRY_INFO!$H79=1,COUNTRY_INFO!G79,0))) -> 0 | G79: 0 | H79: =IF(INTRO!$E$39="Non endémique",IF(INTRO!$E$37="Non endémique","Non requis",COUNTRY_INFO!V79),"Traiter avec IVM") -> Traiter avec IVM | I79: 0 | J79: 0 | L79: 0
A80: =IF(INTRO!$E$39<>"Non endémique", " ", IF(INTRO!$E$37="Non endémique"," ", IF(COUNTRY_INFO!A80=0," ",COUNTRY_INFO!A80))) ->  | B80: =IF(INTRO!$E$39<>"Non endémique", " ", IF(INTRO!$E$37="Non endémique"," ", IF(COUNTRY_INFO!B80=0," ",COUNTRY_INFO!B80))) ->  | C80: =IF(INTRO!$E$39<>"Non endémique", " ", IF(INTRO!$E$37="Non endémique"," ", IF(COUNTRY_INFO!C80=0," ",COUNTRY_INFO!C80))) ->  | D80: =IF(INTRO!$E$39<>"Non endémique", 0, IF(INTRO!$E$37="Non endémique",0,IF(COUNTRY_INFO!$H80=1,COUNTRY_INFO!E80,0))) -> 0 | E80: =IF(INTRO!$E$39<>"Non endémique", 0, IF(INTRO!$E$37="Non endémique",0,IF(COUNTRY_INFO!$H80=1,COUNTRY_INFO!F80,0))) -> 0 | F80: =IF(INTRO!$E$39<>"Non endémique", 0, IF(INTRO!$E$37="Non endémique",0,IF(COUNTRY_INFO!$H80=1,COUNTRY_INFO!G80,0))) -> 0 | G80: 0 | H80: =IF(INTRO!$E$39="Non endémique",IF(INTRO!$E$37="Non endémique","Non requis",COUNTRY_INFO!V80),"Traiter avec IVM") -> Traiter avec IVM | I80: 0 | J80: 0 | L80: 0
A81: =IF(INTRO!$E$39<>"Non endémique", " ", IF(INTRO!$E$37="Non endémique"," ", IF(COUNTRY_INFO!A81=0," ",COUNTRY_INFO!A81))) ->  | B81: =IF(INTRO!$E$39<>"Non endémique", " ", IF(INTRO!$E$37="Non endémique"," ", IF(COUNTRY_INFO!B81=0," ",COUNTRY_INFO!B81))) ->  | C81: =IF(INTRO!$E$39<>"Non endémique", " ", IF(INTRO!$E$37="Non endémique"," ", IF(COUNTRY_INFO!C81=0," ",COUNTRY_INFO!C81))) ->  | D81: =IF(INTRO!$E$39<>"Non endémique", 0, IF(INTRO!$E$37="Non endémique",0,IF(COUNTRY_INFO!$H81=1,COUNTRY_INFO!E81,0))) -> 0 | E81: =IF(INTRO!$E$39<>"Non endémique", 0, IF(INTRO!$E$37="Non endémique",0,IF(COUNTRY_INFO!$H81=1,COUNTRY_INFO!F81,0))) -> 0 | F81: =IF(INTRO!$E$39<>"Non endémique", 0, IF(INTRO!$E$37="Non endémique",0,IF(COUNTRY_INFO!$H81=1,COUNTRY_INFO!G81,0))) -> 0 | G81: 0 | H81: =IF(INTRO!$E$39="Non endémique",IF(INTRO!$E$37="Non endémique","Non requis",COUNTRY_INFO!V81),"Traiter avec IVM") -> Traiter avec IVM | I81: 0 | J81: 0 | L81: 0
A82: =IF(INTRO!$E$39<>"Non endémique", " ", IF(INTRO!$E$37="Non endémique"," ", IF(COUNTRY_INFO!A82=0," ",COUNTRY_INFO!A82))) ->  | B82: =IF(INTRO!$E$39<>"Non endémique", " ", IF(INTRO!$E$37="Non endémique"," ", IF(COUNTRY_INFO!B82=0," ",COUNTRY_INFO!B82))) ->  | C82: =IF(INTRO!$E$39<>"Non endémique", " ", IF(INTRO!$E$37="Non endémique"," ", IF(COUNTRY_INFO!C82=0," ",COUNTRY_INFO!C82))) ->  | D82: =IF(INTRO!$E$39<>"Non endémique", 0, IF(INTRO!$E$37="Non endémique",0,IF(COUNTRY_INFO!$H82=1,COUNTRY_INFO!E82,0))) -> 0 | E82: =IF(INTRO!$E$39<>"Non endémique", 0, IF(INTRO!$E$37="Non endémique",0,IF(COUNTRY_INFO!$H82=1,COUNTRY_INFO!F82,0))) -> 0 | F82: =IF(INTRO!$E$39<>"Non endémique", 0, IF(INTRO!$E$37="Non endémique",0,IF(COUNTRY_INFO!$H82=1,COUNTRY_INFO!G82,0))) -> 0 | G82: 0 | H82: =IF(INTRO!$E$39="Non endémique",IF(INTRO!$E$37="Non endémique","Non requis",COUNTRY_INFO!V82),"Traiter avec IVM") -> Traiter avec IVM | I82: 0 | J82: 0 | L82: 0
A83: =IF(INTRO!$E$39<>"Non endémique", " ", IF(INTRO!$E$37="Non endémique"," ", IF(COUNTRY_INFO!A83=0," ",COUNTRY_INFO!A83))) ->  | B83: =IF(INTRO!$E$39<>"Non endémique", " ", IF(INTRO!$E$37="Non endémique"," ", IF(COUNTRY_INFO!B83=0," ",COUNTRY_INFO!B83))) ->  | C83: =IF(INTRO!$E$39<>"Non endémique", " ", IF(INTRO!$E$37="Non endémique"," ", IF(COUNTRY_INFO!C83=0," ",COUNTRY_INFO!C83))) ->  | D83: =IF(INTRO!$E$39<>"Non endémique", 0, IF(INTRO!$E$37="Non endémique",0,IF(COUNTRY_INFO!$H83=1,COUNTRY_INFO!E83,0))) -> 0 | E83: =IF(INTRO!$E$39<>"Non endémique", 0, IF(INTRO!$E$37="Non endémique",0,IF(COUNTRY_INFO!$H83=1,COUNTRY_INFO!F83,0))) -> 0 | F83: =IF(INTRO!$E$39<>"Non endémique", 0, IF(INTRO!$E$37="Non endémique",0,IF(COUNTRY_INFO!$H83=1,COUNTRY_INFO!G83,0))) -> 0 | G83: 0 | H83: =IF(INTRO!$E$39="Non endémique",IF(INTRO!$E$37="Non endémique","Non requis",COUNTRY_INFO!V83),"Traiter avec IVM") -> Traiter avec IVM | I83: 0 | J83: 0 | L83: 0
A84: =IF(INTRO!$E$39<>"Non endémique", " ", IF(INTRO!$E$37="Non endémique"," ", IF(COUNTRY_INFO!A84=0," ",COUNTRY_INFO!A84))) ->  | B84: =IF(INTRO!$E$39<>"Non endémique", " ", IF(INTRO!$E$37="Non endémique"," ", IF(COUNTRY_INFO!B84=0," ",COUNTRY_INFO!B84))) ->  | C84: =IF(INTRO!$E$39<>"Non endémique", " ", IF(INTRO!$E$37="Non endémique"," ", IF(COUNTRY_INFO!C84=0," ",COUNTRY_INFO!C84))) ->  | D84: =IF(INTRO!$E$39<>"Non endémique", 0, IF(INTRO!$E$37="Non endémique",0,IF(COUNTRY_INFO!$H84=1,COUNTRY_INFO!E84,0))) -> 0 | E84: =IF(INTRO!$E$39<>"Non endémique", 0, IF(INTRO!$E$37="Non endémique",0,IF(COUNTRY_INFO!$H84=1,COUNTRY_INFO!F84,0))) -> 0 | F84: =IF(INTRO!$E$39<>"Non endémique", 0, IF(INTRO!$E$37="Non endémique",0,IF(COUNTRY_INFO!$H84=1,COUNTRY_INFO!G84,0))) -> 0 | G84: 0 | H84: =IF(INTRO!$E$39="Non endémique",IF(INTRO!$E$37="Non endémique","Non requis",COUNTRY_INFO!V84),"Traiter avec IVM") -> Traiter avec IVM | I84: 0 | J84: 0 | L84: 0
A85: =IF(INTRO!$E$39<>"Non endémique", " ", IF(INTRO!$E$37="Non endémique"," ", IF(COUNTRY_INFO!A85=0," ",COUNTRY_INFO!A85))) ->  | B85: =IF(INTRO!$E$39<>"Non endémique", " ", IF(INTRO!$E$37="Non endémique"," ", IF(COUNTRY_INFO!B85=0," ",COUNTRY_INFO!B85))) ->  | C85: =IF(INTRO!$E$39<>"Non endémique", " ", IF(INTRO!$E$37="Non endémique"," ", IF(COUNTRY_INFO!C85=0," ",COUNTRY_INFO!C85))) ->  | D85: =IF(INTRO!$E$39<>"Non endémique", 0, IF(INTRO!$E$37="Non endémique",0,IF(COUNTRY_INFO!$H85=1,COUNTRY_INFO!E85,0))) -> 0 | E85: =IF(INTRO!$E$39<>"Non endémique", 0, IF(INTRO!$E$37="Non endémique",0,IF(COUNTRY_INFO!$H85=1,COUNTRY_INFO!F85,0))) -> 0 | F85: =IF(INTRO!$E$39<>"Non endémique", 0, IF(INTRO!$E$37="Non endémique",0,IF(COUNTRY_INFO!$H85=1,COUNTRY_INFO!G85,0))) -> 0 | G85: 0 | H85: =IF(INTRO!$E$39="Non endémique",IF(INTRO!$E$37="Non endémique","Non requis",COUNTRY_INFO!V85),"Traiter avec IVM") -> Traiter avec IVM | I85: 0 | J85: 0 | L85: 0
A86: =IF(INTRO!$E$39<>"Non endémique", " ", IF(INTRO!$E$37="Non endémique"," ", IF(COUNTRY_INFO!A86=0," ",COUNTRY_INFO!A86))) ->  | B86: =IF(INTRO!$E$39<>"Non endémique", " ", IF(INTRO!$E$37="Non endémique"," ", IF(COUNTRY_INFO!B86=0," ",COUNTRY_INFO!B86))) ->  | C86: =IF(INTRO!$E$39<>"Non endémique", " ", IF(INTRO!$E$37="Non endémique"," ", IF(COUNTRY_INFO!C86=0," ",COUNTRY_INFO!C86))) ->  | D86: =IF(INTRO!$E$39<>"Non endémique", 0, IF(INTRO!$E$37="Non endémique",0,IF(COUNTRY_INFO!$H86=1,COUNTRY_INFO!E86,0))) -> 0 | E86: =IF(INTRO!$E$39<>"Non endémique", 0, IF(INTRO!$E$37="Non endémique",0,IF(COUNTRY_INFO!$H86=1,COUNTRY_INFO!F86,0))) -> 0 | F86: =IF(INTRO!$E$39<>"Non endémique", 0, IF(INTRO!$E$37="Non endémique",0,IF(COUNTRY_INFO!$H86=1,COUNTRY_INFO!G86,0))) -> 0 | G86: 0 | H86: =IF(INTRO!$E$39="Non endémique",IF(INTRO!$E$37="Non endémique","Non requis",COUNTRY_INFO!V86),"Traiter avec IVM") -> Traiter avec IVM | I86: 0 | J86: 0 | L86: 0
A87: =IF(INTRO!$E$39<>"Non endémique", " ", IF(INTRO!$E$37="Non endémique"," ", IF(COUNTRY_INFO!A87=0," ",COUNTRY_INFO!A87))) ->  | B87: =IF(INTRO!$E$39<>"Non endémique", " ", IF(INTRO!$E$37="Non endémique"," ", IF(COUNTRY_INFO!B87=0," ",COUNTRY_INFO!B87))) ->  | C87: =IF(INTRO!$E$39<>"Non endémique", " ", IF(INTRO!$E$37="Non endémique"," ", IF(COUNTRY_INFO!C87=0," ",COUNTRY_INFO!C87))) ->  | D87: =IF(INTRO!$E$39<>"Non endémique", 0, IF(INTRO!$E$37="Non endémique",0,IF(COUNTRY_INFO!$H87=1,COUNTRY_INFO!E87,0))) -> 0 | E87: =IF(INTRO!$E$39<>"Non endémique", 0, IF(INTRO!$E$37="Non endémique",0,IF(COUNTRY_INFO!$H87=1,COUNTRY_INFO!F87,0))) -> 0 | F87: =IF(INTRO!$E$39<>"Non endémique", 0, IF(INTRO!$E$37="Non endémique",0,IF(COUNTRY_INFO!$H87=1,COUNTRY_INFO!G87,0))) -> 0 | G87: 0 | H87: =IF(INTRO!$E$39="Non endémique",IF(INTRO!$E$37="Non endémique","Non requis",COUNTRY_INFO!V87),"Traiter avec IVM") -> Traiter avec IVM | I87: 0 | J87: 0 | L87: 0
A88: =IF(INTRO!$E$39<>"Non endémique", " ", IF(INTRO!$E$37="Non endémique"," ", IF(COUNTRY_INFO!A88=0," ",COUNTRY_INFO!A88))) ->  | B88: =IF(INTRO!$E$39<>"Non endémique", " ", IF(INTRO!$E$37="Non endémique"," ", IF(COUNTRY_INFO!B88=0," ",COUNTRY_INFO!B88))) ->  | C88: =IF(INTRO!$E$39<>"Non endémique", " ", IF(INTRO!$E$37="Non endémique"," ", IF(COUNTRY_INFO!C88=0," ",COUNTRY_INFO!C88))) ->  | D88: =IF(INTRO!$E$39<>"Non endémique", 0, IF(INTRO!$E$37="Non endémique",0,IF(COUNTRY_INFO!$H88=1,COUNTRY_INFO!E88,0))) -> 0 | E88: =IF(INTRO!$E$39<>"Non endémique", 0, IF(INTRO!$E$37="Non endémique",0,IF(COUNTRY_INFO!$H88=1,COUNTRY_INFO!F88,0))) -> 0 | F88: =IF(INTRO!$E$39<>"Non endémique", 0, IF(INTRO!$E$37="Non endémique",0,IF(COUNTRY_INFO!$H88=1,COUNTRY_INFO!G88,0))) -> 0 | G88: 0 | H88: =IF(INTRO!$E$39="Non endémique",IF(INTRO!$E$37="Non endémique","Non requis",COUNTRY_INFO!V88),"Traiter avec IVM") -> Traiter avec IVM | I88: 0 | J88: 0 | L88: 0
A89: =IF(INTRO!$E$39<>"Non endémique", " ", IF(INTRO!$E$37="Non endémique"," ", IF(COUNTRY_INFO!A89=0," ",COUNTRY_INFO!A89))) ->  | B89: =IF(INTRO!$E$39<>"Non endémique", " ", IF(INTRO!$E$37="Non endémique"," ", IF(COUNTRY_INFO!B89=0," ",COUNTRY_INFO!B89))) ->  | C89: =IF(INTRO!$E$39<>"Non endémique", " ", IF(INTRO!$E$37="Non endémique"," ", IF(COUNTRY_INFO!C89=0," ",COUNTRY_INFO!C89))) ->  | D89: =IF(INTRO!$E$39<>"Non endémique", 0, IF(INTRO!$E$37="Non endémique",0,IF(COUNTRY_INFO!$H89=1,COUNTRY_INFO!E89,0))) -> 0 | E89: =IF(INTRO!$E$39<>"Non endémique", 0, IF(INTRO!$E$37="Non endémique",0,IF(COUNTRY_INFO!$H89=1,COUNTRY_INFO!F89,0))) -> 0 | F89: =IF(INTRO!$E$39<>"Non endémique", 0, IF(INTRO!$E$37="Non endémique",0,IF(COUNTRY_INFO!$H89=1,COUNTRY_INFO!G89,0))) -> 0 | G89: 0 | H89: =IF(INTRO!$E$39="Non endémique",IF(INTRO!$E$37="Non endémique","Non requis",COUNTRY_INFO!V89),"Traiter avec IVM") -> Traiter avec IVM | I89: 0 | J89: 0 | L89: 0
A90: =IF(INTRO!$E$39<>"Non endémique", " ", IF(INTRO!$E$37="Non endémique"," ", IF(COUNTRY_INFO!A90=0," ",COUNTRY_INFO!A90))) ->  | B90: =IF(INTRO!$E$39<>"Non endémique", " ", IF(INTRO!$E$37="Non endémique"," ", IF(COUNTRY_INFO!B90=0," ",COUNTRY_INFO!B90))) ->  | C90: =IF(INTRO!$E$39<>"Non endémique", " ", IF(INTRO!$E$37="Non endémique"," ", IF(COUNTRY_INFO!C90=0," ",COUNTRY_INFO!C90))) ->  | D90: =IF(INTRO!$E$39<>"Non endémique", 0, IF(INTRO!$E$37="Non endémique",0,IF(COUNTRY_INFO!$H90=1,COUNTRY_INFO!E90,0))) -> 0 | E90: =IF(INTRO!$E$39<>"Non endémique", 0, IF(INTRO!$E$37="Non endémique",0,IF(COUNTRY_INFO!$H90=1,COUNTRY_INFO!F90,0))) -> 0 | F90: =IF(INTRO!$E$39<>"Non endémique", 0, IF(INTRO!$E$37="Non endémique",0,IF(COUNTRY_INFO!$H90=1,COUNTRY_INFO!G90,0))) -> 0 | G90: 0 | H90: =IF(INTRO!$E$39="Non endémique",IF(INTRO!$E$37="Non endémique","Non requis",COUNTRY_INFO!V90),"Traiter avec IVM") -> Traiter avec IVM | I90: 0 | J90: 0 | L90: 0
A91: =IF(INTRO!$E$39<>"Non endémique", " ", IF(INTRO!$E$37="Non endémique"," ", IF(COUNTRY_INFO!A91=0," ",COUNTRY_INFO!A91))) ->  | B91: =IF(INTRO!$E$39<>"Non endémique", " ", IF(INTRO!$E$37="Non endémique"," ", IF(COUNTRY_INFO!B91=0," ",COUNTRY_INFO!B91))) ->  | C91: =IF(INTRO!$E$39<>"Non endémique", " ", IF(INTRO!$E$37="Non endémique"," ", IF(COUNTRY_INFO!C91=0," ",COUNTRY_INFO!C91))) ->  | D91: =IF(INTRO!$E$39<>"Non endémique", 0, IF(INTRO!$E$37="Non endémique",0,IF(COUNTRY_INFO!$H91=1,COUNTRY_INFO!E91,0))) -> 0 | E91: =IF(INTRO!$E$39<>"Non endémique", 0, IF(INTRO!$E$37="Non endémique",0,IF(COUNTRY_INFO!$H91=1,COUNTRY_INFO!F91,0))) -> 0 | F91: =IF(INTRO!$E$39<>"Non endémique", 0, IF(INTRO!$E$37="Non endémique",0,IF(COUNTRY_INFO!$H91=1,COUNTRY_INFO!G91,0))) -> 0 | G91: 0 | H91: =IF(INTRO!$E$39="Non endémique",IF(INTRO!$E$37="Non endémique","Non requis",COUNTRY_INFO!V91),"Traiter avec IVM") -> Traiter avec IVM | I91: 0 | J91: 0 | L91: 0
A92: =IF(INTRO!$E$39<>"Non endémique", " ", IF(INTRO!$E$37="Non endémique"," ", IF(COUNTRY_INFO!A92=0," ",COUNTRY_INFO!A92))) ->  | B92: =IF(INTRO!$E$39<>"Non endémique", " ", IF(INTRO!$E$37="Non endémique"," ", IF(COUNTRY_INFO!B92=0," ",COUNTRY_INFO!B92))) ->  | C92: =IF(INTRO!$E$39<>"Non endémique", " ", IF(INTRO!$E$37="Non endémique"," ", IF(COUNTRY_INFO!C92=0," ",COUNTRY_INFO!C92))) ->  | D92: =IF(INTRO!$E$39<>"Non endémique", 0, IF(INTRO!$E$37="Non endémique",0,IF(COUNTRY_INFO!$H92=1,COUNTRY_INFO!E92,0))) -> 0 | E92: =IF(INTRO!$E$39<>"Non endémique", 0, IF(INTRO!$E$37="Non endémique",0,IF(COUNTRY_INFO!$H92=1,COUNTRY_INFO!F92,0))) -> 0 | F92: =IF(INTRO!$E$39<>"Non endémique", 0, IF(INTRO!$E$37="Non endémique",0,IF(COUNTRY_INFO!$H92=1,COUNTRY_INFO!G92,0))) -> 0 | G92: 0 | H92: =IF(INTRO!$E$39="Non endémique",IF(INTRO!$E$37="Non endémique","Non requis",COUNTRY_INFO!V92),"Traiter avec IVM") -> Traiter avec IVM | I92: 0 | J92: 0 | L92: 0
A93: =IF(INTRO!$E$39<>"Non endémique", " ", IF(INTRO!$E$37="Non endémique"," ", IF(COUNTRY_INFO!A93=0," ",COUNTRY_INFO!A93))) ->  | B93: =IF(INTRO!$E$39<>"Non endémique", " ", IF(INTRO!$E$37="Non endémique"," ", IF(COUNTRY_INFO!B93=0," ",COUNTRY_INFO!B93))) ->  | C93: =IF(INTRO!$E$39<>"Non endémique", " ", IF(INTRO!$E$37="Non endémique"," ", IF(COUNTRY_INFO!C93=0," ",COUNTRY_INFO!C93))) ->  | D93: =IF(INTRO!$E$39<>"Non endémique", 0, IF(INTRO!$E$37="Non endémique",0,IF(COUNTRY_INFO!$H93=1,COUNTRY_INFO!E93,0))) -> 0 | E93: =IF(INTRO!$E$39<>"Non endémique", 0, IF(INTRO!$E$37="Non endémique",0,IF(COUNTRY_INFO!$H93=1,COUNTRY_INFO!F93,0))) -> 0 | F93: =IF(INTRO!$E$39<>"Non endémique", 0, IF(INTRO!$E$37="Non endémique",0,IF(COUNTRY_INFO!$H93=1,COUNTRY_INFO!G93,0))) -> 0 | G93: 0 | H93: =IF(INTRO!$E$39="Non endémique",IF(INTRO!$E$37="Non endémique","Non requis",COUNTRY_INFO!V93),"Traiter avec IVM") -> Traiter avec IVM | I93: 0 | J93: 0 | L93: 0
A94: =IF(INTRO!$E$39<>"Non endémique", " ", IF(INTRO!$E$37="Non endémique"," ", IF(COUNTRY_INFO!A94=0," ",COUNTRY_INFO!A94))) ->  | B94: =IF(INTRO!$E$39<>"Non endémique", " ", IF(INTRO!$E$37="Non endémique"," ", IF(COUNTRY_INFO!B94=0," ",COUNTRY_INFO!B94))) ->  | C94: =IF(INTRO!$E$39<>"Non endémique", " ", IF(INTRO!$E$37="Non endémique"," ", IF(COUNTRY_INFO!C94=0," ",COUNTRY_INFO!C94))) ->  | D94: =IF(INTRO!$E$39<>"Non endémique", 0, IF(INTRO!$E$37="Non endémique",0,IF(COUNTRY_INFO!$H94=1,COUNTRY_INFO!E94,0))) -> 0 | E94: =IF(INTRO!$E$39<>"Non endémique", 0, IF(INTRO!$E$37="Non endémique",0,IF(COUNTRY_INFO!$H94=1,COUNTRY_INFO!F94,0))) -> 0 | F94: =IF(INTRO!$E$39<>"Non endémique", 0, IF(INTRO!$E$37="Non endémique",0,IF(COUNTRY_INFO!$H94=1,COUNTRY_INFO!G94,0))) -> 0 | G94: 0 | H94: =IF(INTRO!$E$39="Non endémique",IF(INTRO!$E$37="Non endémique","Non requis",COUNTRY_INFO!V94),"Traiter avec IVM") -> Traiter avec IVM | I94: 0 | J94: 0 | L94: 0
A95: =IF(INTRO!$E$39<>"Non endémique", " ", IF(INTRO!$E$37="Non endémique"," ", IF(COUNTRY_INFO!A95=0," ",COUNTRY_INFO!A95))) ->  | B95: =IF(INTRO!$E$39<>"Non endémique", " ", IF(INTRO!$E$37="Non endémique"," ", IF(COUNTRY_INFO!B95=0," ",COUNTRY_INFO!B95))) ->  | C95: =IF(INTRO!$E$39<>"Non endémique", " ", IF(INTRO!$E$37="Non endémique"," ", IF(COUNTRY_INFO!C95=0," ",COUNTRY_INFO!C95))) ->  | D95: =IF(INTRO!$E$39<>"Non endémique", 0, IF(INTRO!$E$37="Non endémique",0,IF(COUNTRY_INFO!$H95=1,COUNTRY_INFO!E95,0))) -> 0 | E95: =IF(INTRO!$E$39<>"Non endémique", 0, IF(INTRO!$E$37="Non endémique",0,IF(COUNTRY_INFO!$H95=1,COUNTRY_INFO!F95,0))) -> 0 | F95: =IF(INTRO!$E$39<>"Non endémique", 0, IF(INTRO!$E$37="Non endémique",0,IF(COUNTRY_INFO!$H95=1,COUNTRY_INFO!G95,0))) -> 0 | G95: 0 | H95: =IF(INTRO!$E$39="Non endémique",IF(INTRO!$E$37="Non endémique","Non requis",COUNTRY_INFO!V95),"Traiter avec IVM") -> Traiter avec IVM | I95: 0 | J95: 0 | L95: 0
A96: =IF(INTRO!$E$39<>"Non endémique", " ", IF(INTRO!$E$37="Non endémique"," ", IF(COUNTRY_INFO!A96=0," ",COUNTRY_INFO!A96))) ->  | B96: =IF(INTRO!$E$39<>"Non endémique", " ", IF(INTRO!$E$37="Non endémique"," ", IF(COUNTRY_INFO!B96=0," ",COUNTRY_INFO!B96))) ->  | C96: =IF(INTRO!$E$39<>"Non endémique", " ", IF(INTRO!$E$37="Non endémique"," ", IF(COUNTRY_INFO!C96=0," ",COUNTRY_INFO!C96))) ->  | D96: =IF(INTRO!$E$39<>"Non endémique", 0, IF(INTRO!$E$37="Non endémique",0,IF(COUNTRY_INFO!$H96=1,COUNTRY_INFO!E96,0))) -> 0 | E96: =IF(INTRO!$E$39<>"Non endémique", 0, IF(INTRO!$E$37="Non endémique",0,IF(COUNTRY_INFO!$H96=1,COUNTRY_INFO!F96,0))) -> 0 | F96: =IF(INTRO!$E$39<>"Non endémique", 0, IF(INTRO!$E$37="Non endémique",0,IF(COUNTRY_INFO!$H96=1,COUNTRY_INFO!G96,0))) -> 0 | G96: 0 | H96: =IF(INTRO!$E$39="Non endémique",IF(INTRO!$E$37="Non endémique","Non requis",COUNTRY_INFO!V96),"Traiter avec IVM") -> Traiter avec IVM | I96: 0 | J96: 0 | L96: 0
A97: =IF(INTRO!$E$39<>"Non endémique", " ", IF(INTRO!$E$37="Non endémique"," ", IF(COUNTRY_INFO!A97=0," ",COUNTRY_INFO!A97))) ->  | B97: =IF(INTRO!$E$39<>"Non endémique", " ", IF(INTRO!$E$37="Non endémique"," ", IF(COUNTRY_INFO!B97=0," ",COUNTRY_INFO!B97))) ->  | C97: =IF(INTRO!$E$39<>"Non endémique", " ", IF(INTRO!$E$37="Non endémique"," ", IF(COUNTRY_INFO!C97=0," ",COUNTRY_INFO!C97))) ->  | D97: =IF(INTRO!$E$39<>"Non endémique", 0, IF(INTRO!$E$37="Non endémique",0,IF(COUNTRY_INFO!$H97=1,COUNTRY_INFO!E97,0))) -> 0 | E97: =IF(INTRO!$E$39<>"Non endémique", 0, IF(INTRO!$E$37="Non endémique",0,IF(COUNTRY_INFO!$H97=1,COUNTRY_INFO!F97,0))) -> 0 | F97: =IF(INTRO!$E$39<>"Non endémique", 0, IF(INTRO!$E$37="Non endémique",0,IF(COUNTRY_INFO!$H97=1,COUNTRY_INFO!G97,0))) -> 0 | G97: 0 | H97: =IF(INTRO!$E$39="Non endémique",IF(INTRO!$E$37="Non endémique","Non requis",COUNTRY_INFO!V97),"Traiter avec IVM") -> Traiter avec IVM | I97: 0 | J97: 0 | L97: 0
A98: =IF(INTRO!$E$39<>"Non endémique", " ", IF(INTRO!$E$37="Non endémique"," ", IF(COUNTRY_INFO!A98=0," ",COUNTRY_INFO!A98))) ->  | B98: =IF(INTRO!$E$39<>"Non endémique", " ", IF(INTRO!$E$37="Non endémique"," ", IF(COUNTRY_INFO!B98=0," ",COUNTRY_INFO!B98))) ->  | C98: =IF(INTRO!$E$39<>"Non endémique", " ", IF(INTRO!$E$37="Non endémique"," ", IF(COUNTRY_INFO!C98=0," ",COUNTRY_INFO!C98))) ->  | D98: =IF(INTRO!$E$39<>"Non endémique", 0, IF(INTRO!$E$37="Non endémique",0,IF(COUNTRY_INFO!$H98=1,COUNTRY_INFO!E98,0))) -> 0 | E98: =IF(INTRO!$E$39<>"Non endémique", 0, IF(INTRO!$E$37="Non endémique",0,IF(COUNTRY_INFO!$H98=1,COUNTRY_INFO!F98,0))) -> 0 | F98: =IF(INTRO!$E$39<>"Non endémique", 0, IF(INTRO!$E$37="Non endémique",0,IF(COUNTRY_INFO!$H98=1,COUNTRY_INFO!G98,0))) -> 0 | G98: 0 | H98: =IF(INTRO!$E$39="Non endémique",IF(INTRO!$E$37="Non endémique","Non requis",COUNTRY_INFO!V98),"Traiter avec IVM") -> Traiter avec IVM | I98: 0 | J98: 0 | L98: 0
A99: =IF(INTRO!$E$39<>"Non endémique", " ", IF(INTRO!$E$37="Non endémique"," ", IF(COUNTRY_INFO!A99=0," ",COUNTRY_INFO!A99))) ->  | B99: =IF(INTRO!$E$39<>"Non endémique", " ", IF(INTRO!$E$37="Non endémique"," ", IF(COUNTRY_INFO!B99=0," ",COUNTRY_INFO!B99))) ->  | C99: =IF(INTRO!$E$39<>"Non endémique", " ", IF(INTRO!$E$37="Non endémique"," ", IF(COUNTRY_INFO!C99=0," ",COUNTRY_INFO!C99))) ->  | D99: =IF(INTRO!$E$39<>"Non endémique", 0, IF(INTRO!$E$37="Non endémique",0,IF(COUNTRY_INFO!$H99=1,COUNTRY_INFO!E99,0))) -> 0 | E99: =IF(INTRO!$E$39<>"Non endémique", 0, IF(INTRO!$E$37="Non endémique",0,IF(COUNTRY_INFO!$H99=1,COUNTRY_INFO!F99,0))) -> 0 | F99: =IF(INTRO!$E$39<>"Non endémique", 0, IF(INTRO!$E$37="Non endémique",0,IF(COUNTRY_INFO!$H99=1,COUNTRY_INFO!G99,0))) -> 0 | G99: 0 | H99: =IF(INTRO!$E$39="Non endémique",IF(INTRO!$E$37="Non endémique","Non requis",COUNTRY_INFO!V99),"Traiter avec IVM") -> Traiter avec IVM | I99: 0 | J99: 0 | L99: 0
A100: =IF(INTRO!$E$39<>"Non endémique", " ", IF(INTRO!$E$37="Non endémique"," ", IF(COUNTRY_INFO!A100=0," ",COUNTRY_INFO!A100))) ->  | B100: =IF(INTRO!$E$39<>"Non endémique", " ", IF(INTRO!$E$37="Non endémique"," ", IF(COUNTRY_INFO!B100=0," ",COUNTRY_INFO!B100))) ->  | C100: =IF(INTRO!$E$39<>"Non endémique", " ", IF(INTRO!$E$37="Non endémique"," ", IF(COUNTRY_INFO!C100=0," ",COUNTRY_INFO!C100))) ->  | D100: =IF(INTRO!$E$39<>"Non endémique", 0, IF(INTRO!$E$37="Non endémique",0,IF(COUNTRY_INFO!$H100=1,COUNTRY_INFO!E100,0))) -> 0 | E100: =IF(INTRO!$E$39<>"Non endémique", 0, IF(INTRO!$E$37="Non endémique",0,IF(COUNTRY_INFO!$H100=1,COUNTRY_INFO!F100,0))) -> 0 | F100: =IF(INTRO!$E$39<>"Non endémique", 0, IF(INTRO!$E$37="Non endémique",0,IF(COUNTRY_INFO!$H100=1,COUNTRY_INFO!G100,0))) -> 0 | G100: 0 | H100: =IF(INTRO!$E$39="Non endémique",IF(INTRO!$E$37="Non endémique","Non requis",COUNTRY_INFO!V100),"Traiter avec IVM") -> Traiter avec IVM | I100: 0 | J100: 0 | L100: 0
A101: =IF(INTRO!$E$39<>"Non endémique", " ", IF(INTRO!$E$37="Non endémique"," ", IF(COUNTRY_INFO!A101=0," ",COUNTRY_INFO!A101))) ->  | B101: =IF(INTRO!$E$39<>"Non endémique", " ", IF(INTRO!$E$37="Non endémique"," ", IF(COUNTRY_INFO!B101=0," ",COUNTRY_INFO!B101))) ->  | C101: =IF(INTRO!$E$39<>"Non endémique", " ", IF(INTRO!$E$37="Non endémique"," ", IF(COUNTRY_INFO!C101=0," ",COUNTRY_INFO!C101))) ->  | D101: =IF(INTRO!$E$39<>"Non endémique", 0, IF(INTRO!$E$37="Non endémique",0,IF(COUNTRY_INFO!$H101=1,COUNTRY_INFO!E101,0))) -> 0 | E101: =IF(INTRO!$E$39<>"Non endémique", 0, IF(INTRO!$E$37="Non endémique",0,IF(COUNTRY_INFO!$H101=1,COUNTRY_INFO!F101,0))) -> 0 | F101: =IF(INTRO!$E$39<>"Non endémique", 0, IF(INTRO!$E$37="Non endémique",0,IF(COUNTRY_INFO!$H101=1,COUNTRY_INFO!G101,0))) -> 0 | G101: 0 | H101: =IF(INTRO!$E$39="Non endémique",IF(INTRO!$E$37="Non endémique","Non requis",COUNTRY_INFO!V101),"Traiter avec IVM") -> Traiter avec IVM | I101: 0 | J101: 0 | L101: 0
A102: =IF(INTRO!$E$39<>"Non endémique", " ", IF(INTRO!$E$37="Non endémique"," ", IF(COUNTRY_INFO!A102=0," ",COUNTRY_INFO!A102))) ->  | B102: =IF(INTRO!$E$39<>"Non endémique", " ", IF(INTRO!$E$37="Non endémique"," ", IF(COUNTRY_INFO!B102=0," ",COUNTRY_INFO!B102))) ->  | C102: =IF(INTRO!$E$39<>"Non endémique", " ", IF(INTRO!$E$37="Non endémique"," ", IF(COUNTRY_INFO!C102=0," ",COUNTRY_INFO!C102))) ->  | D102: =IF(INTRO!$E$39<>"Non endémique", 0, IF(INTRO!$E$37="Non endémique",0,IF(COUNTRY_INFO!$H102=1,COUNTRY_INFO!E102,0))) -> 0 | E102: =IF(INTRO!$E$39<>"Non endémique", 0, IF(INTRO!$E$37="Non endémique",0,IF(COUNTRY_INFO!$H102=1,COUNTRY_INFO!F102,0))) -> 0 | F102: =IF(INTRO!$E$39<>"Non endémique", 0, IF(INTRO!$E$37="Non endémique",0,IF(COUNTRY_INFO!$H102=1,COUNTRY_INFO!G102,0))) -> 0 | G102: 0 | H102: =IF(INTRO!$E$39="Non endémique",IF(INTRO!$E$37="Non endémique","Non requis",COUNTRY_INFO!V102),"Traiter avec IVM") -> Traiter avec IVM | I102: 0 | J102: 0 | L102: 0
A103: =IF(INTRO!$E$39<>"Non endémique", " ", IF(INTRO!$E$37="Non endémique"," ", IF(COUNTRY_INFO!A103=0," ",COUNTRY_INFO!A103))) ->  | B103: =IF(INTRO!$E$39<>"Non endémique", " ", IF(INTRO!$E$37="Non endémique"," ", IF(COUNTRY_INFO!B103=0," ",COUNTRY_INFO!B103))) ->  | C103: =IF(INTRO!$E$39<>"Non endémique", " ", IF(INTRO!$E$37="Non endémique"," ", IF(COUNTRY_INFO!C103=0," ",COUNTRY_INFO!C103))) ->  | D103: =IF(INTRO!$E$39<>"Non endémique", 0, IF(INTRO!$E$37="Non endémique",0,IF(COUNTRY_INFO!$H103=1,COUNTRY_INFO!E103,0))) -> 0 | E103: =IF(INTRO!$E$39<>"Non endémique", 0, IF(INTRO!$E$37="Non endémique",0,IF(COUNTRY_INFO!$H103=1,COUNTRY_INFO!F103,0))) -> 0 | F103: =IF(INTRO!$E$39<>"Non endémique", 0, IF(INTRO!$E$37="Non endémique",0,IF(COUNTRY_INFO!$H103=1,COUNTRY_INFO!G103,0))) -> 0 | G103: 0 | H103: =IF(INTRO!$E$39="Non endémique",IF(INTRO!$E$37="Non endémique","Non requis",COUNTRY_INFO!V103),"Traiter avec IVM") -> Traiter avec IVM | I103: 0 | J103: 0 | L103: 0
